Workbook

Sheet Capa (hidden)

Sheet Painel
T2: MARÇO
AM4: JANEIRO | AN4: JAN
AM5: FEVEREIRO | AN5: JAN - FEV
AM6: MARÇO | AN6: JAN - MAR
AM7: ABRIL | AN7: JAN - ABR
AM8: MAIO | AN8: JAN - MAI
AM9: JUNHO | AN9: JAN - JUN
AM10: JULHO | AN10: JAN - JUL
AM11: AGOSTO | AN11: JAN - AGO
AM12: SETEMBRO | AN12: JAN - SET
AM13: OUTUBRO | AN13: JAN - OUT
AM14: NOVEMBRO | AN14: JAN - NOV
AM15: DEZEMBRO | AN15: JAN - DEZ
AM16: 1° TRIMESTRE
AM17: 2° TRIMESTRE
AM18: 3° TRIMESTRE
AM19: 4° TRIMESTRE

Sheet GERAL (hidden)
J4: 74168.62 | O4: 68394.43 | T4: 67355.88 | Y4: 104369.3
E5: 1 | F5: =E5+1 -> 2 | G5: =F5+1 -> 3 | H5: 4 | I5: 5 | J5: 6 | K5: 7 | L5: 8 | M5: 9 | N5: 10 | O5: 11 | P5: 12 | Q5: 13 | R5: 14 | S5: 15 | T5: 16 | U5: 17 | V5: 18 | W5: 19 | X5: 20 | Y5: 21 | Z5: 22 | AA5: 23 | AB5: 24 | AC5: 25 | AD5: 26 | AE5: 27 | AF5: 28 | AG5: 29 | AH5: 30 | AI5: 31 | AJ5: 32 | AK5: 33 | AL5: 34 | AM5: 35 | AN5: 36 | AO5: 37 | AP5: 38 | AQ5: 39 | AR5: 40 | AS5: 41 | AT5: 42 | AU5: 43 | AV5: 44 | AW5: 45 | AX5: 46 | AY5: 47 | AZ5: 48 | BA5: 49 | BB5: 50 | BC5: 51 | BD5: 52 | BE5: 53 | BF5: 54 | BG5: 55 | BH5: 56 | BI5: 57 | BJ5: 58 | BK5: 59 | BL5: 60 | BM5: 61
F6: JAN | G6: JAN | H6: JAN | I6: JAN | J6: JAN | K6: FEV | L6: FEV | M6: FEV | N6: FEV | O6: FEV | P6: MAR | Q6: MAR | R6: MAR | S6: MAR | T6: MAR | U6: ABR | V6: ABR | W6: ABR | X6: ABR | Y6: ABR | Z6: MAI | AA6: MAI | AB6: MAI | AC6: MAI | AD6: MAI | AE6: JUN | AF6: JUN | AG6: JUN | AH6: JUN | AI6: JUN | AJ6: JUL | AK6: JUL | AL6: JUL | AM6: JUL | AN6: JUL | AO6: AGO | AP6: AGO | AQ6: AGO | AR6: AGO | AS6: AGO | AT6: SET | AU6: SET | AV6: SET | AW6: SET | AX6: SET | AY6: OUT | AZ6: OUT | BA6: OUT | BB6: OUT | BC6: OUT | BD6: NOV | BE6: NOV | BF6: NOV | BG6: NOV | BH6: NOV | BI6: DEZ | BJ6: DEZ | BK6: DEZ | BL6: DEZ | BM6: DEZ
F7: 4Q JAN 2020 | G7: Nova Projeção JAN % | H7: Nova Projeção JAN R$ | I7: Arrecadação x Programação Inicial | J7: Arrecadação JAN | K7: 4Q FEV 2020 | L7: Nova Projeção FEV % | M7: Nova Projeção FEV R$ | N7: Arrecadação x Programação Inicial | O7: Arrecadação FEV | P7: 4Q MAR 2020 | Q7: Nova Projeção MAR % | R7: Nova Projeção MAR R$ | S7: Arrecadação x Programação Inicial | T7: Arrecadação MAR | U7: 4Q ABR 2020 | V7: Nova Projeção ABR % | W7: Nova Projeção ABR R$ | X7: Arrecadação x Programação Inicial | Y7: Arrecadação ABR | Z7: 4Q MAI 2020 | AA7: Nova Projeção MAI % | AB7: Nova Projeção MAI R$ | AC7: Arrecadação x Programação Inicial | AD7: Arrecadação MAI | AE7: 4Q JUN 2020 | AF7: Nova Projeção JUN % | AG7: Nova Projeção JUN R$ | AH7: Arrecadação x Programação Inicial | AI7: Arrecadação JUN | AJ7: 4Q JUL 2020 | AK7: Nova Projeção JUL % | AL7: Nova Projeção JUL R$ | AM7: Arrecadação x Programação Inicial | AN7: Arrecadação JUL | AO7: 4Q AGO 2020 | AP7: Nova Projeção AGO % | AQ7: Nova Projeção AGO R$ | AR7: Arrecadação x Programação Inicial | AS7: Arrecadação AGO | AT7: 4Q SET 2020 | AU7: Nova Projeção SET % | AV7: Nova Projeção SET R$ | AW7: Arrecadação x Programação Inicial | AX7: Arrecadação SET | AY7: 4Q OUT 2020 | AZ7: Nova Projeção OUT % | BA7: Nova Projeção OUT R$ | BB7: Arrecadação x Programação Inicial | BC7: Arrecadação OUT | BD7: 4Q NOV 2020 | BE7: Nova Projeção NOV % | BF7: Nova Projeção NOV R$ | BG7: Arrecadação x Programação Inicial | BH7: Arrecadação NOV | BI7: 4Q DEZ 2020 | BJ7: Nova Projeção DEZ % | BK7: Nova Projeção DEZ R$ | BL7: Arrecadação x Programação Inicial | BM7: Arrecadação DEZ | BN7: Projeção Inicial 2020 | BO7: NOVA Projeção 2020 | BU7: Reformulação Receita 2020 | BV7: 4Q JAN 2020 | BW7: 4Q FEV 2020 | BX7: 4Q MAR 2020 | BY7: 4Q ABR 2020 | BZ7: 4Q MAI 2020 | CA7: 4Q JUN 2020 | CB7: 4Q JUL 2020 | CC7: 4Q AGO 2020 | CD7: 4Q SET 2020 | CE7: 4Q OUT 2020 | CF7: 4Q NOV 2020 | CG7: 4Q DEZ 2020
A8: Base Arrec. | B8: Base Proj. 1° Reform. | C8: Base Proj. Inicial | D8: RECEITA | E8: RÚBRICA RECEITA | F8: Projeção Inicial | G8: =G7 -> Nova Projeção JAN % | H8: =H7 -> Nova Projeção JAN R$ | I8: =I7 -> Arrecadação x Programação Inicial | J8: =J7 -> Arrecadação JAN | K8: Projeção Inicial | L8: =L7 -> Nova Projeção FEV % | M8: =M7 -> Nova Projeção FEV R$ | N8: =N7 -> Arrecadação x Programação Inicial | O8: =O7 -> Arrecadação FEV | P8: Projeção Inicial | Q8: =Q7 -> Nova Projeção MAR % | R8: =R7 -> Nova Projeção MAR R$ | S8: =S7 -> Arrecadação x Programação Inicial | T8: =T7 -> Arrecadação MAR | U8: Projeção Inicial | V8: =V7 -> Nova Projeção ABR % | W8: =W7 -> Nova Projeção ABR R$ | X8: =X7 -> Arrecadação x Programação Inicial | Y8: =Y7 -> Arrecadação ABR | Z8: Projeção Inicial | AA8: =AA7 -> Nova Projeção MAI % | AB8: =AB7 -> Nova Projeção MAI R$ | AC8: =AC7 -> Arrecadação x Programação Inicial | AD8: =AD7 -> Arrecadação MAI | AE8: Projeção Inicial | AF8: =AF7 -> Nova Projeção JUN % | AG8: =AG7 -> Nova Projeção JUN R$ | AH8: =AH7 -> Arrecadação x Programação Inicial | AI8: =AI7 -> Arrecadação JUN | AJ8: Projeção Inicial | AK8: =AK7 -> Nova Projeção JUL % | AL8: =AL7 -> Nova Projeção JUL R$ | AM8: =AM7 -> Arrecadação x Programação Inicial | AN8: =AN7 -> Arrecadação JUL | AO8: Projeção Inicial | AP8: =AP7 -> Nova Projeção AGO % | AQ8: =AQ7 -> Nova Projeção AGO R$ | AR8: =AR7 -> Arrecadação x Programação Inicial | AS8: =AS7 -> Arrecadação AGO | AT8: Projeção Inicial | AU8: =AU7 -> Nova Projeção SET % | AV8: =AV7 -> Nova Projeção SET R$ | AW8: =AW7 -> Arrecadação x Programação Inicial | AX8: =AX7 -> Arrecadação SET | AY8: Projeção Inicial | AZ8: =AZ7 -> Nova Projeção OUT % | BA8: =BA7 -> Nova Projeção OUT R$ | BB8: =BB7 -> Arrecadação x Programação Inicial | BC8: =BC7 -> Arrecadação OUT | BD8: Projeção Inicial | BE8: =BE7 -> Nova Projeção NOV % | BF8: =BF7 -> Nova Projeção NOV R$ | BG8: =BG7 -> Arrecadação x Programação Inicial | BH8: =BH7 -> Arrecadação NOV | BI8: Projeção Inicial | BJ8: =BJ7 -> Nova Projeção DEZ % | BK8: Nova Projeção DEZ R$ | BL8: Arrecadação x Programação Inicial | BM8: Arrecadação DEZ | BN8: Projeção Inicial 2020 | BO8: NOVA Projeção 2020 | BU8: =BU7 -> Reformulação Receita 2020 | BV8: Jan | BW8: Fev | BX8: Mar | BY8: Abr | BZ8: Mai | CA8: Jun | CB8: Jul | CC8: Ago | CD8: Set | CE8: Out | CF8: Nov | CG8: Dez | CI8: JAN | CJ8: JAN-FEV | CK8: JAN-MAR | CL8: JAN-ABR | CM8: JAN-MAI | CN8: JAN-JUN | CO8: JAN-JUL | CP8: JAN-AGO | CQ8: JAN-SET | CR8: JAN-OUT | CS8: JAN-NOV | CT8: JAN-DEZ
A9: ='Base de Dados Input'!E2 -> 5 | B9: ='Base de Dados Input'!P2 -> 16 | C9: ='Base de Dados Input'!AW$2 -> 49 | E9: Evolução de Todos | F9: =IFERROR(INDEX('Base de Dados Input'!$A:$BF,MATCH(GERAL!F$7,'Base de Dados Input'!$A:$A,0),MATCH(GERAL!$C9,'Base de Dados Input'!$2:$2,0)),"") -> 7875271.593 | G9: - | H9: =SUM(H11:H18) -> 6650003.62 | I9: =IFERROR(J9/F9,"") -> 0.8444157819 | J9: =SUM(J11:J18) -> 6650003.62 | K9: =IFERROR(INDEX('Base de Dados Input'!$A:$BF,MATCH(GERAL!K$7,'Base de Dados Input'!$A:$A,0),MATCH(GERAL!$C9,'Base de Dados Input'!$2:$2,0)),"") -> 4902246.934 | L9: - | M9: =SUM(M11:M18) -> 6116133.36 | N9: =IFERROR(O9/K9,"") -> 1.247618376 | O9: =SUM(O11:O18) -> 6116133.36 | P9: =IFERROR(INDEX('Base de Dados Input'!$A:$BF,MATCH(GERAL!P$7,'Base de Dados Input'!$A:$A,0),MATCH(GERAL!$C9,'Base de Dados Input'!$2:$2,0)),"") -> 4259223.911 | Q9: - | R9: =SUM(R11:R18) -> 4510040.39 | S9: =IFERROR(T9/P9,"") -> 1.058887836 | T9: =SUM(T11:T18) -> 4510040.39 | U9: =IFERROR(INDEX('Base de Dados Input'!$A:$BF,MATCH(GERAL!U$7,'Base de Dados Input'!$A:$A,0),MATCH(GERAL!$C9,'Base de Dados Input'!$2:$2,0)),"") -> 4183862.244 | V9: =IFERROR(W9/U9,"") -> 0.2057036102 | W9: =SUM(W11:W18) -> 860635.568 | X9: =IFERROR(Y9/U9,"") -> 0.5459222381 | Y9: =SUM(Y11:Y18) -> 2284063.44 | Z9: =IFERROR(INDEX('Base de Dados Input'!$A:$BF,MATCH(GERAL!Z$7,'Base de Dados Input'!$A:$A,0),MATCH(GERAL!$C9,'Base de Dados Input'!$2:$2,0)),"") -> 5119072.395 | AA9: 0.2 | AB9: =SUM(AB11:AB18) -> 1050037.514 | AC9: =IFERROR(AD9/Z9,"") -> 0.4440105208 | AD9: =SUM(AD11:AD18) -> 2272922 | AE9: =IFERROR(INDEX('Base de Dados Input'!$A:$BF,MATCH(GERAL!AE$7,'Base de Dados Input'!$A:$A,0),MATCH(GERAL!$C9,'Base de Dados Input'!$2:$2,0)),"") -> 3746388.161 | AF9: - | AG9: =SUM(AG11:AG18) -> 773808.2716 | AH9: =IFERROR(AI9/AE9,"") -> 0.8594618288 | AI9: =SUM(AI11:AI18) -> 3219877.62 | AJ9: =IFERROR(INDEX('Base de Dados Input'!$A:$BF,MATCH(GERAL!AJ$7,'Base de Dados Input'!$A:$A,0),MATCH(GERAL!$C9,'Base de Dados Input'!$2:$2,0)),"") -> 3593830.741 | AK9: - | AL9: =SUM(AL11:AL18) -> 1169508.464 | AM9: =IFERROR(AN9/AJ9,"") -> 1.157131209 | AN9: =SUM(AN11:AN18) -> 4158533.71 | AO9: =IFERROR(INDEX('Base de Dados Input'!$A:$BF,MATCH(GERAL!AO$7,'Base de Dados Input'!$A:$A,0),MATCH(GERAL!$C9,'Base de Dados Input'!$2:$2,0)),"") -> 3825418.159 | AP9: - | AQ9: =SUM(AQ11:AQ18) -> 1554817.542 | AR9: =IFERROR(AS9/AO9,"") -> 1.109032865 | AS9: =SUM(AS11:AS18) -> 4242514.46 | AT9: =IFERROR(INDEX('Base de Dados Input'!$A:$BF,MATCH(GERAL!AT$7,'Base de Dados Input'!$A:$A,0),MATCH(GERAL!$C9,'Base de Dados Input'!$2:$2,0)),"") -> 3273640.74 | AU9: - | AV9: =SUM(AV11:AV18) -> 1603991.595 | AW9: =IFERROR(AX9/AT9,"") -> 1.057575698 | AX9: =SUM(AX11:AX18) -> 3462122.89 | AY9: =IFERROR(INDEX('Base de Dados Input'!$A:$BF,MATCH(GERAL!AY$7,'Base de Dados Input'!$A:$A,0),MATCH(GERAL!$C9,'Base de Dados Input'!$2:$2,0)),"") -> 3655004.475 | AZ9: - | BA9: =SUM(BA11:BA18) -> 1857777.184 | BB9: =IFERROR(BC9/AY9,"") -> 1.006914808 | BC9: =SUM(BC11:BC18) -> 3680278.13 | BD9: =IFERROR(INDEX('Base de Dados Input'!$A:$BF,MATCH(GERAL!BD$7,'Base de Dados Input'!$A:$A,0),MATCH(GERAL!$C9,'Base de Dados Input'!$2:$2,0)),"") -> 3057334.839 | BE9: - | BF9: =SUM(BF11:BF18) -> 2197920.532 | BG9: =IFERROR(BH9/BD9,"") -> 1.076709969 | BH9: =SUM(BH11:BH18) -> 3291862.9 | BI9: =IFERROR(INDEX('Base de Dados Input'!$A:$BF,MATCH(GERAL!BI$7,'Base de Dados Input'!$A:$A,0),MATCH(GERAL!$C9,'Base de Dados Input'!$2:$2,0)),"") -> 2939555.355 | BJ9: - | BK9: =SUM(BK11:BK18) -> 2360117.385 | BL9: =IFERROR(BM9/BI9,"") -> 1.074695431 | BM9: =SUM(BM11:BM18) -> 3159126.71 | BN9: =SUM(BN11:BN18) -> 50430849.55 | BO9: =SUM(BO11:BO18) -> 30704791.43 | BP9: =(BO9-BN9)/BN9 -> -0.3911506211 | BQ9: 0.4 | BU9: =SUM(BU11:BU18) -> 40072219.9 | BV9: =IFERROR(INDEX('Base de Dados Input'!$A:$BF,MATCH(GERAL!BV$7,'Base de Dados Input'!$A:$A,0),MATCH(GERAL!$B9,'Base de Dados Input'!$2:$2,0)),"") -> 7345961.781 | BW9: =IFERROR(INDEX('Base de Dados Input'!$A:$BF,MATCH(GERAL!BW$7,'Base de Dados Input'!$A:$A,0),MATCH(GERAL!$B9,'Base de Dados Input'!$2:$2,0)),"") -> 4202313.808 | BX9: =IFERROR(INDEX('Base de Dados Input'!$A:$BF,MATCH(GERAL!BX$7,'Base de Dados Input'!$A:$A,0),MATCH(GERAL!$B9,'Base de Dados Input'!$2:$2,0)),"") -> 3345233.295 | BY9: =IFERROR(INDEX('Base de Dados Input'!$A:$BF,MATCH(GERAL!BY$7,'Base de Dados Input'!$A:$A,0),MATCH(GERAL!$B9,'Base de Dados Input'!$2:$2,0)),"") -> 3289169.607 | BZ9: =IFERROR(INDEX('Base de Dados Input'!$A:$BF,MATCH(GERAL!BZ$7,'Base de Dados Input'!$A:$A,0),MATCH(GERAL!$B9,'Base de Dados Input'!$2:$2,0)),"") -> 4143905.724 | CA9: =IFERROR(INDEX('Base de Dados Input'!$A:$BF,MATCH(GERAL!CA$7,'Base de Dados Input'!$A:$A,0),MATCH(GERAL!$B9,'Base de Dados Input'!$2:$2,0)),"") -> 2879730.403 | CB9: =IFERROR(INDEX('Base de Dados Input'!$A:$BF,MATCH(GERAL!CB$7,'Base de Dados Input'!$A:$A,0),MATCH(GERAL!$B9,'Base de Dados Input'!$2:$2,0)),"") -> 2645419.173 | CC9: =IFERROR(INDEX('Base de Dados Input'!$A:$BF,MATCH(GERAL!CC$7,'Base de Dados Input'!$A:$A,0),MATCH(GERAL!$B9,'Base de Dados Input'!$2:$2,0)),"") -> 2785194.288 | CD9: =IFERROR(INDEX('Base de Dados Input'!$A:$BF,MATCH(GERAL!CD$7,'Base de Dados Input'!$A:$A,0),MATCH(GERAL!$B9,'Base de Dados Input'!$2:$2,0)),"") -> 2346492.321 | CE9: =IFERROR(INDEX('Base de Dados Input'!$A:$BF,MATCH(GERAL!CE$7,'Base de Dados Input'!$A:$A,0),MATCH(GERAL!$B9,'Base de Dados Input'!$2:$2,0)),"") -> 2694917.39 | CF9: =IFERROR(INDEX('Base de Dados Input'!$A:$BF,MATCH(GERAL!CF$7,'Base de Dados Input'!$A:$A,0),MATCH(GERAL!$B9,'Base de Dados Input'!$2:$2,0)),"") -> 2229048.097 | CG9: =IFERROR(INDEX('Base de Dados Input'!$A:$BF,MATCH(GERAL!CG$7,'Base de Dados Input'!$A:$A,0),MATCH(GERAL!$B9,'Base de Dados Input'!$2:$2,0)),"") -> 2164834.009 | CI9: =BV9 -> 7345961.781 | CJ9: =SUM(BV9:BW9) -> 11548275.59 | CK9: =SUM(BV9:BX9) -> 14893508.88 | CL9: =SUM(BV9:BY9) -> 18182678.49 | CM9: =SUM(BV9:BZ9) -> 22326584.22 | CN9: =SUM(BV9:CA9) -> 25206314.62 | CO9: =SUM(BV9:CB9) -> 27851733.79 | CP9: =SUM(BV9:CC9) -> 30636928.08 | CQ9: =SUM(BV9:CD9) -> 32983420.4 | CR9: =SUM(BV9:CE9) -> 35678337.79 | CS9: =SUM(BV9:CF9) -> 37907385.89 | CT9: =SUM(BV9:CG9) -> 40072219.9
A10: =A9+1 -> 6 | B10: =B9+1 -> 17 | C10: 50 | E10: Todos Sem Aplicação Financeira e Receitas Diversas | F10: =IFERROR(INDEX('Base de Dados Input'!$A:$BF,MATCH(GERAL!F$7,'Base de Dados Input'!$A:$A,0),MATCH(GERAL!$C10,'Base de Dados Input'!$2:$2,0)),"") -> 7610714.902 | G10: - | H10: =SUM(H11:H12)+SUM(H14:H17) -> 6414078.55 | I10: =IFERROR(J10/F10,"") -> 0.8427695207 | J10: =SUM(J11:J12)+SUM(J14:J17) -> 6414078.55 | K10: =IFERROR(INDEX('Base de Dados Input'!$A:$BF,MATCH(GERAL!K$7,'Base de Dados Input'!$A:$A,0),MATCH(GERAL!$C10,'Base de Dados Input'!$2:$2,0)),"") -> 4689168.79 | L10: - | M10: =SUM(M11:M12)+SUM(M14:M17) -> 6003450.02 | N10: =IFERROR(O10/K10,"") -> 1.280280214 | O10: =SUM(O11:O12)+SUM(O14:O17) -> 6003450.02 | P10: =IFERROR(INDEX('Base de Dados Input'!$A:$BF,MATCH(GERAL!P$7,'Base de Dados Input'!$A:$A,0),MATCH(GERAL!$C10,'Base de Dados Input'!$2:$2,0)),"") -> 4024293.87 | Q10: - | R10: =SUM(R11:R12)+SUM(R14:R17) -> 4390394.96 | S10: =IFERROR(T10/P10,"") -> 1.090972752 | T10: =SUM(T11:T12)+SUM(T14:T17) -> 4390394.96 | U10: =IFERROR(INDEX('Base de Dados Input'!$A:$BF,MATCH(GERAL!U$7,'Base de Dados Input'!$A:$A,0),MATCH(GERAL!$C10,'Base de Dados Input'!$2:$2,0)),"") -> 3960212.372 | V10: =IFERROR(W10/U10,"") -> 0.2 | W10: =SUM(W11:W12)+SUM(W14:W17) -> 792042.4744 | X10: =IFERROR(Y10/U10,"") -> 0.5483353962 | Y10: =SUM(Y11:Y12)+SUM(Y14:Y17) -> 2171524.62 | Z10: =IFERROR(INDEX('Base de Dados Input'!$A:$BF,MATCH(GERAL!Z$7,'Base de Dados Input'!$A:$A,0),MATCH(GERAL!$C10,'Base de Dados Input'!$2:$2,0)),"") -> 4863828.37 | AA10: 0.2 | AB10: =SUM(AB11:AB12)+SUM(AB14:AB17) -> 972765.6741 | AC10: =IFERROR(AD10/Z10,"") -> 0.4499922743 | AD10: =SUM(AD11:AD12)+SUM(AD14:AD17) -> 2188685.19 | AE10: =IFERROR(INDEX('Base de Dados Input'!$A:$BF,MATCH(GERAL!AE$7,'Base de Dados Input'!$A:$A,0),MATCH(GERAL!$C10,'Base de Dados Input'!$2:$2,0)),"") -> 3499007.818 | AF10: - | AG10: =SUM(AG11:AG12)+SUM(AG14:AG17) -> 699801.5637 | AH10: =IFERROR(AI10/AE10,"") -> 0.8994261783 | AI10: =SUM(AI11:AI12)+SUM(AI14:AI17) -> 3147099.23 | AJ10: =IFERROR(INDEX('Base de Dados Input'!$A:$BF,MATCH(GERAL!AJ$7,'Base de Dados Input'!$A:$A,0),MATCH(GERAL!$C10,'Base de Dados Input'!$2:$2,0)),"") -> 3336179.95 | AK10: - | AL10: =SUM(AL11:AL12)+SUM(AL14:AL17) -> 1084011.576 | AM10: =IFERROR(AN10/AJ10,"") -> 1.22703832 | AN10: =SUM(AN11:AN12)+SUM(AN14:AN17) -> 4093620.64 | AO10: =IFERROR(INDEX('Base de Dados Input'!$A:$BF,MATCH(GERAL!AO$7,'Base de Dados Input'!$A:$A,0),MATCH(GERAL!$C10,'Base de Dados Input'!$2:$2,0)),"") -> 3575368.507 | AP10: - | AQ10: =SUM(AQ11:AQ12)+SUM(AQ14:AQ17) -> 1470162.698 | AR10: =IFERROR(AS10/AO10,"") -> 1.170484 | AS10: =SUM(AS11:AS12)+SUM(AS14:AS17) -> 4184911.63 | AT10: =IFERROR(INDEX('Base de Dados Input'!$A:$BF,MATCH(GERAL!AT$7,'Base de Dados Input'!$A:$A,0),MATCH(GERAL!$C10,'Base de Dados Input'!$2:$2,0)),"") -> 3002119.081 | AU10: - | AV10: =SUM(AV11:AV12)+SUM(AV14:AV17) -> 1501059.54 | AW10: =IFERROR(AX10/AT10,"") -> 1.136410352 | AX10: =SUM(AX11:AX12)+SUM(AX14:AX17) -> 3411639.2 | AY10: =IFERROR(INDEX('Base de Dados Input'!$A:$BF,MATCH(GERAL!AY$7,'Base de Dados Input'!$A:$A,0),MATCH(GERAL!$C10,'Base de Dados Input'!$2:$2,0)),"") -> 3412266.232 | AZ10: - | BA10: =SUM(BA11:BA12)+SUM(BA14:BA17) -> 1789949.693 | BB10: =IFERROR(BC10/AY10,"") -> 1.062047711 | BC10: =SUM(BC11:BC12)+SUM(BC14:BC17) -> 3623989.54 | BD10: =IFERROR(INDEX('Base de Dados Input'!$A:$BF,MATCH(GERAL!BD$7,'Base de Dados Input'!$A:$A,0),MATCH(GERAL!$C10,'Base de Dados Input'!$2:$2,0)),"") -> 2868204.281 | BE10: - | BF10: =SUM(BF11:BF12)+SUM(BF14:BF17) -> 2154153.003 | BG10: =IFERROR(BH10/BD10,"") -> 1.083323462 | BH10: =SUM(BH11:BH12)+SUM(BH14:BH17) -> 3107192.99 | BI10: =IFERROR(INDEX('Base de Dados Input'!$A:$BF,MATCH(GERAL!BI$7,'Base de Dados Input'!$A:$A,0),MATCH(GERAL!$C10,'Base de Dados Input'!$2:$2,0)),"") -> 2745267.376 | BJ10: - | BK10: =SUM(BK11:BK12)+SUM(BK14:BK17) -> 2315332.71 | BL10: =IFERROR(BM10/BI10,"") -> 1.121454608 | BM10: =SUM(BM11:BM12)+SUM(BM14:BM17) -> 3078692.75 | BN10: =SUM(BN11:BN12)+SUM(BN14:BN17) -> 47586631.55 | BO10: =SUM(BO11:BO12)+SUM(BO14:BO17) -> 29587202.46 | BP10: -0.3782454967 | BU10: =SUM(BU11:BU12)+SUM(BU14:BU17) -> 38641622.43 | BV10: =IFERROR(INDEX('Base de Dados Input'!$A:$BF,MATCH(GERAL!BV$7,'Base de Dados Input'!$A:$A,0),MATCH(GERAL!$B10,'Base de Dados Input'!$2:$2,0)),"") -> 7207194.441 | BW10: =IFERROR(INDEX('Base de Dados Input'!$A:$BF,MATCH(GERAL!BW$7,'Base de Dados Input'!$A:$A,0),MATCH(GERAL!$B10,'Base de Dados Input'!$2:$2,0)),"") -> 4101161.428 | BX10: =IFERROR(INDEX('Base de Dados Input'!$A:$BF,MATCH(GERAL!BX$7,'Base de Dados Input'!$A:$A,0),MATCH(GERAL!$B10,'Base de Dados Input'!$2:$2,0)),"") -> 3235717.85 | BY10: =IFERROR(INDEX('Base de Dados Input'!$A:$BF,MATCH(GERAL!BY$7,'Base de Dados Input'!$A:$A,0),MATCH(GERAL!$B10,'Base de Dados Input'!$2:$2,0)),"") -> 3183337.372 | BZ10: =IFERROR(INDEX('Base de Dados Input'!$A:$BF,MATCH(GERAL!BZ$7,'Base de Dados Input'!$A:$A,0),MATCH(GERAL!$B10,'Base de Dados Input'!$2:$2,0)),"") -> 4018877.78 | CA10: =IFERROR(INDEX('Base de Dados Input'!$A:$BF,MATCH(GERAL!CA$7,'Base de Dados Input'!$A:$A,0),MATCH(GERAL!$B10,'Base de Dados Input'!$2:$2,0)),"") -> 2754840.838 | CB10: =IFERROR(INDEX('Base de Dados Input'!$A:$BF,MATCH(GERAL!CB$7,'Base de Dados Input'!$A:$A,0),MATCH(GERAL!$B10,'Base de Dados Input'!$2:$2,0)),"") -> 2518686.84 | CC10: =IFERROR(INDEX('Base de Dados Input'!$A:$BF,MATCH(GERAL!CC$7,'Base de Dados Input'!$A:$A,0),MATCH(GERAL!$B10,'Base de Dados Input'!$2:$2,0)),"") -> 2662855.443 | CD10: =IFERROR(INDEX('Base de Dados Input'!$A:$BF,MATCH(GERAL!CD$7,'Base de Dados Input'!$A:$A,0),MATCH(GERAL!$B10,'Base de Dados Input'!$2:$2,0)),"") -> 2188260.402 | CE10: =IFERROR(INDEX('Base de Dados Input'!$A:$BF,MATCH(GERAL!CE$7,'Base de Dados Input'!$A:$A,0),MATCH(GERAL!$B10,'Base de Dados Input'!$2:$2,0)),"") -> 2569324.631 | CF10: =IFERROR(INDEX('Base de Dados Input'!$A:$BF,MATCH(GERAL!CF$7,'Base de Dados Input'!$A:$A,0),MATCH(GERAL!$B10,'Base de Dados Input'!$2:$2,0)),"") -> 2140134.754 | CG10: =IFERROR(INDEX('Base de Dados Input'!$A:$BF,MATCH(GERAL!CG$7,'Base de Dados Input'!$A:$A,0),MATCH(GERAL!$B10,'Base de Dados Input'!$2:$2,0)),"") -> 2061230.651 | CI10: =BV10 -> 7207194.441 | CJ10: =SUM(BV10:BW10) -> 11308355.87 | CK10: =SUM(BV10:BX10) -> 14544073.72 | CL10: =SUM(BV10:BY10) -> 17727411.09 | CM10: =SUM(BV10:BZ10) -> 21746288.87 | CN10: =SUM(BV10:CA10) -> 24501129.71 | CO10: =SUM(BV10:CB10) -> 27019816.55 | CP10: =SUM(BV10:CC10) -> 29682671.99 | CQ10: =SUM(BV10:CD10) -> 31870932.39 | CR10: =SUM(BV10:CE10) -> 34440257.03 | CS10: =SUM(BV10:CF10) -> 36580391.78 | CT10: =SUM(BV10:CG10) -> 38641622.43
A11: =A10+1 -> 7 | B11: 18 | C11: 51 | E11: RRT | F11: =IFERROR(INDEX('Base de Dados Input'!$A:$BF,MATCH(GERAL!F$7,'Base de Dados Input'!$A:$A,0),MATCH(GERAL!$C11,'Base de Dados Input'!$2:$2,0)),"") -> 1787575.076 | H11: =J11 -> 1776022.17 | I11: =IFERROR(J11/F11,"") -> 0.993537107 | J11: =IFERROR(INDEX('Base de Dados Input'!$A:$Y,MATCH(GERAL!F$7,'Base de Dados Input'!$A:$A,0),MATCH(GERAL!$A11,'Base de Dados Input'!$2:$2,0)),"") -> 1776022.17 | K11: =IFERROR(INDEX('Base de Dados Input'!$A:$BF,MATCH(GERAL!K$7,'Base de Dados Input'!$A:$A,0),MATCH(GERAL!$C11,'Base de Dados Input'!$2:$2,0)),"") -> 1979182.55 | M11: =O11 -> 1916763.96 | N11: 0.9684624393 | O11: =IFERROR(INDEX('Base de Dados Input'!$A:$Y,MATCH(GERAL!K$7,'Base de Dados Input'!$A:$A,0),MATCH(GERAL!$A11,'Base de Dados Input'!$2:$2,0)),"") -> 1916763.96 | P11: =IFERROR(INDEX('Base de Dados Input'!$A:$BF,MATCH(GERAL!P$7,'Base de Dados Input'!$A:$A,0),MATCH(GERAL!$C11,'Base de Dados Input'!$2:$2,0)),"") -> 2448078.567 | R11: =T11 -> 2010325.8 | S11: 0.8211851642 | T11: =IFERROR(INDEX('Base de Dados Input'!$A:$Y,MATCH(GERAL!P$7,'Base de Dados Input'!$A:$A,0),MATCH(GERAL!$A11,'Base de Dados Input'!$2:$2,0)),"") -> 2010325.8 | U11: =IFERROR(INDEX('Base de Dados Input'!$A:$BF,MATCH(GERAL!U$7,'Base de Dados Input'!$A:$A,0),MATCH(GERAL!$C11,'Base de Dados Input'!$2:$2,0)),"") -> 2396478.924 | V11: 0.2 | W11: =IF(V11="",U11,U11*V11) -> 479295.7848 | X11: 0.4256621954 | Y11: =IFERROR(INDEX('Base de Dados Input'!$A:$Y,MATCH(GERAL!U$7,'Base de Dados Input'!$A:$A,0),MATCH(GERAL!$A11,'Base de Dados Input'!$2:$2,0)),"") -> 1020090.48 | Z11: =IFERROR(INDEX('Base de Dados Input'!$A:$BF,MATCH(GERAL!Z$7,'Base de Dados Input'!$A:$A,0),MATCH(GERAL!$C11,'Base de Dados Input'!$2:$2,0)),"") -> 2646167.869 | AA11: 0.2 | AB11: =IF(AA11="",Z11,Z11*AA11) -> 529233.5738 | AC11: =IFERROR(AD11/Z11,"") -> 0.4603580046 | AD11: =IFERROR(INDEX('Base de Dados Input'!$A:$Y,MATCH(GERAL!Z$7,'Base de Dados Input'!$A:$A,0),MATCH(GERAL!$A11,'Base de Dados Input'!$2:$2,0)),"") -> 1218184.56 | AE11: =IFERROR(INDEX('Base de Dados Input'!$A:$BF,MATCH(GERAL!AE$7,'Base de Dados Input'!$A:$A,0),MATCH(GERAL!$C11,'Base de Dados Input'!$2:$2,0)),"") -> 2271161.402 | AF11: 0.2 | AG11: =IF(AF11="",AE11,AE11*AF11) -> 454232.2804 | AH11: 0.7595653037 | AI11: =IFERROR(INDEX('Base de Dados Input'!$A:$Y,MATCH(GERAL!AE$7,'Base de Dados Input'!$A:$A,0),MATCH(GERAL!$A11,'Base de Dados Input'!$2:$2,0)),"") -> 1725095.4 | AJ11: =IFERROR(INDEX('Base de Dados Input'!$A:$BF,MATCH(GERAL!AJ$7,'Base de Dados Input'!$A:$A,0),MATCH(GERAL!$C11,'Base de Dados Input'!$2:$2,0)),"") -> 2504604.046 | AK11: 0.3 | AL11: =IF(AK11="",AJ11,AJ11*AK11) -> 751381.2137 | AM11: 0.8593895645 | AN11: =IFERROR(INDEX('Base de Dados Input'!$A:$Y,MATCH(GERAL!AJ$7,'Base de Dados Input'!$A:$A,0),MATCH(GERAL!$A11,'Base de Dados Input'!$2:$2,0)),"") -> 2152430.58 | AO11: =IFERROR(INDEX('Base de Dados Input'!$A:$BF,MATCH(GERAL!AO$7,'Base de Dados Input'!$A:$A,0),MATCH(GERAL!$C11,'Base de Dados Input'!$2:$2,0)),"") -> 2775062.595 | AP11: 0.4 | AQ11: =IF(AP11="",AO11,AO11*AP11) -> 1110025.038 | AR11: 0.8158854809 | AS11: =IFERROR(INDEX('Base de Dados Input'!$A:$Y,MATCH(GERAL!AO$7,'Base de Dados Input'!$A:$A,0),MATCH(GERAL!$A11,'Base de Dados Input'!$2:$2,0)),"") -> 2264133.28 | AT11: =IFERROR(INDEX('Base de Dados Input'!$A:$BF,MATCH(GERAL!AT$7,'Base de Dados Input'!$A:$A,0),MATCH(GERAL!$C11,'Base de Dados Input'!$2:$2,0)),"") -> 2432848.921 | AU11: 0.5 | AV11: =IF(AU11="",AT11,AT11*AU11) -> 1216424.46 | AW11: 0.9502178456 | AX11: =IFERROR(INDEX('Base de Dados Input'!$A:$Y,MATCH(GERAL!AT$7,'Base de Dados Input'!$A:$A,0),MATCH(GERAL!$A11,'Base de Dados Input'!$2:$2,0)),"") -> 2311736.46 | AY11: =IFERROR(INDEX('Base de Dados Input'!$A:$BF,MATCH(GERAL!AY$7,'Base de Dados Input'!$A:$A,0),MATCH(GERAL!$C11,'Base de Dados Input'!$2:$2,0)),"") -> 2574100.467 | AZ11: 0.5 | BA11: =IF(AZ11="",AY11,AY11*AZ11) -> 1287050.233 | BB11: 0.9899180755 | BC11: =IFERROR(INDEX('Base de Dados Input'!$A:$Y,MATCH(GERAL!AY$7,'Base de Dados Input'!$A:$A,0),MATCH(GERAL!$A11,'Base de Dados Input'!$2:$2,0)),"") -> 2548148.58 | BD11: =IFERROR(INDEX('Base de Dados Input'!$A:$BF,MATCH(GERAL!BD$7,'Base de Dados Input'!$A:$A,0),MATCH(GERAL!$C11,'Base de Dados Input'!$2:$2,0)),"") -> 2197249.229 | BE11: 0.7 | BF11: =IF(BE11="",BD11,BD11*BE11) -> 1538074.46 | BG11: 0.9977921218 | BH11: =IFERROR(INDEX('Base de Dados Input'!$A:$Y,MATCH(GERAL!BD$7,'Base de Dados Input'!$A:$A,0),MATCH(GERAL!$A11,'Base de Dados Input'!$2:$2,0)),"") -> 2192397.97 | BI11: =IFERROR(INDEX('Base de Dados Input'!$A:$BF,MATCH(GERAL!BI$7,'Base de Dados Input'!$A:$A,0),MATCH(GERAL!$C11,'Base de Dados Input'!$2:$2,0)),"") -> 2077900.003 | BJ11: 0.8 | BK11: =IF(BJ11="",BI11,BI11*BJ11) -> 1662320.002 | BL11: 1.017597689 | BM11: =IFERROR(INDEX('Base de Dados Input'!$A:$Y,MATCH(GERAL!BI$7,'Base de Dados Input'!$A:$A,0),MATCH(GERAL!$A11,'Base de Dados Input'!$2:$2,0)),"") -> 2114466.24 | BN11: =F11+K11+P11+U11+Z11+AE11+AJ11+AO11+AT11+AY11+BD11+BI11 -> 28090409.65 | BO11: =H11+M11+R11+W11+AB11+AG11+AL11+AQ11+AV11+BA11+BF11+BK11 -> 14731148.98 | BP11: -0.4755808419 | BU11: =SUM(BV11:CG11) -> 18080943.12 | BV11: =IFERROR(INDEX('Base de Dados Input'!$A:$BF,MATCH(GERAL!BV$7,'Base de Dados Input'!$A:$A,0),MATCH(GERAL!$B11,'Base de Dados Input'!$2:$2,0)),"") -> 1150607.758 | BW11: =IFERROR(INDEX('Base de Dados Input'!$A:$BF,MATCH(GERAL!BW$7,'Base de Dados Input'!$A:$A,0),MATCH(GERAL!$B11,'Base de Dados Input'!$2:$2,0)),"") -> 1273939.667 | BX11: =IFERROR(INDEX('Base de Dados Input'!$A:$BF,MATCH(GERAL!BX$7,'Base de Dados Input'!$A:$A,0),MATCH(GERAL!$B11,'Base de Dados Input'!$2:$2,0)),"") -> 1575753.785 | BY11: =IFERROR(INDEX('Base de Dados Input'!$A:$BF,MATCH(GERAL!BY$7,'Base de Dados Input'!$A:$A,0),MATCH(GERAL!$B11,'Base de Dados Input'!$2:$2,0)),"") -> 1542540.663 | BZ11: =IFERROR(INDEX('Base de Dados Input'!$A:$BF,MATCH(GERAL!BZ$7,'Base de Dados Input'!$A:$A,0),MATCH(GERAL!$B11,'Base de Dados Input'!$2:$2,0)),"") -> 1703257.849 | CA11: =IFERROR(INDEX('Base de Dados Input'!$A:$BF,MATCH(GERAL!CA$7,'Base de Dados Input'!$A:$A,0),MATCH(GERAL!$B11,'Base de Dados Input'!$2:$2,0)),"") -> 1461877.582 | CB11: =IFERROR(INDEX('Base de Dados Input'!$A:$BF,MATCH(GERAL!CB$7,'Base de Dados Input'!$A:$A,0),MATCH(GERAL!$B11,'Base de Dados Input'!$2:$2,0)),"") -> 1612137.518 | CC11: =IFERROR(INDEX('Base de Dados Input'!$A:$BF,MATCH(GERAL!CC$7,'Base de Dados Input'!$A:$A,0),MATCH(GERAL!$B11,'Base de Dados Input'!$2:$2,0)),"") -> 1786223.468 | CD11: =IFERROR(INDEX('Base de Dados Input'!$A:$BF,MATCH(GERAL!CD$7,'Base de Dados Input'!$A:$A,0),MATCH(GERAL!$B11,'Base de Dados Input'!$2:$2,0)),"") -> 1565950.924 | CE11: =IFERROR(INDEX('Base de Dados Input'!$A:$BF,MATCH(GERAL!CE$7,'Base de Dados Input'!$A:$A,0),MATCH(GERAL!$B11,'Base de Dados Input'!$2:$2,0)),"") -> 1656870.252 | CF11: =IFERROR(INDEX('Base de Dados Input'!$A:$BF,MATCH(GERAL!CF$7,'Base de Dados Input'!$A:$A,0),MATCH(GERAL!$B11,'Base de Dados Input'!$2:$2,0)),"") -> 1414302.562 | CG11: =IFERROR(INDEX('Base de Dados Input'!$A:$BF,MATCH(GERAL!CG$7,'Base de Dados Input'!$A:$A,0),MATCH(GERAL!$B11,'Base de Dados Input'!$2:$2,0)),"") -> 1337481.092 | CI11: 1150607.758 | CJ11: 2424547.425 | CK11: 4000301.21 | CL11: 5542841.873 | CM11: 7246099.722 | CN11: 8707977.304 | CO11: 10320114.82 | CP11: 12106338.29 | CQ11: 13672289.21 | CR11: 15329159.47 | CS11: 16743462.03 | CT11: 18080943.12
A12: 8 | B12: 19 | C12: 52 | E12: Anuidade Pessoa Fís. | F12: =IFERROR(INDEX('Base de Dados Input'!$A:$BF,MATCH(GERAL!F$7,'Base de Dados Input'!$A:$A,0),MATCH(GERAL!$C12,'Base de Dados Input'!$2:$2,0)),"") -> 4718390.454 | H12: =J12 -> 3419659.39 | I12: 0.7247512523 | J12: =IFERROR(INDEX('Base de Dados Input'!$A:$Y,MATCH(GERAL!F$7,'Base de Dados Input'!$A:$A,0),MATCH(GERAL!$A12,'Base de Dados Input'!$2:$2,0)),"") -> 3419659.39 | K12: =IFERROR(INDEX('Base de Dados Input'!$A:$BF,MATCH(GERAL!K$7,'Base de Dados Input'!$A:$A,0),MATCH(GERAL!$C12,'Base de Dados Input'!$2:$2,0)),"") -> 2162670.44 | M12: =O12 -> 2968615.34 | N12: 1.372661912 | O12: =IFERROR(INDEX('Base de Dados Input'!$A:$Y,MATCH(GERAL!K$7,'Base de Dados Input'!$A:$A,0),MATCH(GERAL!$A12,'Base de Dados Input'!$2:$2,0)),"") -> 2968615.34 | P12: =IFERROR(INDEX('Base de Dados Input'!$A:$BF,MATCH(GERAL!P$7,'Base de Dados Input'!$A:$A,0),MATCH(GERAL!$C12,'Base de Dados Input'!$2:$2,0)),"") -> 1166051.185 | R12: =T12 -> 1570889.55 | S12: 1.347187474 | T12: =IFERROR(INDEX('Base de Dados Input'!$A:$Y,MATCH(GERAL!P$7,'Base de Dados Input'!$A:$A,0),MATCH(GERAL!$A12,'Base de Dados Input'!$2:$2,0)),"") -> 1570889.55 | U12: =IFERROR(INDEX('Base de Dados Input'!$A:$BF,MATCH(GERAL!U$7,'Base de Dados Input'!$A:$A,0),MATCH(GERAL!$C12,'Base de Dados Input'!$2:$2,0)),"") -> 1182791.112 | V12: 0.2 | W12: =IF(V12="",U12,U12*V12) -> 236558.2223 | X12: 0.6079098524 | Y12: =IFERROR(INDEX('Base de Dados Input'!$A:$Y,MATCH(GERAL!U$7,'Base de Dados Input'!$A:$A,0),MATCH(GERAL!$A12,'Base de Dados Input'!$2:$2,0)),"") -> 719030.37 | Z12: =IFERROR(INDEX('Base de Dados Input'!$A:$BF,MATCH(GERAL!Z$7,'Base de Dados Input'!$A:$A,0),MATCH(GERAL!$C12,'Base de Dados Input'!$2:$2,0)),"") -> 1747824.791 | AA12: 0.2 | AB12: =IF(AA12="",Z12,Z12*AA12) -> 349564.9582 | AC12: 0.3454664924 | AD12: =IFERROR(INDEX('Base de Dados Input'!$A:$Y,MATCH(GERAL!Z$7,'Base de Dados Input'!$A:$A,0),MATCH(GERAL!$A12,'Base de Dados Input'!$2:$2,0)),"") -> 603814.9 | AE12: =IFERROR(INDEX('Base de Dados Input'!$A:$BF,MATCH(GERAL!AE$7,'Base de Dados Input'!$A:$A,0),MATCH(GERAL!$C12,'Base de Dados Input'!$2:$2,0)),"") -> 891080.221 | AF12: 0.2 | AG12: =IF(AF12="",AE12,AE12*AF12) -> 178216.0442 | AH12: 1.029389407 | AI12: =IFERROR(INDEX('Base de Dados Input'!$A:$Y,MATCH(GERAL!AE$7,'Base de Dados Input'!$A:$A,0),MATCH(GERAL!$A12,'Base de Dados Input'!$2:$2,0)),"") -> 917268.54 | AJ12: =IFERROR(INDEX('Base de Dados Input'!$A:$BF,MATCH(GERAL!AJ$7,'Base de Dados Input'!$A:$A,0),MATCH(GERAL!$C12,'Base de Dados Input'!$2:$2,0)),"") -> 411592.8796 | AK12: 0.4 | AL12: =IF(AK12="",AJ12,AJ12*AK12) -> 164637.1519 | AM12: 3.171814199 | AN12: =IFERROR(INDEX('Base de Dados Input'!$A:$Y,MATCH(GERAL!AJ$7,'Base de Dados Input'!$A:$A,0),MATCH(GERAL!$A12,'Base de Dados Input'!$2:$2,0)),"") -> 1305496.14 | AO12: =IFERROR(INDEX('Base de Dados Input'!$A:$BF,MATCH(GERAL!AO$7,'Base de Dados Input'!$A:$A,0),MATCH(GERAL!$C12,'Base de Dados Input'!$2:$2,0)),"") -> 373682.8348 | AP12: 0.45 | AQ12: =IF(AP12="",AO12,AO12*AP12) -> 168157.2756 | AR12: 3.406907948 | AS12: =IFERROR(INDEX('Base de Dados Input'!$A:$Y,MATCH(GERAL!AO$7,'Base de Dados Input'!$A:$A,0),MATCH(GERAL!$A12,'Base de Dados Input'!$2:$2,0)),"") -> 1273103.02 | AT12: =IFERROR(INDEX('Base de Dados Input'!$A:$BF,MATCH(GERAL!AT$7,'Base de Dados Input'!$A:$A,0),MATCH(GERAL!$C12,'Base de Dados Input'!$2:$2,0)),"") -> 264167.0221 | AU12: 0.5 | AV12: =IF(AU12="",AT12,AT12*AU12) -> 132083.511 | AW12: 1.977073391 | AX12: =IFERROR(INDEX('Base de Dados Input'!$A:$Y,MATCH(GERAL!AT$7,'Base de Dados Input'!$A:$A,0),MATCH(GERAL!$A12,'Base de Dados Input'!$2:$2,0)),"") -> 522277.59 | AY12: =IFERROR(INDEX('Base de Dados Input'!$A:$BF,MATCH(GERAL!AY$7,'Base de Dados Input'!$A:$A,0),MATCH(GERAL!$C12,'Base de Dados Input'!$2:$2,0)),"") -> 373986.4453 | AZ12: 0.6 | BA12: =IF(AZ12="",AY12,AY12*AZ12) -> 224391.8672 | BB12: 1.346407273 | BC12: =IFERROR(INDEX('Base de Dados Input'!$A:$Y,MATCH(GERAL!AY$7,'Base de Dados Input'!$A:$A,0),MATCH(GERAL!$A12,'Base de Dados Input'!$2:$2,0)),"") -> 503538.07 | BD12: =IFERROR(INDEX('Base de Dados Input'!$A:$BF,MATCH(GERAL!BD$7,'Base de Dados Input'!$A:$A,0),MATCH(GERAL!$C12,'Base de Dados Input'!$2:$2,0)),"") -> 313964.0212 | BE12: 0.95 | BF12: =IF(BE12="",BD12,BD12*BE12) -> 298265.8201 | BG12: 1.315633232 | BH12: =IFERROR(INDEX('Base de Dados Input'!$A:$Y,MATCH(GERAL!BD$7,'Base de Dados Input'!$A:$A,0),MATCH(GERAL!$A12,'Base de Dados Input'!$2:$2,0)),"") -> 413061.5 | BI12: =IFERROR(INDEX('Base de Dados Input'!$A:$BF,MATCH(GERAL!BI$7,'Base de Dados Input'!$A:$A,0),MATCH(GERAL!$C12,'Base de Dados Input'!$2:$2,0)),"") -> 300567.8457 | BJ12: 1 | BK12: =IF(BJ12="",BI12,BI12*BJ12) -> 300567.8457 | BL12: 1.314912742 | BM12: =IFERROR(INDEX('Base de Dados Input'!$A:$Y,MATCH(GERAL!BI$7,'Base de Dados Input'!$A:$A,0),MATCH(GERAL!$A12,'Base de Dados Input'!$2:$2,0)),"") -> 395220.49 | BN12: 13906769.25 | BO12: =H12+M12+R12+W12+AB12+AG12+AL12+AQ12+AV12+BA12+BF12+BK12 -> 10011606.98 | BP12: -0.2800910984 | BU12: =SUM(BV12:CG12) -> 13929347.98 | BV12: =IFERROR(INDEX('Base de Dados Input'!$A:$BF,MATCH(GERAL!BV$7,'Base de Dados Input'!$A:$A,0),MATCH(GERAL!$B12,'Base de Dados Input'!$2:$2,0)),"") -> 4726051.129 | BW12: =IFERROR(INDEX('Base de Dados Input'!$A:$BF,MATCH(GERAL!BW$7,'Base de Dados Input'!$A:$A,0),MATCH(GERAL!$B12,'Base de Dados Input'!$2:$2,0)),"") -> 2166181.704 | BX12: =IFERROR(INDEX('Base de Dados Input'!$A:$BF,MATCH(GERAL!BX$7,'Base de Dados Input'!$A:$A,0),MATCH(GERAL!$B12,'Base de Dados Input'!$2:$2,0)),"") -> 1167944.36 | BY12: =IFERROR(INDEX('Base de Dados Input'!$A:$BF,MATCH(GERAL!BY$7,'Base de Dados Input'!$A:$A,0),MATCH(GERAL!$B12,'Base de Dados Input'!$2:$2,0)),"") -> 1184711.465 | BZ12: =IFERROR(INDEX('Base de Dados Input'!$A:$BF,MATCH(GERAL!BZ$7,'Base de Dados Input'!$A:$A,0),MATCH(GERAL!$B12,'Base de Dados Input'!$2:$2,0)),"") -> 1750662.521 | CA12: =IFERROR(INDEX('Base de Dados Input'!$A:$BF,MATCH(GERAL!CA$7,'Base de Dados Input'!$A:$A,0),MATCH(GERAL!$B12,'Base de Dados Input'!$2:$2,0)),"") -> 892526.9593 | CB12: =IFERROR(INDEX('Base de Dados Input'!$A:$BF,MATCH(GERAL!CB$7,'Base de Dados Input'!$A:$A,0),MATCH(GERAL!$B12,'Base de Dados Input'!$2:$2,0)),"") -> 412261.1328 | CC12: =IFERROR(INDEX('Base de Dados Input'!$A:$BF,MATCH(GERAL!CC$7,'Base de Dados Input'!$A:$A,0),MATCH(GERAL!$B12,'Base de Dados Input'!$2:$2,0)),"") -> 374289.538 | CD12: =IFERROR(INDEX('Base de Dados Input'!$A:$BF,MATCH(GERAL!CD$7,'Base de Dados Input'!$A:$A,0),MATCH(GERAL!$B12,'Base de Dados Input'!$2:$2,0)),"") -> 264595.9178 | CE12: =IFERROR(INDEX('Base de Dados Input'!$A:$BF,MATCH(GERAL!CE$7,'Base de Dados Input'!$A:$A,0),MATCH(GERAL!$B12,'Base de Dados Input'!$2:$2,0)),"") -> 374593.6415 | CF12: =IFERROR(INDEX('Base de Dados Input'!$A:$BF,MATCH(GERAL!CF$7,'Base de Dados Input'!$A:$A,0),MATCH(GERAL!$B12,'Base de Dados Input'!$2:$2,0)),"") -> 314473.7663 | CG12: =IFERROR(INDEX('Base de Dados Input'!$A:$BF,MATCH(GERAL!CG$7,'Base de Dados Input'!$A:$A,0),MATCH(GERAL!$B12,'Base de Dados Input'!$2:$2,0)),"") -> 301055.841 | CI12: 4726051.129 | CJ12: 6892232.833 | CK12: 8060177.193 | CL12: 9244888.658 | CM12: 10995551.18 | CN12: 11888078.14 | CO12: 12300339.27 | CP12: 12674628.81 | CQ12: 12939224.73 | CR12: 13313818.37 | CS12: 13628292.13 | CT12: 13929347.98
A13: 9 | B13: 20 | C13: 53 | E13: Aplicação Financeira | F13: =IFERROR(INDEX('Base de Dados Input'!$A:$BF,MATCH(GERAL!F$7,'Base de Dados Input'!$A:$A,0),MATCH(GERAL!$C13,'Base de Dados Input'!$2:$2,0)),"") -> 208281.7966 | H13: 113838.46 | I13: 0.5465598141 | J13: =IFERROR(INDEX('Base de Dados Input'!$A:$Y,MATCH(GERAL!F$7,'Base de Dados Input'!$A:$A,0),MATCH(GERAL!$A13,'Base de Dados Input'!$2:$2,0)),"") -> 113838.46 | K13: =IFERROR(INDEX('Base de Dados Input'!$A:$BF,MATCH(GERAL!K$7,'Base de Dados Input'!$A:$A,0),MATCH(GERAL!$C13,'Base de Dados Input'!$2:$2,0)),"") -> 188818.8344 | M13: 98108.76 | N13: 0.5195920223 | O13: =IFERROR(INDEX('Base de Dados Input'!$A:$Y,MATCH(GERAL!K$7,'Base de Dados Input'!$A:$A,0),MATCH(GERAL!$A13,'Base de Dados Input'!$2:$2,0)),"") -> 98108.76 | P13: =IFERROR(INDEX('Base de Dados Input'!$A:$BF,MATCH(GERAL!P$7,'Base de Dados Input'!$A:$A,0),MATCH(GERAL!$C13,'Base de Dados Input'!$2:$2,0)),"") -> 212173.3366 | R13: 106269.71 | S13: 0.5008626988 | T13: =IFERROR(INDEX('Base de Dados Input'!$A:$Y,MATCH(GERAL!P$7,'Base de Dados Input'!$A:$A,0),MATCH(GERAL!$A13,'Base de Dados Input'!$2:$2,0)),"") -> 106269.71 | U13: =IFERROR(INDEX('Base de Dados Input'!$A:$BF,MATCH(GERAL!U$7,'Base de Dados Input'!$A:$A,0),MATCH(GERAL!$C13,'Base de Dados Input'!$2:$2,0)),"") -> 198859.3265 | V13: 0.32 | W13: 63634.98448 | X13: 0.5439839906 | Y13: =IFERROR(INDEX('Base de Dados Input'!$A:$Y,MATCH(GERAL!U$7,'Base de Dados Input'!$A:$A,0),MATCH(GERAL!$A13,'Base de Dados Input'!$2:$2,0)),"") -> 108176.29 | Z13: =IFERROR(INDEX('Base de Dados Input'!$A:$BF,MATCH(GERAL!Z$7,'Base de Dados Input'!$A:$A,0),MATCH(GERAL!$C13,'Base de Dados Input'!$2:$2,0)),"") -> 218525.2915 | AA13: 0.32 | AB13: 69928.09329 | AC13: 0.3597960192 | AD13: =IFERROR(INDEX('Base de Dados Input'!$A:$Y,MATCH(GERAL!Z$7,'Base de Dados Input'!$A:$A,0),MATCH(GERAL!$A13,'Base de Dados Input'!$2:$2,0)),"") -> 78624.53 | AE13: =IFERROR(INDEX('Base de Dados Input'!$A:$BF,MATCH(GERAL!AE$7,'Base de Dados Input'!$A:$A,0),MATCH(GERAL!$C13,'Base de Dados Input'!$2:$2,0)),"") -> 204421.9959 | AF13: 0.32 | AG13: 65415.03869 | AH13: 0.3197001365 | AI13: =IFERROR(INDEX('Base de Dados Input'!$A:$Y,MATCH(GERAL!AE$7,'Base de Dados Input'!$A:$A,0),MATCH(GERAL!$A13,'Base de Dados Input'!$2:$2,0)),"") -> 65353.74 | AJ13: =IFERROR(INDEX('Base de Dados Input'!$A:$BF,MATCH(GERAL!AJ$7,'Base de Dados Input'!$A:$A,0),MATCH(GERAL!$C13,'Base de Dados Input'!$2:$2,0)),"") -> 219542.8492 | AK13: 0.32 | AL13: 70253.71176 | AM13: 0.252178653 | AN13: =IFERROR(INDEX('Base de Dados Input'!$A:$Y,MATCH(GERAL!AJ$7,'Base de Dados Input'!$A:$A,0),MATCH(GERAL!$A13,'Base de Dados Input'!$2:$2,0)),"") -> 55364.02 | AO13: =IFERROR(INDEX('Base de Dados Input'!$A:$BF,MATCH(GERAL!AO$7,'Base de Dados Input'!$A:$A,0),MATCH(GERAL!$C13,'Base de Dados Input'!$2:$2,0)),"") -> 214365.3822 | AP13: 0.32 | AQ13: 68596.9223 | AR13: 0.2239046693 | AS13: =IFERROR(INDEX('Base de Dados Input'!$A:$Y,MATCH(GERAL!AO$7,'Base de Dados Input'!$A:$A,0),MATCH(GERAL!$A13,'Base de Dados Input'!$2:$2,0)),"") -> 47997.41 | AT13: =IFERROR(INDEX('Base de Dados Input'!$A:$BF,MATCH(GERAL!AT$7,'Base de Dados Input'!$A:$A,0),MATCH(GERAL!$C13,'Base de Dados Input'!$2:$2,0)),"") -> 182382.0823 | AU13: 0.32 | AV13: 58362.26633 | AW13: 0.2385377963 | AX13: =IFERROR(INDEX('Base de Dados Input'!$A:$Y,MATCH(GERAL!AT$7,'Base de Dados Input'!$A:$A,0),MATCH(GERAL!$A13,'Base de Dados Input'!$2:$2,0)),"") -> 43505.02 | AY13: =IFERROR(INDEX('Base de Dados Input'!$A:$BF,MATCH(GERAL!AY$7,'Base de Dados Input'!$A:$A,0),MATCH(GERAL!$C13,'Base de Dados Input'!$2:$2,0)),"") -> 194538.6367 | AZ13: 0.2 | BA13: 38907.72734 | BB13: 0.2480992507 | BC13: =IFERROR(INDEX('Base de Dados Input'!$A:$Y,MATCH(GERAL!AY$7,'Base de Dados Input'!$A:$A,0),MATCH(GERAL!$A13,'Base de Dados Input'!$2:$2,0)),"") -> 48264.89 | BD13: =IFERROR(INDEX('Base de Dados Input'!$A:$BF,MATCH(GERAL!BD$7,'Base de Dados Input'!$A:$A,0),MATCH(GERAL!$C13,'Base de Dados Input'!$2:$2,0)),"") -> 169325.8354 | BE13: 0.2 | BF13: 33865.16707 | BG13: 0.2695785312 | BH13: =IFERROR(INDEX('Base de Dados Input'!$A:$Y,MATCH(GERAL!BD$7,'Base de Dados Input'!$A:$A,0),MATCH(GERAL!$A13,'Base de Dados Input'!$2:$2,0)),"") -> 45646.61 | BI13: =IFERROR(INDEX('Base de Dados Input'!$A:$BF,MATCH(GERAL!BI$7,'Base de Dados Input'!$A:$A,0),MATCH(GERAL!$C13,'Base de Dados Input'!$2:$2,0)),"") -> 149598.0408 | BJ13: 0.15 | BK13: 22439.70612 | BL13: 0.3750000983 | BM13: =IFERROR(INDEX('Base de Dados Input'!$A:$Y,MATCH(GERAL!BI$7,'Base de Dados Input'!$A:$A,0),MATCH(GERAL!$A13,'Base de Dados Input'!$2:$2,0)),"") -> 56099.28 | BN13: 2360833.408 | BO13: 809620.5474 | BP13: -0.657061551 | BU13: 985316.4166 | BV13: =IFERROR(INDEX('Base de Dados Input'!$A:$BF,MATCH(GERAL!BV$7,'Base de Dados Input'!$A:$A,0),MATCH(GERAL!$B13,'Base de Dados Input'!$2:$2,0)),"") -> 86928.4011 | BW13: =IFERROR(INDEX('Base de Dados Input'!$A:$BF,MATCH(GERAL!BW$7,'Base de Dados Input'!$A:$A,0),MATCH(GERAL!$B13,'Base de Dados Input'!$2:$2,0)),"") -> 78805.34756 | BX13: =IFERROR(INDEX('Base de Dados Input'!$A:$BF,MATCH(GERAL!BX$7,'Base de Dados Input'!$A:$A,0),MATCH(GERAL!$B13,'Base de Dados Input'!$2:$2,0)),"") -> 88552.57259 | BY13: =IFERROR(INDEX('Base de Dados Input'!$A:$BF,MATCH(GERAL!BY$7,'Base de Dados Input'!$A:$A,0),MATCH(GERAL!$B13,'Base de Dados Input'!$2:$2,0)),"") -> 82995.84305 | BZ13: =IFERROR(INDEX('Base de Dados Input'!$A:$BF,MATCH(GERAL!BZ$7,'Base de Dados Input'!$A:$A,0),MATCH(GERAL!$B13,'Base de Dados Input'!$2:$2,0)),"") -> 91203.62176 | CA13: =IFERROR(INDEX('Base de Dados Input'!$A:$BF,MATCH(GERAL!CA$7,'Base de Dados Input'!$A:$A,0),MATCH(GERAL!$B13,'Base de Dados Input'!$2:$2,0)),"") -> 85317.47635 | CB13: =IFERROR(INDEX('Base de Dados Input'!$A:$BF,MATCH(GERAL!CB$7,'Base de Dados Input'!$A:$A,0),MATCH(GERAL!$B13,'Base de Dados Input'!$2:$2,0)),"") -> 91628.3092 | CC13: =IFERROR(INDEX('Base de Dados Input'!$A:$BF,MATCH(GERAL!CC$7,'Base de Dados Input'!$A:$A,0),MATCH(GERAL!$B13,'Base de Dados Input'!$2:$2,0)),"") -> 89467.44378 | CD13: =IFERROR(INDEX('Base de Dados Input'!$A:$BF,MATCH(GERAL!CD$7,'Base de Dados Input'!$A:$A,0),MATCH(GERAL!$B13,'Base de Dados Input'!$2:$2,0)),"") -> 76118.90748 | CE13: =IFERROR(INDEX('Base de Dados Input'!$A:$BF,MATCH(GERAL!CE$7,'Base de Dados Input'!$A:$A,0),MATCH(GERAL!$B13,'Base de Dados Input'!$2:$2,0)),"") -> 81192.56181 | CF13: =IFERROR(INDEX('Base de Dados Input'!$A:$BF,MATCH(GERAL!CF$7,'Base de Dados Input'!$A:$A,0),MATCH(GERAL!$B13,'Base de Dados Input'!$2:$2,0)),"") -> 70669.75788 | CG13: =IFERROR(INDEX('Base de Dados Input'!$A:$BF,MATCH(GERAL!CG$7,'Base de Dados Input'!$A:$A,0),MATCH(GERAL!$B13,'Base de Dados Input'!$2:$2,0)),"") -> 62436.174 | CI13: 86928.4011 | CJ13: 165733.7487 | CK13: 254286.3212 | CL13: 337282.1643 | CM13: 428485.7861 | CN13: 513803.2624 | CO13: 605431.5716 | CP13: 694899.0154 | CQ13: 771017.9229 | CR13: 852210.4847 | CS13: 922880.2426 | CT13: 985316.4166
A14: 10 | B14: 21 | C14: 54 | E14: Anuidade Pessoa Jur. | F14: =IFERROR(INDEX('Base de Dados Input'!$A:$BF,MATCH(GERAL!F$7,'Base de Dados Input'!$A:$A,0),MATCH(GERAL!$C14,'Base de Dados Input'!$2:$2,0)),"") -> 476145.4021 | H14: 385907.77 | I14: 0.8104830338 | J14: =IFERROR(INDEX('Base de Dados Input'!$A:$Y,MATCH(GERAL!F$7,'Base de Dados Input'!$A:$A,0),MATCH(GERAL!$A14,'Base de Dados Input'!$2:$2,0)),"") -> 385907.77 | K14: =IFERROR(INDEX('Base de Dados Input'!$A:$BF,MATCH(GERAL!K$7,'Base de Dados Input'!$A:$A,0),MATCH(GERAL!$C14,'Base de Dados Input'!$2:$2,0)),"") -> 239647.2638 | M14: 467816.91 | N14: 1.952106202 | O14: =IFERROR(INDEX('Base de Dados Input'!$A:$Y,MATCH(GERAL!K$7,'Base de Dados Input'!$A:$A,0),MATCH(GERAL!$A14,'Base de Dados Input'!$2:$2,0)),"") -> 467816.91 | P14: =IFERROR(INDEX('Base de Dados Input'!$A:$BF,MATCH(GERAL!P$7,'Base de Dados Input'!$A:$A,0),MATCH(GERAL!$C14,'Base de Dados Input'!$2:$2,0)),"") -> 126504.5001 | R14: 221627.06 | S14: 1.751930246 | T14: =IFERROR(INDEX('Base de Dados Input'!$A:$Y,MATCH(GERAL!P$7,'Base de Dados Input'!$A:$A,0),MATCH(GERAL!$A14,'Base de Dados Input'!$2:$2,0)),"") -> 221627.06 | U14: =IFERROR(INDEX('Base de Dados Input'!$A:$BF,MATCH(GERAL!U$7,'Base de Dados Input'!$A:$A,0),MATCH(GERAL!$C14,'Base de Dados Input'!$2:$2,0)),"") -> 121906.1474 | V14: 0.2 | W14: 24381.22947 | X14: 0.7857630815 | Y14: =IFERROR(INDEX('Base de Dados Input'!$A:$Y,MATCH(GERAL!U$7,'Base de Dados Input'!$A:$A,0),MATCH(GERAL!$A14,'Base de Dados Input'!$2:$2,0)),"") -> 95789.35 | Z14: =IFERROR(INDEX('Base de Dados Input'!$A:$BF,MATCH(GERAL!Z$7,'Base de Dados Input'!$A:$A,0),MATCH(GERAL!$C14,'Base de Dados Input'!$2:$2,0)),"") -> 178037.8033 | AA14: 0.2 | AB14: 35607.56066 | AC14: 0.4098459352 | AD14: =IFERROR(INDEX('Base de Dados Input'!$A:$Y,MATCH(GERAL!Z$7,'Base de Dados Input'!$A:$A,0),MATCH(GERAL!$A14,'Base de Dados Input'!$2:$2,0)),"") -> 72968.07 | AE14: =IFERROR(INDEX('Base de Dados Input'!$A:$BF,MATCH(GERAL!AE$7,'Base de Dados Input'!$A:$A,0),MATCH(GERAL!$C14,'Base de Dados Input'!$2:$2,0)),"") -> 96907.0851 | AF14: 0.2 | AG14: 19381.41702 | AH14: 1.067681892 | AI14: =IFERROR(INDEX('Base de Dados Input'!$A:$Y,MATCH(GERAL!AE$7,'Base de Dados Input'!$A:$A,0),MATCH(GERAL!$A14,'Base de Dados Input'!$2:$2,0)),"") -> 103465.94 | AJ14: =IFERROR(INDEX('Base de Dados Input'!$A:$BF,MATCH(GERAL!AJ$7,'Base de Dados Input'!$A:$A,0),MATCH(GERAL!$C14,'Base de Dados Input'!$2:$2,0)),"") -> 54671.77251 | AK14: 0.4 | AL14: 21868.709 | AM14: 1.910717089 | AN14: =IFERROR(INDEX('Base de Dados Input'!$A:$Y,MATCH(GERAL!AJ$7,'Base de Dados Input'!$A:$A,0),MATCH(GERAL!$A14,'Base de Dados Input'!$2:$2,0)),"") -> 104462.29 | AO14: =IFERROR(INDEX('Base de Dados Input'!$A:$BF,MATCH(GERAL!AO$7,'Base de Dados Input'!$A:$A,0),MATCH(GERAL!$C14,'Base de Dados Input'!$2:$2,0)),"") -> 45544.14814 | AP14: 0.45 | AQ14: 20494.86666 | AR14: 3.098901302 | AS14: =IFERROR(INDEX('Base de Dados Input'!$A:$Y,MATCH(GERAL!AO$7,'Base de Dados Input'!$A:$A,0),MATCH(GERAL!$A14,'Base de Dados Input'!$2:$2,0)),"") -> 141136.82 | AT14: =IFERROR(INDEX('Base de Dados Input'!$A:$BF,MATCH(GERAL!AT$7,'Base de Dados Input'!$A:$A,0),MATCH(GERAL!$C14,'Base de Dados Input'!$2:$2,0)),"") -> 31977.45266 | AU14: 0.5 | AV14: 15988.72633 | AW14: 1.690757565 | AX14: =IFERROR(INDEX('Base de Dados Input'!$A:$Y,MATCH(GERAL!AT$7,'Base de Dados Input'!$A:$A,0),MATCH(GERAL!$A14,'Base de Dados Input'!$2:$2,0)),"") -> 54066.12 | AY14: =IFERROR(INDEX('Base de Dados Input'!$A:$BF,MATCH(GERAL!AY$7,'Base de Dados Input'!$A:$A,0),MATCH(GERAL!$C14,'Base de Dados Input'!$2:$2,0)),"") -> 41291.96147 | AZ14: 0.6 | BA14: 24775.17688 | BB14: 1.064138356 | BC14: =IFERROR(INDEX('Base de Dados Input'!$A:$Y,MATCH(GERAL!AY$7,'Base de Dados Input'!$A:$A,0),MATCH(GERAL!$A14,'Base de Dados Input'!$2:$2,0)),"") -> 43940.36 | BD14: =IFERROR(INDEX('Base de Dados Input'!$A:$BF,MATCH(GERAL!BD$7,'Base de Dados Input'!$A:$A,0),MATCH(GERAL!$C14,'Base de Dados Input'!$2:$2,0)),"") -> 37527.00865 | BE14: 0.95 | BF14: 35650.65821 | BG14: 1.052889144 | BH14: =IFERROR(INDEX('Base de Dados Input'!$A:$Y,MATCH(GERAL!BD$7,'Base de Dados Input'!$A:$A,0),MATCH(GERAL!$A14,'Base de Dados Input'!$2:$2,0)),"") -> 39511.78 | BI14: =IFERROR(INDEX('Base de Dados Input'!$A:$BF,MATCH(GERAL!BI$7,'Base de Dados Input'!$A:$A,0),MATCH(GERAL!$C14,'Base de Dados Input'!$2:$2,0)),"") -> 32873.11315 | BJ14: 1 | BK14: 32873.11315 | BL14: 1.30899589 | BM14: =IFERROR(INDEX('Base de Dados Input'!$A:$Y,MATCH(GERAL!BI$7,'Base de Dados Input'!$A:$A,0),MATCH(GERAL!$A14,'Base de Dados Input'!$2:$2,0)),"") -> 43030.77 | BN14: 1483033.658 | BO14: 1306373.197 | BP14: -0.1191210057 | BU14: 1832188.708 | BV14: =IFERROR(INDEX('Base de Dados Input'!$A:$BF,MATCH(GERAL!BV$7,'Base de Dados Input'!$A:$A,0),MATCH(GERAL!$B14,'Base de Dados Input'!$2:$2,0)),"") -> 588245.7382 | BW14: =IFERROR(INDEX('Base de Dados Input'!$A:$BF,MATCH(GERAL!BW$7,'Base de Dados Input'!$A:$A,0),MATCH(GERAL!$B14,'Base de Dados Input'!$2:$2,0)),"") -> 296068.1358 | BX14: =IFERROR(INDEX('Base de Dados Input'!$A:$BF,MATCH(GERAL!BX$7,'Base de Dados Input'!$A:$A,0),MATCH(GERAL!$B14,'Base de Dados Input'!$2:$2,0)),"") -> 156287.8329 | BY14: =IFERROR(INDEX('Base de Dados Input'!$A:$BF,MATCH(GERAL!BY$7,'Base de Dados Input'!$A:$A,0),MATCH(GERAL!$B14,'Base de Dados Input'!$2:$2,0)),"") -> 150606.8762 | BZ14: =IFERROR(INDEX('Base de Dados Input'!$A:$BF,MATCH(GERAL!BZ$7,'Base de Dados Input'!$A:$A,0),MATCH(GERAL!$B14,'Base de Dados Input'!$2:$2,0)),"") -> 219953.7758 | CA14: =IFERROR(INDEX('Base de Dados Input'!$A:$BF,MATCH(GERAL!CA$7,'Base de Dados Input'!$A:$A,0),MATCH(GERAL!$B14,'Base de Dados Input'!$2:$2,0)),"") -> 119722.21 | CB14: =IFERROR(INDEX('Base de Dados Input'!$A:$BF,MATCH(GERAL!CB$7,'Base de Dados Input'!$A:$A,0),MATCH(GERAL!$B14,'Base de Dados Input'!$2:$2,0)),"") -> 67543.31142 | CC14: =IFERROR(INDEX('Base de Dados Input'!$A:$BF,MATCH(GERAL!CC$7,'Base de Dados Input'!$A:$A,0),MATCH(GERAL!$B14,'Base de Dados Input'!$2:$2,0)),"") -> 56266.74316 | CD14: =IFERROR(INDEX('Base de Dados Input'!$A:$BF,MATCH(GERAL!CD$7,'Base de Dados Input'!$A:$A,0),MATCH(GERAL!$B14,'Base de Dados Input'!$2:$2,0)),"") -> 39505.99997 | CE14: =IFERROR(INDEX('Base de Dados Input'!$A:$BF,MATCH(GERAL!CE$7,'Base de Dados Input'!$A:$A,0),MATCH(GERAL!$B14,'Base de Dados Input'!$2:$2,0)),"") -> 51013.45146 | CF14: =IFERROR(INDEX('Base de Dados Input'!$A:$BF,MATCH(GERAL!CF$7,'Base de Dados Input'!$A:$A,0),MATCH(GERAL!$B14,'Base de Dados Input'!$2:$2,0)),"") -> 46362.10453 | CG14: =IFERROR(INDEX('Base de Dados Input'!$A:$BF,MATCH(GERAL!CG$7,'Base de Dados Input'!$A:$A,0),MATCH(GERAL!$B14,'Base de Dados Input'!$2:$2,0)),"") -> 40612.52849 | CI14: 588245.7382 | CJ14: 884313.874 | CK14: 1040601.707 | CL14: 1191208.583 | CM14: 1411162.359 | CN14: 1530884.569 | CO14: 1598427.88 | CP14: 1654694.624 | CQ14: 1694200.624 | CR14: 1745214.075 | CS14: 1791576.18 | CT14: 1832188.708
A15: 11 | B15: 22 | C15: 55 | E15: Anuidade Pessoa Fís. A.A. | F15: =IFERROR(INDEX('Base de Dados Input'!$A:$BF,MATCH(GERAL!F$7,'Base de Dados Input'!$A:$A,0),MATCH(GERAL!$C15,'Base de Dados Input'!$2:$2,0)),"") -> 395202.746 | H15: 584801.27 | I15: 1.479750017 | J15: =IFERROR(INDEX('Base de Dados Input'!$A:$Y,MATCH(GERAL!F$7,'Base de Dados Input'!$A:$A,0),MATCH(GERAL!$A15,'Base de Dados Input'!$2:$2,0)),"") -> 584801.27 | K15: =IFERROR(INDEX('Base de Dados Input'!$A:$BF,MATCH(GERAL!K$7,'Base de Dados Input'!$A:$A,0),MATCH(GERAL!$C15,'Base de Dados Input'!$2:$2,0)),"") -> 189231.1509 | M15: 454471.14 | N15: 2.401671912 | O15: =IFERROR(INDEX('Base de Dados Input'!$A:$Y,MATCH(GERAL!K$7,'Base de Dados Input'!$A:$A,0),MATCH(GERAL!$A15,'Base de Dados Input'!$2:$2,0)),"") -> 454471.14 | P15: =IFERROR(INDEX('Base de Dados Input'!$A:$BF,MATCH(GERAL!P$7,'Base de Dados Input'!$A:$A,0),MATCH(GERAL!$C15,'Base de Dados Input'!$2:$2,0)),"") -> 177000.0363 | R15: 406613.32 | S15: 2.297249925 | T15: =IFERROR(INDEX('Base de Dados Input'!$A:$Y,MATCH(GERAL!P$7,'Base de Dados Input'!$A:$A,0),MATCH(GERAL!$A15,'Base de Dados Input'!$2:$2,0)),"") -> 406613.32 | U15: =IFERROR(INDEX('Base de Dados Input'!$A:$BF,MATCH(GERAL!U$7,'Base de Dados Input'!$A:$A,0),MATCH(GERAL!$C15,'Base de Dados Input'!$2:$2,0)),"") -> 160130.5862 | V15: 0.2 | W15: 32026.11723 | X15: 1.486150308 | Y15: =IFERROR(INDEX('Base de Dados Input'!$A:$Y,MATCH(GERAL!U$7,'Base de Dados Input'!$A:$A,0),MATCH(GERAL!$A15,'Base de Dados Input'!$2:$2,0)),"") -> 237978.12 | Z15: =IFERROR(INDEX('Base de Dados Input'!$A:$BF,MATCH(GERAL!Z$7,'Base de Dados Input'!$A:$A,0),MATCH(GERAL!$C15,'Base de Dados Input'!$2:$2,0)),"") -> 183020.9469 | AA15: 0.2 | AB15: 36604.18938 | AC15: 1.122989655 | AD15: =IFERROR(INDEX('Base de Dados Input'!$A:$Y,MATCH(GERAL!Z$7,'Base de Dados Input'!$A:$A,0),MATCH(GERAL!$A15,'Base de Dados Input'!$2:$2,0)),"") -> 205530.63 | AE15: =IFERROR(INDEX('Base de Dados Input'!$A:$BF,MATCH(GERAL!AE$7,'Base de Dados Input'!$A:$A,0),MATCH(GERAL!$C15,'Base de Dados Input'!$2:$2,0)),"") -> 144901.5188 | AF15: 0.2 | AG15: 28980.30376 | AH15: 1.873462696 | AI15: =IFERROR(INDEX('Base de Dados Input'!$A:$Y,MATCH(GERAL!AE$7,'Base de Dados Input'!$A:$A,0),MATCH(GERAL!$A15,'Base de Dados Input'!$2:$2,0)),"") -> 271467.59 | AJ15: =IFERROR(INDEX('Base de Dados Input'!$A:$BF,MATCH(GERAL!AJ$7,'Base de Dados Input'!$A:$A,0),MATCH(GERAL!$C15,'Base de Dados Input'!$2:$2,0)),"") -> 215510.2395 | AK15: 0.4 | AL15: 86204.09579 | AM15: 1.604495039 | AN15: =IFERROR(INDEX('Base de Dados Input'!$A:$Y,MATCH(GERAL!AJ$7,'Base de Dados Input'!$A:$A,0),MATCH(GERAL!$A15,'Base de Dados Input'!$2:$2,0)),"") -> 345785.11 | AO15: =IFERROR(INDEX('Base de Dados Input'!$A:$BF,MATCH(GERAL!AO$7,'Base de Dados Input'!$A:$A,0),MATCH(GERAL!$C15,'Base de Dados Input'!$2:$2,0)),"") -> 218347.8967 | AP15: 0.45 | AQ15: 98256.55352 | AR15: 1.479070762 | AS15: =IFERROR(INDEX('Base de Dados Input'!$A:$Y,MATCH(GERAL!AO$7,'Base de Dados Input'!$A:$A,0),MATCH(GERAL!$A15,'Base de Dados Input'!$2:$2,0)),"") -> 322951.99 | AT15: =IFERROR(INDEX('Base de Dados Input'!$A:$BF,MATCH(GERAL!AT$7,'Base de Dados Input'!$A:$A,0),MATCH(GERAL!$C15,'Base de Dados Input'!$2:$2,0)),"") -> 153881.3958 | AU15: 0.5 | AV15: 76940.6979 | AW15: 2.198153768 | AX15: =IFERROR(INDEX('Base de Dados Input'!$A:$Y,MATCH(GERAL!AT$7,'Base de Dados Input'!$A:$A,0),MATCH(GERAL!$A15,'Base de Dados Input'!$2:$2,0)),"") -> 338254.97 | AY15: =IFERROR(INDEX('Base de Dados Input'!$A:$BF,MATCH(GERAL!AY$7,'Base de Dados Input'!$A:$A,0),MATCH(GERAL!$C15,'Base de Dados Input'!$2:$2,0)),"") -> 227507.3648 | AZ15: 0.6 | BA15: 136504.4189 | BB15: 1.43094739 | BC15: =IFERROR(INDEX('Base de Dados Input'!$A:$Y,MATCH(GERAL!AY$7,'Base de Dados Input'!$A:$A,0),MATCH(GERAL!$A15,'Base de Dados Input'!$2:$2,0)),"") -> 325551.07 | BD15: =IFERROR(INDEX('Base de Dados Input'!$A:$BF,MATCH(GERAL!BD$7,'Base de Dados Input'!$A:$A,0),MATCH(GERAL!$C15,'Base de Dados Input'!$2:$2,0)),"") -> 159507.3461 | BE15: 0.95 | BF15: 151531.9788 | BG15: 1.667695981 | BH15: =IFERROR(INDEX('Base de Dados Input'!$A:$Y,MATCH(GERAL!BD$7,'Base de Dados Input'!$A:$A,0),MATCH(GERAL!$A15,'Base de Dados Input'!$2:$2,0)),"") -> 266009.76 | BI15: =IFERROR(INDEX('Base de Dados Input'!$A:$BF,MATCH(GERAL!BI$7,'Base de Dados Input'!$A:$A,0),MATCH(GERAL!$C15,'Base de Dados Input'!$2:$2,0)),"") -> 173691.8308 | BJ15: 1 | BK15: 173691.8308 | BL15: 1.810967036 | BM15: =IFERROR(INDEX('Base de Dados Input'!$A:$Y,MATCH(GERAL!BI$7,'Base de Dados Input'!$A:$A,0),MATCH(GERAL!$A15,'Base de Dados Input'!$2:$2,0)),"") -> 314550.18 | BN15: 2397933.059 | BO15: 2266625.916 | BP15: -0.05475846884 | BU15: 2955102.169 | BV15: =IFERROR(INDEX('Base de Dados Input'!$A:$BF,MATCH(GERAL!BV$7,'Base de Dados Input'!$A:$A,0),MATCH(GERAL!$B15,'Base de Dados Input'!$2:$2,0)),"") -> 487029.6473 | BW15: =IFERROR(INDEX('Base de Dados Input'!$A:$BF,MATCH(GERAL!BW$7,'Base de Dados Input'!$A:$A,0),MATCH(GERAL!$B15,'Base de Dados Input'!$2:$2,0)),"") -> 233199.7478 | BX15: =IFERROR(INDEX('Base de Dados Input'!$A:$BF,MATCH(GERAL!BX$7,'Base de Dados Input'!$A:$A,0),MATCH(GERAL!$B15,'Base de Dados Input'!$2:$2,0)),"") -> 218126.6859 | BY15: =IFERROR(INDEX('Base de Dados Input'!$A:$BF,MATCH(GERAL!BY$7,'Base de Dados Input'!$A:$A,0),MATCH(GERAL!$B15,'Base de Dados Input'!$2:$2,0)),"") -> 197337.5532 | BZ15: =IFERROR(INDEX('Base de Dados Input'!$A:$BF,MATCH(GERAL!BZ$7,'Base de Dados Input'!$A:$A,0),MATCH(GERAL!$B15,'Base de Dados Input'!$2:$2,0)),"") -> 225546.5786 | CA15: =IFERROR(INDEX('Base de Dados Input'!$A:$BF,MATCH(GERAL!CA$7,'Base de Dados Input'!$A:$A,0),MATCH(GERAL!$B15,'Base de Dados Input'!$2:$2,0)),"") -> 178569.9525 | CB15: =IFERROR(INDEX('Base de Dados Input'!$A:$BF,MATCH(GERAL!CB$7,'Base de Dados Input'!$A:$A,0),MATCH(GERAL!$B15,'Base de Dados Input'!$2:$2,0)),"") -> 265584.8852 | CC15: =IFERROR(INDEX('Base de Dados Input'!$A:$BF,MATCH(GERAL!CC$7,'Base de Dados Input'!$A:$A,0),MATCH(GERAL!$B15,'Base de Dados Input'!$2:$2,0)),"") -> 269081.8832 | CD15: =IFERROR(INDEX('Base de Dados Input'!$A:$BF,MATCH(GERAL!CD$7,'Base de Dados Input'!$A:$A,0),MATCH(GERAL!$B15,'Base de Dados Input'!$2:$2,0)),"") -> 189636.339 | CE15: =IFERROR(INDEX('Base de Dados Input'!$A:$BF,MATCH(GERAL!CE$7,'Base de Dados Input'!$A:$A,0),MATCH(GERAL!$B15,'Base de Dados Input'!$2:$2,0)),"") -> 280369.5895 | CF15: =IFERROR(INDEX('Base de Dados Input'!$A:$BF,MATCH(GERAL!CF$7,'Base de Dados Input'!$A:$A,0),MATCH(GERAL!$B15,'Base de Dados Input'!$2:$2,0)),"") -> 196569.5008 | CG15: =IFERROR(INDEX('Base de Dados Input'!$A:$BF,MATCH(GERAL!CG$7,'Base de Dados Input'!$A:$A,0),MATCH(GERAL!$B15,'Base de Dados Input'!$2:$2,0)),"") -> 214049.8059 | CI15: 487029.6473 | CJ15: 720229.3951 | CK15: 938356.081 | CL15: 1135693.634 | CM15: 1361240.213 | CN15: 1539810.165 | CO15: 1805395.051 | CP15: 2074476.934 | CQ15: 2264113.273 | CR15: 2544482.862 | CS15: 2741052.363 | CT15: 2955102.169
A16: 12 | B16: 23 | C16: 56 | E16: Multas e Juros | F16: =IFERROR(INDEX('Base de Dados Input'!$A:$BF,MATCH(GERAL!F$7,'Base de Dados Input'!$A:$A,0),MATCH(GERAL!$C16,'Base de Dados Input'!$2:$2,0)),"") -> 192183.186 | H16: 177939.56 | I16: 0.9258851605 | J16: =IFERROR(INDEX('Base de Dados Input'!$A:$Y,MATCH(GERAL!F$7,'Base de Dados Input'!$A:$A,0),MATCH(GERAL!$A16,'Base de Dados Input'!$2:$2,0)),"") -> 177939.56 | K16: =IFERROR(INDEX('Base de Dados Input'!$A:$BF,MATCH(GERAL!K$7,'Base de Dados Input'!$A:$A,0),MATCH(GERAL!$C16,'Base de Dados Input'!$2:$2,0)),"") -> 93910.57028 | M16: 140614.14 | N16: 1.497319626 | O16: =IFERROR(INDEX('Base de Dados Input'!$A:$Y,MATCH(GERAL!K$7,'Base de Dados Input'!$A:$A,0),MATCH(GERAL!$A16,'Base de Dados Input'!$2:$2,0)),"") -> 140614.14 | P16: =IFERROR(INDEX('Base de Dados Input'!$A:$BF,MATCH(GERAL!P$7,'Base de Dados Input'!$A:$A,0),MATCH(GERAL!$C16,'Base de Dados Input'!$2:$2,0)),"") -> 86283.62151 | R16: 129297.58 | S16: 1.498518232 | T16: =IFERROR(INDEX('Base de Dados Input'!$A:$Y,MATCH(GERAL!P$7,'Base de Dados Input'!$A:$A,0),MATCH(GERAL!$A16,'Base de Dados Input'!$2:$2,0)),"") -> 129297.58 | U16: =IFERROR(INDEX('Base de Dados Input'!$A:$BF,MATCH(GERAL!U$7,'Base de Dados Input'!$A:$A,0),MATCH(GERAL!$C16,'Base de Dados Input'!$2:$2,0)),"") -> 81483.71842 | V16: 0.2 | W16: 16296.74368 | X16: 0.905814087 | Y16: =IFERROR(INDEX('Base de Dados Input'!$A:$Y,MATCH(GERAL!U$7,'Base de Dados Input'!$A:$A,0),MATCH(GERAL!$A16,'Base de Dados Input'!$2:$2,0)),"") -> 73809.1 | Z16: =IFERROR(INDEX('Base de Dados Input'!$A:$BF,MATCH(GERAL!Z$7,'Base de Dados Input'!$A:$A,0),MATCH(GERAL!$C16,'Base de Dados Input'!$2:$2,0)),"") -> 88773.89585 | AA16: 0.2 | AB16: 17754.77917 | AC16: 0.7052654319 | AD16: =IFERROR(INDEX('Base de Dados Input'!$A:$Y,MATCH(GERAL!Z$7,'Base de Dados Input'!$A:$A,0),MATCH(GERAL!$A16,'Base de Dados Input'!$2:$2,0)),"") -> 62609.16 | AE16: =IFERROR(INDEX('Base de Dados Input'!$A:$BF,MATCH(GERAL!AE$7,'Base de Dados Input'!$A:$A,0),MATCH(GERAL!$C16,'Base de Dados Input'!$2:$2,0)),"") -> 80936.28019 | AF16: 0.2 | AG16: 16187.25604 | AH16: 1.097535614 | AI16: =IFERROR(INDEX('Base de Dados Input'!$A:$Y,MATCH(GERAL!AE$7,'Base de Dados Input'!$A:$A,0),MATCH(GERAL!$A16,'Base de Dados Input'!$2:$2,0)),"") -> 88830.45 | AJ16: =IFERROR(INDEX('Base de Dados Input'!$A:$BF,MATCH(GERAL!AJ$7,'Base de Dados Input'!$A:$A,0),MATCH(GERAL!$C16,'Base de Dados Input'!$2:$2,0)),"") -> 127646.4958 | AK16: 0.4 | AL16: 51058.59833 | AM16: 1.019036043 | AN16: =IFERROR(INDEX('Base de Dados Input'!$A:$Y,MATCH(GERAL!AJ$7,'Base de Dados Input'!$A:$A,0),MATCH(GERAL!$A16,'Base de Dados Input'!$2:$2,0)),"") -> 130076.38 | AO16: =IFERROR(INDEX('Base de Dados Input'!$A:$BF,MATCH(GERAL!AO$7,'Base de Dados Input'!$A:$A,0),MATCH(GERAL!$C16,'Base de Dados Input'!$2:$2,0)),"") -> 135567.314 | AP16: 0.45 | AQ16: 61005.29128 | AR16: 0.9791962098 | AS16: =IFERROR(INDEX('Base de Dados Input'!$A:$Y,MATCH(GERAL!AO$7,'Base de Dados Input'!$A:$A,0),MATCH(GERAL!$A16,'Base de Dados Input'!$2:$2,0)),"") -> 132747 | AT16: =IFERROR(INDEX('Base de Dados Input'!$A:$BF,MATCH(GERAL!AT$7,'Base de Dados Input'!$A:$A,0),MATCH(GERAL!$C16,'Base de Dados Input'!$2:$2,0)),"") -> 101150.029 | AU16: 0.5 | AV16: 50575.01451 | AW16: 1.431157276 | AX16: =IFERROR(INDEX('Base de Dados Input'!$A:$Y,MATCH(GERAL!AT$7,'Base de Dados Input'!$A:$A,0),MATCH(GERAL!$A16,'Base de Dados Input'!$2:$2,0)),"") -> 144761.6 | AY16: =IFERROR(INDEX('Base de Dados Input'!$A:$BF,MATCH(GERAL!AY$7,'Base de Dados Input'!$A:$A,0),MATCH(GERAL!$C16,'Base de Dados Input'!$2:$2,0)),"") -> 172470.3479 | AZ16: 0.6 | BA16: 103482.2087 | BB16: 0.9232124358 | BC16: =IFERROR(INDEX('Base de Dados Input'!$A:$Y,MATCH(GERAL!AY$7,'Base de Dados Input'!$A:$A,0),MATCH(GERAL!$A16,'Base de Dados Input'!$2:$2,0)),"") -> 159226.77 | BD16: =IFERROR(INDEX('Base de Dados Input'!$A:$BF,MATCH(GERAL!BD$7,'Base de Dados Input'!$A:$A,0),MATCH(GERAL!$C16,'Base de Dados Input'!$2:$2,0)),"") -> 142191.7099 | BE16: 0.8 | BF16: 113753.3679 | BG16: 1.099314511 | BH16: =IFERROR(INDEX('Base de Dados Input'!$A:$Y,MATCH(GERAL!BD$7,'Base de Dados Input'!$A:$A,0),MATCH(GERAL!$A16,'Base de Dados Input'!$2:$2,0)),"") -> 156313.41 | BI16: =IFERROR(INDEX('Base de Dados Input'!$A:$BF,MATCH(GERAL!BI$7,'Base de Dados Input'!$A:$A,0),MATCH(GERAL!$C16,'Base de Dados Input'!$2:$2,0)),"") -> 143546.653 | BJ16: 0.9 | BK16: 129191.9877 | BL16: 1.103810898 | BM16: =IFERROR(INDEX('Base de Dados Input'!$A:$Y,MATCH(GERAL!BI$7,'Base de Dados Input'!$A:$A,0),MATCH(GERAL!$A16,'Base de Dados Input'!$2:$2,0)),"") -> 158448.36 | BN16: 1446143.822 | BO16: 1007156.527 | BP16: -0.3035571482 | BU16: 1422974.246 | BV16: =IFERROR(INDEX('Base de Dados Input'!$A:$BF,MATCH(GERAL!BV$7,'Base de Dados Input'!$A:$A,0),MATCH(GERAL!$B16,'Base de Dados Input'!$2:$2,0)),"") -> 189104.0987 | BW16: =IFERROR(INDEX('Base de Dados Input'!$A:$BF,MATCH(GERAL!BW$7,'Base de Dados Input'!$A:$A,0),MATCH(GERAL!$B16,'Base de Dados Input'!$2:$2,0)),"") -> 92405.97019 | BX16: =IFERROR(INDEX('Base de Dados Input'!$A:$BF,MATCH(GERAL!BX$7,'Base de Dados Input'!$A:$A,0),MATCH(GERAL!$B16,'Base de Dados Input'!$2:$2,0)),"") -> 84901.21755 | BY16: =IFERROR(INDEX('Base de Dados Input'!$A:$BF,MATCH(GERAL!BY$7,'Base de Dados Input'!$A:$A,0),MATCH(GERAL!$B16,'Base de Dados Input'!$2:$2,0)),"") -> 80178.21671 | BZ16: =IFERROR(INDEX('Base de Dados Input'!$A:$BF,MATCH(GERAL!BZ$7,'Base de Dados Input'!$A:$A,0),MATCH(GERAL!$B16,'Base de Dados Input'!$2:$2,0)),"") -> 87351.59364 | CA16: =IFERROR(INDEX('Base de Dados Input'!$A:$BF,MATCH(GERAL!CA$7,'Base de Dados Input'!$A:$A,0),MATCH(GERAL!$B16,'Base de Dados Input'!$2:$2,0)),"") -> 79639.54934 | CB16: =IFERROR(INDEX('Base de Dados Input'!$A:$BF,MATCH(GERAL!CB$7,'Base de Dados Input'!$A:$A,0),MATCH(GERAL!$B16,'Base de Dados Input'!$2:$2,0)),"") -> 125601.3913 | CC16: =IFERROR(INDEX('Base de Dados Input'!$A:$BF,MATCH(GERAL!CC$7,'Base de Dados Input'!$A:$A,0),MATCH(GERAL!$B16,'Base de Dados Input'!$2:$2,0)),"") -> 133395.3051 | CD16: =IFERROR(INDEX('Base de Dados Input'!$A:$BF,MATCH(GERAL!CD$7,'Base de Dados Input'!$A:$A,0),MATCH(GERAL!$B16,'Base de Dados Input'!$2:$2,0)),"") -> 99529.44102 | CE16: =IFERROR(INDEX('Base de Dados Input'!$A:$BF,MATCH(GERAL!CE$7,'Base de Dados Input'!$A:$A,0),MATCH(GERAL!$B16,'Base de Dados Input'!$2:$2,0)),"") -> 169707.0924 | CF16: =IFERROR(INDEX('Base de Dados Input'!$A:$BF,MATCH(GERAL!CF$7,'Base de Dados Input'!$A:$A,0),MATCH(GERAL!$B16,'Base de Dados Input'!$2:$2,0)),"") -> 139913.5674 | CG16: =IFERROR(INDEX('Base de Dados Input'!$A:$BF,MATCH(GERAL!CG$7,'Base de Dados Input'!$A:$A,0),MATCH(GERAL!$B16,'Base de Dados Input'!$2:$2,0)),"") -> 141246.8021 | CI16: 189104.0987 | CJ16: 281510.0689 | CK16: 366411.2865 | CL16: 446589.5032 | CM16: 533941.0968 | CN16: 613580.6462 | CO16: 739182.0375 | CP16: 872577.3426 | CQ16: 972106.7836 | CR16: 1141813.876 | CS16: 1281727.443 | CT16: 1422974.246
A17: 13 | B17: 24 | C17: 57 | E17: Anuidade Pessoa Jur. A.A. | F17: =IFERROR(INDEX('Base de Dados Input'!$A:$BF,MATCH(GERAL!F$7,'Base de Dados Input'!$A:$A,0),MATCH(GERAL!$C17,'Base de Dados Input'!$2:$2,0)),"") -> 41218.03781 | H17: 69748.39 | I17: 1.692181232 | J17: =IFERROR(INDEX('Base de Dados Input'!$A:$Y,MATCH(GERAL!F$7,'Base de Dados Input'!$A:$A,0),MATCH(GERAL!$A17,'Base de Dados Input'!$2:$2,0)),"") -> 69748.39 | K17: =IFERROR(INDEX('Base de Dados Input'!$A:$BF,MATCH(GERAL!K$7,'Base de Dados Input'!$A:$A,0),MATCH(GERAL!$C17,'Base de Dados Input'!$2:$2,0)),"") -> 24526.81497 | M17: 55168.53 | N17: 2.249314885 | O17: =IFERROR(INDEX('Base de Dados Input'!$A:$Y,MATCH(GERAL!K$7,'Base de Dados Input'!$A:$A,0),MATCH(GERAL!$A17,'Base de Dados Input'!$2:$2,0)),"") -> 55168.53 | P17: =IFERROR(INDEX('Base de Dados Input'!$A:$BF,MATCH(GERAL!P$7,'Base de Dados Input'!$A:$A,0),MATCH(GERAL!$C17,'Base de Dados Input'!$2:$2,0)),"") -> 20375.95982 | R17: 51641.65 | S17: 2.534440117 | T17: =IFERROR(INDEX('Base de Dados Input'!$A:$Y,MATCH(GERAL!P$7,'Base de Dados Input'!$A:$A,0),MATCH(GERAL!$A17,'Base de Dados Input'!$2:$2,0)),"") -> 51641.65 | U17: =IFERROR(INDEX('Base de Dados Input'!$A:$BF,MATCH(GERAL!U$7,'Base de Dados Input'!$A:$A,0),MATCH(GERAL!$C17,'Base de Dados Input'!$2:$2,0)),"") -> 17421.8846 | V17: 0.2 | W17: 3484.376921 | X17: 1.425058228 | Y17: =IFERROR(INDEX('Base de Dados Input'!$A:$Y,MATCH(GERAL!U$7,'Base de Dados Input'!$A:$A,0),MATCH(GERAL!$A17,'Base de Dados Input'!$2:$2,0)),"") -> 24827.2 | Z17: =IFERROR(INDEX('Base de Dados Input'!$A:$BF,MATCH(GERAL!Z$7,'Base de Dados Input'!$A:$A,0),MATCH(GERAL!$C17,'Base de Dados Input'!$2:$2,0)),"") -> 20003.06435 | AA17: 0.2 | AB17: 4000.61287 | AC17: 1.278697581 | AD17: =IFERROR(INDEX('Base de Dados Input'!$A:$Y,MATCH(GERAL!Z$7,'Base de Dados Input'!$A:$A,0),MATCH(GERAL!$A17,'Base de Dados Input'!$2:$2,0)),"") -> 25577.87 | AE17: =IFERROR(INDEX('Base de Dados Input'!$A:$BF,MATCH(GERAL!AE$7,'Base de Dados Input'!$A:$A,0),MATCH(GERAL!$C17,'Base de Dados Input'!$2:$2,0)),"") -> 14021.31157 | AF17: 0.2 | AG17: 2804.262315 | AH17: 2.922074 | AI17: =IFERROR(INDEX('Base de Dados Input'!$A:$Y,MATCH(GERAL!AE$7,'Base de Dados Input'!$A:$A,0),MATCH(GERAL!$A17,'Base de Dados Input'!$2:$2,0)),"") -> 40971.31 | AJ17: =IFERROR(INDEX('Base de Dados Input'!$A:$BF,MATCH(GERAL!AJ$7,'Base de Dados Input'!$A:$A,0),MATCH(GERAL!$C17,'Base de Dados Input'!$2:$2,0)),"") -> 22154.51709 | AK17: 0.4 | AL17: 8861.806837 | AM17: 2.499270906 | AN17: =IFERROR(INDEX('Base de Dados Input'!$A:$Y,MATCH(GERAL!AJ$7,'Base de Dados Input'!$A:$A,0),MATCH(GERAL!$A17,'Base de Dados Input'!$2:$2,0)),"") -> 55370.14 | AO17: =IFERROR(INDEX('Base de Dados Input'!$A:$BF,MATCH(GERAL!AO$7,'Base de Dados Input'!$A:$A,0),MATCH(GERAL!$C17,'Base de Dados Input'!$2:$2,0)),"") -> 27163.71827 | AP17: 0.45 | AQ17: 12223.67322 | AR17: 1.871596499 | AS17: =IFERROR(INDEX('Base de Dados Input'!$A:$Y,MATCH(GERAL!AO$7,'Base de Dados Input'!$A:$A,0),MATCH(GERAL!$A17,'Base de Dados Input'!$2:$2,0)),"") -> 50839.52 | AT17: =IFERROR(INDEX('Base de Dados Input'!$A:$BF,MATCH(GERAL!AT$7,'Base de Dados Input'!$A:$A,0),MATCH(GERAL!$C17,'Base de Dados Input'!$2:$2,0)),"") -> 18094.26083 | AU17: 0.5 | AV17: 9047.130415 | AW17: 2.240625377 | AX17: =IFERROR(INDEX('Base de Dados Input'!$A:$Y,MATCH(GERAL!AT$7,'Base de Dados Input'!$A:$A,0),MATCH(GERAL!$A17,'Base de Dados Input'!$2:$2,0)),"") -> 40542.46 | AY17: =IFERROR(INDEX('Base de Dados Input'!$A:$BF,MATCH(GERAL!AY$7,'Base de Dados Input'!$A:$A,0),MATCH(GERAL!$C17,'Base de Dados Input'!$2:$2,0)),"") -> 22909.6463 | AZ17: 0.6 | BA17: 13745.78778 | BB17: 1.902460188 | BC17: =IFERROR(INDEX('Base de Dados Input'!$A:$Y,MATCH(GERAL!AY$7,'Base de Dados Input'!$A:$A,0),MATCH(GERAL!$A17,'Base de Dados Input'!$2:$2,0)),"") -> 43584.69 | BD17: =IFERROR(INDEX('Base de Dados Input'!$A:$BF,MATCH(GERAL!BD$7,'Base de Dados Input'!$A:$A,0),MATCH(GERAL!$C17,'Base de Dados Input'!$2:$2,0)),"") -> 17764.96658 | BE17: 0.95 | BF17: 16876.71825 | BG17: 2.245913035 | BH17: =IFERROR(INDEX('Base de Dados Input'!$A:$Y,MATCH(GERAL!BD$7,'Base de Dados Input'!$A:$A,0),MATCH(GERAL!$A17,'Base de Dados Input'!$2:$2,0)),"") -> 39898.57 | BI17: =IFERROR(INDEX('Base de Dados Input'!$A:$BF,MATCH(GERAL!BI$7,'Base de Dados Input'!$A:$A,0),MATCH(GERAL!$C17,'Base de Dados Input'!$2:$2,0)),"") -> 16687.93063 | BJ17: 1 | BK17: 16687.93063 | BL17: 3.174552386 | BM17: =IFERROR(INDEX('Base de Dados Input'!$A:$Y,MATCH(GERAL!BI$7,'Base de Dados Input'!$A:$A,0),MATCH(GERAL!$A17,'Base de Dados Input'!$2:$2,0)),"") -> 52976.71 | BN17: 262342.1128 | BO17: 264290.8692 | BP17: 0.007428301874 | BU17: 421066.2123 | BV17: =IFERROR(INDEX('Base de Dados Input'!$A:$BF,MATCH(GERAL!BV$7,'Base de Dados Input'!$A:$A,0),MATCH(GERAL!$B17,'Base de Dados Input'!$2:$2,0)),"") -> 66156.06954 | BW17: =IFERROR(INDEX('Base de Dados Input'!$A:$BF,MATCH(GERAL!BW$7,'Base de Dados Input'!$A:$A,0),MATCH(GERAL!$B17,'Base de Dados Input'!$2:$2,0)),"") -> 39366.2038 | BX17: =IFERROR(INDEX('Base de Dados Input'!$A:$BF,MATCH(GERAL!BX$7,'Base de Dados Input'!$A:$A,0),MATCH(GERAL!$B17,'Base de Dados Input'!$2:$2,0)),"") -> 32703.96861 | BY17: =IFERROR(INDEX('Base de Dados Input'!$A:$BF,MATCH(GERAL!BY$7,'Base de Dados Input'!$A:$A,0),MATCH(GERAL!$B17,'Base de Dados Input'!$2:$2,0)),"") -> 27962.5977 | BZ17: =IFERROR(INDEX('Base de Dados Input'!$A:$BF,MATCH(GERAL!BZ$7,'Base de Dados Input'!$A:$A,0),MATCH(GERAL!$B17,'Base de Dados Input'!$2:$2,0)),"") -> 32105.46126 | CA17: =IFERROR(INDEX('Base de Dados Input'!$A:$BF,MATCH(GERAL!CA$7,'Base de Dados Input'!$A:$A,0),MATCH(GERAL!$B17,'Base de Dados Input'!$2:$2,0)),"") -> 22504.58568 | CB17: =IFERROR(INDEX('Base de Dados Input'!$A:$BF,MATCH(GERAL!CB$7,'Base de Dados Input'!$A:$A,0),MATCH(GERAL!$B17,'Base de Dados Input'!$2:$2,0)),"") -> 35558.60131 | CC17: =IFERROR(INDEX('Base de Dados Input'!$A:$BF,MATCH(GERAL!CC$7,'Base de Dados Input'!$A:$A,0),MATCH(GERAL!$B17,'Base de Dados Input'!$2:$2,0)),"") -> 43598.50517 | CD17: =IFERROR(INDEX('Base de Dados Input'!$A:$BF,MATCH(GERAL!CD$7,'Base de Dados Input'!$A:$A,0),MATCH(GERAL!$B17,'Base de Dados Input'!$2:$2,0)),"") -> 29041.77979 | CE17: =IFERROR(INDEX('Base de Dados Input'!$A:$BF,MATCH(GERAL!CE$7,'Base de Dados Input'!$A:$A,0),MATCH(GERAL!$B17,'Base de Dados Input'!$2:$2,0)),"") -> 36770.60418 | CF17: =IFERROR(INDEX('Base de Dados Input'!$A:$BF,MATCH(GERAL!CF$7,'Base de Dados Input'!$A:$A,0),MATCH(GERAL!$B17,'Base de Dados Input'!$2:$2,0)),"") -> 28513.25358 | CG17: =IFERROR(INDEX('Base de Dados Input'!$A:$BF,MATCH(GERAL!CG$7,'Base de Dados Input'!$A:$A,0),MATCH(GERAL!$B17,'Base de Dados Input'!$2:$2,0)),"") -> 26784.58165 | CI17: 66156.06954 | CJ17: 105522.2733 | CK17: 138226.242 | CL17: 166188.8397 | CM17: 198294.3009 | CN17: 220798.8866 | CO17: 256357.4879 | CP17: 299955.9931 | CQ17: 328997.7729 | CR17: 365768.377 | CS17: 394281.6306 | CT17: 421066.2123
A18: 14 | B18: 25 | C18: 58 | E18: Diversas Receitas | F18: =IFERROR(INDEX('Base de Dados Input'!$A:$BF,MATCH(GERAL!F$7,'Base de Dados Input'!$A:$A,0),MATCH(GERAL!$C18,'Base de Dados Input'!$2:$2,0)),"") -> 56274.89496 | H18: 122086.61 | I18: 2.169468465 | J18: =IFERROR(INDEX('Base de Dados Input'!$A:$Y,MATCH(GERAL!F$7,'Base de Dados Input'!$A:$A,0),MATCH(GERAL!$A18,'Base de Dados Input'!$2:$2,0)),"") -> 122086.61 | K18: =IFERROR(INDEX('Base de Dados Input'!$A:$BF,MATCH(GERAL!K$7,'Base de Dados Input'!$A:$A,0),MATCH(GERAL!$C18,'Base de Dados Input'!$2:$2,0)),"") -> 24259.31014 | M18: 14574.58 | N18: 0.6007829536 | O18: =IFERROR(INDEX('Base de Dados Input'!$A:$Y,MATCH(GERAL!K$7,'Base de Dados Input'!$A:$A,0),MATCH(GERAL!$A18,'Base de Dados Input'!$2:$2,0)),"") -> 14574.58 | P18: =IFERROR(INDEX('Base de Dados Input'!$A:$BF,MATCH(GERAL!P$7,'Base de Dados Input'!$A:$A,0),MATCH(GERAL!$C18,'Base de Dados Input'!$2:$2,0)),"") -> 22756.7044 | R18: 13375.72 | S18: 0.587770521 | T18: =IFERROR(INDEX('Base de Dados Input'!$A:$Y,MATCH(GERAL!P$7,'Base de Dados Input'!$A:$A,0),MATCH(GERAL!$A18,'Base de Dados Input'!$2:$2,0)),"") -> 13375.72 | U18: =IFERROR(INDEX('Base de Dados Input'!$A:$BF,MATCH(GERAL!U$7,'Base de Dados Input'!$A:$A,0),MATCH(GERAL!$C18,'Base de Dados Input'!$2:$2,0)),"") -> 24790.54561 | V18: 0.2 | W18: 4958.109123 | X18: 0.1759755541 | Y18: =IFERROR(INDEX('Base de Dados Input'!$A:$Y,MATCH(GERAL!U$7,'Base de Dados Input'!$A:$A,0),MATCH(GERAL!$A18,'Base de Dados Input'!$2:$2,0)),"") -> 4362.53 | Z18: =IFERROR(INDEX('Base de Dados Input'!$A:$BF,MATCH(GERAL!Z$7,'Base de Dados Input'!$A:$A,0),MATCH(GERAL!$C18,'Base de Dados Input'!$2:$2,0)),"") -> 36718.73322 | AA18: 0.2 | AB18: 7343.746644 | AC18: 0.1528451422 | AD18: =IFERROR(INDEX('Base de Dados Input'!$A:$Y,MATCH(GERAL!Z$7,'Base de Dados Input'!$A:$A,0),MATCH(GERAL!$A18,'Base de Dados Input'!$2:$2,0)),"") -> 5612.28 | AE18: =IFERROR(INDEX('Base de Dados Input'!$A:$BF,MATCH(GERAL!AE$7,'Base de Dados Input'!$A:$A,0),MATCH(GERAL!$C18,'Base de Dados Input'!$2:$2,0)),"") -> 42958.34631 | AF18: 0.2 | AG18: 8591.669261 | AH18: 0.1728337014 | AI18: =IFERROR(INDEX('Base de Dados Input'!$A:$Y,MATCH(GERAL!AE$7,'Base de Dados Input'!$A:$A,0),MATCH(GERAL!$A18,'Base de Dados Input'!$2:$2,0)),"") -> 7424.65 | AJ18: =IFERROR(INDEX('Base de Dados Input'!$A:$BF,MATCH(GERAL!AJ$7,'Base de Dados Input'!$A:$A,0),MATCH(GERAL!$C18,'Base de Dados Input'!$2:$2,0)),"") -> 38107.94124 | AK18: 0.4 | AL18: 15243.1765 | AM18: 0.250579005 | AN18: =IFERROR(INDEX('Base de Dados Input'!$A:$Y,MATCH(GERAL!AJ$7,'Base de Dados Input'!$A:$A,0),MATCH(GERAL!$A18,'Base de Dados Input'!$2:$2,0)),"") -> 9549.05 | AO18: =IFERROR(INDEX('Base de Dados Input'!$A:$BF,MATCH(GERAL!AO$7,'Base de Dados Input'!$A:$A,0),MATCH(GERAL!$C18,'Base de Dados Input'!$2:$2,0)),"") -> 35684.26949 | AP18: 0.45 | AQ18: 16057.92127 | AR18: 0.2691779918 | AS18: =IFERROR(INDEX('Base de Dados Input'!$A:$Y,MATCH(GERAL!AO$7,'Base de Dados Input'!$A:$A,0),MATCH(GERAL!$A18,'Base de Dados Input'!$2:$2,0)),"") -> 9605.42 | AT18: =IFERROR(INDEX('Base de Dados Input'!$A:$BF,MATCH(GERAL!AT$7,'Base de Dados Input'!$A:$A,0),MATCH(GERAL!$C18,'Base de Dados Input'!$2:$2,0)),"") -> 89139.57698 | AU18: 0.5 | AV18: 44569.78849 | AW18: 0.07828924297 | AX18: =IFERROR(INDEX('Base de Dados Input'!$A:$Y,MATCH(GERAL!AT$7,'Base de Dados Input'!$A:$A,0),MATCH(GERAL!$A18,'Base de Dados Input'!$2:$2,0)),"") -> 6978.67 | AY18: =IFERROR(INDEX('Base de Dados Input'!$A:$BF,MATCH(GERAL!AY$7,'Base de Dados Input'!$A:$A,0),MATCH(GERAL!$C18,'Base de Dados Input'!$2:$2,0)),"") -> 48199.60567 | AZ18: 0.6 | BA18: 28919.7634 | BB18: 0.1664681669 | BC18: =IFERROR(INDEX('Base de Dados Input'!$A:$Y,MATCH(GERAL!AY$7,'Base de Dados Input'!$A:$A,0),MATCH(GERAL!$A18,'Base de Dados Input'!$2:$2,0)),"") -> 8023.7 | BD18: =IFERROR(INDEX('Base de Dados Input'!$A:$BF,MATCH(GERAL!BD$7,'Base de Dados Input'!$A:$A,0),MATCH(GERAL!$C18,'Base de Dados Input'!$2:$2,0)),"") -> 19804.72298 | BE18: 0.5 | BF18: 9902.361491 | BG18: 7.019704347 | BH18: =IFERROR(INDEX('Base de Dados Input'!$A:$Y,MATCH(GERAL!BD$7,'Base de Dados Input'!$A:$A,0),MATCH(GERAL!$A18,'Base de Dados Input'!$2:$2,0)),"") -> 139023.3 | BI18: =IFERROR(INDEX('Base de Dados Input'!$A:$BF,MATCH(GERAL!BI$7,'Base de Dados Input'!$A:$A,0),MATCH(GERAL!$C18,'Base de Dados Input'!$2:$2,0)),"") -> 44689.938 | BJ18: 0.5 | BK18: 22344.969 | BL18: 0.5445225724 | BM18: =IFERROR(INDEX('Base de Dados Input'!$A:$Y,MATCH(GERAL!BI$7,'Base de Dados Input'!$A:$A,0),MATCH(GERAL!$A18,'Base de Dados Input'!$2:$2,0)),"") -> 24334.68 | BN18: 483384.589 | BO18: 307968.4152 | BP18: -0.3628915315 | BU18: 445281.049 | BV18: =IFERROR(INDEX('Base de Dados Input'!$A:$BF,MATCH(GERAL!BV$7,'Base de Dados Input'!$A:$A,0),MATCH(GERAL!$B18,'Base de Dados Input'!$2:$2,0)),"") -> 51838.93908 | BW18: =IFERROR(INDEX('Base de Dados Input'!$A:$BF,MATCH(GERAL!BW$7,'Base de Dados Input'!$A:$A,0),MATCH(GERAL!$B18,'Base de Dados Input'!$2:$2,0)),"") -> 22347.03239 | BX18: =IFERROR(INDEX('Base de Dados Input'!$A:$BF,MATCH(GERAL!BX$7,'Base de Dados Input'!$A:$A,0),MATCH(GERAL!$B18,'Base de Dados Input'!$2:$2,0)),"") -> 20962.87188 | BY18: =IFERROR(INDEX('Base de Dados Input'!$A:$BF,MATCH(GERAL!BY$7,'Base de Dados Input'!$A:$A,0),MATCH(GERAL!$B18,'Base de Dados Input'!$2:$2,0)),"") -> 22836.3924 | BZ18: =IFERROR(INDEX('Base de Dados Input'!$A:$BF,MATCH(GERAL!BZ$7,'Base de Dados Input'!$A:$A,0),MATCH(GERAL!$B18,'Base de Dados Input'!$2:$2,0)),"") -> 33824.32212 | CA18: =IFERROR(INDEX('Base de Dados Input'!$A:$BF,MATCH(GERAL!CA$7,'Base de Dados Input'!$A:$A,0),MATCH(GERAL!$B18,'Base de Dados Input'!$2:$2,0)),"") -> 39572.08803 | CB18: =IFERROR(INDEX('Base de Dados Input'!$A:$BF,MATCH(GERAL!CB$7,'Base de Dados Input'!$A:$A,0),MATCH(GERAL!$B18,'Base de Dados Input'!$2:$2,0)),"") -> 35104.02366 | CC18: =IFERROR(INDEX('Base de Dados Input'!$A:$BF,MATCH(GERAL!CC$7,'Base de Dados Input'!$A:$A,0),MATCH(GERAL!$B18,'Base de Dados Input'!$2:$2,0)),"") -> 32871.4016 | CD18: =IFERROR(INDEX('Base de Dados Input'!$A:$BF,MATCH(GERAL!CD$7,'Base de Dados Input'!$A:$A,0),MATCH(GERAL!$B18,'Base de Dados Input'!$2:$2,0)),"") -> 82113.01156 | CE18: =IFERROR(INDEX('Base de Dados Input'!$A:$BF,MATCH(GERAL!CE$7,'Base de Dados Input'!$A:$A,0),MATCH(GERAL!$B18,'Base de Dados Input'!$2:$2,0)),"") -> 44400.19699 | CF18: =IFERROR(INDEX('Base de Dados Input'!$A:$BF,MATCH(GERAL!CF$7,'Base de Dados Input'!$A:$A,0),MATCH(GERAL!$B18,'Base de Dados Input'!$2:$2,0)),"") -> 18243.58497 | CG18: =IFERROR(INDEX('Base de Dados Input'!$A:$BF,MATCH(GERAL!CG$7,'Base de Dados Input'!$A:$A,0),MATCH(GERAL!$B18,'Base de Dados Input'!$2:$2,0)),"") -> 41167.18432 | CI18: 51838.93908 | CJ18: 74185.97147 | CK18: 95148.84335 | CL18: 117985.2357 | CM18: 151809.5579 | CN18: 191381.6459 | CO18: 226485.6696 | CP18: 259357.0712 | CQ18: 341470.0827 | CR18: 385870.2797 | CS18: 404113.8647 | CT18: 445281.049
E19: Arrecadação Acumulada Evolução de Todos | F19: =F9 -> 7875271.593 | G19: =IF(H19=F19,"Programação MANTIDA","Programação ALTERADA") -> Programação ALTERADA | H19: =H9 -> 6650003.62 | I19: - | J19: =J9 -> 6650003.62 | K19: =F19+K9 -> 12777518.53 | L19: =IF(M19=K19,"Programação MANTIDA","Programação ALTERADA") -> Programação ALTERADA | M19: =H19+M9 -> 12766136.98 | N19: - | O19: =J19+O9 -> 12766136.98 | P19: =K19+P9 -> 17036742.44 | Q19: =IF(R19=P19,"Programação MANTIDA","Programação ALTERADA") -> Programação ALTERADA | R19: =M19+R9 -> 17276177.37 | S19: - | T19: =O19+T9 -> 17276177.37 | U19: =P19+U9 -> 21220604.68 | V19: =IF(W19=U19,"Programação MANTIDA","Programação ALTERADA") -> Programação ALTERADA | W19: =R19+W9 -> 18136812.94 | X19: - | Y19: =T19+Y9 -> 19560240.81 | Z19: =U19+Z9 -> 26339677.08 | AA19: =IF(AB19=Z19,"Programação MANTIDA","Programação ALTERADA") -> Programação ALTERADA | AB19: =W19+AB9 -> 19186850.45 | AC19: - | AD19: =Y19+AD9 -> 21833162.81 | AE19: =Z19+AE9 -> 30086065.24 | AF19: =IF(AG19=AE19,"Programação MANTIDA","Programação ALTERADA") -> Programação ALTERADA | AG19: =AB19+AG9 -> 19960658.72 | AH19: - | AI19: =AD19+AI9 -> 25053040.43 | AJ19: =AE19+AJ9 -> 33679895.98 | AK19: =IF(AL19=AJ19,"Programação MANTIDA","Programação ALTERADA") -> Programação ALTERADA | AL19: =AG19+AL9 -> 21130167.19 | AM19: - | AN19: =AI19+AN9 -> 29211574.14 | AO19: =AJ19+AO9 -> 37505314.14 | AP19: =IF(AQ19=AO19,"Programação MANTIDA","Programação ALTERADA") -> Programação ALTERADA | AQ19: =AL19+AQ9 -> 22684984.73 | AR19: - | AS19: =AN19+AS9 -> 33454088.6 | AT19: =AO19+AT9 -> 40778954.88 | AU19: =IF(AV19=AT19,"Programação MANTIDA","Programação ALTERADA") -> Programação ALTERADA | AV19: =AQ19+AV9 -> 24288976.32 | AW19: - | AX19: =AS19+AX9 -> 36916211.49 | AY19: =AT19+AY9 -> 44433959.35 | AZ19: =IF(BA19=AY19,"Programação MANTIDA","Programação ALTERADA") -> Programação ALTERADA | BA19: =AV19+BA9 -> 26146753.51 | BB19: - | BC19: =AX19+BC9 -> 40596489.62 | BD19: =AY19+BD9 -> 47491294.19 | BE19: =IF(BF19=BD19,"Programação MANTIDA","Programação ALTERADA") -> Programação ALTERADA | BF19: =BA19+BF9 -> 28344674.04 | BG19: - | BH19: =BC19+BH9 -> 43888352.52 | BI19: =BD19+BI9 -> 50430849.55 | BJ19: =IF(BK19=BI19,"Programação MANTIDA","Programação ALTERADA") -> Programação ALTERADA | BK19: =BF19+BK9 -> 30704791.43 | BL19: - | BM19: =BH19+BM9 -> 47047479.23 | BN19: =BM19 -> 47047479.23
E20: RRT | J20: =J11 -> 1776022.17 | O20: =O11+J11 -> 3692786.13 | T20: =T11+O11+J11 -> 5703111.93 | Y20: =Y11+T11+O11+J11 -> 6723202.41 | AD20: =AD11+Y11+T11+O11+J11 -> 7941386.97 | AI20: =AI11+AD11+Y11+T11+O11+J11 -> 9666482.37 | AN20: =AN11+AI11+AD11+Y11+T11+O11+J11 -> 11818912.95 | AS20: =AS11+AN11+AI11+AD11+Y11+T11+O11+J11 -> 14083046.23 | AX20: =AX11+AS11+AN11+AI11+AD11+Y11+T11+O11+J11 -> 16394782.69 | BC20: =BC11+AX11+AS11+AN11+AI11+AD11+Y11+T11+O11+J11 -> 18942931.27 | BH20: =BH11+BC11+AX11+AS11+AN11+AI11+AD11+Y11+T11+O11+J11 -> 21135329.24 | BM20: =BM11+BH11+BC11+AX11+AS11+AN11+AI11+AD11+Y11+T11+O11+J11 -> 23249795.48 | BN20: =BM20 -> 23249795.48
E21: Anuidade Pessoa Fís. | J21: =J12 -> 3419659.39 | O21: =O12+J12 -> 6388274.73 | T21: =T12+O12+J12 -> 7959164.28 | Y21: =Y12+T12+O12+J12 -> 8678194.65 | AD21: =AD12+Y12+T12+O12+J12 -> 9282009.55 | AI21: =AI12+AD12+Y12+T12+O12+J12 -> 10199278.09 | AN21: =AN12+AI12+AD12+Y12+T12+O12+J12 -> 11504774.23 | AS21: =AS12+AN12+AI12+AD12+Y12+T12+O12+J12 -> 12777877.25 | AX21: =AX12+AS12+AN12+AI12+AD12+Y12+T12+O12+J12 -> 13300154.84 | BC21: =BC12+AX12+AS12+AN12+AI12+AD12+Y12+T12+O12+J12 -> 13803692.91 | BH21: =BH12+BC12+AX12+AS12+AN12+AI12+AD12+Y12+T12+O12+J12 -> 14216754.41 | BM21: =BM12+BH12+BC12+AX12+AS12+AN12+AI12+AD12+Y12+T12+O12+J12 -> 14611974.9 | BN21: 14611974.9
E22: Aplicação Financeira | J22: 113838.46 | O22: 211947.22 | T22: 318216.93 | Y22: 426393.22 | AD22: 505017.75 | AI22: 570371.49 | AN22: 625735.51 | AS22: 673732.92 | AX22: 717237.94 | BC22: 765502.83 | BH22: 811149.44 | BM22: 867248.72 | BN22: 867248.72
E23: Anuidade Pessoa Jur. | J23: 385907.77 | O23: 853724.68 | T23: 1075351.74 | Y23: 1171141.09 | AD23: 1244109.16 | AI23: 1347575.1 | AN23: 1452037.39 | AS23: 1593174.21 | AX23: 1647240.33 | BC23: 1691180.69 | BH23: 1730692.47 | BM23: 1773723.24 | BN23: 1773723.24
E24: Anuidade Pessoa Fís. A.A. | J24: 584801.27 | O24: 1039272.41 | T24: =T15+O15+J15 -> 1445885.73 | Y24: 1683863.85 | AD24: 1889394.48 | AI24: 2160862.07 | AN24: 2506647.18 | AS24: 2829599.17 | AX24: 3167854.14 | BC24: 3493405.21 | BH24: 3759414.97 | BM24: 4073965.15 | BN24: 4073965.15
E25: Multas e Juros | J25: 177939.56 | O25: 318553.7 | T25: 447851.28 | Y25: 521660.38 | AD25: 584269.54 | AI25: 673099.99 | AN25: 803176.37 | AS25: 935923.37 | AX25: 1080684.97 | BC25: 1239911.74 | BH25: 1396225.15 | BM25: 1554673.51 | BN25: 1554673.51
E26: Anuidade Pessoa Jur. A.A. | J26: 69748.39 | O26: 124916.92 | T26: 176558.57 | Y26: 201385.77 | AD26: 226963.64 | AI26: 267934.95 | AN26: 323305.09 | AS26: 374144.61 | AX26: 414687.07 | BC26: 458271.76 | BH26: 498170.33 | BM26: 551147.04 | BN26: 551147.04
E27: Diversas Receitas | J27: 122086.61 | O27: 136661.19 | T27: 150036.91 | Y27: 154399.44 | AD27: 160011.72 | AI27: 167436.37 | AN27: 176985.42 | AS27: 186590.84 | AX27: 193569.51 | BC27: 201593.21 | BH27: 340616.51 | BM27: 364951.19 | BN27: 364951.19
E28: Programação Acumulada Todos Sem Apl. Financ. E Receitas Diversas | F28: =F10 -> 7610714.902 | H28: =H10 -> 6414078.55 | I28: - | J28: =J10 -> 6414078.55 | K28: =F28+K10 -> 12299883.69 | M28: =H28+M10 -> 12417528.57 | N28: - | O28: =J28+O10 -> 12417528.57 | P28: =K28+P10 -> 16324177.56 | R28: =M28+R10 -> 16807923.53 | S28: - | T28: =O28+T10 -> 16807923.53 | U28: =P28+U10 -> 20284389.93 | W28: =P28+W10 -> 17116220.04 | X28: - | Y28: =T28+Y10 -> 18979448.15 | Z28: =U28+Z10 -> 25148218.3 | AB28: =W28+AB10 -> 18088985.71 | AC28: - | AD28: =Y28+AD10 -> 21168133.34 | AE28: =Z28+AE10 -> 28647226.12 | AG28: =AB28+AG10 -> 18788787.27 | AH28: - | AI28: =AD28+AI10 -> 24315232.57 | AJ28: =AE28+AJ10 -> 31983406.07 | AL28: =AG28+AL10 -> 19872798.85 | AM28: - | AN28: =AI28+AN10 -> 28408853.21 | AO28: =AJ28+AO10 -> 35558774.58 | AQ28: =AL28+AQ10 -> 21342961.55 | AR28: - | AS28: =AN28+AS10 -> 32593764.84 | AT28: =AO28+AT10 -> 38560893.66 | AV28: =AQ28+AV10 -> 22844021.09 | AW28: - | AX28: =AS28+AX10 -> 36005404.04 | AY28: =AT28+AY10 -> 41973159.89 | BA28: =AV28+BA10 -> 24633970.78 | BB28: - | BC28: =AX28+BC10 -> 39629393.58 | BD28: =AY28+BD10 -> 44841364.17 | BF28: =BA28+BF10 -> 26788123.78 | BG28: - | BH28: =BC28+BH10 -> 42736586.57 | BI28: =BD28+BI10 -> 47586631.55 | BK28: =BF28+BK10 -> 29103456.49 | BL28: - | BM28: =BH28+BM10 -> 45815279.32 | BN28: =IF(BI28=BN10,"CHECK","DIVERGÊNCIA") -> CHECK
K29: =F9 -> 7875271.593 | P29: =K9+F9 -> 12777518.53 | U29: =P9+K9+F9 -> 17036742.44 | Z29: =U9+P9+K9+F9 -> 21220604.68 | AE29: =Z9+U9+P9+K9+F9 -> 26339677.08 | AJ29: =AE9+Z9+F9+U9+P9+K9 -> 30086065.24 | AO29: =AJ9+AE9+K9+Z9+U9+P9+F9 -> 33679895.98 | AT29: =AO9+AJ9+P9+AE9+Z9+U9+K9+F9 -> 37505314.14 | AY29: =AT9+AO9+U9+AJ9+AE9+Z9+P9+K9+F9 -> 40778954.88 | BD29: =AY9+AT9+Z9+AO9+AJ9+AE9+U9+P9+K9+F9 -> 44433959.35 | BI29: =BD9+AY9+AE9+AT9+AO9+AJ9+Z9+U9+P9+K9+F9 -> 47491294.19 | BN29: =BI9+BD9+AJ9+AY9+AT9+AO9+AE9+Z9+U9+P9+K9+F9 -> 50430849.55
A30: 0.01 | J30: =J9/F9 -> 0.8444157819 | K30: =J19/K29 -> 0.8444157819 | O30: =O9/K9 -> 1.247618376 | P30: =O19/P29 -> 0.9991092521 | T30: =T9/P9 -> 1.058887836 | U30: =T19/U29 -> 1.014054032 | Y30: =Y9/U9 -> 0.5459222381 | Z30: =Y19/Z29 -> 0.9217569953 | AD30: =AD9/Z9 -> 0.4440105208 | AE30: =AD19/AE29 -> 0.8289077632 | AI30: =AI9/AE9 -> 0.8594618288 | AJ30: =AI19/AJ29 -> 0.8327124279 | AN30: =AN9/AJ9 -> 1.157131209 | AO30: =AN19/AO29 -> 0.8673297019 | AS30: =AS9/AO9 -> 1.109032865 | AT30: =AS19/AT29 -> 0.8919826262 | AX30: =AX9/AT9 -> 1.057575698 | AY30: =AX19/AY29 -> 0.9052760572 | BC30: =BC9/AY9 -> 1.006914808 | BD30: =BC19/BD29 -> 0.9136365566 | BH30: =BH9/BD9 -> 1.076709969 | BI30: =BH19/BI29 -> 0.9241346918 | BM30: =BM9/BI9 -> 1.074695431 | BN30: =BM19/BN29 -> 0.9329107015 | BO30: =SUM(BO11:BO18) -> 30704791.43
A31: =A30+1% -> 0.02
A32: =A31+1% -> 0.03
A33: 0.04
A34: 0.05
A35: 0.06
A36: 0.07
A37: 0.08
A38: 0.09
A39: 0.1
A40: 0.11
A41: 0.12
A42: 0.13
A43: 0.14
A44: 0.15
A45: 0.16 | S45: Totais
A46: 0.17 | F46: Projeção Inicial | G46: =F9 -> 7875271.593 | H46: =K9 -> 4902246.934 | I46: =P9 -> 4259223.911 | J46: =U9 -> 4183862.244 | K46: =Z9 -> 5119072.395 | L46: =AE9 -> 3746388.161 | M46: =AJ9 -> 3593830.741 | N46: =AO9 -> 3825418.159 | O46: =AT9 -> 3273640.74 | P46: =AY9 -> 3655004.475 | Q46: =BD9 -> 3057334.839 | R46: =BI9 -> 2939555.355 | S46: =SUM(G46:R46) -> 50430849.55 | T46: Projeção Inicial | U46: =F19 -> 7875271.593 | V46: =K19 -> 12777518.53 | W46: =P19 -> 17036742.44 | X46: =U19 -> 21220604.68 | Y46: =Z19 -> 26339677.08 | Z46: =AE19 -> 30086065.24 | AA46: =AJ19 -> 33679895.98 | AB46: =AO19 -> 37505314.14 | AC46: =AT19 -> 40778954.88 | AD46: =AY19 -> 44433959.35 | AE46: =BD19 -> 47491294.19 | AF46: =BI19 -> 50430849.55
A47: 0.18 | F47: Nova Projeção | G47: =H9 -> 6650003.62 | H47: =M9 -> 6116133.36 | I47: =R9 -> 4510040.39 | J47: =W9 -> 860635.568 | K47: =AB9 -> 1050037.514 | L47: =AG9 -> 773808.2716 | M47: =AL9 -> 1169508.464 | N47: =AQ9 -> 1554817.542 | O47: =AV9 -> 1603991.595 | P47: =BA9 -> 1857777.184 | Q47: =BF9 -> 2197920.532 | R47: =BK9 -> 2360117.385 | S47: =SUM(G47:R47) -> 30704791.43 | T47: Nova Projeção | U47: =H19 -> 6650003.62 | V47: =M19 -> 12766136.98 | W47: =R19 -> 17276177.37 | X47: =W19 -> 18136812.94 | Y47: =AB19 -> 19186850.45 | Z47: =AG19 -> 19960658.72 | AA47: =AL19 -> 21130167.19 | AB47: =AQ19 -> 22684984.73 | AC47: =AV19 -> 24288976.32 | AD47: =BA19 -> 26146753.51 | AE47: =BF19 -> 28344674.04 | AF47: =BK19 -> 30704791.43
A48: 0.19 | F48: Real mês/Plano I | G48: =(G50-G46)/G46 -> -0.1555842181 | H48: =(H50-H46)/H46 -> 0.2476183763 | I48: 0.05888783598 | J48: -0.4540777619 | K48: -0.5559894792 | L48: -0.1405381712 | M48: 0.157131209 | N48: 0.1090328649 | O48: 0.05757569777 | P48: 0.006914808278 | Q48: 0.07670996897 | R48: 0.07469543138 | S48: -0.06708929846 | U48: =(U47-U46)/U46 -> -0.1555842181 | V48: =(V47-V46)/V46 -> -0.0008907478774 | W48: 0.01405403248 | X48: -0.1453206349 | Y48: -0.2715609081 | Z48: -0.3365480476 | AA48: -0.3726178014 | AB48: -0.395152787 | AC48: -0.4043747223 | AD48: -0.4115592243 | AE48: -0.4031606314 | AF48: -0.3911506211
A49: 0.2 | F49: Real mês/Nova | G49: =(G50-G47)/G47 -> 0 | H49: =(H50-H47)/H47 -> 0 | I49: 0 | J49: =(J50-J47)/J47 -> 1.653926383 | K49: =(K50-K47)/K47 -> 1.164610283 | L49: 3.16107935 | M49: 2.555796165 | N49: 1.728625286 | O49: 1.158442039 | P49: 0.9810115888 | Q49: 0.4977169794 | R49: 0.3385464341 | S49: 0.5322520377
A50: 0.21 | F50: Arrecadação | G50: =J9 -> 6650003.62 | H50: =O9 -> 6116133.36 | I50: =T9 -> 4510040.39 | J50: =Y9 -> 2284063.44 | K50: =AD9 -> 2272922 | L50: =AI9 -> 3219877.62 | M50: =AN9 -> 4158533.71 | N50: =AS9 -> 4242514.46 | O50: =AX9 -> 3462122.89 | P50: =BC9 -> 3680278.13 | Q50: =BH9 -> 3291862.9 | R50: =BM9 -> 3159126.71 | S50: =SUM(G50:R50) -> 47047479.23
A51: 0.22 | F51: Acumulado | G51: =J19 -> 6650003.62 | H51: =O19 -> 12766136.98 | I51: =T19 -> 17276177.37 | J51: =Y19 -> 19560240.81 | K51: =AD19 -> 21833162.81 | L51: =AI19 -> 25053040.43 | M51: =AN19 -> 29211574.14 | N51: =AS19 -> 33454088.6 | O51: =AX19 -> 36916211.49 | P51: =BC19 -> 40596489.62 | Q51: =BH19 -> 43888352.52 | R51: =BM19 -> 47047479.23 | S51: =R51 -> 47047479.23 | T51: =F51 -> Acumulado | U51: =G51 -> 6650003.62 | V51: =H51 -> 12766136.98 | W51: 17276177.37 | X51: 19560240.81 | Y51: 21833162.81 | Z51: 25053040.43 | AA51: 29211574.14 | AB51: 33454088.6 | AC51: 36916211.49 | AD51: 40596489.62 | AE51: 43888352.52 | AF51: 47047479.23
A52: 0.23 | F52: Real Acumulado 20/Plano I | G52: =K30 -> 0.8444157819 | H52: =P30 -> 0.9991092521 | I52: =U30 -> 1.014054032 | J52: =Z30 -> 0.9217569953 | K52: =AE30 -> 0.8289077632 | L52: =AJ30 -> 0.8327124279 | M52: =AO30 -> 0.8673297019 | N52: =AT30 -> 0.8919826262 | O52: =AY30 -> 0.9052760572 | P52: =BD30 -> 0.9136365566 | Q52: =BI30 -> 0.9241346918 | R52: =BN30 -> 0.9329107015 | S52: =S51/S46 -> 0.9329107015 | T52: Real Acumulado 20/Plano I | U52: =(U51-U47)/U47 -> 0 | V52: =(V51-V47)/V47 -> 0 | W52: =(W51-W47)/W47 -> 0 | X52: =(X51-X47)/X47 -> 0.07848280053 | Y52: 0.1379232284 | Z52: 0.2551209245 | AA52: 0.3824582589 | AB52: 0.4747238757 | AC52: 0.5198751482 | AD52: 0.5526397802 | AE52: 0.5483809219 | AF52: 0.5322520377 | AG52: =AG51/AG46 -> 
A53: 0.24 | F53: Real20mês/Plano Total | G53: =G51/$S$46 -> 0.1318638032 | H53: =H51/$S$46 -> 0.2531414223 | I53: =I51/$S$46 -> 0.3425716109 | J53: 0.3878626076 | K53: 0.4329326792 | L53: 0.4967800593 | M53: 0.5792401755 | N53: 0.663365557 | O53: 0.7320164507 | P53: 0.8049931735 | Q53: 0.8702679593 | R53: 0.9329107015 | S53: 0.9329107015 | T53: Real20mês/Nova Total | U53: =G51/$S$47 -> 0.2165786938 | V53: =H51/$S$47 -> 0.4157701905 | W53: 0.5626541191 | X53: 0.6370419697 | Y53: 0.7110669637 | Z53: 0.8159326042 | AA53: 0.9513685905 | AB53: 1.089539679 | AC53: 1.202294814 | AD53: 1.322154873 | AE53: 1.429364945 | AF53: 1.532252038
A54: 0.25 | F54: Real20mês/Plano RRT | G54: =J20/BN11 -> 0.06322521431 | H54: =O20/BN11 -> 0.1314607432 | I54: =T20/BN11 -> 0.2030270118 | J54: =Y20/BN11 -> 0.239341558 | K54: =AD20/BN11 -> 0.2827081224 | L54: =AI20/BN11 -> 0.3441203774 | M54: =AN20/BN11 -> 0.4207454821 | N54: =AS20/BN11 -> 0.501347129 | O54: =AX20/BN11 -> 0.5836434177 | P54: =BC20/BN11 -> 0.6743558214 | Q54: =BH20/BN11 -> 0.7524037387 | R54: =BM20/BN11 -> 0.827677338 | S54: =R54 -> 0.827677338 | T54: Real20mês/Nova RRT | U54: =J20/$BO$11 -> 0.1205623657 | V54: =O20/$BO$11 -> 0.250678758 | W54: =T20/$BO$11 -> 0.3871464432 | X54: =Y20/$BO$11 -> 0.4563936201 | Y54: =AD20/$BO$11 -> 0.5390880903 | Z54: =AI20/$BO$11 -> 0.6561933754 | AA54: =AN20/$BO$11 -> 0.8023076115 | AB54: =AS20/$BO$11 -> 0.9560046031 | AC54: =AX20/$BO$11 -> 1.112933059 | AD54: =BC20/$BO$11 -> 1.285909965 | AE54: =BH20/$BO$11 -> 1.434737323 | AF54: =BM20/$BO$11 -> 1.578274411
A55: 0.26 | F55: Real20mês/Plano PF | G55: =J21/BN12 -> 0.2458989092 | H55: =O21/BN12 -> 0.4593644012 | I55: 0.5723230275 | J55: 0.6240266516 | K55: 0.6674454277 | L55: 0.7334038486 | M55: 0.8272787175 | N55: 0.9188242804 | O55: 0.9563799183 | P55: 0.9925880455 | Q55: 1.022290235 | R55: 1.050709524 | S55: =R55 -> 1.050709524 | T55: Real20mês/Nova PF | U55: =J21/$BO$12 -> 0.3415694801 | V55: =O21/$BO$12 -> 0.6380868471 | W55: =T21/$BO$12 -> 0.7949936807 | X55: =Y21/$BO$12 -> 0.8668133568 | Y55: =AD21/$BO$12 -> 0.9271248434 | Z55: =AI21/$BO$12 -> 1.018745354 | AA55: =AN21/$BO$12 -> 1.149143615 | AB55: =AS21/$BO$12 -> 1.276306319 | AC55: =AX21/$BO$12 -> 1.328473528 | AD55: =BC21/$BO$12 -> 1.378768957 | AE55: =BH21/$BO$12 -> 1.420027219 | AF55: =BM21/$BO$12 -> 1.459503448
A56: 0.27 | F56: Real20mês/Plano AF | G56: 0.04821960737 | H56: 0.0897764405 | I56: 0.1347900826 | J56: 0.1806113123 | K56: 0.2139150303 | L56: 0.2415975172 | M56: 0.2650485663 | N56: 0.2853792723 | O56: 0.3038070952 | P56: 0.3242511002 | Q56: 0.3435860562 | R56: 0.3673485461 | S56: 0.3673485461 | T56: Real20mês/Nova AF | U56: =J22/$BO$13 -> 0.1406071775 | V56: =O22/$BO$13 -> 0.2617858708 | W56: =T22/$BO$13 -> 0.3930445331 | X56: =Y22/$BO$13 -> 0.526658101 | Y56: =AD22/$BO$13 -> 0.6237709154 | Z56: =AI22/$BO$13 -> 0.7044923598 | AA56: =AN22/$BO$13 -> 0.7728750364 | AB56: =AS22/$BO$13 -> 0.8321588702 | AC56: =AX22/$BO$13 -> 0.8858939442 | AD56: =BC22/$BO$13 -> 0.945508155 | AE56: =BH22/$BO$13 -> 1.001888406 | AF56: =BM22/$BO$13 -> 1.071179237
A57: 0.28 | F57: Real20mês/Plano PJ | G57: 0.2602151123 | H57: 0.5756610278 | I57: 0.7251027204 | J57: 0.7896928593 | K57: 0.8388947567 | L57: 0.9086611706 | M57: 0.9790994169 | N57: 1.074267061 | O57: 1.110723496 | P57: 1.140352197 | Q57: 1.166994734 | R57: 1.196010104 | S57: 1.196010104 | T57: Real20mês/Nova PJ | U57: =J23/$BO$14 -> 0.295403925 | V57: =O23/$BO$14 -> 0.6535074982 | W57: =T23/$BO$14 -> 0.8231581467 | X57: =Y23/$BO$14 -> 0.8964827909 | Y57: =AD23/$BO$14 -> 0.9523382464 | Z57: =AI23/$BO$14 -> 1.031539152 | AA57: =AN23/$BO$14 -> 1.111502741 | AB57: =AS23/$BO$14 -> 1.219539878 | AC57: =AX23/$BO$14 -> 1.260926306 | AD57: =BC23/$BO$14 -> 1.294561687 | AE57: =BH23/$BO$14 -> 1.324807087 | AF57: =BM23/$BO$14 -> 1.357746197
A58: 0.29 | F58: Real20mês/Plano PFaa | G58: 0.2438772291 | H58: 0.4334034289 | I58: 0.6029716821 | J58: 0.7022147027 | K58: 0.7879262822 | L58: 0.9011352765 | M58: 1.045336596 | N58: 1.180015914 | O58: 1.32107697 | P58: 1.456840172 | Q58: 1.56777311 | R58: 1.698948657 | S58: 1.698948657 | T58: Real20mês/Nova PFaa | U58: =J24/$BO$15 -> 0.2580051988 | V58: =O24/$BO$15 -> 0.458510777 | W58: =T24/$BO$15 -> 0.6379022316 | X58: =Y24/$BO$15 -> 0.7428944662 | Y58: =AD24/$BO$15 -> 0.8335713744 | Z58: =AI24/$BO$15 -> 0.9533386408 | AA58: =AN24/$BO$15 -> 1.105893638 | AB58: =AS24/$BO$15 -> 1.248375019 | AC58: =AX24/$BO$15 -> 1.397607835 | AD58: =BC24/$BO$15 -> 1.54123589 | AE58: =BH24/$BO$15 -> 1.658595247 | AF58: =BM24/$BO$15 -> 1.79736988
A59: 0.3 | F59: Real20mês/Plano M&J | G59: 0.1230441657 | H59: 0.2202780216 | I59: 0.3096865424 | J59: 0.3607251036 | K59: 0.4040189718 | L59: 0.4654447088 | M59: 0.5553917653 | N59: 0.6471855399 | O59: 0.7472873401 | P59: 0.8573917209 | Q59: 0.9654815302 | R59: 1.075047645 | S59: 1.075047645 | T59: Real20mês/Nova M&J | U59: =J25/$BO$16 -> 0.1766751793 | V59: =O25/$BO$16 -> 0.3162901608 | W59: =T25/$BO$16 -> 0.4446689942 | X59: =Y25/$BO$16 -> 0.5179536307 | Y59: =AD25/$BO$16 -> 0.5801179103 | Z59: =AI25/$BO$16 -> 0.66831716 | AA59: =AN25/$BO$16 -> 0.7974692595 | AB59: =AS25/$BO$16 -> 0.9292730024 | AC59: =AX25/$BO$16 -> 1.073005973 | AD59: =BC25/$BO$16 -> 1.23110133 | AE59: =BH25/$BO$16 -> 1.386304027 | AF59: =BM25/$BO$16 -> 1.543626505
A60: 0.31 | F60: Real20mês/Plano PJaa | G60: 0.2658680654 | H60: 0.4761603795 | I60: 0.6730088742 | J60: 0.7676456053 | K60: 0.8651437528 | L60: 1.021318869 | M60: 1.232379684 | N60: 1.426170606 | O60: 1.580711025 | P60: 1.746847866 | Q60: 1.898933894 | R60: 2.100871393 | S60: 2.100871393 | T60: Real20mês/Nova PJaa | U60: =J26/$BO$17 -> 0.2639076795 | V60: =O26/$BO$17 -> 0.4726493971 | W60: =T26/$BO$17 -> 0.6680464237 | X60: =Y26/$BO$17 -> 0.7619853481 | Y60: =AD26/$BO$17 -> 0.8587645902 | Z60: =AI26/$BO$17 -> 1.013788145 | AA60: =AN26/$BO$17 -> 1.223292696 | AB60: =AS26/$BO$17 -> 1.415654695 | AC60: =AX26/$BO$17 -> 1.569055606 | AD60: =BC26/$BO$17 -> 1.733967433 | AE60: =BH26/$BO$17 -> 1.88493205 | AF60: =BM26/$BO$17 -> 2.085380557
A61: 0.32 | F61: Real20mês/Plano DR | G61: 0.2525662025 | H61: 0.2827173086 | I61: 0.3103882776 | J61: 0.3194132447 | K61: 0.3310236272 | L61: 0.3463833432 | M61: 0.3661379035 | N61: 0.386009079 | O61: 0.4004461756 | P61: 0.4170451739 | Q61: 0.7046490884 | R61: 0.7549913636 | S61: 0.7549913636 | T61: Real20mês/Nova DR | U61: =J27/$BO$18 -> 0.3964257501 | V61: =O27/$BO$18 -> 0.4437506681 | W61: =T27/$BO$18 -> 0.4871827844 | X61: =Y27/$BO$18 -> 0.5013482954 | Y61: =AD27/$BO$18 -> 0.5195718526 | Z61: =AI27/$BO$18 -> 0.5436803313 | AA61: =AN27/$BO$18 -> 0.5746869201 | AB61: =AS27/$BO$18 -> 0.6058765471 | AC61: =AX27/$BO$18 -> 0.6285368903 | AD61: =BC27/$BO$18 -> 0.6545905361 | AE61: =BH27/$BO$18 -> 1.106011179 | AF61: =BM27/$BO$18 -> 1.185027983
A62: 0.33 | F62: JAN | G62: JAN | H62: JAN | I62: JAN | J62: JAN | K62: FEV | L62: FEV | M62: FEV | N62: FEV | O62: FEV | P62: MAR | Q62: MAR | R62: MAR | S62: MAR | T62: MAR | U62: ABR | V62: ABR | W62: ABR | X62: ABR | Y62: ABR | Z62: MAI | AA62: MAI | AB62: MAI | AC62: MAI | AD62: MAI | AE62: JUN | AF62: JUN | AG62: JUN | AH62: JUN | AI62: JUN | AJ62: JUL | AK62: JUL | AL62: JUL | AM62: JUL | AN62: JUL | AO62: AGO | AP62: AGO | AQ62: AGO | AR62: AGO | AS62: AGO | AT62: SET | AU62: SET | AV62: SET | AW62: SET | AX62: SET | AY62: OUT | AZ62: OUT | BA62: OUT | BB62: OUT | BC62: OUT | BD62: NOV | BE62: NOV | BF62: NOV | BG62: NOV | BH62: NOV | BI62: DEZ | BJ62: DEZ | BK62: DEZ | BL62: DEZ | BM62: DEZ
A63: 0.34 | F63: 4Q JAN 2020 | G63: Nova Projeção JAN % | H63: Nova Projeção JAN R$ | I63: Execuçãox Programação Inicial | J63: Execução JAN | K63: 4Q FEV 2020 | L63: Nova Projeção FEV % | M63: Nova Projeção FEV R$ | N63: Execuçãox Programação Inicial | O63: ExecuçãoFEV | P63: 4Q MAR 2020 | Q63: Nova Projeção MAR % | R63: Nova Projeção MAR R$ | S63: Execuçãox Programação Inicial | T63: ExecuçãoMAR | U63: 4Q ABR 2020 | V63: Nova Projeção ABR % | W63: Nova Projeção ABR R$ | X63: Execuçãox Programação Inicial | Y63: ExecuçãoABR | Z63: 4Q MAI 2020 | AA63: Nova Projeção MAI % | AB63: Nova Projeção MAI R$ | AC63: Execuçãox Programação Inicial | AD63: Execução MAI | AE63: 4Q JUN 2020 | AF63: Nova Projeção JUN % | AG63: Nova Projeção JUN R$ | AH63: Execuçãox Programação Inicial | AI63: Execução JUN | AJ63: 4Q JUL 2020 | AK63: Nova Projeção JUL % | AL63: Nova Projeção JUL R$ | AM63: Execuçãox Programação Inicial | AN63: Execução JUL | AO63: 4Q AGO 2020 | AP63: Nova Projeção AGO % | AQ63: Nova Projeção AGO R$ | AR63: Execuçãox Programação Inicial | AS63: Execução AGO | AT63: 4Q SET 2020 | AU63: Nova Projeção SET % | AV63: Nova Projeção SET R$ | AW63: Execuçãox Programação Inicial | AX63: Execução SET | AY63: 4Q OUT 2020 | AZ63: Nova Projeção OUT % | BA63: Nova Projeção OUT R$ | BB63: Execuçãox Programação Inicial | BC63: Execução OUT | BD63: 4Q NOV 2020 | BE63: Nova Projeção NOV % | BF63: Nova Projeção NOV R$ | BG63: Execuçãox Programação Inicial | BH63: Execução NOV | BI63: 4Q DEZ 2020 | BJ63: Nova Projeção DEZ % | BK63: Nova Projeção DEZ R$ | BL63: Execuçãox Programação Inicial | BM63: Execução DEZ | BN63: Projeção Inicial 2020 | BO63: NOVA Projeção 2020
A64: 0.35 | D64: DESPESA | E64: ELEMENTO DE DESPESA | F64: Projeção Inicial | G64: =G63 -> Nova Projeção JAN % | H64: =H63 -> Nova Projeção JAN R$ | I64: =I63 -> Execuçãox Programação Inicial | J64: =J63 -> Execução JAN | K64: Projeção Inicial | L64: =L63 -> Nova Projeção FEV % | M64: =M63 -> Nova Projeção FEV R$ | N64: =N63 -> Execuçãox Programação Inicial | O64: =O63 -> ExecuçãoFEV | P64: Projeção Inicial | Q64: =Q63 -> Nova Projeção MAR % | R64: =R63 -> Nova Projeção MAR R$ | S64: =S63 -> Execuçãox Programação Inicial | T64: =T63 -> ExecuçãoMAR | U64: Projeção Inicial | V64: =V63 -> Nova Projeção ABR % | W64: =W63 -> Nova Projeção ABR R$ | X64: =X63 -> Execuçãox Programação Inicial | Y64: =Y63 -> ExecuçãoABR | Z64: Projeção Inicial | AA64: =AA63 -> Nova Projeção MAI % | AB64: =AB63 -> Nova Projeção MAI R$ | AC64: =AC63 -> Execuçãox Programação Inicial | AD64: =AD63 -> Execução MAI | AE64: Projeção Inicial | AF64: =AF63 -> Nova Projeção JUN % | AG64: =AG63 -> Nova Projeção JUN R$ | AH64: =AH63 -> Execuçãox Programação Inicial | AI64: =AI63 -> Execução JUN | AJ64: Projeção Inicial | AK64: =AK63 -> Nova Projeção JUL % | AL64: =AL63 -> Nova Projeção JUL R$ | AM64: =AM63 -> Execuçãox Programação Inicial | AN64: =AN63 -> Execução JUL | AO64: Projeção Inicial | AP64: =AP63 -> Nova Projeção AGO % | AQ64: =AQ63 -> Nova Projeção AGO R$ | AR64: =AR63 -> Execuçãox Programação Inicial | AS64: =AS63 -> Execução AGO | AT64: Projeção Inicial | AU64: =AU63 -> Nova Projeção SET % | AV64: =AV63 -> Nova Projeção SET R$ | AW64: =AW63 -> Execuçãox Programação Inicial | AX64: =AX63 -> Execução SET | AY64: Projeção Inicial | AZ64: =AZ63 -> Nova Projeção OUT % | BA64: =BA63 -> Nova Projeção OUT R$ | BB64: =BB63 -> Execuçãox Programação Inicial | BC64: =BC63 -> Execução OUT | BD64: Projeção Inicial | BE64: =BE63 -> Nova Projeção NOV % | BF64: =BF63 -> Nova Projeção NOV R$ | BG64: =BG63 -> Execuçãox Programação Inicial | BH64: =BH63 -> Execução NOV | BI64: Projeção Inicial | BJ64: =BJ63 -> Nova Projeção DEZ % | BK64: Nova Projeção DEZ R$ | BL64: Execuçãox Programação Inicial | BM64: Execução DEZ | BN64: Projeção Inicial 2020 | BO64: NOVA Projeção 2020 | BU64: Reformulação Despesa 2020 | BV64: Jan | BW64: Fev | BX64: Mar | BY64: Abr | BZ64: Mai | CA64: Jun | CB64: Jul | CC64: Ago | CD64: Set | CE64: Out | CF64: Nov | CG64: Dez
A65: 0.36 | E65: Total das despesas Correntes por mês projetado 1 e 2 | F65: =SUM(F66:F83) -> 4202570.827 | G65: - | H65: =J65 ->  | I65: =IFERROR(J65/F65,"") ->  | J65: =J66+J71+J72+J78+J79 ->  | K65: =SUM(K66:K83) -> 4202570.827 | L65: - | M65: =O65 ->  | N65: =IFERROR(O65/K65,"") ->  | O65: =O66+O71+O72+O78+O79 ->  | P65: =SUM(P66:P83) -> 4202570.827 | Q65: - | R65: =T65 ->  | S65: =IFERROR(T65/P65,"") ->  | T65: =T66+T71+T72+T78+T79 ->  | U65: =SUM(U66:U83) -> 4202570.827 | V65: =IFERROR(W65/U65,"") -> 0.6971021802 | W65: =SUM(W66:W83) -> 2929621.286 | X65: =IFERROR(Y65/U65,"") ->  | Y65: =Y66+Y71+Y72+Y78+Y79 ->  | Z65: =SUM(Z66:Z83) -> 4202570.827 | AA65: =IFERROR(AB65/Z65,"") -> 0.6971021802 | AB65: =SUM(AB66:AB83) -> 2929621.286 | AC65: =IFERROR(AD65/Z65,"") ->  | AD65: =AD66+AD71+AD72+AD78+AD79 ->  | AE65: =SUM(AE66:AE83) -> 4202570.827 | AF65: =IFERROR(AG65/AE65,"") -> 0.6971021802 | AG65: =SUM(AG66:AG83) -> 2929621.286 | AH65: =IFERROR(AI65/AE65,"") ->  | AI65: =AI66+AI71+AI72+AI78+AI79 ->  | AJ65: =SUM(AJ66:AJ83) -> 4202570.827 | AK65: =IFERROR(AL65/AJ65,"") -> 0.6971021802 | AL65: =SUM(AL66:AL83) -> 2929621.286 | AM65: =IFERROR(AN65/AJ65,"") ->  | AN65: =AN66+AN71+AN72+AN78+AN79 ->  | AO65: =SUM(AO66:AO83) -> 4202570.827 | AP65: =IFERROR(AQ65/AO65,"") -> 0.6971021802 | AQ65: =SUM(AQ66:AQ83) -> 2929621.286 | AR65: =IFERROR(AS65/AO65,"") ->  | AS65: =AS66+AS71+AS72+AS78+AS79 ->  | AT65: =SUM(AT66:AT83) -> 4202570.827 | AU65: =IFERROR(AV65/AT65,"") -> 0.6971021802 | AV65: =SUM(AV66:AV83) -> 2929621.286 | AW65: =IFERROR(AX65/AT65,"") ->  | AX65: =AX66+AX71+AX72+AX78+AX79 ->  | AY65: =SUM(AY66:AY83) -> 4202570.827 | AZ65: =IFERROR(BA65/AY65,"") -> 0.6971021802 | BA65: =SUM(BA66:BA83) -> 2929621.286 | BB65: =IFERROR(BC65/AY65,"") ->  | BC65: =BC66+BC71+BC72+BC78+BC79 ->  | BD65: =SUM(BD66:BD83) -> 4202570.827 | BE65: =IFERROR(BF65/BD65,"") -> 0.6971021802 | BF65: =SUM(BF66:BF83) -> 2929621.286 | BG65: =IFERROR(BH65/BD65,"") ->  | BH65: =BH66+BH71+BH72+BH78+BH79 ->  | BI65: =SUM(BI66:BI83) -> 4202570.827 | BJ65: =IFERROR(BK65/BI65,"") -> 0.705314693 | BK65: =SUM(BK66:BK83) -> 2964134.953 | BL65: =IFERROR(BM65/BI65,"") -> 0 | BN65: =SUM(BN66:BN83) -> 50430849.93 | BO65: =SUM(BO66:BO83) ->  | BP65: =(BO65-BN65)/BN65 ->  | BU65: =BU9 -> 40072219.9 | BV65: =$BU$65/12 -> 3339351.658 | BW65: =$BU$65/12 -> 3339351.658 | BX65: 3339351.658 | BY65: 3339351.658 | BZ65: 3339351.658 | CA65: 3339351.658 | CB65: 3339351.658 | CC65: 3339351.658 | CD65: 3339351.658 | CE65: 3339351.658 | CF65: 3339351.658 | CG65: 3339351.658
A66: 0.37 | E66: Pessoal | F66: =$BN66/12 -> 2044176.183 | H66: =J66 ->  | I66: =IFERROR(J66/F66,"") ->  | J66: =SUM(J67:J70) ->  | K66: =$BN66/12 -> 2044176.183 | M66: =O66 ->  | N66: =IFERROR(O66/K66,"") ->  | O66: =SUM(O67:O70) ->  | P66: =$BN66/12 -> 2044176.183 | R66: =T66 ->  | S66: =IFERROR(T66/P66,"") ->  | T66: =SUM(T67:T70) ->  | U66: =$BN66/12 -> 2044176.183 | V66: 1 | W66: =IF(V66="",U66,U66*V66) -> 2044176.183 | X66: =IFERROR(Y66/U66,"") ->  | Y66: =SUM(Y67:Y70) ->  | Z66: =$BN66/12 -> 2044176.183 | AA66: 1 | AB66: =IF(AA66="",Z66,Z66*AA66) -> 2044176.183 | AC66: =IFERROR(AD66/Z66,"") ->  | AD66: =SUM(AD67:AD70) ->  | AE66: =$BN66/12 -> 2044176.183 | AF66: 1 | AG66: =IF(AF66="",AE66,AE66*AF66) -> 2044176.183 | AH66: =IFERROR(AI66/AE66,"") ->  | AI66: =SUM(AI67:AI70) ->  | AJ66: =$BN66/12 -> 2044176.183 | AK66: 1 | AL66: =IF(AK66="",AJ66,AJ66*AK66) -> 2044176.183 | AM66: =IFERROR(AN66/AJ66,"") ->  | AN66: =SUM(AN67:AN70) ->  | AO66: =$BN66/12 -> 2044176.183 | AP66: 1 | AQ66: =IF(AP66="",AO66,AO66*AP66) -> 2044176.183 | AR66: =IFERROR(AS66/AO66,"") ->  | AS66: =SUM(AS67:AS70) ->  | AT66: =$BN66/12 -> 2044176.183 | AU66: 1 | AV66: =IF(AU66="",AT66,AT66*AU66) -> 2044176.183 | AW66: =IFERROR(AX66/AT66,"") ->  | AX66: =SUM(AX67:AX70) ->  | AY66: =$BN66/12 -> 2044176.183 | AZ66: 1 | BA66: =IF(AZ66="",AY66,AY66*AZ66) -> 2044176.183 | BB66: =IFERROR(BC66/AY66,"") ->  | BC66: =SUM(BC67:BC70) ->  | BD66: =$BN66/12 -> 2044176.183 | BE66: 1 | BF66: =IF(BE66="",BD66,BD66*BE66) -> 2044176.183 | BG66: =IFERROR(BH66/BD66,"") ->  | BH66: =SUM(BH67:BH70) ->  | BI66: =$BN66/12 -> 2044176.183 | BJ66: 1 | BK66: =IF(BJ66="",BI66,BI66*BJ66) -> 2044176.183 | BL66: =IFERROR(BM66/BI66,"") -> 0 | BN66: 24530114.19 | BO66: =H66+M66+R66+W66+AB66+AG66+AL66+AQ66+AV66+BA66+BF66+BK66 ->  | BQ66: =BN66-BO66 ->  | BV66: =BV65 -> 3339351.658 | BW66: =SUM(BV65:BW65) -> 6678703.316 | BX66: =SUM(BV65:BX65) -> 10018054.97 | BY66: =SUM(BV65:BY65) -> 13357406.63 | BZ66: =SUM(BV65:BZ65) -> 16696758.29 | CA66: =SUM(BV65:CA65) -> 20036109.95 | CB66: =SUM(BV65:CB65) -> 23375461.61 | CC66: =SUM(BV65:CC65) -> 26714813.26 | CD66: =SUM(BV65:CD65) -> 30054164.92 | CE66: =SUM(BV65:CE65) -> 33393516.58 | CF66: =SUM(BV65:CF65) -> 36732868.24 | CG66: =SUM(BV65:CG65) -> 40072219.9
A67: 0.38 | B67: 6.2.2.1.1.01.01.01.001 | E67: Remuneração Pessoal | H67: =J67 ->  | J67: =VLOOKUP($B67,#REF!,#REF!,0) ->  | M67: =O67 ->  | N67: =IFERROR(O67/K67,"") ->  | O67: =VLOOKUP($B67,#REF!,#REF!,0) ->  | R67: =T67 ->  | S67: =IFERROR(T67/P67,"") ->  | T67: =VLOOKUP($B67,#REF!,#REF!,0) ->  | W67: =IF(V67="",U67,U67*V67) -> 0 | X67: =IFERROR(Y67/U67,"") ->  | Y67: =VLOOKUP($B67,#REF!,#REF!,0) ->  | AB67: =IF(AA67="",Z67,Z67*AA67) -> 0 | AC67: =IFERROR(AD67/Z67,"") ->  | AD67: =VLOOKUP($B67,#REF!,#REF!,0) ->  | AH67: =IFERROR(AI67/AE67,"") ->  | AI67: =VLOOKUP($B67,#REF!,#REF!,0) ->  | AM67: =IFERROR(AN67/AJ67,"") ->  | AN67: =VLOOKUP($B67,#REF!,#REF!,0) ->  | AR67: =IFERROR(AS67/AO67,"") ->  | AS67: =VLOOKUP($B67,#REF!,#REF!,0) ->  | AW67: =IFERROR(AX67/AT67,"") ->  | AX67: =VLOOKUP($B67,#REF!,#REF!,0) ->  | BB67: =IFERROR(BC67/AY67,"") ->  | BC67: =VLOOKUP($B67,#REF!,#REF!,0) ->  | BG67: =IFERROR(BH67/BD67,"") ->  | BH67: =VLOOKUP($B67,#REF!,#REF!,0) -> 
A68: 0.39 | B68: 6.2.2.1.1.01.01.01.002 | E68: Encargos Sociais | J68: =VLOOKUP($B68,#REF!,#REF!,0) ->  | O68: =VLOOKUP($B68,#REF!,#REF!,0) ->  | T68: =VLOOKUP($B68,#REF!,#REF!,0) ->  | W68: 0 | Y68: =VLOOKUP($B68,#REF!,#REF!,0) ->  | AB68: 0 | AD68: =VLOOKUP($B68,#REF!,#REF!,0) ->  | AI68: =VLOOKUP($B68,#REF!,#REF!,0) ->  | AN68: =VLOOKUP($B68,#REF!,#REF!,0) ->  | AS68: =VLOOKUP($B68,#REF!,#REF!,0) ->  | AX68: =VLOOKUP($B68,#REF!,#REF!,0) ->  | BC68: =VLOOKUP($B68,#REF!,#REF!,0) ->  | BH68: =VLOOKUP($B68,#REF!,#REF!,0) -> 
A69: 0.4 | B69: 6.2.2.1.1.01.01.01.003 | E69: Benefícios a Pessoal | J69: =VLOOKUP($B69,#REF!,#REF!,0) ->  | O69: =VLOOKUP($B69,#REF!,#REF!,0) ->  | T69: =VLOOKUP($B69,#REF!,#REF!,0) ->  | W69: 0 | Y69: =VLOOKUP($B69,#REF!,#REF!,0) ->  | AB69: 0 | AD69: =VLOOKUP($B69,#REF!,#REF!,0) ->  | AI69: =VLOOKUP($B69,#REF!,#REF!,0) ->  | AN69: =VLOOKUP($B69,#REF!,#REF!,0) ->  | AS69: =VLOOKUP($B69,#REF!,#REF!,0) ->  | AX69: =VLOOKUP($B69,#REF!,#REF!,0) ->  | BC69: =VLOOKUP($B69,#REF!,#REF!,0) ->  | BH69: =VLOOKUP($B69,#REF!,#REF!,0) -> 
A70: 0.41 | B70: 6.2.2.1.1.01.01.02 | E70: Diárias de funcionários | F70: =$BN70/12 -> 45286.02564 | H70: =J70 ->  | J70: =VLOOKUP($B70,#REF!,#REF!,0) ->  | K70: =$BN70/12 -> 45286.02564 | M70: =O70 ->  | O70: =VLOOKUP($B70,#REF!,#REF!,0) ->  | P70: =$BN70/12 -> 45286.02564 | R70: =T70 ->  | T70: =VLOOKUP($B70,#REF!,#REF!,0) ->  | U70: =$BN70/12 -> 45286.02564 | V70: 0.01 | W70: 452.8602564 | Y70: =VLOOKUP($B70,#REF!,#REF!,0) ->  | Z70: =$BN70/12 -> 45286.02564 | AA70: 0.01 | AB70: 452.8602564 | AD70: =VLOOKUP($B70,#REF!,#REF!,0) ->  | AE70: =$BN70/12 -> 45286.02564 | AF70: 0.01 | AG70: 452.8602564 | AI70: =VLOOKUP($B70,#REF!,#REF!,0) ->  | AJ70: =$BN70/12 -> 45286.02564 | AK70: 0.01 | AL70: 452.8602564 | AN70: =VLOOKUP($B70,#REF!,#REF!,0) ->  | AO70: =$BN70/12 -> 45286.02564 | AP70: 0.01 | AQ70: 452.8602564 | AS70: =VLOOKUP($B70,#REF!,#REF!,0) ->  | AT70: =$BN70/12 -> 45286.02564 | AU70: 0.01 | AV70: 452.8602564 | AX70: =VLOOKUP($B70,#REF!,#REF!,0) ->  | AY70: =$BN70/12 -> 45286.02564 | AZ70: 0.01 | BA70: 452.8602564 | BC70: =VLOOKUP($B70,#REF!,#REF!,0) ->  | BD70: =$BN70/12 -> 45286.02564 | BE70: 0.01 | BF70: 452.8602564 | BH70: =VLOOKUP($B70,#REF!,#REF!,0) ->  | BI70: =$BN70/12 -> 45286.02564 | BJ70: 0.01 | BK70: 452.8602564 | BL70: 0 | BN70: 543432.3077 | BO70: =H70+M70+R70+W70+AB70+AG70+AL70+AQ70+AV70+BA70+BF70+BK70 ->  | BQ70: =BN70-BO70 -> 
A71: 0.42 | B71: 6.2.2.1.1.01.02.01 | E71: Material de consumo | F71: 32500 | J71: =VLOOKUP($B71,#REF!,#REF!,0) ->  | K71: 32500 | O71: =VLOOKUP($B71,#REF!,#REF!,0) ->  | P71: 32500 | T71: =VLOOKUP($B71,#REF!,#REF!,0) ->  | U71: 32500 | V71: 0.1 | W71: 3250 | Y71: =VLOOKUP($B71,#REF!,#REF!,0) ->  | Z71: 32500 | AA71: 0.1 | AB71: =IF(AA71="",Z71,Z71*AA71) -> 3250 | AD71: =VLOOKUP($B71,#REF!,#REF!,0) ->  | AE71: 32500 | AF71: 0.1 | AG71: =IF(AF71="",AE71,AE71*AF71) -> 3250 | AI71: =VLOOKUP($B71,#REF!,#REF!,0) ->  | AJ71: 32500 | AK71: 0.1 | AL71: =IF(AK71="",AJ71,AJ71*AK71) -> 3250 | AN71: =VLOOKUP($B71,#REF!,#REF!,0) ->  | AO71: 32500 | AP71: 0.1 | AQ71: =IF(AP71="",AO71,AO71*AP71) -> 3250 | AS71: =VLOOKUP($B71,#REF!,#REF!,0) ->  | AT71: 32500 | AU71: 0.1 | AV71: =IF(AU71="",AT71,AT71*AU71) -> 3250 | AX71: =VLOOKUP($B71,#REF!,#REF!,0) ->  | AY71: 32500 | AZ71: 0.1 | BA71: =IF(AZ71="",AY71,AY71*AZ71) -> 3250 | BC71: =VLOOKUP($B71,#REF!,#REF!,0) ->  | BD71: 32500 | BE71: 0.1 | BF71: =IF(BE71="",BD71,BD71*BE71) -> 3250 | BH71: =VLOOKUP($B71,#REF!,#REF!,0) ->  | BI71: 32500 | BJ71: 0.1 | BK71: =IF(BJ71="",BI71,BI71*BJ71) -> 3250 | BL71: 0 | BN71: 390000
A72: 0.43 | E72: Serviços de Terceiros - PJ e PF | J72: =SUM(J73:J77) ->  | O72: =SUM(O73:O77) ->  | T72: =SUM(T73:T77) ->  | Y72: =SUM(Y73:Y77) ->  | AD72: =SUM(AD73:AD77) ->  | AI72: =SUM(AI73:AI77) ->  | AN72: =SUM(AN73:AN77) ->  | AS72: =SUM(AS73:AS77) ->  | AX72: =SUM(AX73:AX77) ->  | BC72: =SUM(BC73:BC77) ->  | BH72: =SUM(BH73:BH77) -> 
A73: 0.44 | B73: Totd | E73: Diárias e Deslocamento - Conselh./Convidados | F73: 431380.3558 | H73: =J73 ->  | I73: =IFERROR(J73/F73,"") ->  | J73: =VLOOKUP($B73,#REF!,#REF!,0) ->  | K73: 431380.3558 | M73: =O73 ->  | N73: =IFERROR(O73/K73,"") ->  | O73: =VLOOKUP($B73,#REF!,#REF!,0) ->  | P73: 431380.3558 | R73: =T73 ->  | S73: =IFERROR(T73/P73,"") ->  | T73: =VLOOKUP($B73,#REF!,#REF!,0) ->  | U73: 431380.3558 | V73: 0.01 | W73: =IF(V73="",U73,U73*V73) -> 4313.803558 | X73: =IFERROR(Y73/U73,"") ->  | Y73: =VLOOKUP($B73,#REF!,#REF!,0) ->  | Z73: 431380.3558 | AA73: 0.01 | AB73: =IF(AA73="",Z73,Z73*AA73) -> 4313.803558 | AC73: =IFERROR(AD73/Z73,"") ->  | AD73: =VLOOKUP($B73,#REF!,#REF!,0) ->  | AE73: 431380.3558 | AF73: 0.01 | AG73: =IF(AF73="",AE73,AE73*AF73) -> 4313.803558 | AH73: =IFERROR(AI73/AE73,"") ->  | AI73: =VLOOKUP($B73,#REF!,#REF!,0) ->  | AJ73: 431380.3558 | AK73: 0.01 | AL73: =IF(AK73="",AJ73,AJ73*AK73) -> 4313.803558 | AM73: =IFERROR(AN73/AJ73,"") ->  | AN73: =VLOOKUP($B73,#REF!,#REF!,0) ->  | AO73: 431380.3558 | AP73: 0.01 | AQ73: =IF(AP73="",AO73,AO73*AP73) -> 4313.803558 | AR73: =IFERROR(AS73/AO73,"") ->  | AS73: =VLOOKUP($B73,#REF!,#REF!,0) ->  | AT73: 431380.3558 | AU73: 0.01 | AV73: =IF(AU73="",AT73,AT73*AU73) -> 4313.803558 | AW73: =IFERROR(AX73/AT73,"") ->  | AX73: =VLOOKUP($B73,#REF!,#REF!,0) ->  | AY73: 431380.3558 | AZ73: 0.01 | BA73: =IF(AZ73="",AY73,AY73*AZ73) -> 4313.803558 | BB73: =IFERROR(BC73/AY73,"") ->  | BC73: =VLOOKUP($B73,#REF!,#REF!,0) ->  | BD73: 431380.3558 | BE73: 0.01 | BF73: =IF(BE73="",BD73,BD73*BE73) -> 4313.803558 | BG73: =IFERROR(BH73/BD73,"") ->  | BH73: =VLOOKUP($B73,#REF!,#REF!,0) ->  | BI73: 431380.3558 | BJ73: 0.01 | BK73: =IF(BJ73="",BI73,BI73*BJ73) -> 4313.803558 | BL73: =IFERROR(BM73/BI73,"") -> 0 | BN73: 5176564.269 | BO73: =H73+M73+R73+W73+AB73+AG73+AL73+AQ73+AV73+BA73+BF73+BK73 ->  | BP73: =(BO73-BN73)/BN73 ->  | BQ73: =BN73-BO73 -> 
A74: 0.45 | B74: 6.2.2.1.1.01.04.06.003 | E74: Passagens | F74: 253546.3397 | J74: =VLOOKUP($B74,#REF!,#REF!,0)-J79 ->  | K74: 253546.3397 | O74: =VLOOKUP($B74,#REF!,#REF!,0) ->  | P74: 253546.3397 | T74: =VLOOKUP($B74,#REF!,#REF!,0) ->  | U74: 253546.3397 | V74: 0.01 | W74: 2535.463397 | Y74: =VLOOKUP($B74,#REF!,#REF!,0) ->  | Z74: 253546.3397 | AA74: 0.01 | AB74: =IF(AA74="",Z74,Z74*AA74) -> 2535.463397 | AD74: =VLOOKUP($B74,#REF!,#REF!,0) ->  | AE74: 253546.3397 | AF74: 0.01 | AG74: =IF(AF74="",AE74,AE74*AF74) -> 2535.463397 | AI74: =VLOOKUP($B74,#REF!,#REF!,0) ->  | AJ74: 253546.3397 | AK74: 0.01 | AL74: =IF(AK74="",AJ74,AJ74*AK74) -> 2535.463397 | AN74: =VLOOKUP($B74,#REF!,#REF!,0) ->  | AO74: 253546.3397 | AP74: 0.01 | AQ74: =IF(AP74="",AO74,AO74*AP74) -> 2535.463397 | AS74: =VLOOKUP($B74,#REF!,#REF!,0) ->  | AT74: 253546.3397 | AU74: 0.01 | AV74: =IF(AU74="",AT74,AT74*AU74) -> 2535.463397 | AX74: =VLOOKUP($B74,#REF!,#REF!,0) ->  | AY74: 253546.3397 | AZ74: 0.01 | BA74: =IF(AZ74="",AY74,AY74*AZ74) -> 2535.463397 | BC74: =VLOOKUP($B74,#REF!,#REF!,0) ->  | BD74: 253546.3397 | BE74: 0.01 | BF74: =IF(BE74="",BD74,BD74*BE74) -> 2535.463397 | BH74: =VLOOKUP($B74,#REF!,#REF!,0) ->  | BI74: 253546.3397 | BJ74: 0.01 | BK74: =IF(BJ74="",BI74,BI74*BJ74) -> 2535.463397 | BL74: 0 | BN74: 3042556.076
A75: 0.46 | B75: Totalizadora 3 | E75: Serviços Prestados | F75: 801235.3219 | J75: =VLOOKUP($B75,#REF!,#REF!,0) ->  | K75: 801235.3219 | O75: =VLOOKUP($B75,#REF!,#REF!,0)-O79 ->  | P75: 801235.3219 | T75: =VLOOKUP($B75,#REF!,#REF!,0)-T79 ->  | U75: 801235.3219 | V75: 0.7 | W75: 560864.7253 | Y75: =VLOOKUP($B75,#REF!,#REF!,0)-Y79 ->  | Z75: 801235.3219 | AA75: 0.7 | AB75: 560864.7253 | AD75: =VLOOKUP($B75,#REF!,#REF!,0)-AD79 ->  | AE75: 801235.3219 | AF75: 0.7 | AG75: 560864.7253 | AI75: =VLOOKUP($B75,#REF!,#REF!,0)-AI79 ->  | AJ75: 801235.3219 | AK75: 0.7 | AL75: 560864.7253 | AN75: =VLOOKUP($B75,#REF!,#REF!,0)-AN79 ->  | AO75: 801235.3219 | AP75: 0.7 | AQ75: 560864.7253 | AS75: =VLOOKUP($B75,#REF!,#REF!,0)-AS79 ->  | AT75: 801235.3219 | AU75: 0.7 | AV75: 560864.7253 | AX75: =VLOOKUP($B75,#REF!,#REF!,0)-AX79 ->  | AY75: 801235.3219 | AZ75: 0.7 | BA75: 560864.7253 | BC75: =VLOOKUP($B75,#REF!,#REF!,0)-BC79 ->  | BD75: 801235.3219 | BE75: 0.7 | BF75: 560864.7253 | BH75: =VLOOKUP($B75,#REF!,#REF!,0)-BH79 ->  | BI75: 801235.3219 | BJ75: 0.7 | BK75: 560864.7253 | BL75: 0 | BN75: 9614823.862
A76: 0.47 | B76: 6.2.2.1.1.01.04.04.010 | E76: Aluguéis e Encargos | F76: 0 | H76: =J76 ->  | I76: =IFERROR(J76/F76,"") ->  | J76: =VLOOKUP($B76,#REF!,#REF!,0) ->  | K76: 0 | M76: =O76 ->  | N76: =IFERROR(O76/K76,"") ->  | O76: =VLOOKUP($B76,#REF!,#REF!,0) ->  | P76: 0 | R76: =T76 ->  | S76: =IFERROR(T76/P76,"") ->  | T76: =VLOOKUP($B76,#REF!,#REF!,0) ->  | U76: 0 | V76: 0.7 | W76: =IF(V76="",U76,U76*V76) -> 0 | X76: =IFERROR(Y76/U76,"") ->  | Y76: =VLOOKUP($B76,#REF!,#REF!,0) ->  | Z76: 0 | AA76: 0.7 | AB76: =IF(AA76="",Z76,Z76*AA76) -> 0 | AC76: =IFERROR(AD76/Z76,"") ->  | AD76: =VLOOKUP($B76,#REF!,#REF!,0) ->  | AE76: 0 | AF76: 0.7 | AG76: =IF(AF76="",AE76,AE76*AF76) -> 0 | AH76: =IFERROR(AI76/AE76,"") ->  | AI76: =VLOOKUP($B76,#REF!,#REF!,0) ->  | AJ76: 0 | AK76: 0.7 | AL76: =IF(AK76="",AJ76,AJ76*AK76) -> 0 | AM76: =IFERROR(AN76/AJ76,"") ->  | AN76: =VLOOKUP($B76,#REF!,#REF!,0) ->  | AO76: 0 | AP76: 0.7 | AQ76: =IF(AP76="",AO76,AO76*AP76) -> 0 | AR76: =IFERROR(AS76/AO76,"") ->  | AS76: =VLOOKUP($B76,#REF!,#REF!,0) ->  | AT76: 0 | AU76: 0.7 | AV76: =IF(AU76="",AT76,AT76*AU76) -> 0 | AW76: =IFERROR(AX76/AT76,"") ->  | AX76: =VLOOKUP($B76,#REF!,#REF!,0) ->  | AY76: 0 | AZ76: 0.7 | BA76: =IF(AZ76="",AY76,AY76*AZ76) -> 0 | BB76: =IFERROR(BC76/AY76,"") ->  | BC76: =VLOOKUP($B76,#REF!,#REF!,0) ->  | BD76: 0 | BE76: 0.7 | BF76: =IF(BE76="",BD76,BD76*BE76) -> 0 | BG76: =IFERROR(BH76/BD76,"") ->  | BH76: =VLOOKUP($B76,#REF!,#REF!,0) ->  | BI76: 0 | BJ76: 0.7 | BK76: =IF(BJ76="",BI76,BI76*BJ76) -> 0 | BL76: =IFERROR(BM76/BI76,"") ->  | BO76: =H76+M76+R76+W76+AB76+AG76+AL76+AQ76+AV76+BA76+BF76+BK76 -> 
A77: 0.48 | B77: 6.2.2.1.1.01.04.04.028 | E77: Ouras Despesas | F77: 0 | H77: =J77 ->  | I77: =IFERROR(J77/F77,"") ->  | J77: =VLOOKUP($B77,#REF!,#REF!,0) ->  | K77: 0 | M77: =O77 ->  | N77: =IFERROR(O77/K77,"") ->  | O77: =VLOOKUP($B77,#REF!,#REF!,0) ->  | P77: 0 | R77: =T77 ->  | S77: =IFERROR(T77/P77,"") ->  | T77: =VLOOKUP($B77,#REF!,#REF!,0) ->  | U77: 0 | V77: 0.7 | W77: =IF(V77="",U77,U77*V77) -> 0 | X77: =IFERROR(Y77/U77,"") ->  | Y77: =VLOOKUP($B77,#REF!,#REF!,0) ->  | Z77: 0 | AA77: 0.7 | AB77: =IF(AA77="",Z77,Z77*AA77) -> 0 | AC77: =IFERROR(AD77/Z77,"") ->  | AD77: =VLOOKUP($B77,#REF!,#REF!,0) ->  | AE77: 0 | AF77: 0.7 | AG77: =IF(AF77="",AE77,AE77*AF77) -> 0 | AH77: =IFERROR(AI77/AE77,"") ->  | AI77: =VLOOKUP($B77,#REF!,#REF!,0) ->  | AJ77: 0 | AK77: 0.7 | AL77: =IF(AK77="",AJ77,AJ77*AK77) -> 0 | AM77: =IFERROR(AN77/AJ77,"") ->  | AN77: =VLOOKUP($B77,#REF!,#REF!,0) ->  | AO77: 0 | AP77: 0.7 | AQ77: =IF(AP77="",AO77,AO77*AP77) -> 0 | AR77: =IFERROR(AS77/AO77,"") ->  | AS77: =VLOOKUP($B77,#REF!,#REF!,0) ->  | AT77: 0 | AU77: 0.7 | AV77: =IF(AU77="",AT77,AT77*AU77) -> 0 | AW77: =IFERROR(AX77/AT77,"") ->  | AX77: =VLOOKUP($B77,#REF!,#REF!,0) ->  | AY77: 0 | AZ77: 0.7 | BA77: =IF(AZ77="",AY77,AY77*AZ77) -> 0 | BB77: =IFERROR(BC77/AY77,"") ->  | BC77: =VLOOKUP($B77,#REF!,#REF!,0) ->  | BD77: 0 | BE77: 0.7 | BF77: =IF(BE77="",BD77,BD77*BE77) -> 0 | BG77: =IFERROR(BH77/BD77,"") ->  | BH77: =VLOOKUP($B77,#REF!,#REF!,0) ->  | BI77: 0 | BJ77: 0.7 | BK77: =IF(BJ77="",BI77,BI77*BJ77) -> 0 | BL77: =IFERROR(BM77/BI77,"") ->  | BO77: =H77+M77+R77+W77+AB77+AG77+AL77+AQ77+AV77+BA77+BF77+BK77 -> 
A78: =A75+1% -> 0.47 | B78: 6.2.2.1.1.01.05.01 | E78: Encargos Diversos | F78: 109659.55 | J78: =VLOOKUP($B78,#REF!,#REF!,0) ->  | K78: 109659.55 | O78: =VLOOKUP($B78,#REF!,#REF!,0) ->  | P78: 109659.55 | T78: =VLOOKUP($B78,#REF!,#REF!,0) ->  | U78: 109659.55 | V78: 0.4 | W78: 43863.82 | Y78: =VLOOKUP($B78,#REF!,#REF!,0) ->  | Z78: 109659.55 | AA78: 0.4 | AB78: 43863.82 | AD78: =VLOOKUP($B78,#REF!,#REF!,0) ->  | AE78: 109659.55 | AF78: 0.4 | AG78: 43863.82 | AI78: =VLOOKUP($B78,#REF!,#REF!,0) ->  | AJ78: 109659.55 | AK78: 0.4 | AL78: 43863.82 | AN78: =VLOOKUP($B78,#REF!,#REF!,0) ->  | AO78: 109659.55 | AP78: 0.4 | AQ78: 43863.82 | AS78: =VLOOKUP($B78,#REF!,#REF!,0) ->  | AT78: 109659.55 | AU78: 0.4 | AV78: 43863.82 | AX78: =VLOOKUP($B78,#REF!,#REF!,0) ->  | AY78: 109659.55 | AZ78: 0.4 | BA78: 43863.82 | BC78: =VLOOKUP($B78,#REF!,#REF!,0) ->  | BD78: 109659.55 | BE78: 0.4 | BF78: 43863.82 | BH78: =VLOOKUP($B78,#REF!,#REF!,0) ->  | BI78: 109659.55 | BJ78: 0.4 | BK78: 43863.82 | BL78: 0 | BN78: 1315914.6
A79: 0.48 | E79: Transferências Correntes (CSC, FUNDO) | F79: 450272.3849 | H79: =J79 ->  | I79: =IFERROR(J79/F79,"") ->  | J79: =SUM(J80:J82) ->  | K79: 450272.3849 | M79: =O79 ->  | N79: =IFERROR(O79/K79,"") ->  | O79: =SUM(O80:O82) ->  | P79: 450272.3849 | R79: =T79 ->  | S79: =IFERROR(T79/P79,"") ->  | T79: =SUM(T80:T82) ->  | U79: 450272.3849 | V79: 0.6 | W79: =IF(V79="",U79,U79*V79) -> 270163.4309 | X79: =IFERROR(Y79/U79,"") ->  | Y79: =SUM(Y80:Y82) ->  | Z79: 450272.3849 | AA79: 0.6 | AB79: =IF(AA79="",Z79,Z79*AA79) -> 270163.4309 | AC79: =IFERROR(AD79/Z79,"") ->  | AD79: =SUM(AD80:AD82) ->  | AE79: 450272.3849 | AF79: 0.6 | AG79: =IF(AF79="",AE79,AE79*AF79) -> 270163.4309 | AH79: =IFERROR(AI79/AE79,"") ->  | AI79: =SUM(AI80:AI82) ->  | AJ79: 450272.3849 | AK79: 0.6 | AL79: =IF(AK79="",AJ79,AJ79*AK79) -> 270163.4309 | AM79: =IFERROR(AN79/AJ79,"") ->  | AN79: =SUM(AN80:AN82) ->  | AO79: 450272.3849 | AP79: 0.6 | AQ79: =IF(AP79="",AO79,AO79*AP79) -> 270163.4309 | AR79: =IFERROR(AS79/AO79,"") ->  | AS79: =SUM(AS80:AS82) ->  | AT79: 450272.3849 | AU79: 0.6 | AV79: =IF(AU79="",AT79,AT79*AU79) -> 270163.4309 | AW79: =IFERROR(AX79/AT79,"") ->  | AX79: =SUM(AX80:AX82) ->  | AY79: 450272.3849 | AZ79: 0.6 | BA79: =IF(AZ79="",AY79,AY79*AZ79) -> 270163.4309 | BB79: =IFERROR(BC79/AY79,"") ->  | BC79: =SUM(BC80:BC82) ->  | BD79: 450272.3849 | BE79: 0.6 | BF79: =IF(BE79="",BD79,BD79*BE79) -> 270163.4309 | BG79: =IFERROR(BH79/BD79,"") ->  | BH79: =SUM(BH80:BH82) ->  | BI79: 450272.3849 | BJ79: 0.6 | BK79: =IF(BJ79="",BI79,BI79*BJ79) -> 270163.4309 | BL79: =IFERROR(BM79/BI79,"") -> 0 | BN79: 5403268.619 | BO79: =H79+M79+R79+W79+AB79+AG79+AL79+AQ79+AV79+BA79+BF79+BK79 ->  | BP79: =(BO79-BN79)/BN79 ->  | BQ79: =BN79-BO79 -> 
A80: 0.49 | B80: 6.2.2.1.1.01.07.01 | E80: FUNDO DE APOIO AO CAU-UF | J80: =VLOOKUP($B80,#REF!,#REF!,0) ->  | O80: =VLOOKUP($B80,#REF!,#REF!,0) ->  | T80: =VLOOKUP($B80,#REF!,#REF!,0) ->  | Y80: =VLOOKUP($B80,#REF!,#REF!,0) ->  | AD80: =VLOOKUP($B80,#REF!,#REF!,0) ->  | AI80: =VLOOKUP($B80,#REF!,#REF!,0) ->  | AN80: =VLOOKUP($B80,#REF!,#REF!,0) ->  | AS80: =VLOOKUP($B80,#REF!,#REF!,0) ->  | AX80: =VLOOKUP($B80,#REF!,#REF!,0) ->  | BC80: =VLOOKUP($B80,#REF!,#REF!,0) ->  | BH80: =VLOOKUP($B80,#REF!,#REF!,0) ->  | BO80: =H80+M80+R80+W80+AB80+AG80+AL80+AQ80+AV80+BA80+BF80+BK80 -> 
A81: 0.5 | B81: 6.2.2.1.1.01.07.02.002 | E81: CONVÊNIOS, CONTRATOS E PATROCÍNIO | J81: =VLOOKUP($B81,#REF!,#REF!,0) ->  | O81: =VLOOKUP($B81,#REF!,#REF!,0) ->  | T81: =VLOOKUP($B81,#REF!,#REF!,0) ->  | Y81: =VLOOKUP($B81,#REF!,#REF!,0) ->  | AD81: =VLOOKUP($B81,#REF!,#REF!,0) ->  | AI81: =VLOOKUP($B81,#REF!,#REF!,0) ->  | AN81: =VLOOKUP($B81,#REF!,#REF!,0) ->  | AS81: =VLOOKUP($B81,#REF!,#REF!,0) ->  | AX81: =VLOOKUP($B81,#REF!,#REF!,0) ->  | BC81: =VLOOKUP($B81,#REF!,#REF!,0) ->  | BH81: =VLOOKUP($B81,#REF!,#REF!,0) ->  | BO81: =H81+M81+R81+W81+AB81+AG81+AL81+AQ81+AV81+BA81+BF81+BK81 -> 
A82: 0.51 | B82: 6.2.2.1.1.01.07.03 | E82: FUNDO - CENTRO DE SERVIÇOS COMPARTILHADOS | J82: =VLOOKUP($B82,#REF!,#REF!,0) ->  | O82: =VLOOKUP($B82,#REF!,#REF!,0) ->  | T82: =VLOOKUP($B82,#REF!,#REF!,0) ->  | Y82: =VLOOKUP($B82,#REF!,#REF!,0) ->  | AD82: =VLOOKUP($B82,#REF!,#REF!,0) ->  | AI82: =VLOOKUP($B82,#REF!,#REF!,0) ->  | AN82: =VLOOKUP($B82,#REF!,#REF!,0) ->  | AS82: =VLOOKUP($B82,#REF!,#REF!,0) ->  | AX82: =VLOOKUP($B82,#REF!,#REF!,0) ->  | BC82: =VLOOKUP($B82,#REF!,#REF!,0) ->  | BH82: =VLOOKUP($B82,#REF!,#REF!,0) ->  | BO82: =H82+M82+R82+W82+AB82+AG82+AL82+AQ82+AV82+BA82+BF82+BK82 -> 
A83: 0.52 | B83: 6.2.2.1.1.03.99 | E83: Reserva de contingência | F83: 34514.66667 | J83: =VLOOKUP($B83,#REF!,#REF!,0) ->  | K83: 34514.66667 | O83: =VLOOKUP($B83,#REF!,#REF!,0) ->  | P83: 34514.66667 | T83: =VLOOKUP($B83,#REF!,#REF!,0) ->  | U83: 34514.66667 | W83: 1 | Y83: =VLOOKUP($B83,#REF!,#REF!,0) ->  | Z83: 34514.66667 | AB83: 1 | AD83: =VLOOKUP($B83,#REF!,#REF!,0) ->  | AE83: 34514.66667 | AG83: 1 | AI83: =VLOOKUP($B83,#REF!,#REF!,0) ->  | AJ83: 34514.66667 | AL83: 1 | AN83: =VLOOKUP($B83,#REF!,#REF!,0) ->  | AO83: 34514.66667 | AQ83: 1 | AS83: =VLOOKUP($B83,#REF!,#REF!,0) ->  | AT83: 34514.66667 | AV83: 1 | AX83: =VLOOKUP($B83,#REF!,#REF!,0) ->  | AY83: 34514.66667 | BA83: 1 | BC83: =VLOOKUP($B83,#REF!,#REF!,0) ->  | BD83: 34514.66667 | BF83: 1 | BH83: =VLOOKUP($B83,#REF!,#REF!,0) ->  | BI83: 34514.66667 | BK83: 34514.66667 | BL83: 0 | BN83: 414176
A84: 0.53 | E84: Total das despesas Correntes Acumulado projetado 1 e 2 | F84: =F65 -> 4202570.827 | G84: =IF(H84=F84,"Projeção MANTIDA", "Projeção ALTERADA") ->  | H84: =H65 ->  | I84: - | J84: =J88 ->  | K84: =F84+K65 -> 8405141.655 | L84: =IF(M84=K84,"Projeção MANTIDA", "Projeção ALTERADA") ->  | M84: =H84+M65 ->  | N84: - | O84: =O65+J84 ->  | P84: =K84+P65 -> 12607712.48 | Q84: =IF(R84=P84,"Projeção MANTIDA", "Projeção ALTERADA") ->  | R84: =M84+R65 ->  | S84: - | T84: =T65+O84 ->  | U84: =P84+U65 -> 16810283.31 | V84: =IF(W84=U84,"Projeção MANTIDA", "Projeção ALTERADA") ->  | W84: =R84+W65 ->  | X84: - | Y84: =Y65+T84 ->  | Z84: =U84+Z65 -> 21012854.14 | AA84: =IF(AB84=Z84,"Projeção MANTIDA", "Projeção ALTERADA") ->  | AB84: =W84+AB65 ->  | AC84: - | AD84: =AD65+Y84 ->  | AE84: =Z84+AE65 -> 25215424.96 | AF84: =IF(AG84=AE84,"Projeção MANTIDA", "Projeção ALTERADA") ->  | AG84: =AB84+AG65 ->  | AH84: - | AI84: =AI65+AD84 ->  | AJ84: =AE84+AJ65 -> 29417995.79 | AK84: =IF(AL84=AJ84,"Projeção MANTIDA", "Projeção ALTERADA") ->  | AL84: =AG84+AL65 ->  | AM84: - | AN84: =AN65+AI84 ->  | AO84: =AJ84+AO65 -> 33620566.62 | AP84: =IF(AQ84=AO84,"Projeção MANTIDA", "Projeção ALTERADA") ->  | AQ84: =AL84+AQ65 ->  | AR84: - | AS84: =AS65+AN84 ->  | AT84: =AO84+AT65 -> 37823137.45 | AU84: =IF(AV84=AT84,"Projeção MANTIDA", "Projeção ALTERADA") ->  | AV84: =AQ84+AV65 ->  | AW84: - | AX84: =AX65+AS84 ->  | AY84: =AT84+AY65 -> 42025708.27 | AZ84: =IF(BA84=AY84,"Projeção MANTIDA", "Projeção ALTERADA") ->  | BA84: =AV84+BA65 ->  | BB84: - | BC84: =BC65+AX84 ->  | BD84: =AY84+BD65 -> 46228279.1 | BE84: =IF(BF84=BD84,"Projeção MANTIDA", "Projeção ALTERADA") ->  | BF84: =BA84+BF65 ->  | BG84: - | BH84: =BH88+BC84 ->  | BI84: =BD84+BI65 -> 50430849.93 | BJ84: =IF(BK84=BI84,"Projeção MANTIDA", "Projeção ALTERADA") ->  | BK84: =BF84+BK65 ->  | BL84: - | BM84: =BM88+BH84 ->  | BN84: =IF(BN65=BI84,"CHECK","divergência") -> CHECK
A85: 0.54 | B85: 6.2.2.1.1.02 | E85: Total das despesas de Capital por mês | F85: 833333.3333 | G85: =G65 -> - | H85: =F85 -> 833333.3333 | I85: - | J85: =VLOOKUP($B85,#REF!,#REF!,0) ->  | K85: =$BN85/12 -> 833333.3333 | L85: =L65 -> - | M85: =K85 -> 833333.3333 | N85: - | O85: =VLOOKUP($B85,#REF!,#REF!,0) ->  | P85: =$BN85/12 -> 833333.3333 | Q85: =Q65 -> - | R85: =P85 -> 833333.3333 | S85: - | T85: =VLOOKUP($B85,#REF!,#REF!,0) ->  | U85: =$BN85/12 -> 833333.3333 | V85: - | W85: =U85 -> 833333.3333 | X85: - | Y85: =VLOOKUP($B85,#REF!,#REF!,0) ->  | Z85: =$BN85/12 -> 833333.3333 | AA85: - | AB85: =Z85 -> 833333.3333 | AC85: - | AD85: =VLOOKUP($B85,#REF!,#REF!,0) ->  | AE85: =$BN85/12 -> 833333.3333 | AF85: - | AG85: =AE85 -> 833333.3333 | AH85: - | AI85: =VLOOKUP($B85,#REF!,#REF!,0) ->  | AJ85: =$BN85/12 -> 833333.3333 | AK85: - | AL85: =AJ85 -> 833333.3333 | AM85: - | AN85: =VLOOKUP($B85,#REF!,#REF!,0) ->  | AO85: =$BN85/12 -> 833333.3333 | AP85: - | AQ85: =AO85 -> 833333.3333 | AR85: - | AS85: =VLOOKUP($B85,#REF!,#REF!,0) ->  | AT85: =$BN85/12 -> 833333.3333 | AU85: =AU65 -> 0.6971021802 | AV85: =AT85 -> 833333.3333 | AW85: - | AX85: =VLOOKUP($B85,#REF!,#REF!,0) ->  | AY85: =$BN85/12 -> 833333.3333 | AZ85: =AZ65 -> 0.6971021802 | BA85: =AY85 -> 833333.3333 | BB85: - | BC85: =VLOOKUP($B85,#REF!,#REF!,0) ->  | BD85: =$BN85/12 -> 833333.3333 | BE85: - | BF85: =BD85 -> 833333.3333 | BG85: - | BH85: =VLOOKUP($B85,#REF!,#REF!,0) ->  | BI85: =$BN85/12 -> 833333.3333 | BJ85: =BJ65 -> 0.705314693 | BK85: =BI85 -> 833333.3333 | BL85: - | BN85: 10000000
A86: 0.55 | E86: Total das despesas de Capital Acumulado | F86: =F85 -> 833333.3333 | G86: - | H86: =F86 -> 833333.3333 | I86: - | J86: =J85 ->  | K86: =F85+K85 -> 1666666.667 | L86: - | M86: =K86 -> 1666666.667 | N86: - | O86: =J86+O85 ->  | P86: =K86+P85 -> 2500000 | Q86: - | R86: =P86 -> 2500000 | S86: - | T86: =O86+T85 ->  | U86: =P86+U85 -> 3333333.333 | V86: - | W86: =U86 -> 3333333.333 | X86: - | Y86: =T86+Y85 ->  | Z86: =U86+Z85 -> 4166666.667 | AA86: - | AB86: =Z86 -> 4166666.667 | AC86: - | AD86: =Y86+AD85 ->  | AE86: =Z86+AE85 -> 5000000 | AF86: - | AG86: =AE86 -> 5000000 | AH86: - | AI86: =AD86+AI85 ->  | AJ86: =AE86+AJ85 -> 5833333.333 | AK86: - | AL86: =AJ86 -> 5833333.333 | AM86: - | AN86: =AI86+AN85 ->  | AO86: =AJ86+AO85 -> 6666666.667 | AP86: - | AQ86: =AO86 -> 6666666.667 | AR86: - | AS86: =AN86+AS85 ->  | AT86: =AO86+AT85 -> 7500000 | AU86: - | AV86: =AT86 -> 7500000 | AW86: - | AX86: =AS86+AX85 ->  | AY86: =AT86+AY85 -> 8333333.333 | AZ86: - | BA86: =AY86 -> 8333333.333 | BB86: - | BC86: =AX86+BC85 ->  | BD86: =AY86+BD85 -> 9166666.667 | BE86: - | BF86: =BD86 -> 9166666.667 | BG86: - | BH86: =BC86+BH85 ->  | BI86: =BD86+BI85 -> 10000000 | BJ86: - | BK86: =BI86 -> 10000000 | BL86: - | BM86: =BH86+BM85 ->  | BN86: =IF(BN85=BI86,"CHECK", Divergência) -> CHECK
A87: 0.56 | BC87: (Veículos)
A88: 0.57 | E88: Total Despesas Corrente + Despesa de Capital | J88: =J65+J85 ->  | O88: =O65+O85 ->  | T88: =T65+T85 ->  | Y88: =Y65+Y85 ->  | AD88: =AD65+AD85 ->  | AI88: =AI65+AI85 ->  | AN88: =AN65+AN85 ->  | AS88: =AS65+AS85 ->  | AX88: =AX65+AX85 ->  | BC88: =BC65+BC85 ->  | BH88: =BH65+BH85 -> 
A89: 0.58
A90: 0.59
A91: 0.6
A92: 0.61
A93: 0.62
A94: 0.63
A95: 0.64 | BL95: Nova projeção Receitas | BO95: =BK19 -> 30704791.43
A96: 0.65 | BL96: Nova projeção Despesas | BO96: =BK84 -> 
A97: 0.66 | BL97: Saldo a ser observado | BO97: =BO95-BO96 -> 
A98: 0.67 | BL98: Recurso de Capital | BO98: 26749084.88
A99: 0.68 | BL99: Recurso de Capital utilizado | BO99: =BK86 -> 10000000
A100: 0.69 | BL100: Recurso de Capital disponível | BO100: =BO98-BO99 -> 16749084.88
A101: 0.7 | BL101: Saldo após utilização de recurso de Capital | BO101: =BO100+BO97 -> 
A102: 0.71
A103: 0.72
A104: 0.73
A105: 0.74
A106: 0.75
A107: 0.76
A108: 0.77
A109: 0.78
A110: 0.79
A111: 0.8
A112: 0.81
A113: 0.82 | F113: Projeção Inicial | G113: =F65 -> 4202570.827 | H113: =K65 -> 4202570.827 | I113: =P65 -> 4202570.827 | J113: =U65 -> 4202570.827 | K113: =Z65 -> 4202570.827 | L113: =AE65 -> 4202570.827 | M113: =AJ65 -> 4202570.827 | N113: =AO65 -> 4202570.827 | O113: =AT65 -> 4202570.827 | P113: =AY65 -> 4202570.827 | Q113: =BD65 -> 4202570.827 | R113: =BI65 -> 4202570.827 | T113: Projeção Inicial | U113: =F84 -> 4202570.827 | V113: =K84 -> 8405141.655 | W113: =P84 -> 12607712.48 | X113: =U84 -> 16810283.31 | Y113: =Z84 -> 21012854.14 | Z113: =AE84 -> 25215424.96 | AA113: =AJ84 -> 29417995.79 | AB113: =AO84 -> 33620566.62 | AC113: =AT84 -> 37823137.45 | AD113: =AY84 -> 42025708.27 | AE113: =BD84 -> 46228279.1 | AF113: =BI84 -> 50430849.93
A114: 0.83 | F114: Nova Projeção | G114: =H65 ->  | H114: =M65 ->  | I114: =R65 ->  | J114: =W65 -> 2929621.286 | K114: =AB65 -> 2929621.286 | L114: =AG65 -> 2929621.286 | M114: =AL65 -> 2929621.286 | N114: =AQ65 -> 2929621.286 | O114: =AV65 -> 2929621.286 | P114: =BA65 -> 2929621.286 | Q114: =BF65 -> 2929621.286 | R114: =BK65 -> 2964134.953 | T114: Nova Projeção | U114: =H84 ->  | V114: =M84 ->  | W114: =R84 ->  | X114: =W84 ->  | Y114: =AB84 ->  | Z114: =AG84 ->  | AA114: =AL84 ->  | AB114: =AQ84 ->  | AC114: =AV84 ->  | AD114: =BA84 ->  | AE114: =BF84 ->  | AF114: =BK84 -> 
A115: =A114+1% -> 0.84 | F115: Real mês/Plano | G115: =(G116-G113)/G113 ->  | H115: =(H116-H113)/H113 ->  | R115: -1 | T115: Real mês/Plano I | U115: =(U116-U113)/U113 ->  | V115: =(V116-V113)/V113 -> 
A116: 0.85 | F116: Execução sem Capital | G116: =J65 ->  | H116: =O65 ->  | I116: =T65 ->  | J116: =Y65 ->  | K116: =AD65 ->  | L116: =AI65 ->  | M116: =AN65 ->  | N116: =AS65 ->  | O116: =AX65 ->  | P116: =BC65 ->  | Q116: =BH65 ->  | R116: =BM65 -> 0 | T116: Execução sem Capital | U116: =J84 ->  | V116: =O84 ->  | W116: =T84 ->  | X116: =Y84 ->  | Y116: =AD84 ->  | Z116: =AI84 ->  | AA116: =AN84 ->  | AB116: =AS84 ->  | AC116: =AX84 ->  | AD116: =BC84 ->  | AE116: =BH84 ->  | AF116: =BM84 -> 
A117: 0.86 | F117: Real mês/Novo | G117: =(G116-G114)/G114 ->  | R117: -1 | T117: Real mês/Novo | U117: =(U116-U114)/U114 ->  | V117: =(V116-V114)/V114 ->  | W117: =(W116-W114)/W114 ->  | X117: =(X116-X114)/X114 ->  | Y117: =(Y116-Y114)/Y114 -> 
A118: 0.87
A119: 0.88
A120: 0.89
A121: 0.9 | E121: RECEITA E DESPESA
A122: 0.91
A123: 0.92
A124: 0.93
A125: 0.94
A126: 0.95
A127: 0.96
A128: 0.97 | AZ128: RECEITA | BA128: Projeção Inicial | BB128: =U46 -> 7875271.593 | BC128: 12777518.53 | BD128: 17036742.44 | BE128: 21220604.68 | BF128: 26339677.08 | BG128: 30086065.24 | BH128: 33679895.98 | BI128: 37505314.14 | BJ128: 40778954.88 | BK128: 44433959.35 | BL128: 47491294.19 | BM128: 50430849.55
A129: 0.98 | BA129: Nova Projeção | BB129: 6650003.62 | BC129: 12766136.98 | BD129: 17276177.37 | BE129: 18136812.94 | BF129: 19186850.45 | BG129: 19960658.72 | BH129: 21130167.19 | BI129: 22684984.73 | BJ129: 24288976.32 | BK129: 26146753.51 | BL129: 28344674.04 | BM129: 30704791.43
A130: 0.99 | BA130: =F48 -> Real mês/Plano I | BB130: -0.1555842181 | BC130: 0.2476183763 | BD130: 0.05888783598 | BE130: -0.4540777619 | BF130: -0.5559894792 | BG130: -0.1405381712 | BH130: 0.157131209 | BI130: 0.1090328649 | BJ130: 0.05757569777 | BK130: 0.006914808278 | BL130: 0.07670996897 | BM130: 0.07469543138
A131: 1 | BA131: Arrecadação | BB131: =J19 -> 6650003.62 | BC131: =O19 -> 12766136.98 | BD131: =T19 -> 17276177.37 | BE131: =Y19 -> 19560240.81 | BF131: =AD19 -> 21833162.81 | BG131: =AI19 -> 25053040.43 | BH131: =AN19 -> 29211574.14 | BI131: =AS19 -> 33454088.6 | BJ131: =AX19 -> 36916211.49 | BK131: =BC19 -> 40596489.62 | BL131: =BH19 -> 43888352.52 | BM131: =BM19 -> 47047479.23
BA132: =F49 -> Real mês/Nova | BB132: 0 | BC132: 0 | BD132: 0 | BE132: 1.653926383 | BF132: 1.164610283 | BG132: 3.16107935 | BH132: 2.555796165 | BI132: 1.728625286 | BJ132: 1.158442039 | BK132: 0.9810115888 | BL132: 0.4977169794 | BM132: 0.3385464341
AZ133: DESPESA | BA133: Projeção Inicial | BB133: =U113 -> 4202570.827 | BC133: 8405141.655 | BD133: 12607712.48 | BE133: 16810283.31 | BF133: 21012854.14 | BG133: 25215424.96 | BH133: 29417995.79 | BI133: 33620566.62 | BJ133: 37823137.45 | BK133: 42025708.27 | BL133: 46228279.1 | BM133: 50430849.93
BA134: Nova Projeção
BA135: =F115 -> Real mês/Plano | BB135: =G115 ->  | BM135: -1
BA136: Execução | BB136: =U116 ->  | BC136: =V116 -> 
BA137: =F117 -> Real mês/Novo | BB137: =G117 ->  | BD137: =I117 ->  | BM137: -1
F144: RECEITA | G144: Projeção Inicial | H144: =G46 -> 7875271.593 | I144: 4902246.934 | J144: 4259223.911 | K144: 4183862.244 | L144: 5119072.395 | M144: 3746388.161 | N144: 3593830.741 | O144: 3825418.159 | P144: 3273640.74 | Q144: 3655004.475 | R144: 3057334.839 | S144: 2939555.355
G145: Nova Projeção | H145: =G47 -> 6650003.62 | I145: 6116133.36 | J145: 4510040.39 | K145: 860635.568 | L145: 1050037.514 | M145: 773808.2716 | N145: 1169508.464 | O145: 1554817.542 | P145: 1603991.595 | Q145: 1857777.184 | R145: 2197920.532 | S145: 2360117.385
G146: Arrec./Proj.Inic | H146: =G48 -> -0.1555842181 | I146: 0.2476183763 | J146: 0.05888783598 | K146: -0.4540777619 | L146: -0.5559894792 | M146: -0.1405381712 | N146: 0.157131209 | O146: 0.1090328649 | P146: 0.05757569777 | Q146: 0.006914808278 | R146: 0.07670996897 | S146: 0.07469543138
G147: Arrecadação | H147: =G50 -> 6650003.62 | I147: 6116133.36 | J147: 4510040.39 | K147: 2284063.44 | L147: 2272922 | M147: 3219877.62 | N147: 4158533.71 | O147: 4242514.46 | P147: 3462122.89 | Q147: 3680278.13 | R147: 3291862.9 | S147: 3159126.71
F150: DESPESA | G150: Projeção Inicial | H150: =G113 -> 4202570.827 | I150: =H113 -> 4202570.827 | J150: 4202570.827 | K150: 4202570.827 | L150: 4202570.827 | M150: 4202570.827 | N150: 4202570.827 | O150: 4202570.827 | P150: 4202570.827 | Q150: 4202570.827 | R150: 4202570.827 | S150: 4202570.827
G151: Nova Projeção | H151: =G114 ->  | I151: =H114 ->  | K151: 2929621.286 | L151: 2929621.286 | M151: 2929621.286 | N151: 2929621.286 | O151: 2929621.286 | P151: 2929621.286 | Q151: 2929621.286 | R151: 2929621.286 | S151: 2964134.953
G152: Exec./Proj.Inic | S152: -1
G153: Execução | S153: 0

Sheet Visão Geral
AK6: Ano Atual | AN6: Ano Anterior
AI7: RÚBRICA RECEITA | AJ7: Fórmula para acumular no gráfico | AK7: ARRECADAÇÃO (EM REAIS) | AL7: PROGRAMAÇÃO (EM REAIS) | AN7: ARRECADAÇÃO (EM REAIS) | AO7: PROGRAMAÇÃO (EM REAIS) | AR7: ARRECADAÇÃO ACUMULADA | AS7: PROGRAMAÇÃO ACUMULADA | AV7: ARRECADAÇÃO ACUMULADA ANO ANTERIOR (EM REAIS)
AI8: Diversas Receitas | AJ8: 0 | AK8: =VLOOKUP($AI8,RESUMO!$D$5:$J$14,2,0) -> 117668.47 | AL8: =VLOOKUP($AI8,RESUMO!$D$5:$J$14,3,0) -> 61593.65525 | AM8: =(AK8-AL8)/AL8 -> 0.9103992045 | AN8: =VLOOKUP($AI8,RESUMO!$D$5:$R$14,10,0) -> 62947.19 | AO8: =VLOOKUP($AI8,RESUMO!$D$5:$R$14,11,0) -> 39717.2416 | AP8: =(AK8-AN8)/AN8 -> 0.8693204574 | AR8: =VLOOKUP($AI8,RESUMO!$D$5:$J$14,6,0) -> 184968.79 | AS8: =VLOOKUP($AI8,RESUMO!$D$5:$J$14,7,0) -> 217232.4748 | AT8: =(AR8-AS8)/AS8 -> -0.1485214623 | AV8: =VLOOKUP($AI8,RESUMO!$D$5:$R$14,14,0) -> 142849.57 | AW8: =(AR8-AV8)/AV8 -> 0.29485017 | AY8: =AR8-AV8 -> 42119.22 | AZ8: =AY8/$AY$17 -> 0.01732376901
AI9: Aplicação Financeira | AJ9: =AK8 -> 117668.47 | AK9: =VLOOKUP($AI9,RESUMO!$D$5:$J$14,2,0) -> 870188.68 | AL9: =VLOOKUP($AI9,RESUMO!$D$5:$J$14,3,0) -> 219246.6701 | AM9: =(AK9-AL9)/AL9 -> 2.968993825 | AN9: =VLOOKUP($AI9,RESUMO!$D$5:$R$14,10,0) -> 546667.25 | AO9: =VLOOKUP($AI9,RESUMO!$D$5:$R$14,11,0) -> 78018.23546 | AP9: =(AK9-AN9)/AN9 -> 0.5918068624 | AR9: =VLOOKUP($AI9,RESUMO!$D$5:$J$14,6,0) -> 2322865.06 | AS9: =VLOOKUP($AI9,RESUMO!$D$5:$J$14,7,0) -> 602746.588 | AT9: =(AR9-AS9)/AS9 -> 2.85380043 | AV9: =VLOOKUP($AI9,RESUMO!$D$5:$R$14,14,0) -> 1357662.63 | AW9: =(AR9-AV9)/AV9 -> 0.7109295113 | AY9: =AR9-AV9 -> 965202.43 | AZ9: =AY9/$AY$17 -> 0.3969908262
AI10: Anuidade Pessoa Jur. A.A. | AJ10: =AJ9+AK9 -> 987857.15 | AK10: =VLOOKUP($AI10,RESUMO!$D$5:$J$14,2,0) -> 120603.39 | AL10: =VLOOKUP($AI10,RESUMO!$D$5:$J$14,3,0) -> 46539.52952 | AM10: 1.591418333 | AN10: =VLOOKUP($AI10,RESUMO!$D$5:$R$14,10,0) -> 93335.2 | AO10: =VLOOKUP($AI10,RESUMO!$D$5:$R$14,11,0) -> 35451.93642 | AP10: 0.2921533355 | AR10: =VLOOKUP($AI10,RESUMO!$D$5:$J$14,6,0) -> 333545.64 | AS10: =VLOOKUP($AI10,RESUMO!$D$5:$J$14,7,0) -> 136611.3499 | AT10: 1.441566095 | AV10: =VLOOKUP($AI10,RESUMO!$D$5:$R$14,14,0) -> 238647.89 | AW10: 0.3976475551 | AY10: 94897.75 | AZ10: 0.03903174609
AI11: Multas e Juros | AJ11: =AJ10+AK10 -> 1108460.54 | AK11: =VLOOKUP($AI11,RESUMO!$D$5:$J$14,2,0) -> 265556.24 | AL11: =VLOOKUP($AI11,RESUMO!$D$5:$J$14,3,0) -> 192948.5006 | AM11: 0.3763063161 | AN11: =VLOOKUP($AI11,RESUMO!$D$5:$R$14,10,0) -> 235380.82 | AO11: =VLOOKUP($AI11,RESUMO!$D$5:$R$14,11,0) -> 108295.6689 | AP11: 0.1281982959 | AR11: =VLOOKUP($AI11,RESUMO!$D$5:$J$14,6,0) -> 655582.36 | AS11: =VLOOKUP($AI11,RESUMO!$D$5:$J$14,7,0) -> 573082.7574 | AT11: 0.1439575725 | AV11: =VLOOKUP($AI11,RESUMO!$D$5:$R$14,14,0) -> 605699.98 | AW11: 0.0823549309 | AY11: 49882.38 | AZ11: 0.02051678138
AI12: Anuidade Pessoa Jur. | AJ12: 1374016.78 | AK12: =VLOOKUP($AI12,RESUMO!$D$5:$J$14,2,0) -> 80709.6 | AL12: =VLOOKUP($AI12,RESUMO!$D$5:$J$14,3,0) -> 106850.1461 | AM12: -0.2446467982 | AN12: =VLOOKUP($AI12,RESUMO!$D$5:$R$14,10,0) -> 56169.77 | AO12: =VLOOKUP($AI12,RESUMO!$D$5:$R$14,11,0) -> 146268.332 | AP12: 0.4368867809 | AR12: =VLOOKUP($AI12,RESUMO!$D$5:$J$14,6,0) -> 312548.75 | AS12: =VLOOKUP($AI12,RESUMO!$D$5:$J$14,7,0) -> 497839.4313 | AT12: -0.3721896452 | AV12: =VLOOKUP($AI12,RESUMO!$D$5:$R$14,14,0) -> 266450.27 | AW12: 0.1730096952 | AY12: 46098.48 | AZ12: 0.01896045129
AI13: Anuidade Pessoa Fís. A.A. | AJ13: 1454726.38 | AK13: =VLOOKUP($AI13,RESUMO!$D$5:$J$14,2,0) -> 677545.46 | AL13: =VLOOKUP($AI13,RESUMO!$D$5:$J$14,3,0) -> 489663.9719 | AM13: 0.3836947353 | AN13: =VLOOKUP($AI13,RESUMO!$D$5:$R$14,10,0) -> 520804.13 | AO13: =VLOOKUP($AI13,RESUMO!$D$5:$R$14,11,0) -> 299789.157 | AP13: 0.3009602286 | AR13: =VLOOKUP($AI13,RESUMO!$D$5:$J$14,6,0) -> 1873581.89 | AS13: =VLOOKUP($AI13,RESUMO!$D$5:$J$14,7,0) -> 1523758.268 | AT13: 0.2295794745 | AV13: =VLOOKUP($AI13,RESUMO!$D$5:$R$14,14,0) -> 1446008.83 | AW13: 0.2956918735 | AY13: 427573.06 | AZ13: 0.1758621581
AI14: Anuidade Pessoa Fís. | AJ14: 2132271.84 | AK14: =VLOOKUP($AI14,RESUMO!$D$5:$J$14,2,0) -> 2611423.56 | AL14: =VLOOKUP($AI14,RESUMO!$D$5:$J$14,3,0) -> 2715138.457 | AM14: =(AK14-AL14)/AL14 -> -0.03819875086 | AN14: =VLOOKUP($AI14,RESUMO!$D$5:$R$14,10,0) -> 2762173.69 | AO14: =VLOOKUP($AI14,RESUMO!$D$5:$R$14,11,0) -> 1958014.976 | AP14: =(AK14-AN14)/AN14 -> -0.05457662947 | AR14: =VLOOKUP($AI14,RESUMO!$D$5:$J$14,6,0) -> 9822587.64 | AS14: =VLOOKUP($AI14,RESUMO!$D$5:$J$14,7,0) -> 10469741.25 | AT14: =(AR14-AS14)/AS14 -> -0.06181180558 | AV14: =VLOOKUP($AI14,RESUMO!$D$5:$R$14,14,0) -> 9154231.96 | AW14: 0.07301056855 | AY14: 668355.68 | AZ14: 0.2748968147
AI15: RRT | AJ15: 4743695.4 | AK15: =VLOOKUP($AI15,RESUMO!$D$5:$J$14,2,0) -> 2910921.1 | AL15: =VLOOKUP($AI15,RESUMO!$D$5:$J$14,3,0) -> 3018769.796 | AM15: =(AK15-AL15)/AL15 -> -0.0357260417 | AN15: =VLOOKUP($AI15,RESUMO!$D$5:$R$14,10,0) -> 2854112.45 | AO15: =VLOOKUP($AI15,RESUMO!$D$5:$R$14,11,0) -> 2453592.572 | AP15: =(AK15-AN15)/AN15 -> 0.01990413868 | AR15: =VLOOKUP($AI15,RESUMO!$D$5:$J$14,6,0) -> 7162311.28 | AS15: =VLOOKUP($AI15,RESUMO!$D$5:$J$14,7,0) -> 8020493.272 | AT15: =(AR15-AS15)/AS15 -> -0.1069986549 | AV15: =VLOOKUP($AI15,RESUMO!$D$5:$R$14,14,0) -> 7025143.72 | AW15: 0.01952523186 | AY15: 137167.56 | AZ15: 0.05641745325
AI16: Todos Sem Aplicação Financeira e Receitas Diversas | AK16: =SUM(AK8:AK15)-AK9-AK8 -> 6666759.35 | AL16: =SUM(AL8:AL15)-AL9-AL8 -> 6569910.401 | AN16: =SUM(AN8:AN15)-AN9-AN8 -> 6521976.06 | AO16: =SUM(AO8:AO15)-AO9-AO8 -> 5001412.642 | AP16: =(AK16-AN16)/AN16 -> 0.02219929798 | AR16: =SUM(AR8:AR15)-AR9-AR8 -> 20160157.56 | AS16: =SUM(AS8:AS15)-AS9-AS8 -> 21221526.33 | AT16: =(AR16-AS16)/AS16 -> -0.05001378094 | AV16: =VLOOKUP($AI16,RESUMO!$D$5:$R$14,14,0) -> 18736182.65 | AW16: 0.07600133584 | AZ16: =SUM(AZ8:AZ15) -> 1
AI17: Evolução de Todos | AK17: =SUM(AK8:AK15) -> 7654616.5 | AL17: =SUM(AL8:AL15) -> 6850750.727 | AM17: =(AK17-AL17)/AL17 -> 0.1173398078 | AN17: =SUM(AN8:AN15) -> 7131590.5 | AO17: =SUM(AO8:AO15) -> 5119148.119 | AP17: =(AK17-AN17)/AN17 -> 0.07333932031 | AR17: =SUM(AR8:AR15) -> 22667991.41 | AS17: =SUM(AS8:AS15) -> 22041505.39 | AT17: =(AR17-AS17)/AS17 -> 0.02842301408 | AU17: =AR17-AS17 -> 626486.0182 | AV17: =VLOOKUP($AI17,RESUMO!$D$5:$R$14,14,0) -> 20236694.85 | AW17: 0.1201429669 | AY17: =SUM(AY8:AY16) -> 2431296.56
AW18: =SUM(AV8:AV15) -> 20236694.85 | AY18: =AR17-AV17 -> 2431296.56
AW19: check
AK23: =AK17-AK34 -> 3482199.74
AK24: Ano Atual | AN24: Ano Anterior | AO24: 2019
AI25: ELEMENTO DE DESPESA | AJ25: Fórmula para acumular no gráfico | AK25: EXECUÇÃO (EM REAIS) | AL25: PROGRAMAÇÃO (EM REAIS) | AN25: EXECUÇÃO (EM REAIS) | AO25: EXECUÇÃO 2019 (EM REAIS) | AR25: EXECUÇÃO ACUMULADA | AS25: PROGRAMAÇÃO (ACUMULADA
AI26: Reserva de Contingência | AK26: =VLOOKUP($AI26,'Despesa Total'!$AP$38:$AZ$48,5,0) -> 0 | AL26: =VLOOKUP($AI26,'Despesa Total'!$AP$38:$AZ$48,9,0) -> 17090.42333 | AM26: =(AK26-AL26)/AL26 -> -1 | AN26: =VLOOKUP(AI26,'RESUMO (2)'!$D$5:$N$14,8,0) -> 0 | AO26: =VLOOKUP(AI26,'RESUMO (2)'!$D$5:$H$14,6,0) ->  | AP26: =IFERROR((AK26-AN26)/AN26,"0%") -> 0% | AR26: =VLOOKUP($AI26,'Despesa Total'!$AP$38:$AZ$48,10,0) -> 0 | AS26: =VLOOKUP($AI26,'Despesa Total'!$AP$38:$AZ$48,11,0) -> 34180.84667 | AT26: =(AR26-AS26)/AS26 -> -1 | AV26: =AR26/$AR$17 -> 0
AI27: Material de Consumo | AJ27: 0 | AK27: =VLOOKUP($AI27,'Despesa Total'!$AP$38:$AZ$48,5,0) -> 7676.82 | AL27: =VLOOKUP($AI27,'Despesa Total'!$AP$38:$AZ$48,9,0) -> 38557.27 | AM27: =(AK27-AL27)/AL27 -> -0.8008982482 | AN27: =VLOOKUP(AI27,'RESUMO (2)'!$D$5:$N$14,8,0) -> 6203.48 | AO27: =VLOOKUP(AI27,'RESUMO (2)'!$D$5:$H$14,6,0) ->  | AP27: =(AK27-AN27)/AN27 -> 0.2375021762 | AR27: =VLOOKUP($AI27,'Despesa Total'!$AP$38:$AZ$48,10,0) -> 18238.62 | AS27: =VLOOKUP($AI27,'Despesa Total'!$AP$38:$AZ$48,11,0) -> 77114.54 | AT27: =(AR27-AS27)/AS27 -> -0.7634866265 | AV27: =AR27/$AR$17 -> 0.0008045979756
AI28: Diárias | AJ28: =AK27 -> 7676.82 | AK28: =VLOOKUP($AI28,'Despesa Total'!$AP$38:$AZ$48,5,0) -> 434260.44 | AL28: =VLOOKUP($AI28,'Despesa Total'!$AP$38:$AZ$48,9,0) -> 560686.8358 | AM28: =(AK28-AL28)/AL28 -> -0.2254848656 | AN28: =VLOOKUP(AI28,'RESUMO (2)'!$D$5:$N$14,8,0) -> 204078.9 | AO28: =VLOOKUP(AI28,'RESUMO (2)'!$D$5:$H$14,6,0) ->  | AP28: 1.127904649 | AR28: =VLOOKUP($AI28,'Despesa Total'!$AP$38:$AZ$48,10,0) -> 948963.94 | AS28: =VLOOKUP($AI28,'Despesa Total'!$AP$38:$AZ$48,11,0) -> 1121373.672 | AT28: =(AR28-AS28)/AS28 -> -0.1537486888 | AV28: 0.04186360948
AI29: Encargos Diversos | AJ29: =AJ28+AK28 -> 441937.26 | AK29: =VLOOKUP($AI29,'Despesa Total'!$AP$38:$AZ$48,5,0) -> 434378.11 | AL29: =VLOOKUP($AI29,'Despesa Total'!$AP$38:$AZ$48,9,0) -> 126051.515 | AM29: 2.446036408 | AN29: =VLOOKUP(AI29,'RESUMO (2)'!$D$5:$N$14,8,0) -> 124859.88 | AO29: =VLOOKUP(AI29,'RESUMO (2)'!$D$5:$H$14,6,0) ->  | AP29: 2.478924615 | AR29: =VLOOKUP($AI29,'Despesa Total'!$AP$38:$AZ$48,10,0) -> 638170.51 | AS29: =VLOOKUP($AI29,'Despesa Total'!$AP$38:$AZ$48,11,0) -> 252103.03 | AT29: 1.531387703 | AV29: 0.02815293594
AI30: Serviços de Pessoa Jurídica | AJ30: =AJ29+AK29 -> 876315.37 | AK30: =VLOOKUP($AI30,'Despesa Total'!$AP$38:$AZ$48,5,0) -> 557739.82 | AL30: =VLOOKUP($AI30,'Despesa Total'!$AP$38:$AZ$48,9,0) -> 1356953.198 | AM30: -0.5889763769 | AN30: =VLOOKUP(AI30,'RESUMO (2)'!$D$5:$N$14,8,0) -> 386580.28 | AO30: =VLOOKUP(AI30,'RESUMO (2)'!$D$5:$H$14,6,0) ->  | AP30: 0.4427528999 | AR30: =VLOOKUP($AI30,'Despesa Total'!$AP$38:$AZ$48,10,0) -> 1085341.74 | AS30: =VLOOKUP($AI30,'Despesa Total'!$AP$38:$AZ$48,11,0) -> 2713906.397 | AT30: -0.6000813656 | AV30: 0.0478799255
AI31: Transferências Correntes | AJ31: 1434055.19 | AK31: =VLOOKUP($AI31,'Despesa Total'!$AP$38:$AZ$48,5,0) -> 503610.44 | AL31: =VLOOKUP($AI31,'Despesa Total'!$AP$38:$AZ$48,9,0) -> 748178.4767 | AM31: -0.3268846195 | AN31: =VLOOKUP(AI31,'RESUMO (2)'!$D$5:$N$14,8,0) -> 1286091.38 | AO31: =VLOOKUP(AI31,'RESUMO (2)'!$D$5:$H$14,6,0) ->  | AP31: -0.6084178404 | AR31: =VLOOKUP($AI31,'Despesa Total'!$AP$38:$AZ$48,10,0) -> 1510831.32 | AS31: =VLOOKUP($AI31,'Despesa Total'!$AP$38:$AZ$48,11,0) -> 1496356.953 | AT31: 0.009673070743 | AV31: 0.06665042759
AI32: Benefícios | AJ32: 1937665.63 | AK32: =VLOOKUP($AI32,'Despesa Total'!$AP$38:$AZ$48,5,0) -> 572527.36 | AL32: =VLOOKUP($AI32,'Despesa Total'!$AP$38:$AZ$48,9,0) -> 695715.2633 | AM32: -0.1770665527 | AN32: =VLOOKUP(AI32,'RESUMO (2)'!$D$5:$N$14,8,0) -> 497741.72 | AO32: =VLOOKUP(AI32,'RESUMO (2)'!$D$5:$H$14,6,0) ->  | AP32: 0.1502498927 | AR32: =VLOOKUP($AI32,'Despesa Total'!$AP$38:$AZ$48,10,0) -> 1688036.13 | AS32: =VLOOKUP($AI32,'Despesa Total'!$AP$38:$AZ$48,11,0) -> 1391430.527 | AT32: 0.2131659452 | AV32: 0.07446782997
AI33: Despesas com Pessoal | AJ33: 2510192.99 | AK33: =VLOOKUP($AI33,'Despesa Total'!$AP$38:$AZ$48,5,0) -> 1662223.77 | AL33: =VLOOKUP($AI33,'Despesa Total'!$AP$38:$AZ$48,9,0) -> 1953259.23 | AM33: -0.1489999154 | AN33: =VLOOKUP(AI33,'RESUMO (2)'!$D$5:$N$14,8,0) -> 1489088.34 | AO33: =VLOOKUP(AI33,'RESUMO (2)'!$D$5:$H$14,6,0) ->  | AP33: 0.1162694149 | AR33: =VLOOKUP($AI33,'Despesa Total'!$AP$38:$AZ$48,10,0) -> 5097894.7 | AS33: =VLOOKUP($AI33,'Despesa Total'!$AP$38:$AZ$48,11,0) -> 3906518.46 | AT33: 0.3049713581 | AV33: 0.2248939753
AI34: Despesa Corrente | AK34: =SUM(AK26:AK33) -> 4172416.76 | AL34: =SUM(AL26:AL33) -> 5496492.213 | AM34: -0.240894629 | AN34: =SUM(AN26:AN33) -> 3994643.98 | AO34: =SUM(AO26:AO33) ->  | AP34: 0.04450278445 | AR34: =SUM(AR26:AR33) -> 10987476.96 | AS34: =SUM(AS26:AS33) -> 10992984.43 | AT34: -0.0005009981627 | AU34: =AS34-AR34 -> 5507.465 | AV34: 0.4847133017
AK35: =AK33/AK17 -> 0.2171531088
AK36: =(AK33+AK32)/AK17 -> 0.2919481505
AP37: Despesa com Pessoal | AR37: =AR33/AR17 -> 0.2248939753
AI38: Despesas de Capital | AJ38: =AJ34+AK34 -> 4172416.76 | AK38: =VLOOKUP($AI38,'Despesa Total'!$AP$38:$AZ$48,10,0) -> 0 | AL38: =VLOOKUP($AI38,'Despesa Total'!$AP$38:$AZ$48,11,0) -> 1190229.547 | AP38: Despesa com Pessoal + Benefícios | AR38: =(AR33+AR32)/AR17 -> 0.2993618053
AI39: Reserva de Contingência | AJ39: =AJ38+AK38 -> 4172416.76 | AK39: =VLOOKUP($AI39,'Despesa Total'!$AP$38:$AZ$48,10,0) -> 0 | AL39: =VLOOKUP($AI39,'Despesa Total'!$AP$38:$AZ$48,11,0) -> 34180.84667
AP40: Resultado orçamentário | AR40: =AR17-AR34 -> 11680514.45
AR41: =AR34/AR17 -> 0.4847133017
AI42: resultado orçamentário | AL42: =AL43+(AL44*-1) -> 2127941.226
AI43: Despesa | AL43: =AL34-AK34 -> 1324075.453 | AP43: Saldo de Receita e Despesa | AR43: =(AS34-AR34)-(AS17-AR17) -> 631993.4832
AI44: Receita | AL44: =AL17-AK17 -> -803865.7734
AL46: 1272558.83 | AR46: =AR34/AR17 -> 0.4847133017
AL47: =AL42-AL46 -> 855382.3959
AL48: =AK17-AK34 -> 3482199.74
AL50: =AL48-AL46 -> 2209640.91
AK51: 65285576.94
AK52: 62209116.56
AK53: =AK51-AK52 -> 3076460.38 | AL53: =AK53-AK34 -> -1095956.38
AK54: =AK17-AK53 -> 4578156.12

Sheet Contracapa - Receita (hidden)

Sheet RESUMO (hidden)
D2: 4Q MAR 2023 | G2: JAN-FEV ACUM 2023 | H2: JAN-MAR ACUM 2023 | I2: Inputar essa informação Manualmente conforme o mês Célula D | M2: 4Q MAR 2022 | N2: Inputar essa informação Manualmente conforme o mês Célula D | O2: JAN-FEV ACUM 2023 | P2: JAN-MAR ACUM 2022 | Q2: Inputar essa informação Manualmente conforme o mês Célula D | AC2: JAN-DEZ ACUM 2023
A4: Base Arrec. | B4: Base Proj. 1° Reform. | C4: Base Proj. Inicial | D4: RÚBRICA RECEITA | E4: ARRECADAÇÃO | F4: PROJEÇÃO | G4: DIFERENÇA ARRECADAÇÃO X PROJEÇÃO | H4: ARRECADAÇÃO/ PROJEÇÃO ACUMULADA (EM REAIS) | I4: ARRECADAÇÃO ACUMULADA (EM REAIS) | J4: PROGRAMAÇÃO ACUMULADA (EM REAIS) | K4: Base Proj. Atual | L4: PROGRAMAÇÃO ACUMULADA (EM REAIS) | M4: ARRECADAÇÃO | N4: PROJEÇÃO | O4: DIFERENÇA ARRECADAÇÃO X PROJEÇÃO | P4: ARRECADAÇÃO/ PROJEÇÃO ACUMULADA (EM REAIS) | Q4: ARRECADAÇÃO ACUMULADA (EM REAIS) | R4: PROGRAMAÇÃO ACUMULADA (EM REAIS) | S4: Base Proj. Atual | T4: %VARIAÇÃO DE 2023 PARA 2022 | U4: %VARIAÇÃO ACUMULADA DE 2023 PARA 2022 | X4: Diferença com a Programação Acumulada | Z4: Participação 2023 | AA4: Participação 2022 | AC4: PROGRAMAÇÃO ANUAL 2023 (EM REAIS)
A5: ='Base de Dados Input'!E2 -> 5 | B5: ='Base de Dados Input'!P2 -> 16 | C5: ='Base de Dados Input'!AW$2 -> 49 | D5: Evolução de Todos | E5: =INDEX('Base de Dados Input'!$A:$Y,MATCH(RESUMO!$D$2,'Base de Dados Input'!$A:$A,0),MATCH(RESUMO!$A5,'Base de Dados Input'!$2:$2,0)) -> 7654616.5 | F5: =INDEX('Base de Dados Input'!$A:$BF,MATCH(RESUMO!$D$2,'Base de Dados Input'!$A:$A,0),MATCH(RESUMO!$C5,'Base de Dados Input'!$2:$2,0)) -> 6850750.727 | G5: =IF(F5=0,0,E5-F5) -> 803865.7734 | H5: =IFERROR(IF(((E5/F5)-1)<>-1,((E5/F5)-1),""),"") -> 0.1173398078 | I5: =IFERROR(INDEX('Base de Dados Input'!$A:$Y,MATCH(RESUMO!$H$2,'Base de Dados Input'!$A:$A,0),MATCH(RESUMO!$A5,'Base de Dados Input'!$2:$2,0)),E5) -> 22667991.41 | J5: =IFERROR(INDEX('Base de Dados Input'!$A:$BF,MATCH(RESUMO!$H$2,'Base de Dados Input'!$A:$A,0),MATCH(RESUMO!$C5,'Base de Dados Input'!$2:$2,0)),F5) -> 22041505.39 | K5: ='Base de Dados Input'!P2 -> 16 | L5: =IFERROR(IF(((I5/J5)-1)<>-1,((I5/J5)-1),""),"") -> 0.02842301408 | M5: =INDEX('Base de Dados Input'!$A:$Y,MATCH(RESUMO!$M$2,'Base de Dados Input'!$A:$A,0),MATCH(RESUMO!$A5,'Base de Dados Input'!$2:$2,0)) -> 7131590.5 | N5: =INDEX('Base de Dados Input'!$A:$BF,MATCH(RESUMO!$M$2,'Base de Dados Input'!$A:$A,0),MATCH(RESUMO!$C5,'Base de Dados Input'!$2:$2,0)) -> 5119148.119 | O5: =IF(N5=0,0,M5-N5) -> 2012442.381 | P5: =IFERROR(IF(((M5/N5)-1)<>-1,((M5/N5)-1),""),"") -> 0.3931205612 | Q5: =IFERROR(INDEX('Base de Dados Input'!$A:$Y,MATCH(RESUMO!$P$2,'Base de Dados Input'!$A:$A,0),MATCH(RESUMO!$A5,'Base de Dados Input'!$2:$2,0)),M5) -> 20236694.85 | R5: =IFERROR(INDEX('Base de Dados Input'!$A:$BF,MATCH(RESUMO!$P$2,'Base de Dados Input'!$A:$A,0),MATCH(RESUMO!$C5,'Base de Dados Input'!$2:$2,0)),N5) -> 18646085.07 | S5: ='Base de Dados Input'!X2 -> 24 | T5: =IFERROR(((E5/M5)-1),"") -> 0.07333932031 | U5: =IFERROR(((I5/Q5)-1),"") -> 0.1201429669 | X5: =I5-J5 -> 626486.0182 | AC5: =INDEX('Base de Dados Input'!$A:$BF,MATCH(RESUMO!$AC$2,'Base de Dados Input'!$A:$A,0),MATCH(RESUMO!$C5,'Base de Dados Input'!$2:$2,0)) -> 65957906.55
A6: =A5+1 -> 6 | B6: =B5+1 -> 17 | C6: 50 | D6: Todos Sem Aplicação Financeira e Receitas Diversas | E6: =INDEX('Base de Dados Input'!$A:$Y,MATCH(RESUMO!$D$2,'Base de Dados Input'!$A:$A,0),MATCH(RESUMO!$A6,'Base de Dados Input'!$2:$2,0)) -> 6666759.35 | F6: =INDEX('Base de Dados Input'!$A:$BF,MATCH(RESUMO!$D$2,'Base de Dados Input'!$A:$A,0),MATCH(RESUMO!$C6,'Base de Dados Input'!$2:$2,0)) -> 6569910.401 | G6: =IF(F6=0,0,E6-F6) -> 96848.94881 | H6: =IFERROR(IF(((E6/F6)-1)<>-1,((E6/F6)-1),""),"") -> 0.01474128913 | I6: =IFERROR(INDEX('Base de Dados Input'!$A:$Y,MATCH(RESUMO!$H$2,'Base de Dados Input'!$A:$A,0),MATCH(RESUMO!$A6,'Base de Dados Input'!$2:$2,0)),E6) -> 20160157.56 | J6: =IFERROR(INDEX('Base de Dados Input'!$A:$BF,MATCH(RESUMO!$H$2,'Base de Dados Input'!$A:$A,0),MATCH(RESUMO!$C6,'Base de Dados Input'!$2:$2,0)),F6) -> 21221526.33 | K6: =K5+1 -> 17 | L6: =IFERROR(IF(((I6/J6)-1)<>-1,((I6/J6)-1),""),"") -> -0.05001378094 | M6: =INDEX('Base de Dados Input'!$A:$Y,MATCH(RESUMO!$M$2,'Base de Dados Input'!$A:$A,0),MATCH(RESUMO!$A6,'Base de Dados Input'!$2:$2,0)) -> 6521976.06 | N6: =INDEX('Base de Dados Input'!$A:$BF,MATCH(RESUMO!$M$2,'Base de Dados Input'!$A:$A,0),MATCH(RESUMO!$C6,'Base de Dados Input'!$2:$2,0)) -> 5001412.642 | O6: =IF(N6=0,0,M6-N6) -> 1520563.418 | P6: 0.3040267875 | Q6: =IFERROR(INDEX('Base de Dados Input'!$A:$Y,MATCH(RESUMO!$P$2,'Base de Dados Input'!$A:$A,0),MATCH(RESUMO!$A6,'Base de Dados Input'!$2:$2,0)),M6) -> 18736182.65 | R6: =IFERROR(INDEX('Base de Dados Input'!$A:$BF,MATCH(RESUMO!$P$2,'Base de Dados Input'!$A:$A,0),MATCH(RESUMO!$C6,'Base de Dados Input'!$2:$2,0)),N6) -> 18239281.63 | S6: =S5+1 -> 25 | T6: =IFERROR(((E6/M6)-1),"") -> 0.02219929798 | U6: =IFERROR(((I6/Q6)-1),"") -> 0.07600133584 | X6: =I6-J6 -> -1061368.769 | AC6: =INDEX('Base de Dados Input'!$A:$BF,MATCH(RESUMO!$AC$2,'Base de Dados Input'!$A:$A,0),MATCH(RESUMO!$C6,'Base de Dados Input'!$2:$2,0)) -> 62398013.75
A7: =A6+1 -> 7 | B7: 18 | C7: 51 | D7: RRT | E7: =INDEX('Base de Dados Input'!$A:$Y,MATCH(RESUMO!$D$2,'Base de Dados Input'!$A:$A,0),MATCH(RESUMO!$A7,'Base de Dados Input'!$2:$2,0)) -> 2910921.1 | F7: =INDEX('Base de Dados Input'!$A:$BF,MATCH(RESUMO!$D$2,'Base de Dados Input'!$A:$A,0),MATCH(RESUMO!$C7,'Base de Dados Input'!$2:$2,0)) -> 3018769.796 | G7: -107848.6956 | H7: -0.0357260417 | I7: =IFERROR(INDEX('Base de Dados Input'!$A:$Y,MATCH(RESUMO!$H$2,'Base de Dados Input'!$A:$A,0),MATCH(RESUMO!$A7,'Base de Dados Input'!$2:$2,0)),E7) -> 7162311.28 | J7: =IFERROR(INDEX('Base de Dados Input'!$A:$BF,MATCH(RESUMO!$H$2,'Base de Dados Input'!$A:$A,0),MATCH(RESUMO!$C7,'Base de Dados Input'!$2:$2,0)),F7) -> 8020493.272 | K7: =K6+1 -> 18 | L7: -0.1069986549 | M7: =INDEX('Base de Dados Input'!$A:$Y,MATCH(RESUMO!$M$2,'Base de Dados Input'!$A:$A,0),MATCH(RESUMO!$A7,'Base de Dados Input'!$2:$2,0)) -> 2854112.45 | N7: =INDEX('Base de Dados Input'!$A:$BF,MATCH(RESUMO!$M$2,'Base de Dados Input'!$A:$A,0),MATCH(RESUMO!$C7,'Base de Dados Input'!$2:$2,0)) -> 2453592.572 | O7: 400519.8784 | P7: 0.1632381362 | Q7: =IFERROR(INDEX('Base de Dados Input'!$A:$Y,MATCH(RESUMO!$P$2,'Base de Dados Input'!$A:$A,0),MATCH(RESUMO!$A7,'Base de Dados Input'!$2:$2,0)),M7) -> 7025143.72 | R7: =IFERROR(INDEX('Base de Dados Input'!$A:$BF,MATCH(RESUMO!$P$2,'Base de Dados Input'!$A:$A,0),MATCH(RESUMO!$C7,'Base de Dados Input'!$2:$2,0)),N7) -> 6817771.627 | S7: =S6+1 -> 26 | T7: 0.01990413868 | U7: 0.01952523186 | X7: -858181.9921 | Z7: =I7/$I$5 -> 0.3159658547 | AA7: =M7/$M$5 -> 0.4002070015 | AC7: =INDEX('Base de Dados Input'!$A:$BF,MATCH(RESUMO!$AC$2,'Base de Dados Input'!$A:$A,0),MATCH(RESUMO!$C7,'Base de Dados Input'!$2:$2,0)) -> 34227213.02
A8: 8 | B8: 19 | C8: 52 | D8: Anuidade Pessoa Fís. | E8: =INDEX('Base de Dados Input'!$A:$Y,MATCH(RESUMO!$D$2,'Base de Dados Input'!$A:$A,0),MATCH(RESUMO!$A8,'Base de Dados Input'!$2:$2,0)) -> 2611423.56 | F8: =INDEX('Base de Dados Input'!$A:$BF,MATCH(RESUMO!$D$2,'Base de Dados Input'!$A:$A,0),MATCH(RESUMO!$C8,'Base de Dados Input'!$2:$2,0)) -> 2715138.457 | G8: -103714.8975 | H8: -0.03819875086 | I8: =IFERROR(INDEX('Base de Dados Input'!$A:$Y,MATCH(RESUMO!$H$2,'Base de Dados Input'!$A:$A,0),MATCH(RESUMO!$A8,'Base de Dados Input'!$2:$2,0)),E8) -> 9822587.64 | J8: =IFERROR(INDEX('Base de Dados Input'!$A:$BF,MATCH(RESUMO!$H$2,'Base de Dados Input'!$A:$A,0),MATCH(RESUMO!$C8,'Base de Dados Input'!$2:$2,0)),F8) -> 10469741.25 | K8: 19 | L8: -0.06181180558 | M8: =INDEX('Base de Dados Input'!$A:$Y,MATCH(RESUMO!$M$2,'Base de Dados Input'!$A:$A,0),MATCH(RESUMO!$A8,'Base de Dados Input'!$2:$2,0)) -> 2762173.69 | N8: =INDEX('Base de Dados Input'!$A:$BF,MATCH(RESUMO!$M$2,'Base de Dados Input'!$A:$A,0),MATCH(RESUMO!$C8,'Base de Dados Input'!$2:$2,0)) -> 1958014.976 | O8: 804158.7142 | P8: 0.4107010029 | Q8: =IFERROR(INDEX('Base de Dados Input'!$A:$Y,MATCH(RESUMO!$P$2,'Base de Dados Input'!$A:$A,0),MATCH(RESUMO!$A8,'Base de Dados Input'!$2:$2,0)),M8) -> 9154231.96 | R8: =IFERROR(INDEX('Base de Dados Input'!$A:$BF,MATCH(RESUMO!$P$2,'Base de Dados Input'!$A:$A,0),MATCH(RESUMO!$C8,'Base de Dados Input'!$2:$2,0)),N8) -> 9154568.08 | S8: 27 | T8: -0.05457662947 | U8: 0.07301056855 | X8: -647153.6107 | Z8: 0.4333241293 | AA8: =M8/$M$5 -> 0.3873152405 | AC8: =INDEX('Base de Dados Input'!$A:$BF,MATCH(RESUMO!$AC$2,'Base de Dados Input'!$A:$A,0),MATCH(RESUMO!$C8,'Base de Dados Input'!$2:$2,0)) -> 19184594.75
A9: 9 | B9: 20 | C9: 53 | D9: Aplicação Financeira | E9: =INDEX('Base de Dados Input'!$A:$Y,MATCH(RESUMO!$D$2,'Base de Dados Input'!$A:$A,0),MATCH(RESUMO!$A9,'Base de Dados Input'!$2:$2,0)) -> 870188.68 | F9: =INDEX('Base de Dados Input'!$A:$BF,MATCH(RESUMO!$D$2,'Base de Dados Input'!$A:$A,0),MATCH(RESUMO!$C9,'Base de Dados Input'!$2:$2,0)) -> 219246.6701 | G9: 650942.0099 | H9: 2.968993825 | I9: =IFERROR(INDEX('Base de Dados Input'!$A:$Y,MATCH(RESUMO!$H$2,'Base de Dados Input'!$A:$A,0),MATCH(RESUMO!$A9,'Base de Dados Input'!$2:$2,0)),E9) -> 2322865.06 | J9: =IFERROR(INDEX('Base de Dados Input'!$A:$BF,MATCH(RESUMO!$H$2,'Base de Dados Input'!$A:$A,0),MATCH(RESUMO!$C9,'Base de Dados Input'!$2:$2,0)),F9) -> 602746.588 | K9: 20 | L9: 2.85380043 | M9: =INDEX('Base de Dados Input'!$A:$Y,MATCH(RESUMO!$M$2,'Base de Dados Input'!$A:$A,0),MATCH(RESUMO!$A9,'Base de Dados Input'!$2:$2,0)) -> 546667.25 | N9: =INDEX('Base de Dados Input'!$A:$BF,MATCH(RESUMO!$M$2,'Base de Dados Input'!$A:$A,0),MATCH(RESUMO!$C9,'Base de Dados Input'!$2:$2,0)) -> 78018.23546 | O9: 468649.0145 | P9: 6.006916355 | Q9: =IFERROR(INDEX('Base de Dados Input'!$A:$Y,MATCH(RESUMO!$P$2,'Base de Dados Input'!$A:$A,0),MATCH(RESUMO!$A9,'Base de Dados Input'!$2:$2,0)),M9) -> 1357662.63 | R9: =IFERROR(INDEX('Base de Dados Input'!$A:$BF,MATCH(RESUMO!$P$2,'Base de Dados Input'!$A:$A,0),MATCH(RESUMO!$C9,'Base de Dados Input'!$2:$2,0)),N9) -> 230259.8188 | S9: 28 | T9: 0.5918068624 | U9: 0.7109295113 | X9: 1720118.472 | Z9: 0.1024733519 | AA9: 0.07665432417 | AC9: =INDEX('Base de Dados Input'!$A:$BF,MATCH(RESUMO!$AC$2,'Base de Dados Input'!$A:$A,0),MATCH(RESUMO!$C9,'Base de Dados Input'!$2:$2,0)) -> 2894727.15
A10: 10 | B10: 21 | C10: 54 | D10: Anuidade Pessoa Jur. | E10: =INDEX('Base de Dados Input'!$A:$Y,MATCH(RESUMO!$D$2,'Base de Dados Input'!$A:$A,0),MATCH(RESUMO!$A10,'Base de Dados Input'!$2:$2,0)) -> 80709.6 | F10: =INDEX('Base de Dados Input'!$A:$BF,MATCH(RESUMO!$D$2,'Base de Dados Input'!$A:$A,0),MATCH(RESUMO!$C10,'Base de Dados Input'!$2:$2,0)) -> 106850.1461 | G10: -26140.54614 | H10: -0.2446467982 | I10: =IFERROR(INDEX('Base de Dados Input'!$A:$Y,MATCH(RESUMO!$H$2,'Base de Dados Input'!$A:$A,0),MATCH(RESUMO!$A10,'Base de Dados Input'!$2:$2,0)),E10) -> 312548.75 | J10: =IFERROR(INDEX('Base de Dados Input'!$A:$BF,MATCH(RESUMO!$H$2,'Base de Dados Input'!$A:$A,0),MATCH(RESUMO!$C10,'Base de Dados Input'!$2:$2,0)),F10) -> 497839.4313 | K10: 21 | L10: -0.3721896452 | M10: =INDEX('Base de Dados Input'!$A:$Y,MATCH(RESUMO!$M$2,'Base de Dados Input'!$A:$A,0),MATCH(RESUMO!$A10,'Base de Dados Input'!$2:$2,0)) -> 56169.77 | N10: =INDEX('Base de Dados Input'!$A:$BF,MATCH(RESUMO!$M$2,'Base de Dados Input'!$A:$A,0),MATCH(RESUMO!$C10,'Base de Dados Input'!$2:$2,0)) -> 146268.332 | O10: -90098.56198 | P10: -0.6159813321 | Q10: =IFERROR(INDEX('Base de Dados Input'!$A:$Y,MATCH(RESUMO!$P$2,'Base de Dados Input'!$A:$A,0),MATCH(RESUMO!$A10,'Base de Dados Input'!$2:$2,0)),M10) -> 266450.27 | R10: =IFERROR(INDEX('Base de Dados Input'!$A:$BF,MATCH(RESUMO!$P$2,'Base de Dados Input'!$A:$A,0),MATCH(RESUMO!$C10,'Base de Dados Input'!$2:$2,0)),N10) -> 744071.1241 | S10: 29 | T10: 0.4368867809 | U10: 0.1730096952 | X10: =I10-J10 -> -185290.6813 | Z10: 0.0137881096 | AA10: 0.007876191153 | AC10: =INDEX('Base de Dados Input'!$A:$BF,MATCH(RESUMO!$AC$2,'Base de Dados Input'!$A:$A,0),MATCH(RESUMO!$C10,'Base de Dados Input'!$2:$2,0)) -> 1386723.45
A11: 11 | B11: 22 | C11: 55 | D11: Anuidade Pessoa Fís. A.A. | E11: =INDEX('Base de Dados Input'!$A:$Y,MATCH(RESUMO!$D$2,'Base de Dados Input'!$A:$A,0),MATCH(RESUMO!$A11,'Base de Dados Input'!$2:$2,0)) -> 677545.46 | F11: =INDEX('Base de Dados Input'!$A:$BF,MATCH(RESUMO!$D$2,'Base de Dados Input'!$A:$A,0),MATCH(RESUMO!$C11,'Base de Dados Input'!$2:$2,0)) -> 489663.9719 | G11: 187881.4881 | H11: 0.3836947353 | I11: =IFERROR(INDEX('Base de Dados Input'!$A:$Y,MATCH(RESUMO!$H$2,'Base de Dados Input'!$A:$A,0),MATCH(RESUMO!$A11,'Base de Dados Input'!$2:$2,0)),E11) -> 1873581.89 | J11: =IFERROR(INDEX('Base de Dados Input'!$A:$BF,MATCH(RESUMO!$H$2,'Base de Dados Input'!$A:$A,0),MATCH(RESUMO!$C11,'Base de Dados Input'!$2:$2,0)),F11) -> 1523758.268 | K11: 22 | L11: 0.2295794745 | M11: =INDEX('Base de Dados Input'!$A:$Y,MATCH(RESUMO!$M$2,'Base de Dados Input'!$A:$A,0),MATCH(RESUMO!$A11,'Base de Dados Input'!$2:$2,0)) -> 520804.13 | N11: =INDEX('Base de Dados Input'!$A:$BF,MATCH(RESUMO!$M$2,'Base de Dados Input'!$A:$A,0),MATCH(RESUMO!$C11,'Base de Dados Input'!$2:$2,0)) -> 299789.157 | O11: 221014.973 | P11: 0.7372347129 | Q11: =IFERROR(INDEX('Base de Dados Input'!$A:$Y,MATCH(RESUMO!$P$2,'Base de Dados Input'!$A:$A,0),MATCH(RESUMO!$A11,'Base de Dados Input'!$2:$2,0)),M11) -> 1446008.83 | R11: =IFERROR(INDEX('Base de Dados Input'!$A:$BF,MATCH(RESUMO!$P$2,'Base de Dados Input'!$A:$A,0),MATCH(RESUMO!$C11,'Base de Dados Input'!$2:$2,0)),N11) -> 1036277.445 | S11: 30 | T11: 0.3009602286 | U11: 0.2956918735 | X11: 349823.6224 | Z11: 0.08265319393 | AA11: 0.07302776709 | AC11: =INDEX('Base de Dados Input'!$A:$BF,MATCH(RESUMO!$AC$2,'Base de Dados Input'!$A:$A,0),MATCH(RESUMO!$C11,'Base de Dados Input'!$2:$2,0)) -> 4488928.33
A12: 12 | B12: 23 | C12: 56 | D12: Multas e Juros | E12: =INDEX('Base de Dados Input'!$A:$Y,MATCH(RESUMO!$D$2,'Base de Dados Input'!$A:$A,0),MATCH(RESUMO!$A12,'Base de Dados Input'!$2:$2,0)) -> 265556.24 | F12: =INDEX('Base de Dados Input'!$A:$BF,MATCH(RESUMO!$D$2,'Base de Dados Input'!$A:$A,0),MATCH(RESUMO!$C12,'Base de Dados Input'!$2:$2,0)) -> 192948.5006 | G12: 72607.73944 | H12: 0.3763063161 | I12: =IFERROR(INDEX('Base de Dados Input'!$A:$Y,MATCH(RESUMO!$H$2,'Base de Dados Input'!$A:$A,0),MATCH(RESUMO!$A12,'Base de Dados Input'!$2:$2,0)),E12) -> 655582.36 | J12: =IFERROR(INDEX('Base de Dados Input'!$A:$BF,MATCH(RESUMO!$H$2,'Base de Dados Input'!$A:$A,0),MATCH(RESUMO!$C12,'Base de Dados Input'!$2:$2,0)),F12) -> 573082.7574 | K12: 23 | L12: 0.1439575725 | M12: =INDEX('Base de Dados Input'!$A:$Y,MATCH(RESUMO!$M$2,'Base de Dados Input'!$A:$A,0),MATCH(RESUMO!$A12,'Base de Dados Input'!$2:$2,0)) -> 235380.82 | N12: =INDEX('Base de Dados Input'!$A:$BF,MATCH(RESUMO!$M$2,'Base de Dados Input'!$A:$A,0),MATCH(RESUMO!$C12,'Base de Dados Input'!$2:$2,0)) -> 108295.6689 | O12: 127085.1511 | P12: 1.173501695 | Q12: =IFERROR(INDEX('Base de Dados Input'!$A:$Y,MATCH(RESUMO!$P$2,'Base de Dados Input'!$A:$A,0),MATCH(RESUMO!$A12,'Base de Dados Input'!$2:$2,0)),M12) -> 605699.98 | R12: =IFERROR(INDEX('Base de Dados Input'!$A:$BF,MATCH(RESUMO!$P$2,'Base de Dados Input'!$A:$A,0),MATCH(RESUMO!$C12,'Base de Dados Input'!$2:$2,0)),N12) -> 370422.973 | S12: 31 | T12: 0.1281982959 | U12: 0.0823549309 | X12: 82499.60257 | Z12: 0.0289210609 | AA12: 0.03300537517 | AC12: =INDEX('Base de Dados Input'!$A:$BF,MATCH(RESUMO!$AC$2,'Base de Dados Input'!$A:$A,0),MATCH(RESUMO!$C12,'Base de Dados Input'!$2:$2,0)) -> 2575530.97
A13: 13 | B13: 24 | C13: 57 | D13: Anuidade Pessoa Jur. A.A. | E13: =INDEX('Base de Dados Input'!$A:$Y,MATCH(RESUMO!$D$2,'Base de Dados Input'!$A:$A,0),MATCH(RESUMO!$A13,'Base de Dados Input'!$2:$2,0)) -> 120603.39 | F13: =INDEX('Base de Dados Input'!$A:$BF,MATCH(RESUMO!$D$2,'Base de Dados Input'!$A:$A,0),MATCH(RESUMO!$C13,'Base de Dados Input'!$2:$2,0)) -> 46539.52952 | G13: 74063.86048 | H13: 1.591418333 | I13: =IFERROR(INDEX('Base de Dados Input'!$A:$Y,MATCH(RESUMO!$H$2,'Base de Dados Input'!$A:$A,0),MATCH(RESUMO!$A13,'Base de Dados Input'!$2:$2,0)),E13) -> 333545.64 | J13: =IFERROR(INDEX('Base de Dados Input'!$A:$BF,MATCH(RESUMO!$H$2,'Base de Dados Input'!$A:$A,0),MATCH(RESUMO!$C13,'Base de Dados Input'!$2:$2,0)),F13) -> 136611.3499 | K13: 24 | L13: 1.441566095 | M13: =INDEX('Base de Dados Input'!$A:$Y,MATCH(RESUMO!$M$2,'Base de Dados Input'!$A:$A,0),MATCH(RESUMO!$A13,'Base de Dados Input'!$2:$2,0)) -> 93335.2 | N13: =INDEX('Base de Dados Input'!$A:$BF,MATCH(RESUMO!$M$2,'Base de Dados Input'!$A:$A,0),MATCH(RESUMO!$C13,'Base de Dados Input'!$2:$2,0)) -> 35451.93642 | O13: 57883.26358 | P13: 1.632725019 | Q13: =IFERROR(INDEX('Base de Dados Input'!$A:$Y,MATCH(RESUMO!$P$2,'Base de Dados Input'!$A:$A,0),MATCH(RESUMO!$A13,'Base de Dados Input'!$2:$2,0)),M13) -> 238647.89 | R13: =IFERROR(INDEX('Base de Dados Input'!$A:$BF,MATCH(RESUMO!$P$2,'Base de Dados Input'!$A:$A,0),MATCH(RESUMO!$C13,'Base de Dados Input'!$2:$2,0)),N13) -> 116170.3855 | S13: 32 | T13: 0.2921533355 | U13: 0.3976475551 | X13: 196934.2901 | Z13: 0.01471438885 | AA13: 0.01308757142 | AC13: =INDEX('Base de Dados Input'!$A:$BF,MATCH(RESUMO!$AC$2,'Base de Dados Input'!$A:$A,0),MATCH(RESUMO!$C13,'Base de Dados Input'!$2:$2,0)) -> 535023.23
A14: 14 | B14: 25 | C14: 58 | D14: Diversas Receitas | E14: =INDEX('Base de Dados Input'!$A:$Y,MATCH(RESUMO!$D$2,'Base de Dados Input'!$A:$A,0),MATCH(RESUMO!$A14,'Base de Dados Input'!$2:$2,0)) -> 117668.47 | F14: =INDEX('Base de Dados Input'!$A:$BF,MATCH(RESUMO!$D$2,'Base de Dados Input'!$A:$A,0),MATCH(RESUMO!$C14,'Base de Dados Input'!$2:$2,0)) -> 61593.65525 | G14: 56074.81475 | H14: 0.9103992045 | I14: =IFERROR(INDEX('Base de Dados Input'!$A:$Y,MATCH(RESUMO!$H$2,'Base de Dados Input'!$A:$A,0),MATCH(RESUMO!$A14,'Base de Dados Input'!$2:$2,0)),E14) -> 184968.79 | J14: =IFERROR(INDEX('Base de Dados Input'!$A:$BF,MATCH(RESUMO!$H$2,'Base de Dados Input'!$A:$A,0),MATCH(RESUMO!$C14,'Base de Dados Input'!$2:$2,0)),F14) -> 217232.4748 | K14: 25 | L14: -0.1485214623 | M14: =INDEX('Base de Dados Input'!$A:$Y,MATCH(RESUMO!$M$2,'Base de Dados Input'!$A:$A,0),MATCH(RESUMO!$A14,'Base de Dados Input'!$2:$2,0)) -> 62947.19 | N14: =INDEX('Base de Dados Input'!$A:$BF,MATCH(RESUMO!$M$2,'Base de Dados Input'!$A:$A,0),MATCH(RESUMO!$C14,'Base de Dados Input'!$2:$2,0)) -> 39717.2416 | O14: 23229.9484 | P14: 0.584883226 | Q14: =IFERROR(INDEX('Base de Dados Input'!$A:$Y,MATCH(RESUMO!$P$2,'Base de Dados Input'!$A:$A,0),MATCH(RESUMO!$A14,'Base de Dados Input'!$2:$2,0)),M14) -> 142849.57 | R14: =IFERROR(INDEX('Base de Dados Input'!$A:$BF,MATCH(RESUMO!$P$2,'Base de Dados Input'!$A:$A,0),MATCH(RESUMO!$C14,'Base de Dados Input'!$2:$2,0)),N14) -> 176543.6185 | S14: 33 | T14: 0.8693204574 | U14: 0.29485017 | X14: -32263.68481 | Z14: 0.008159910892 | AA14: 0.008826528949 | AC14: =INDEX('Base de Dados Input'!$A:$BF,MATCH(RESUMO!$AC$2,'Base de Dados Input'!$A:$A,0),MATCH(RESUMO!$C14,'Base de Dados Input'!$2:$2,0)) -> 665165.65
H16: % ARRECADADO | I16: =I5/J16 -> 0.3436736033 | J16: ='Quadro de Receita'!D16 -> 65957906.55 | L16: =I7/I5 -> 0.3159658547
J18: ARRECADAÇÃO ANUAL POR RÚBRICA
D19: TOTAL ANUAL | E19: ANO | F19: Evolução de Todos | G19: Todos Sem Aplicação Financeira | H19: RRT | I19: Anuidade Pessoa Física do Exercício | J19: Aplicaçao Financeira do Exercício | K19: Anuidade Pessoa Jurídica do Exercício | L19: Anuidade Pessoa Física Exerc. Ant | M19: Multas e Juros | N19: Anuidade Pessoa Jurídica Exerc. Ant | O19: Diversas Receitas
A20: ='Base de Dados Input'!B10 -> 4Q 2012 | E20: =RIGHT(A20,4) -> 2012 | F20: =SUM(H20:O20) -> 23040508.45 | G20: =SUM(H20:O20)-J20-O20 -> 17658767.69 | H20: =SUMIF('Base de Dados Input'!$B:$B,RESUMO!$A20,'Base de Dados Input'!G:G) -> 9946231.45 | I20: =SUMIF('Base de Dados Input'!$B:$B,RESUMO!$A20,'Base de Dados Input'!H:H) -> 7044362.8 | J20: =SUMIF('Base de Dados Input'!$B:$B,RESUMO!$A20,'Base de Dados Input'!I:I) -> 838386.21 | K20: =SUMIF('Base de Dados Input'!$B:$B,RESUMO!$A20,'Base de Dados Input'!J:J) -> 661604.08 | L20: =SUMIF('Base de Dados Input'!$B:$B,RESUMO!$A20,'Base de Dados Input'!K:K) -> 0 | M20: =SUMIF('Base de Dados Input'!$B:$B,RESUMO!$A20,'Base de Dados Input'!L:L) -> 6569.36 | N20: =SUMIF('Base de Dados Input'!$B:$B,RESUMO!$A20,'Base de Dados Input'!M:M) -> 0 | O20: =SUMIF('Base de Dados Input'!$B:$B,RESUMO!$A20,'Base de Dados Input'!N:N) -> 4543354.55
A21: ='Base de Dados Input'!B58 -> 4Q 2013 | E21: 2013 | F21: 25160064.49 | G21: =SUM(H21:O21)-J21-O21 -> 23180496.07 | H21: =SUMIF('Base de Dados Input'!$B:$B,RESUMO!$A21,'Base de Dados Input'!G:G) -> 12317326.32 | I21: =SUMIF('Base de Dados Input'!$B:$B,RESUMO!$A21,'Base de Dados Input'!H:H) -> 8290175.33 | J21: =SUMIF('Base de Dados Input'!$B:$B,RESUMO!$A21,'Base de Dados Input'!I:I) -> 1844104.41 | K21: =SUMIF('Base de Dados Input'!$B:$B,RESUMO!$A21,'Base de Dados Input'!J:J) -> 854413.24 | L21: =SUMIF('Base de Dados Input'!$B:$B,RESUMO!$A21,'Base de Dados Input'!K:K) -> 1085179.53 | M21: =SUMIF('Base de Dados Input'!$B:$B,RESUMO!$A21,'Base de Dados Input'!L:L) -> 507722.68 | N21: =SUMIF('Base de Dados Input'!$B:$B,RESUMO!$A21,'Base de Dados Input'!M:M) -> 125678.97 | O21: =SUMIF('Base de Dados Input'!$B:$B,RESUMO!$A21,'Base de Dados Input'!N:N) -> 135464.01
A22: ='Base de Dados Input'!B150 -> 4Q 2014 | E22: 2014 | F22: 30277143.04 | G22: 27098590.7 | H22: =SUMIF('Base de Dados Input'!$B:$B,RESUMO!$A22,'Base de Dados Input'!G:G) -> 14900419.99 | I22: =SUMIF('Base de Dados Input'!$B:$B,RESUMO!$A22,'Base de Dados Input'!H:H) -> 9334399.17 | J22: =SUMIF('Base de Dados Input'!$B:$B,RESUMO!$A22,'Base de Dados Input'!I:I) -> 2965884.72 | K22: =SUMIF('Base de Dados Input'!$B:$B,RESUMO!$A22,'Base de Dados Input'!J:J) -> 939237.41 | L22: =SUMIF('Base de Dados Input'!$B:$B,RESUMO!$A22,'Base de Dados Input'!K:K) -> 1128660.21 | M22: =SUMIF('Base de Dados Input'!$B:$B,RESUMO!$A22,'Base de Dados Input'!L:L) -> 678954.08 | N22: =SUMIF('Base de Dados Input'!$B:$B,RESUMO!$A22,'Base de Dados Input'!M:M) -> 116919.84 | O22: =SUMIF('Base de Dados Input'!$B:$B,RESUMO!$A22,'Base de Dados Input'!N:N) -> 212667.62
A23: ='Base de Dados Input'!B242 -> 4Q 2015 | E23: 2015 | F23: 35659748.54 | G23: 31194302.61 | H23: =SUMIF('Base de Dados Input'!$B:$B,RESUMO!$A23,'Base de Dados Input'!G:G) -> 17411144.71 | I23: =SUMIF('Base de Dados Input'!$B:$B,RESUMO!$A23,'Base de Dados Input'!H:H) -> 10289947.56 | J23: =SUMIF('Base de Dados Input'!$B:$B,RESUMO!$A23,'Base de Dados Input'!I:I) -> 4291984.82 | K23: =SUMIF('Base de Dados Input'!$B:$B,RESUMO!$A23,'Base de Dados Input'!J:J) -> 1173679.36 | L23: =SUMIF('Base de Dados Input'!$B:$B,RESUMO!$A23,'Base de Dados Input'!K:K) -> 1302783.7 | M23: =SUMIF('Base de Dados Input'!$B:$B,RESUMO!$A23,'Base de Dados Input'!L:L) -> 815837.32 | N23: =SUMIF('Base de Dados Input'!$B:$B,RESUMO!$A23,'Base de Dados Input'!M:M) -> 200909.96 | O23: =SUMIF('Base de Dados Input'!$B:$B,RESUMO!$A23,'Base de Dados Input'!N:N) -> 173461.11
A24: ='Base de Dados Input'!B334 -> 4Q 2016 | E24: 2016 | F24: 40002855.32 | G24: 34192244.17 | H24: =SUMIF('Base de Dados Input'!$B:$B,RESUMO!$A24,'Base de Dados Input'!G:G) -> 18716141.99 | I24: =SUMIF('Base de Dados Input'!$B:$B,RESUMO!$A24,'Base de Dados Input'!H:H) -> 11387122.71 | J24: =SUMIF('Base de Dados Input'!$B:$B,RESUMO!$A24,'Base de Dados Input'!I:I) -> 5575466.14 | K24: =SUMIF('Base de Dados Input'!$B:$B,RESUMO!$A24,'Base de Dados Input'!J:J) -> 1339764.44 | L24: =SUMIF('Base de Dados Input'!$B:$B,RESUMO!$A24,'Base de Dados Input'!K:K) -> 1474637.66 | M24: =SUMIF('Base de Dados Input'!$B:$B,RESUMO!$A24,'Base de Dados Input'!L:L) -> 1077161.92 | N24: =SUMIF('Base de Dados Input'!$B:$B,RESUMO!$A24,'Base de Dados Input'!M:M) -> 197415.45 | O24: =SUMIF('Base de Dados Input'!$B:$B,RESUMO!$A24,'Base de Dados Input'!N:N) -> 235145.01
A25: ='Base de Dados Input'!B426 -> 4Q 2017 | E25: 2017 | F25: 44590723.31 | G25: 39718189.95 | H25: =SUMIF('Base de Dados Input'!$B:$B,RESUMO!$A25,'Base de Dados Input'!G:G) -> 21186911.12 | I25: =SUMIF('Base de Dados Input'!$B:$B,RESUMO!$A25,'Base de Dados Input'!H:H) -> 12215031.41 | J25: =SUMIF('Base de Dados Input'!$B:$B,RESUMO!$A25,'Base de Dados Input'!I:I) -> 4637655.53 | K25: =SUMIF('Base de Dados Input'!$B:$B,RESUMO!$A25,'Base de Dados Input'!J:J) -> 1442572.892 | L25: =SUMIF('Base de Dados Input'!$B:$B,RESUMO!$A25,'Base de Dados Input'!K:K) -> 2750168.84 | M25: =SUMIF('Base de Dados Input'!$B:$B,RESUMO!$A25,'Base de Dados Input'!L:L) -> 1745814.69 | N25: =SUMIF('Base de Dados Input'!$B:$B,RESUMO!$A25,'Base de Dados Input'!M:M) -> 377690.996 | O25: =SUMIF('Base de Dados Input'!$B:$B,RESUMO!$A25,'Base de Dados Input'!N:N) -> 234877.83
A26: ='Base de Dados Input'!B518 -> 4Q 2018 | E26: 2018 | F26: 45413566.07 | G26: 41728112.88 | H26: =SUMIF('Base de Dados Input'!$B:$B,RESUMO!$A26,'Base de Dados Input'!G:G) -> 23412898.65 | I26: =SUMIF('Base de Dados Input'!$B:$B,RESUMO!$A26,'Base de Dados Input'!H:H) -> 12455023.09 | J26: =SUMIF('Base de Dados Input'!$B:$B,RESUMO!$A26,'Base de Dados Input'!I:I) -> 3210125.69 | K26: =SUMIF('Base de Dados Input'!$B:$B,RESUMO!$A26,'Base de Dados Input'!J:J) -> 1525006.42 | L26: =SUMIF('Base de Dados Input'!$B:$B,RESUMO!$A26,'Base de Dados Input'!K:K) -> 2534296.71 | M26: =SUMIF('Base de Dados Input'!$B:$B,RESUMO!$A26,'Base de Dados Input'!L:L) -> 1498574.21 | N26: =SUMIF('Base de Dados Input'!$B:$B,RESUMO!$A26,'Base de Dados Input'!M:M) -> 302313.8 | O26: =SUMIF('Base de Dados Input'!$B:$B,RESUMO!$A26,'Base de Dados Input'!N:N) -> 475327.5
A27: ='Base de Dados Input'!B610 -> 4Q 2019 | E27: 2019 | F27: 53043306.27 | G27: 48695128.55 | H27: =SUMIF('Base de Dados Input'!$B:$B,RESUMO!$A27,'Base de Dados Input'!G:G) -> 25773100.58 | I27: =SUMIF('Base de Dados Input'!$B:$B,RESUMO!$A27,'Base de Dados Input'!H:H) -> 13995762.93 | J27: =SUMIF('Base de Dados Input'!$B:$B,RESUMO!$A27,'Base de Dados Input'!I:I) -> 3615880.05 | K27: =SUMIF('Base de Dados Input'!$B:$B,RESUMO!$A27,'Base de Dados Input'!J:J) -> 1788175.73 | L27: =SUMIF('Base de Dados Input'!$B:$B,RESUMO!$A27,'Base de Dados Input'!K:K) -> 4529838.46 | M27: =SUMIF('Base de Dados Input'!$B:$B,RESUMO!$A27,'Base de Dados Input'!L:L) -> 1960381.48 | N27: =SUMIF('Base de Dados Input'!$B:$B,RESUMO!$A27,'Base de Dados Input'!M:M) -> 647869.37 | O27: =SUMIF('Base de Dados Input'!$B:$B,RESUMO!$A27,'Base de Dados Input'!N:N) -> 732297.67
A28: ='Base de Dados Input'!B789 -> 4Q 2020 | E28: 2020 | F28: 47047479.23 | G28: 45815279.32 | H28: =SUMIF('Base de Dados Input'!$B:$B,RESUMO!$A28,'Base de Dados Input'!G:G) -> 23249795.48 | I28: =SUMIF('Base de Dados Input'!$B:$B,RESUMO!$A28,'Base de Dados Input'!H:H) -> 14611974.9 | J28: =SUMIF('Base de Dados Input'!$B:$B,RESUMO!$A28,'Base de Dados Input'!I:I) -> 867248.72 | K28: =SUMIF('Base de Dados Input'!$B:$B,RESUMO!$A28,'Base de Dados Input'!J:J) -> 1773723.24 | L28: =SUMIF('Base de Dados Input'!$B:$B,RESUMO!$A28,'Base de Dados Input'!K:K) -> 4073965.15 | M28: =SUMIF('Base de Dados Input'!$B:$B,RESUMO!$A28,'Base de Dados Input'!L:L) -> 1554673.51 | N28: =SUMIF('Base de Dados Input'!$B:$B,RESUMO!$A28,'Base de Dados Input'!M:M) -> 551147.04 | O28: =SUMIF('Base de Dados Input'!$B:$B,RESUMO!$A28,'Base de Dados Input'!N:N) -> 364951.19
A29: ='Base de Dados Input'!B881 -> 4Q 2021 | E29: 2021 | F29: 55253857.26 | G29: 52791575.49 | H29: =SUMIF('Base de Dados Input'!$B:$B,RESUMO!$A29,'Base de Dados Input'!G:G) -> 27250132.98 | I29: =SUMIF('Base de Dados Input'!$B:$B,RESUMO!$A29,'Base de Dados Input'!H:H) -> 15421054.37 | J29: =SUMIF('Base de Dados Input'!$B:$B,RESUMO!$A29,'Base de Dados Input'!I:I) -> 1946662.95 | K29: =SUMIF('Base de Dados Input'!$B:$B,RESUMO!$A29,'Base de Dados Input'!J:J) -> 1507081.31 | L29: =SUMIF('Base de Dados Input'!$B:$B,RESUMO!$A29,'Base de Dados Input'!K:K) -> 5092899.7 | M29: =SUMIF('Base de Dados Input'!$B:$B,RESUMO!$A29,'Base de Dados Input'!L:L) -> 2751776.68 | N29: =SUMIF('Base de Dados Input'!$B:$B,RESUMO!$A29,'Base de Dados Input'!M:M) -> 768630.45 | O29: =SUMIF('Base de Dados Input'!$B:$B,RESUMO!$A29,'Base de Dados Input'!N:N) -> 515618.82
E30: 2022 | F30: 0 | G30: 0 | H30: =SUMIF('Base de Dados Input'!$B:$B,RESUMO!$A30,'Base de Dados Input'!G:G) -> 0 | I30: =SUMIF('Base de Dados Input'!$B:$B,RESUMO!$A30,'Base de Dados Input'!H:H) -> 0 | J30: =SUMIF('Base de Dados Input'!$B:$B,RESUMO!$A30,'Base de Dados Input'!I:I) -> 0 | K30: =SUMIF('Base de Dados Input'!$B:$B,RESUMO!$A30,'Base de Dados Input'!J:J) -> 0 | L30: =SUMIF('Base de Dados Input'!$B:$B,RESUMO!$A30,'Base de Dados Input'!K:K) -> 0 | M30: =SUMIF('Base de Dados Input'!$B:$B,RESUMO!$A30,'Base de Dados Input'!L:L) -> 0 | N30: =SUMIF('Base de Dados Input'!$B:$B,RESUMO!$A30,'Base de Dados Input'!M:M) -> 0 | O30: =SUMIF('Base de Dados Input'!$B:$B,RESUMO!$A30,'Base de Dados Input'!N:N) -> 0
E31: 2023 | F31: 0 | G31: 0 | H31: =SUMIF('Base de Dados Input'!$B:$B,RESUMO!$A31,'Base de Dados Input'!G:G) -> 0 | I31: =SUMIF('Base de Dados Input'!$B:$B,RESUMO!$A31,'Base de Dados Input'!H:H) -> 0 | J31: =SUMIF('Base de Dados Input'!$B:$B,RESUMO!$A31,'Base de Dados Input'!I:I) -> 0 | K31: =SUMIF('Base de Dados Input'!$B:$B,RESUMO!$A31,'Base de Dados Input'!J:J) -> 0 | L31: =SUMIF('Base de Dados Input'!$B:$B,RESUMO!$A31,'Base de Dados Input'!K:K) -> 0 | M31: =SUMIF('Base de Dados Input'!$B:$B,RESUMO!$A31,'Base de Dados Input'!L:L) -> 0 | N31: =SUMIF('Base de Dados Input'!$B:$B,RESUMO!$A31,'Base de Dados Input'!M:M) -> 0 | O31: =SUMIF('Base de Dados Input'!$B:$B,RESUMO!$A31,'Base de Dados Input'!N:N) -> 0
J33: PROJEÇÃO ANUAL POR RÚBRICA
A34: PREENCHIMENTO MANUAL | D34: TOTAL ANUAL | E34: ANO | F34: Evolução de Todos | G34: Todos Sem Aplicação Financeira | H34: RRT | I34: Anuidade Pessoa Física do Exercício | J34: Aplicaçao Financeira do Exercício | K34: Anuidade Pessoa Jurídica do Exercício | L34: Anuidade Pessoa Física Exerc. Ant | M34: Multas e Juros | N34: Anuidade Pessoa Jurídica Exerc. Ant | O34: Diversas Receitas
E35: =E20 -> 2012 | F35: - | G35: - | H35: - | I35: - | J35: - | K35: - | L35: - | M35: - | N35: - | O35: -
E36: =E21 -> 2013 | F36: - | G36: - | H36: - | I36: - | J36: - | K36: - | L36: - | M36: - | N36: - | O36: -
E37: =E22 -> 2014 | F37: - | G37: - | H37: - | I37: - | J37: - | K37: - | L37: - | M37: - | N37: - | O37: -
E38: =E23 -> 2015 | F38: - | G38: - | H38: - | I38: - | J38: - | K38: - | L38: - | M38: - | N38: - | O38: -
E39: 2016 (Projeção Inicial) | F39: =SUM(H39:O39) -> 38280443.48 | G39: =SUM(H39:O39)-J39-O39 -> 35673248 | H39: 20300666 | I39: 11431940 | J39: 2457195.48 | K39: 1471614 | L39: 1412936 | M39: 836092 | N39: 220000 | O39: 150000
E40: 2016 (Projeção 1° Reformulação) | F40: =SUM(H40:O40) -> 38057219.4 | G40: 33045267.85 | H40: 18473606.06 | I40: 10767914.03 | J40: 4861951.55 | K40: 1290057 | L40: 1347712.23 | M40: 970103.38 | N40: 195875.15 | O40: 150000
E41: 2017 (Projeção Inicial) | F41: =SUM(H41:O41) -> 44992444.4 | G41: 39779925.96 | H41: 20520898.56 | I41: 13458542.89 | J41: 4967518.44 | K41: 1614127.78 | L41: 1858515.33 | M41: 1769293.55 | N41: 558547.85 | O41: 245000
E42: 2017 (Projeção 1° Reformulação) | F42: 44992444.4 | G42: 39779925.96 | H42: 20520898.56 | I42: 13458542.89 | J42: 4967518.44 | K42: 1614127.78 | L42: 1858515.33 | M42: 1769293.55 | N42: 558547.85 | O42: 245000
E43: 2017 (Projeção 2° Reformulação) | F43: 45387435.56 | G43: 40964928.3 | H43: 21109200 | I43: 13459174.34 | J43: 4226507.26 | K43: 1614099.2 | L43: 2328861.89 | M43: 2034688.1 | N43: 418904.77 | O43: 196000
E44: 2018 (Projeção Inicial) | F44: 46174774.4 | G44: 44066611.08 | H44: 22178371.46 | I44: 13912110.23 | J44: 1863163.32 | K44: 2084198.83 | L44: 3326255.49 | M44: 2034688.1 | N44: 530986.97 | O44: 245000
E45: 2018 (Projeção 1° Reformulação) | F45: 45233018.11 | G45: 42039975.84 | H45: 22679629.21 | I45: 12929580.86 | J45: 2808045.83 | K45: 1588307.87 | L45: 2884159.44 | M45: 1674017.41 | N45: 284281.05 | O45: 384996.44
E46: 2019 (Projeção Inicial) | F46: 46934894.5 | G46: =SUM(H46:O46)-J46-O46 -> 43356920.8 | H46: 23669330.83 | I46: 13056677.64 | J46: 3162731.49 | K46: 1702985.8 | L46: 2916777.62 | M46: 1720369.4 | N46: 290779.51 | O46: 415242.21
E47: 2019 (Projeção 1° Reformulação) | F47: 47023182.95 | G47: 43501314.08 | H47: 24927464.01 | I47: 13228781.5 | J47: 2903812.05 | K47: 1553981.53 | L47: 2389728.3 | M47: 1099899.8 | N47: 301458.94 | O47: 618056.82
E48: 2020 (Projeção Inicial) | F48: 50430849.55 | G48: 47586631.55 | H48: 28090409.65 | I48: 13906769.25 | J48: 2360833.408 | K48: 1483033.658 | L48: 2397933.059 | M48: 1446143.822 | N48: 262342.1128 | O48: 483384.589
E49: 2020 (Projeção 1° Reformulação) | F49: =SUM(H49:O49) -> 40072219.9 | G49: 38641622.43 | H49: 18080943.12 | I49: 13929347.98 | J49: 985316.4166 | K49: 1832188.708 | L49: 2955102.169 | M49: 1422974.246 | N49: 421066.2123 | O49: 445281.049
E50: 2021 (Projeção Inicial) | F50: =SUM(H50:O50) -> 47696676.94 | G50: 46016169.04 | H50: 26527520 | I50: 13202047.82 | J50: 1200000 | K50: 1533262.456 | L50: 2865419.243 | M50: 1494122.96 | N50: 393796.5643 | O50: 480507.8986
E51: 2021 (Projeção 1° Reformulação) | F51: =SUM(H51:O51) -> 49471531.93 | G51: 48311425.18 | H51: 26818788.36 | I51: 14463008.68 | J51: 652414.811 | K51: 1511169.696 | L51: 3454785.64 | M51: 1630099.304 | N51: 433573.5021 | O51: 507691.9418
E52: 2022 (Projeção Inicial) | F52: =SUM(H52:O52) -> 56295685.5 | G52: =SUM(H52:O52)-J52-O52 -> 54595685.5 | H52: 29986896.47 | I52: 17103148.17 | J52: 1012400.321 | K52: 1605154.704 | L52: 3582597.04 | M52: 1846230.912 | N52: 471658.208 | O52: 687599.68
E53: 2022 (Projeção 1° Reformulação) | F53: =SUM(H53:O53) -> 59115114.2 | G53: =SUM(H53:O53)-J53-O53 -> 55973994.24 | H53: 31198029.79 | I53: 16795375.52 | J53: 2453520.282 | K53: 1218522.208 | L53: 4054515.912 | M53: 2200201.192 | N53: 507349.616 | O53: 687599.68
E54: 2023 (Projeção Inicial) | F54: 65957906.55 | G54: 62398013.75 | H54: 34227213.02 | I54: 19184594.75 | J54: 2894727.15 | K54: 1386723.45 | L54: 4488928.33 | M54: 2575530.97 | N54: 535023.23 | O54: 665165.65
E55: 2023 (Projeção 1° Reformulação) | F55: =SUM(H55:O55) -> 0 | G55: =SUM(H55:O55)-J55-O55 -> 0
D57: ABR
D58: RÚBRICA RECEITA | E58: ARRECADAÇÃO | F58: PROJEÇÃO | G58: DIFERENÇA ARRECADAÇÃO X PROJEÇÃO | H58: ARRECADAÇÃO/ PROJEÇÃO ACUMULADA (EM REAIS) | I58: ARRECADAÇÃO ACUMULADA (EM REAIS) | J58: PROGRAMAÇÃO ACUMULADA DEZEMBRO (EM REAIS) | X58: Diferença com o TOTAL DA PROGRAMAÇÃO
D59: Evolução de Todos | E59: 2284063.44 | F59: 3289169.607 | G59: -1005106.167 | H59: -0.3055805225 | I59: 19560240.81 | J59: 18182678.49 | X59: =J59-I59 -> -1377562.319
D60: Todos Sem Aplicação Financeira e Receitas Diversas | E60: 2171524.62 | F60: 3183337.372 | G60: -1011812.752 | H60: -0.3178465345 | I60: 18979448.15 | J60: 17727411.09 | X60: =J60-I60 -> -1252037.059
D61: RRT | E61: 1020090.48 | F61: 1542540.663 | G61: -522450.1826 | H61: -0.3386945934 | I61: 6723202.41 | J61: 5542841.873 | X61: -1180360.537
D62: Anuidade Pessoa Fís. | E62: 719030.37 | F62: 1184711.465 | G62: -465681.0952 | H62: -0.3930755369 | I62: 8678194.65 | J62: 9244888.658 | X62: 566694.0082
D63: Aplicação Financeira | E63: 108176.29 | F63: 82995.84305 | G63: 25180.44695 | H63: 0.303394074 | I63: 426393.22 | J63: 337282.1643 | X63: -89111.0557
D64: Anuidade Pessoa Jur. | E64: 95789.35 | F64: 150606.8762 | G64: -54817.52623 | H64: -0.3639775793 | I64: 1171141.09 | J64: 1191208.583 | X64: 20067.49316
D65: Anuidade Pessoa Fís. A.A. | E65: 237978.12 | F65: 197337.5532 | G65: 40640.56681 | H65: 0.2059444143 | I65: 1683863.85 | J65: 1135693.634 | X65: -548170.2158
D66: Multas e Juros | E66: 73809.1 | F66: 80178.21671 | G66: -6369.116708 | H66: -0.07943699634 | I66: 521660.38 | J66: 446589.5032 | X66: -75070.87681
D67: Anuidade Pessoa Jur. A.A. | E67: 24827.2 | F67: 27962.5977 | G67: -3135.397701 | H67: -0.1121282699 | I67: 201385.77 | J67: 166188.8397 | X67: -35196.93034
D68: Diversas Receitas | E68: 4362.53 | F68: 22836.3924 | G68: -18473.8624 | H68: -0.8089658855 | I68: 154399.44 | J68: 117985.2357 | X68: -36414.20425
D69: MAI
D70: RÚBRICA RECEITA | E70: ARRECADAÇÃO | F70: PROJEÇÃO | G70: DIFERENÇA ARRECADAÇÃO X PROJEÇÃO | H70: ARRECADAÇÃO/ PROJEÇÃO ACUMULADA (EM REAIS) | I70: ARRECADAÇÃO ACUMULADA (EM REAIS) | J70: PROGRAMAÇÃO ACUMULADA (EM REAIS)
D71: Evolução de Todos | E71: 2272922 | F71: 4143905.724 | G71: -1870983.724 | H71: -0.451502483 | I71: 21833162.81 | J71: 22326584.22
D72: Todos Sem Aplicação Financeira e Receitas Diversas | E72: 2188685.19 | F72: 4018877.78 | G72: -1830192.59 | H72: -0.4553989173 | I72: 21168133.34 | J72: 21746288.87
D73: RRT | E73: 1218184.56 | F73: 1703257.849 | G73: -485073.2893 | H73: -0.2847914598 | I73: 7941386.97 | J73: 7246099.722
D74: Anuidade Pessoa Fís. | E74: 603814.9 | F74: 1750662.521 | G74: -1146847.621 | H74: -0.6550934902 | I74: 9282009.55 | J74: 10995551.18
D75: Aplicação Financeira | E75: 78624.53 | F75: 91203.62176 | G75: -12579.09176 | H75: -0.1379231605 | I75: 505017.75 | J75: 428485.7861
D76: Anuidade Pessoa Jur. | E76: 72968.07 | F76: 219953.7758 | G76: -146985.7058 | H76: -0.6682572521 | I76: 1244109.16 | J76: 1411162.359
D77: Anuidade Pessoa Fís. A.A. | E77: 205530.63 | F77: 225546.5786 | G77: -20015.94865 | H77: -0.08874419096 | I77: 1889394.48 | J77: 1361240.213
D78: Multas e Juros | E78: 62609.16 | F78: 87351.59364 | G78: -24742.43364 | H78: -0.2832510846 | I78: 584269.54 | J78: 533941.0968
D79: Anuidade Pessoa Jur. A.A. | E79: 25577.87 | F79: 32105.46126 | G79: -6527.591256 | H79: -0.2033171616 | I79: 226963.64 | J79: 198294.3009
D80: Diversas Receitas | E80: 5612.28 | F80: 33824.32212 | G80: -28212.04212 | H80: -0.8340756105 | I80: 160011.72 | J80: 151809.5579
D81: JUN
D82: RÚBRICA RECEITA | E82: ARRECADAÇÃO | F82: PROJEÇÃO | G82: DIFERENÇA ARRECADAÇÃO X PROJEÇÃO | H82: ARRECADAÇÃO/ PROJEÇÃO ACUMULADA (EM REAIS) | I82: ARRECADAÇÃO ACUMULADA (EM REAIS) | J82: PROGRAMAÇÃO ACUMULADA (EM REAIS)
D83: Evolução de Todos | E83: 3219877.62 | F83: 2879730.403 | G83: 340147.2172 | H83: 0.1181177297 | I83: 25053040.43 | J83: 25206314.62
D84: Todos Sem Aplicação Financeira e Receitas Diversas | E84: 3147099.23 | F84: 2754840.838 | G84: 392258.3916 | H84: 0.1423887675 | I84: 24315232.57 | J84: 24501129.71
D85: RRT | E85: 1725095.4 | F85: 1461877.582 | G85: 263217.8184 | H85: 0.1800546241 | I85: 9666482.37 | J85: 8707977.304
D86: Anuidade Pessoa Fís. | E86: 917268.54 | F86: 892526.9593 | G86: 24741.58073 | H86: 0.02772082173 | I86: 10199278.09 | J86: 11888078.14
D87: Aplicação Financeira | E87: 65353.74 | F87: 85317.47635 | G87: -19963.73635 | H87: -0.233993517 | I87: 570371.49 | J87: 513803.2624
D88: Anuidade Pessoa Jur. | E88: 103465.94 | F88: 119722.21 | G88: -16256.26998 | H88: -0.1357832434 | I88: 1347575.1 | J88: 1530884.569
D89: Anuidade Pessoa Fís. A.A. | E89: 271467.59 | F89: 178569.9525 | G89: 92897.63747 | H89: 0.52023107 | I89: 2160862.07 | J89: 1539810.165
D90: Multas e Juros | E90: 88830.45 | F90: 79639.54934 | G90: 9190.900664 | H90: 0.1154062365 | I90: 673099.99 | J90: 613580.6462
D91: Anuidade Pessoa Jur. A.A. | E91: 40971.31 | F91: 22504.58568 | G91: 18466.72432 | H91: 0.8205760633 | I91: 267934.95 | J91: 220798.8866
D92: Diversas Receitas | E92: 7424.65 | F92: 39572.08803 | G92: -32147.43803 | H92: -0.8123765924 | I92: 167436.37 | J92: 191381.6459
D93: TRI
D94: RÚBRICA RECEITA | E94: ARRECADAÇÃO | F94: PROJEÇÃO | G94: DIFERENÇA ARRECADAÇÃO X PROJEÇÃO | H94: ARRECADAÇÃO/ PROJEÇÃO ACUMULADA (EM REAIS) | I94: ARRECADAÇÃO ACUMULADA (EM REAIS) | J94: PROGRAMAÇÃO ACUMULADA (EM REAIS)
D95: Evolução de Todos | E95: =E83+E71+E59 -> 7776863.06 | F95: =F83+F71+F59 -> 10312805.73 | G95: -2535942.674 | H95: -0.6389652759 | I95: 66446444.05 | J95: 65715577.32
D96: Todos Sem Aplicação Financeira e Receitas Diversas | E96: =E84+E72+E60 -> 7507309.04 | F96: 9957055.99 | G96: -2449746.95 | H96: -0.6308566843 | I96: 64462814.06 | J96: 63974829.67
D97: RRT | E97: =E85+E73+E61 -> 3963370.44 | F97: 4707676.094 | G97: -744305.6536 | H97: -0.4434314292 | I97: 24331071.75 | J97: 21496918.9
D98: Anuidade Pessoa Fís. | E98: =E86+E74+E62 -> 2240113.81 | F98: 3827900.946 | G98: -1587787.136 | H98: -1.020448205 | I98: 28159482.29 | J98: 32128517.98
D99: Aplicação Financeira | E99: =E87+E75+E63 -> 252154.56 | F99: 259516.9412 | G99: -7362.381169 | H99: -0.06852260351 | I99: 1501782.46 | J99: 1279571.213
D100: Anuidade Pessoa Jur. | E100: =E88+E76+E64 -> 272223.36 | F100: 490282.862 | G100: -218059.502 | H100: -1.168018075 | I100: 3762825.35 | J100: 4133255.511
D101: Anuidade Pessoa Fís. A.A. | E101: =E89+E77+E65 -> 714976.34 | F101: 601454.0844 | G101: 113522.2556 | H101: 0.6374312933 | I101: 5734120.4 | J101: 4036744.012
D102: Multas e Juros | E102: =E90+E78+E66 -> 225248.71 | F102: 247169.3597 | G102: -21920.64969 | H102: -0.2472818445 | I102: 1779029.91 | J102: 1594111.246
D103: Anuidade Pessoa Jur. A.A. | E103: =E91+E79+E67 -> 91376.38 | F103: 82572.64464 | G103: 8803.735364 | H103: 0.5051306317 | I103: 696284.36 | J103: 585282.0272
D104: Diversas Receitas | E104: =E92+E80+E68 -> 17399.46 | F104: 96232.80255 | G104: -78833.34255 | H104: -2.455418088 | I104: 481847.53 | J104: 461176.4395
H111: RÚBRICA RECEITA | I111: ARRECADAÇÃO ACUMULADA (EM REAIS) | J111: PROGRAMAÇÃO ACUMULADA (EM REAIS) | K111: Saldo Orçamentário
H112: Evolução de Todos | I112: 43888352.52 | J112: 40072219.9 | K112: =J112-I112 -> -3816132.624 | X112: =J112-I112 -> -3816132.624
H113: Todos Sem Aplicação Financeira e Receitas Diversas | I113: 42736586.57 | J113: 38641622.43 | K113: =J113-I113 -> -4094964.139 | X113: =J113-I113 -> -4094964.139
H114: RRT | I114: 21135329.24 | J114: 18080943.12 | K114: -3054386.12 | X114: -3054386.12
H115: Anuidade Pessoa Fís. | I115: 14216754.41 | J115: 13929347.98 | K115: -287406.434 | X115: -287406.434
H116: Aplicação Financeira | I116: 811149.44 | J116: 985316.4166 | K116: 174166.9766 | X116: 174166.9766
H117: Anuidade Pessoa Jur. | I117: 1730692.47 | J117: 1832188.708 | K117: 101496.238 | X117: 101496.238
H118: Anuidade Pessoa Fís. A.A. | I118: 3759414.97 | J118: 2955102.169 | K118: -804312.801 | X118: -804312.801
H119: Multas e Juros | I119: 1396225.15 | J119: 1422974.246 | K119: 26749.0955 | L119: 1240455.74 | M119: =L119-I119 -> -155769.41 | X119: 26749.0955
H120: Anuidade Pessoa Jur. A.A. | I120: 498170.33 | J120: 421066.2123 | K120: -77104.11772 | X120: -77104.11772
H121: Diversas Receitas | I121: 340616.51 | J121: 445281.049 | K121: 104664.539 | L121: 201049.21 | M121: =L121-I121 -> -139567.3 | X121: 104664.539
D124: 1 TRI
D125: RÚBRICA RECEITA | E125: ARRECADAÇÃO | F125: PROJEÇÃO | G125: DIFERENÇA ARRECADAÇÃO X PROJEÇÃO | H125: ARRECADAÇÃO/ PROJEÇÃO ACUMULADA (EM REAIS) | I125: ARRECADAÇÃO ACUMULADA (EM REAIS) | J125: PROGRAMAÇÃO ACUMULADA (EM REAIS)
D126: Evolução de Todos | E126: 17276177.37 | F126: 17036742.44 | G126: 239434.9316 | H126: 0.1509219941 | I126: 36692317.97 | J126: 37689532.56
D127: Todos Sem Aplicação Financeira e Receitas Diversas | E127: 16807923.53 | F127: 16324177.56 | G127: 483745.9686 | H127: 0.2140224869 | I127: 35639530.65 | J127: 36234776.15
D128: RRT | E128: 5703111.93 | F128: 6214836.193 | G128: -511724.2633 | H128: -0.2168152895 | I128: 11171920.23 | J128: 11769168.9
D129: Anuidade Pessoa Fís. | E129: 7959164.28 | F129: 8047112.079 | G129: -87947.79861 | H129: 0.4446006374 | I129: 17767098.4 | J129: 19646563.43
D130: Aplicação Financeira | E130: 318216.93 | F130: 609273.9675 | G130: -291057.0375 | H130: -1.432985465 | I130: 644002.61 | J130: 1214656.395
D131: Anuidade Pessoa Jur. | E131: 1075351.74 | F131: 842297.166 | G131: 233054.574 | H131: 1.514519482 | I131: 2314984.19 | J131: 2034235.234
D132: Anuidade Pessoa Fís. A.A. | E132: 1445885.73 | F132: 761433.9332 | G132: 684451.7968 | H132: 3.178671853 | I132: 3069959.41 | J132: 1741070.576
D133: Multas e Juros | E133: 447851.28 | F133: 372377.3778 | G133: 75473.90223 | H133: 0.9217230194 | I133: 944344.54 | J133: 850654.32
D134: Anuidade Pessoa Jur. A.A. | E134: 176558.57 | F134: 86120.81261 | G134: 90437.75739 | H134: 3.475936234 | I134: 371223.88 | J134: 193083.7032
D135: Diversas Receitas | E135: 150036.91 | F135: 103290.9095 | G135: 46746.0005 | H135: 0.3580219398 | I135: 408784.71 | J135: 240100.0096
D137: 2 TRI
D138: RÚBRICA RECEITA | E138: ARRECADAÇÃO | F138: PROJEÇÃO | G138: DIFERENÇA ARRECADAÇÃO X PROJEÇÃO | H138: ARRECADAÇÃO/ PROJEÇÃO ACUMULADA (EM REAIS) | I138: ARRECADAÇÃO ACUMULADA (EM REAIS) | J138: PROGRAMAÇÃO ACUMULADA (EM REAIS)
D139: Evolução de Todos | E139: 7776863.06 | F139: 13049322.8 | G139: -5272459.74 | H139: -1.150605412 | I139: 66446444.05 | J139: 77646347
D140: Todos Sem Aplicação Financeira e Receitas Diversas | E140: 7507309.04 | F140: 12323048.56 | G140: -4815739.521 | H140: -1.102246151 | I140: 64462814.06 | J140: 74079834.36
D141: RRT | E141: 3963370.44 | F141: 7313808.194 | G141: -3350437.754 | H141: -1.354414496 | I141: 24331071.75 | J141: 33397442.49
D142: Anuidade Pessoa Fís. | E142: 2240113.81 | F142: 3821696.124 | G142: -1581582.314 | H142: -1.017234249 | I142: 28159482.29 | J142: 32076439.37
D143: Aplicação Financeira | E143: 252154.56 | F143: 621806.614 | G143: -369652.054 | H143: -1.776519854 | I143: 1501782.46 | J143: 3065872.461
D144: Anuidade Pessoa Jur. | E144: 272223.36 | F144: 396851.0358 | G144: -124627.6758 | H144: -0.736709091 | I144: 3762825.35 | J144: 3345592.632
D145: Anuidade Pessoa Fís. A.A. | E145: 714976.34 | F145: 488053.0519 | G145: 226923.2881 | H145: 1.482602659 | I145: 5734120.4 | J145: 3275636.971
D146: Multas e Juros | E146: 225248.71 | F146: 251193.8945 | G146: -25945.18446 | H146: -0.2913848668 | I146: 1779029.91 | J146: 1620067.36
D147: Anuidade Pessoa Jur. A.A. | E147: 91376.38 | F147: 51446.26053 | G147: 39930.11947 | H147: 2.62582981 | I147: 696284.36 | J147: 364655.5319
D148: Diversas Receitas | E148: 17399.46 | F148: 104467.6251 | G148: -87068.16514 | H148: -2.498345602 | I148: 481847.53 | J148: 500640.1781
D150: 3 TRI
D151: RÚBRICA RECEITA | E151: ARRECADAÇÃO | F151: PROJEÇÃO | G151: DIFERENÇA ARRECADAÇÃO X PROJEÇÃO | H151: ARRECADAÇÃO/ PROJEÇÃO ACUMULADA (EM REAIS) | I151: ARRECADAÇÃO ACUMULADA (EM REAIS) | J151: PROGRAMAÇÃO ACUMULADA (EM REAIS)
D152: Evolução de Todos | E152: 8401048.17 | F152: 7419248.899 | G152: 981799.2706 | H152: 0.2661640739 | I152: 62665662.74 | J152: 71185210.12
D153: Todos Sem Aplicação Financeira e Receitas Diversas | E153: 8278532.27 | F153: 6911548.457 | G153: 1366983.813 | H153: 0.3975223192 | I153: 61002618.05 | J153: 67542180.65
D154: RRT | E154: 4416563.86 | F154: 5279666.641 | G154: -863102.7808 | H154: -0.3247249546 | I154: 25901959.18 | J154: 34841559.46
D155: Anuidade Pessoa Fís. | E155: 2578599.16 | F155: 785275.7144 | G155: 1793323.446 | H155: 4.578722148 | I155: 24282651.48 | J155: 24934485
D156: Aplicação Financeira | E156: 103361.43 | F156: 433908.2314 | G156: -330546.8014 | H156: -1.523916678 | I156: 1299468.43 | J156: 3115612.244
D157: Anuidade Pessoa Jur. | E157: 245599.11 | F157: 100215.9207 | G157: 145383.1893 | H157: 3.009618391 | I157: 3045211.6 | J157: 2633184.097
D158: Anuidade Pessoa Fís. A.A. | E158: 668737.1 | F158: 433858.1362 | G158: 234878.9638 | H158: 1.083565801 | I158: 5336246.35 | J158: 3148342.346
D159: Multas e Juros | E159: 262823.38 | F159: 263213.8098 | G159: -390.4297785 | H159: -0.001767747233 | I159: 1739099.74 | J159: 1638002.85
D160: Anuidade Pessoa Jur. A.A. | E160: 106209.66 | F160: 49318.23536 | G160: 56891.42464 | H160: 2.370867404 | I160: 697449.7 | J160: 346606.8987
D161: Diversas Receitas | E161: 19154.47 | F161: 73792.21073 | G161: -54637.74073 | H161: -1.480243003 | I161: 363576.26 | J161: 527417.2213
D163: 4 TRI
D164: RÚBRICA RECEITA | E164: ARRECADAÇÃO | F164: PROJEÇÃO | G164: DIFERENÇA ARRECADAÇÃO X PROJEÇÃO | H164: ARRECADAÇÃO/ PROJEÇÃO ACUMULADA (EM REAIS) | I164: ARRECADAÇÃO ACUMULADA (EM REAIS) | J164: PROGRAMAÇÃO ACUMULADA (EM REAIS)
D165: Evolução de Todos
D166: Todos Sem Aplicação Financeira e Receitas Diversas
D167: RRT
D168: Anuidade Pessoa Fís.
D169: Aplicação Financeira
D170: Anuidade Pessoa Jur.
D171: Anuidade Pessoa Fís. A.A.
D172: Multas e Juros
D173: Anuidade Pessoa Jur. A.A.
D174: Diversas Receitas

Sheet Quadro de Receita
C1: Demonstrativo da Receita – Variação de Abaixo ou Acima do Orçado | S1: 4Q JAN 2021
S2: 4Q JAN 2021
S3: 4Q JAN 2021
C4: Fontes de Receita | S4: 4Q JAN 2021
C5: Receitas Orçamentárias (R$) | D5: Programação 2023 | E5: 1° Reformulação 2023 | F5: Projetado em Março 2023 | G5: Arrecadado Março 2023 | H5: Arrecadado de Janeiro a Março 2023 | I5: % de arrecadação no periodo | J5: % de arrecadação no Ano | N5: 3 | O5: Fontes de Arrecadação (R$) | S5: 4Q JAN 2022 | T5: 7 | U5: 1° Reformulação 2020 | W5: 33 | X5: Arrecadado Acumulado 3° Quadrimestre 2022
A6: ='BASE DE DADOS-SISCONT'!B34 -> 31 | B6: 52 | C6: Anuidade Pessoa Física | D6: =HLOOKUP($D$5,'BASE DE DADOS-SISCONT'!$E$4:$CS$37,'Quadro de Receita'!$A6,0) -> 19184594.75 | E6: =IFERROR(HLOOKUP($E$5,'BASE DE DADOS-SISCONT'!$E$4:$CS$37,'Quadro de Receita'!$A6,0),"") -> 0 | F6: =HLOOKUP($F$5,'Programação Receita 2023'!$J$4:$U$17,6,0) -> 2715138.457 | G6: =HLOOKUP($G$5,'BASE DE DADOS-SISCONT'!$E$4:$CS$37,'Quadro de Receita'!$A6,0) -> 2611423.56 | H6: =HLOOKUP($H$5,'BASE DE DADOS-SISCONT'!$E$4:$CS$37,'Quadro de Receita'!$A6,0) -> 9822587.64 | I6: =IFERROR(G6/F6,0) -> 0.9618012491 | J6: =IFERROR(H6/D6,"") -> 0.5120039161 | N6: 4 | O6: Programação 2021 | R6: Projetado em Janeiro 2023 | S6: 4Q JAN 2023 | T6: 8 | U6: Arrecadado Janeiro 2023 | W6: 34 | X6: Arrecadado Janeiro 2023
A7: ='BASE DE DADOS-SISCONT'!B33 -> 30 | B7: 55 | C7: Anuidade Pessoa Física anos anteriores | D7: =HLOOKUP($D$5,'BASE DE DADOS-SISCONT'!$E$4:$CS$37,'Quadro de Receita'!$A7,0) -> 4488928.33 | E7: =IFERROR(HLOOKUP($E$5,'BASE DE DADOS-SISCONT'!$E$4:$CS$37,'Quadro de Receita'!$A7,0),"") -> 0 | F7: =HLOOKUP($F$5,'Programação Receita 2023'!$J$4:$U$17,7,0) -> 489663.9719 | G7: =HLOOKUP($G$5,'BASE DE DADOS-SISCONT'!$E$4:$CS$37,'Quadro de Receita'!$A7,0) -> 677545.46 | H7: =HLOOKUP($H$5,'BASE DE DADOS-SISCONT'!$E$4:$CS$37,'Quadro de Receita'!$A7,0) -> 1873581.89 | I7: 1.383694735 | J7: =IFERROR(H7/D7,"") -> 0.417378437 | N7: 5 | O7: 1° Reformulação 2021 | R7: Projetado em Fevereiro 2023 | S7: 4Q FEV 2023 | T7: 9 | U7: Arrecadado Fevereiro 2023 | W7: 35 | X7: Arrecadado de Janeiro a Fevereiro 2023
A8: ='BASE DE DADOS-SISCONT'!B28 -> 25 | C8: Anuidade Pessoa Jurídica | D8: =HLOOKUP($D$5,'BASE DE DADOS-SISCONT'!$E$4:$CS$37,'Quadro de Receita'!$A8,0) -> 1386723.45 | E8: =IFERROR(HLOOKUP($E$5,'BASE DE DADOS-SISCONT'!$E$4:$CS$37,'Quadro de Receita'!$A8,0),"") -> 0 | F8: =HLOOKUP($F$5,'Programação Receita 2023'!$J$4:$U$17,9,0) -> 106850.1461 | G8: =HLOOKUP($G$5,'BASE DE DADOS-SISCONT'!$E$4:$CS$37,'Quadro de Receita'!$A8,0) -> 80709.6 | H8: =HLOOKUP($H$5,'BASE DE DADOS-SISCONT'!$E$4:$CS$37,'Quadro de Receita'!$A8,0) -> 312548.75 | I8: 0.7553532018 | J8: 0.2253865037 | N8: 6 | O8: Programação 2020 | R8: Projetado em Março 2023 | S8: 4Q MAR 2023 | T8: 10 | U8: Arrecadado Março 2023 | W8: 36 | X8: Arrecadado de Janeiro a Março 2023
A9: ='BASE DE DADOS-SISCONT'!B24 -> 21 | B9: 54 | C9: Anuidade Pessoa Jurídica anos anteriores | D9: =HLOOKUP($D$5,'BASE DE DADOS-SISCONT'!$E$4:$CS$37,'Quadro de Receita'!$A9,0) -> 535023.23 | E9: =IFERROR(HLOOKUP($E$5,'BASE DE DADOS-SISCONT'!$E$4:$CS$37,'Quadro de Receita'!$A9,0),"") -> 0 | F9: =HLOOKUP($F$5,'Programação Receita 2023'!$J$4:$U$17,10,0) -> 46539.52952 | G9: =HLOOKUP($G$5,'BASE DE DADOS-SISCONT'!$E$4:$CS$37,'Quadro de Receita'!$A9,0) -> 120603.39 | H9: =HLOOKUP($H$5,'BASE DE DADOS-SISCONT'!$E$4:$CS$37,'Quadro de Receita'!$A9,0) -> 333545.64 | I9: 2.591418333 | J9: 0.623422725 | N9: 7 | O9: 1° Reformulação 2020 | R9: Projetado em Abril 2023 | S9: 4Q ABR 2023 | T9: 11 | U9: Arrecadado Abril 2023 | W9: 37 | X9: Arrecadado de Janeiro a Abril 2023
A10: ='BASE DE DADOS-SISCONT'!B20 -> 17 | B10: 57 | C10: RRT | D10: =HLOOKUP($D$5,'BASE DE DADOS-SISCONT'!$E$4:$CS$37,'Quadro de Receita'!$A10,0) -> 34227213.02 | E10: =IFERROR(HLOOKUP($E$5,'BASE DE DADOS-SISCONT'!$E$4:$CS$37,'Quadro de Receita'!$A10,0),"") -> 0 | F10: =HLOOKUP($F$5,'Programação Receita 2023'!$J$4:$U$17,11,0) -> 3018769.796 | G10: =HLOOKUP($G$5,'BASE DE DADOS-SISCONT'!$E$4:$CS$37,'Quadro de Receita'!$A10,0) -> 2910921.1 | H10: =HLOOKUP($H$5,'BASE DE DADOS-SISCONT'!$E$4:$CS$37,'Quadro de Receita'!$A10,0) -> 7162311.28 | I10: 0.9642739583 | J10: 0.2092577995 | N10: 8 | O10: Programação 2022 | R10: Projetado em Maio 2023 | S10: 4Q MAI 2023 | T10: 12 | U10: Arrecadado Maio 2023 | W10: 38 | X10: Arrecadado de Janeiro a Maio 2023
A11: ='BASE DE DADOS-SISCONT'!B23 -> 20 | B11: 51 | C11: Multas e taxas | D11: =HLOOKUP($D$5,'BASE DE DADOS-SISCONT'!$E$4:$CS$37,'Quadro de Receita'!$A11,0) -> 2575530.97 | E11: =IFERROR(HLOOKUP($E$5,'BASE DE DADOS-SISCONT'!$E$4:$CS$37,'Quadro de Receita'!$A11,0),"") -> 0 | F11: =HLOOKUP($F$5,'Programação Receita 2023'!$J$4:$U$17,12,0) -> 192948.5006 | G11: =HLOOKUP($G$5,'BASE DE DADOS-SISCONT'!$E$4:$CS$37,'Quadro de Receita'!$A11,0) -> 265556.24 | H11: =HLOOKUP($H$5,'BASE DE DADOS-SISCONT'!$E$4:$CS$37,'Quadro de Receita'!$A11,0) -> 655582.36 | I11: 1.376306316 | J11: 0.2545426041 | N11: 9 | O11: 1° Reformulação 2022 | R11: Projetado em Junho 2023 | S11: 4Q JUN 2023 | T11: 13 | U11: Arrecadado Junho 2023 | W11: 39 | X11: Arrecadado de Janeiro a Junho 2023
B12: 56 | C12: Total das Receitas de Arrecadação | D12: =SUM(D6:D11) -> 62398013.75 | E12: =IFERROR(HLOOKUP($E$5,'BASE DE DADOS-SISCONT'!$E$4:$CS$37,'Quadro de Receita'!$A12,0),"") ->  | F12: =SUM(F6:F11) -> 6569910.401 | G12: =SUM(G6:G11) -> 6666759.35 | H12: =SUM(H6:H11) -> 20160157.56 | I12: 1.014741289 | J12: =IFERROR(H12/E12,"") ->  | N12: 10 | O12: Programação 2023 | R12: Projetado em Julho 2023 | S12: 4Q JUL 2023 | T12: 14 | U12: Arrecadado Julho 2023 | W12: 40 | X12: Arrecadado de Janeiro a Julho 2023
A13: ='BASE DE DADOS-SISCONT'!B17 -> 14 | B13: 53 | C13: Restituições de Patrocínios/Restituição 20% de Taxas Bancárias/Emolumentos/Multas de Infração | D13: =HLOOKUP($D$5,'BASE DE DADOS-SISCONT'!$E$4:$CS$37,'Quadro de Receita'!$A13,0) -> 665165.65 | E13: =IFERROR(HLOOKUP($E$5,'BASE DE DADOS-SISCONT'!$E$4:$CS$37,'Quadro de Receita'!$A13,0),"") -> 0 | F13: =HLOOKUP($F$5,'Programação Receita 2023'!$J$4:$U$17,14,0) -> 61593.65525 | G13: =HLOOKUP($G$5,'BASE DE DADOS-SISCONT'!$E$4:$CS$37,'Quadro de Receita'!$A13,0) -> 117668.47 | H13: =HLOOKUP($H$5,'BASE DE DADOS-SISCONT'!$E$4:$CS$37,'Quadro de Receita'!$A13,0) -> 184968.79 | I13: 1.910399204 | J13: 0.2780792875 | N13: 11 | O13: 1° Reformulação 2023 | R13: Projetado em Agosto 2023 | S13: 4Q AGO 2023 | T13: 15 | U13: Arrecadado Agosto 2023 | W13: 41 | X13: Arrecadado de Janeiro a Agosto 2023
B14: 58 | C14: Total das Receitas Arrecadação + outras receitas | D14: =SUM(D12:D13) -> 63063179.4 | E14: =IFERROR(HLOOKUP($E$5,'BASE DE DADOS-SISCONT'!$E$4:$CS$37,'Quadro de Receita'!$A14,0),"") ->  | F14: =SUM(F12:F13) -> 6631504.056 | G14: =SUM(G12:G13) -> 6784427.82 | H14: =SUM(H12:H13) -> 20345126.35 | I14: 1.023060193 | J14: 0.3226149798 | R14: Projetado em Setembro 2023 | S14: 4Q SET 2023 | T14: 16 | U14: Arrecadado Setembro 2023 | W14: 42 | X14: Arrecadado de Janeiro a Setembro 2023
A15: ='BASE DE DADOS-SISCONT'!B5 -> 2 | C15: Aplicação Financeira | D15: =HLOOKUP($D$5,'BASE DE DADOS-SISCONT'!$E$4:$CS$37,'Quadro de Receita'!$A15,0) -> 2894727.15 | E15: =IFERROR(HLOOKUP($E$5,'BASE DE DADOS-SISCONT'!$E$4:$CS$37,'Quadro de Receita'!$A15,0),"") -> 0 | F15: =HLOOKUP($F$5,'Programação Receita 2023'!$J$4:$U$17,13,0) -> 219246.6701 | G15: =HLOOKUP($G$5,'BASE DE DADOS-SISCONT'!$E$4:$CS$37,'Quadro de Receita'!$A15,0) -> 870188.68 | H15: =HLOOKUP($H$5,'BASE DE DADOS-SISCONT'!$E$4:$CS$37,'Quadro de Receita'!$A15,0) -> 2322865.06 | I15: 3.968993825 | J15: 0.8024469802 | R15: Projetado em Outubro 2023 | S15: 4Q OUT 2023 | T15: 17 | U15: Arrecadado Outubro 2023 | W15: 43 | X15: Arrecadado de Janeiro a Outubro 2023
C16: Total das Receitas correntes | D16: =IFERROR(D15+D14,"") -> 65957906.55 | E16: =IFERROR(HLOOKUP($E$5,'BASE DE DADOS-SISCONT'!$E$4:$CS$37,'Quadro de Receita'!$A16,0),"") ->  | F16: =IFERROR(F15+F14,"") -> 6850750.727 | G16: =IFERROR(G15+G14,"") -> 7654616.5 | H16: =IFERROR(H15+H14,"") -> 22667991.41 | I16: 1.117339808 | J16: 0.3436736033 | R16: Projetado em Novembro 2023 | S16: 4Q NOV 2023 | T16: 18 | U16: Arrecadado Novembro 2023 | W16: 44 | X16: Arrecadado de Janeiro a Novembro 2023
A17: ='BASE DE DADOS-SISCONT'!B36 -> 33 | C17: Orçamento (Superávit dos exercícios anteriores) | D17: =HLOOKUP($D$5,'BASE DE DADOS-SISCONT'!$E$4:$CS$37,'Quadro de Receita'!$A17,0) -> 7141377.28 | E17: =IFERROR(HLOOKUP($E$5,'BASE DE DADOS-SISCONT'!$E$4:$CS$37,'Quadro de Receita'!$A17,0),"") -> 0 | F17: 0 | G17: =HLOOKUP($G$5,'BASE DE DADOS-SISCONT'!$E$4:$CS$37,'Quadro de Receita'!$A17,0) -> 0 | H17: =HLOOKUP($H$5,'BASE DE DADOS-SISCONT'!$E$4:$CS$37,'Quadro de Receita'!$A17,0) -> 0 | I17: 0 | J17: 0 | R17: Projetado em Dezembro 2023 | S17: 4Q DEZ 2023 | T17: 19 | U17: Arrecadado Dezembro 2023 | W17: 45 | X17: Arrecadado de Janeiro a Dezembro 2023
C18: Total das Receitas | D18: =IFERROR(D17+D16,"") -> 73099283.83 | E18: =IFERROR(HLOOKUP($E$5,'BASE DE DADOS-SISCONT'!$E$4:$CS$37,'Quadro de Receita'!$A18,0),"") ->  | F18: =IFERROR(F17+F16,"") -> 6850750.727 | G18: =IFERROR(G17+G16,"") -> 7654616.5 | H18: =IFERROR(H17+H16,"") -> 22667991.41 | I18: =IFERROR(G18/F18,0) -> 1.117339808 | J18: 0.3100986798 | Q18: 77 | R18: Projetado no 1° Trimestre 2023 | S18: 4Q JAN 2023 | T18: 20 | U18: Arrecadado 1° Trimestre 2023
Q19: 78 | R19: Projetado no 2° Trimestre 2023 | S19: 4Q JAN 2023 | T19: 21 | U19: Arrecadado 2° Trimestre 2023
Q20: 79 | R20: Projetado no 3° Trimestre 2023 | S20: 4Q JAN 2023 | T20: 22 | U20: Arrecadado 3° Trimestre 2023
Q21: 80 | R21: Projetado no 4° Trimestre 2023 | S21: 4Q JAN 2023 | T21: 23 | U21: Arrecadado 4° Trimestre 2023
Q22: 81 | R22: Projetado no 1° Quadrimestre 2023 | S22: 4Q JAN 2023 | T22: 24 | U22: Arrecadado 1° Quadrimestre 2023
Q23: 82 | R23: Projetado no 2° Quadrimestre 2023 | S23: 4Q JAN 2023 | T23: 25 | U23: Arrecadado 2° Quadrimestre 2023
Q24: 83 | R24: Projetado no 3° Quadrimestre 2023 | S24: 4Q JAN 2021
Q25: 84 | R25: Projetado no Janeiro 2023 | S25: 4Q JAN 2021
Q26: 85 | R26: Projetado de Janeiro á Fevereiro 2023 | S26: 4Q JAN 2021
Q27: 86 | R27: Projetado de Janeiro á Março 2023 | S27: 4Q JAN 2021
Q28: 87 | R28: Projetado de Janeiro á Abril 2023 | S28: 4Q JAN 2021
Q29: 88 | R29: Projetado de Janeiro á Maio 2023 | S29: 4Q JAN 2021
Q30: 89 | R30: Projetado de Janeiro á Junho 2023 | S30: 4Q JAN 2021
Q31: 90 | R31: Projetado de Janeiro á Julho 2023 | S31: 4Q JAN 2021
Q32: 91 | R32: Projetado de Janeiro á Agosto 2023 | S32: 4Q JAN 2021
Q33: 92 | R33: Projetado de Janeiro á Setembro 2023 | S33: 4Q JAN 2021
Q34: 93 | R34: Projetado de Janeiro á Outubro 2023 | S34: 4Q JAN 2021
Q35: 94 | R35: Projetado de Janeiro á Novembro 2023 | S35: 4Q JAN 2021
S36: 4Q JAN 2021
S37: 4Q JAN 2021
S38: 4Q JAN 2021
S39: 4Q JAN 2021
S40: 4Q JAN 2021
S41: 4Q JAN 2021
S42: 4Q JAN 2021
S43: 4Q JAN 2021
S44: 4Q JAN 2021
S45: 4Q JAN 2021
S46: 4Q JAN 2021
S47: 4Q JAN 2021
S48: 4Q JAN 2021
S49: 4Q JAN 2021
S50: 4Q JAN 2021
S51: 4Q JAN 2021
S52: 4Q JAN 2021
S53: 4Q JAN 2021
S54: 4Q JAN 2021
S55: 4Q JAN 2021
S56: 4Q JAN 2021
S57: 4Q JAN 2021
S58: 4Q JAN 2021
S59: 4Q JAN 2021
S60: 4Q JAN 2021
S61: 4Q JAN 2021
S62: 4Q JAN 2021
S63: 4Q JAN 2021
S64: 4Q JAN 2021
S65: 4Q JAN 2021
S66: 4Q JAN 2021
S67: 4Q JAN 2021
S68: 4Q JAN 2021
S69: 4Q JAN 2021
S70: 4Q JAN 2021
S71: 4Q JAN 2021
S72: 4Q JAN 2021
S73: 4Q JAN 2021
S74: 4Q JAN 2021
S75: 4Q JAN 2021
S76: 4Q JAN 2021
S77: 4Q JAN 2021
S78: 4Q JAN 2021
S79: 4Q JAN 2021
S80: 4Q JAN 2021
S81: 4Q JAN 2021
S82: 4Q JAN 2021
S83: 4Q JAN 2021
S84: 4Q JAN 2021
S85: 4Q JAN 2021
S86: 4Q JAN 2021
S87: 4Q JAN 2021
S88: 4Q JAN 2021
S89: 4Q JAN 2021
S90: 4Q JAN 2021
S91: 4Q JAN 2021
S92: 4Q JAN 2021
S93: 4Q JAN 2021
S94: 4Q JAN 2021
S95: 4Q JAN 2021
S96: 4Q JAN 2021
S97: 4Q JAN 2021
S98: 4Q JAN 2021
S99: 4Q JAN 2021
S100: 4Q JAN 2021
S101: 4Q JAN 2021
S102: 4Q JAN 2021
S103: 4Q JAN 2021
S104: 4Q JAN 2021
S105: 4Q JAN 2021
S106: 4Q JAN 2021
S107: 4Q JAN 2021
S108: 4Q JAN 2021
S109: 4Q JAN 2021
S110: 4Q JAN 2021
S111: 4Q JAN 2021
S112: 4Q JAN 2021
S113: 4Q JAN 2021
S114: 4Q JAN 2021
S115: 4Q JAN 2021
S116: 4Q JAN 2021
S117: 4Q JAN 2021
S118: 4Q JAN 2021
S119: 4Q JAN 2021
S120: 4Q JAN 2021
S121: 4Q JAN 2021
S122: 4Q JAN 2021
S123: 4Q JAN 2021
S124: 4Q JAN 2021
S125: 4Q JAN 2021
S126: 4Q JAN 2021
S127: 4Q JAN 2021
S128: 4Q JAN 2021
S129: 4Q JAN 2021
S130: 4Q JAN 2021
S131: 4Q JAN 2021
S132: 4Q JAN 2021
S133: 4Q JAN 2021
S134: 4Q JAN 2021
S135: 4Q JAN 2021
S136: 4Q JAN 2021
S137: 4Q JAN 2021
S138: 4Q JAN 2021
S139: 4Q JAN 2021
S140: 4Q JAN 2021
S141: 4Q JAN 2021
S142: 4Q JAN 2021
S143: 4Q JAN 2021
S144: 4Q JAN 2021
S145: 4Q JAN 2021
S146: 4Q JAN 2021
S147: 4Q JAN 2021
S148: 4Q JAN 2021
S149: 4Q JAN 2021
S150: 4Q JAN 2021
S151: 4Q JAN 2021
S152: 4Q JAN 2021
S153: 4Q JAN 2021
S154: 4Q JAN 2021
S155: 4Q JAN 2021
S156: 4Q JAN 2021
S157: 4Q JAN 2021
S158: 4Q JAN 2021
S159: 4Q JAN 2021
S160: 4Q JAN 2021
S161: 4Q JAN 2021
S162: 4Q JAN 2021
S163: 4Q JAN 2021
S164: 4Q JAN 2021
S165: 4Q JAN 2021
S166: 4Q JAN 2021
S167: 4Q JAN 2021
S168: 4Q JAN 2021
S169: 4Q JAN 2021
S170: 4Q JAN 2021
S171: 4Q JAN 2021
S172: 4Q JAN 2021
S173: 4Q JAN 2021
S174: 4Q JAN 2021
S175: 4Q JAN 2021
S176: 4Q JAN 2021
S177: 4Q JAN 2021
S178: 4Q JAN 2021
S179: 4Q JAN 2021
S180: 4Q JAN 2021
S181: 4Q JAN 2021
S182: 4Q JAN 2021
S183: 4Q JAN 2021
S184: 4Q JAN 2021
S185: 4Q JAN 2021
S186: 4Q JAN 2021
S187: 4Q JAN 2021
S188: 4Q JAN 2021
S189: 4Q JAN 2021
S190: 4Q JAN 2021
S191: 4Q JAN 2021
S192: 4Q JAN 2021
S193: 4Q JAN 2021
S194: 4Q JAN 2021
S195: 4Q JAN 2021
S196: 4Q JAN 2021
S197: 4Q JAN 2021
S198: 4Q JAN 2021
S199: 4Q JAN 2021
S200: 4Q JAN 2021
... 4300 more rows

Sheet Programação Receita 2023 (hidden)
I1: 1 | J1: =I1+1 -> 2 | K1: =J1+1 -> 3 | L1: =K1+1 -> 4 | M1: 5 | N1: 6 | O1: 7 | P1: 8 | Q1: 9 | R1: 10 | S1: 11 | T1: 12 | U1: 13
B2: Especificação | D2: Reprogramação 2020 (A) | E2: Programação 2023 (B) | F2: Variação (2021/2020) | H2: Part. % (G) | J2: 4Q JAN 2023 | K2: 4Q FEV 2023 | L2: 4Q MAR 2023 | M2: 4Q ABR 2023 | N2: 4Q MAI 2023 | O2: 4Q JUN 2023 | P2: 4Q JUL 2023 | Q2: 4Q AGO 2023 | R2: 4Q SET 2023 | S2: 4Q OUT 2023 | T2: 4Q NOV 2023 | U2: 4Q DEZ 2023
F3: Valores (C=B-A) | G3: % (D=C/A) | J3: PROGRAMAÇÃO
B4: I - FONTES | E4: Valor | J4: Projetado em Janeiro 2023 | K4: Projetado em Fevereiro 2023 | L4: Projetado em Março 2023 | M4: Projetado em Abril 2023 | N4: Projetado em Maio 2023 | O4: Projetado em Junho 2023 | P4: Projetado em Julho 2023 | Q4: Projetado em Agosto 2023 | R4: Projetado em Setembro 2023 | S4: Projetado em Outubro 2023 | T4: Projetado em Novembro 2023 | U4: Projetado em Dezembro 2023 | V4: TOTAL | W4: CHECK
B5: 1. Receitas Correntes | D5: =D6+D16+D17+D18 -> 40072219.9 | E5: =E6+E16+E17+E18 -> 65957906.55 | F5: =E5-D5 -> 25885686.65 | G5: =IFERROR(F5/D5*100,) -> 64.59758586 | H5: =IFERROR(E5/$E$22*100,0) -> 78.94725038 | J5: =J6+J16+J17+J18 -> 7449202.877 | K5: =K6+K16+K17+K18 -> 7741551.788 | L5: 6850750.727 | M5: 4494773.904 | N5: 4861944.576 | O5: 5310328.308 | P5: 5489838.948 | Q5: 5596831.39 | R5: 4789137.478 | S5: 4590914.266 | T5: 4430768.893 | U5: 4351863.397 | V5: =SUM(J5:U5) -> 65957906.55 | W5: =V5-E5 -> 0
B6: 1.1 Receitas de Arrecadação Total | D6: =D7+D14+D15 -> 38641622.43 | E6: =E7+E14+E15 -> 62398013.75 | F6: =E6-D6 -> 23756391.32 | G6: =IFERROR(F6/D6*100,) -> 61.4787626 | H6: =IFERROR(E6/$E$22*100,0) -> 74.68629422 | J6: =J7+J14+J15 -> 7130720.757 | K6: 7520895.171 | L6: 6569910.401 | M6: 4256565.703 | N6: 4597993.123 | O6: 5067961.274 | P6: 5178054.993 | Q6: 5321977.079 | R6: 4491981.523 | S6: 4295113.752 | T6: 4027876.406 | U6: 3938963.568 | V6: 62398013.75 | W6: =V6-E6 -> 0
B7: 1.1.1 Anuidades | D7: =D8+D11 -> 19137705.07 | E7: =E8+E11 -> 25595269.76 | F7: 6457564.695 | G7: 33.74262835 | H7: 30.63584452 | J7: =J8+J11 -> 4629733.459 | K7: 4640024.735 | L7: 3358192.105 | M7: 1832362.428 | N7: 1782336.231 | O7: 1995527.702 | P7: 1850750.518 | Q7: 1696112.125 | R7: 1041671.54 | S7: 907160.4271 | T7: 879621.7537 | U7: 981776.7364 | V7: 25595269.76 | W7: 0
B8: 1.1.1.1 Pessoa Física | D8: =SUM(D9:D10) -> 16884450.14 | E8: =SUM(E9:E10) -> 23673523.08 | F8: 6789072.935 | G8: 40.20902592 | H8: 28.33564089 | J8: =SUM(J9:J10) -> 4395917.298 | K8: 4392779.791 | L8: 3204802.429 | M8: 1747352.42 | N8: 1709740.574 | O8: 1898730.394 | P8: 1741610.925 | Q8: 1386900.073 | R8: 881775.0693 | S8: 779226.0899 | T8: 745114.5027 | U8: 789573.5147 | V8: 23673523.08 | W8: 0
A9: ='BASE DE DADOS-SISCONT'!B34 -> 31 | B9: 1.1.1.1.1 Anuidade do Exercício 2021 | D9: 13929347.98 | E9: =RESUMO!I54 -> 19184594.75 | F9: 5255246.774 | G9: 37.72787343 | H9: 22.96269067 | I9: 52 | J9: =IFERROR(INDEX('Base de Dados Input'!$A:$BF,MATCH('Programação Receita 2023'!J$2,'Base de Dados Input'!$A:$A,0),MATCH('Programação Receita 2023'!I9,'Base de Dados Input'!$2:$2,0)),"0") -> 3873428.246 | K9: =IFERROR(INDEX('Base de Dados Input'!$A:$BF,MATCH('Programação Receita 2023'!K$2,'Base de Dados Input'!$A:$A,0),MATCH('Programação Receita 2023'!I9,'Base de Dados Input'!$2:$2,0)),"0") -> 3881174.547 | L9: =IFERROR(INDEX('Base de Dados Input'!$A:$BF,MATCH('Programação Receita 2023'!L$2,'Base de Dados Input'!$A:$A,0),MATCH('Programação Receita 2023'!I9,'Base de Dados Input'!$2:$2,0)),"0") -> 2715138.457 | M9: =IFERROR(INDEX('Base de Dados Input'!$A:$BF,MATCH('Programação Receita 2023'!M$2,'Base de Dados Input'!$A:$A,0),MATCH('Programação Receita 2023'!I9,'Base de Dados Input'!$2:$2,0)),"0") -> 1424876.938 | N9: =IFERROR(INDEX('Base de Dados Input'!$A:$BF,MATCH('Programação Receita 2023'!N$2,'Base de Dados Input'!$A:$A,0),MATCH('Programação Receita 2023'!I9,'Base de Dados Input'!$2:$2,0)),"0") -> 1374089.487 | O9: =IFERROR(INDEX('Base de Dados Input'!$A:$BF,MATCH('Programação Receita 2023'!O$2,'Base de Dados Input'!$A:$A,0),MATCH('Programação Receita 2023'!I9,'Base de Dados Input'!$2:$2,0)),"0") -> 1540855.383 | P9: =IFERROR(INDEX('Base de Dados Input'!$A:$BF,MATCH('Programação Receita 2023'!P$2,'Base de Dados Input'!$A:$A,0),MATCH('Programação Receita 2023'!I9,'Base de Dados Input'!$2:$2,0)),"0") -> 1388330.053 | Q9: =IFERROR(INDEX('Base de Dados Input'!$A:$BF,MATCH('Programação Receita 2023'!Q$2,'Base de Dados Input'!$A:$A,0),MATCH('Programação Receita 2023'!I9,'Base de Dados Input'!$2:$2,0)),"0") -> 1012383.516 | R9: =IFERROR(INDEX('Base de Dados Input'!$A:$BF,MATCH('Programação Receita 2023'!R$2,'Base de Dados Input'!$A:$A,0),MATCH('Programação Receita 2023'!I9,'Base de Dados Input'!$2:$2,0)),"0") -> 558021.5135 | S9: =IFERROR(INDEX('Base de Dados Input'!$A:$BF,MATCH('Programação Receita 2023'!S$2,'Base de Dados Input'!$A:$A,0),MATCH('Programação Receita 2023'!I9,'Base de Dados Input'!$2:$2,0)),"0") -> 480328.5518 | T9: =IFERROR(INDEX('Base de Dados Input'!$A:$BF,MATCH('Programação Receita 2023'!T$2,'Base de Dados Input'!$A:$A,0),MATCH('Programação Receita 2023'!I9,'Base de Dados Input'!$2:$2,0)),"0") -> 456264.4275 | U9: =IFERROR(INDEX('Base de Dados Input'!$A:$BF,MATCH('Programação Receita 2023'!U$2,'Base de Dados Input'!$A:$A,0),MATCH('Programação Receita 2023'!I9,'Base de Dados Input'!$2:$2,0)),"0") -> 479703.6305 | V9: 19184594.75 | W9: 0
A10: ='BASE DE DADOS-SISCONT'!B33 -> 30 | B10: 1.1.1.1.2 Anuidade Exercícios anteriores | D10: 2955102.169 | E10: =RESUMO!L54 -> 4488928.33 | F10: 1533826.161 | G10: 51.90433607 | H10: 5.372950224 | I10: 55 | J10: =IFERROR(INDEX('Base de Dados Input'!$A:$BF,MATCH('Programação Receita 2023'!J$2,'Base de Dados Input'!$A:$A,0),MATCH('Programação Receita 2023'!I10,'Base de Dados Input'!$2:$2,0)),"0") -> 522489.0521 | K10: =IFERROR(INDEX('Base de Dados Input'!$A:$BF,MATCH('Programação Receita 2023'!K$2,'Base de Dados Input'!$A:$A,0),MATCH('Programação Receita 2023'!I10,'Base de Dados Input'!$2:$2,0)),"0") -> 511605.2437 | L10: =IFERROR(INDEX('Base de Dados Input'!$A:$BF,MATCH('Programação Receita 2023'!L$2,'Base de Dados Input'!$A:$A,0),MATCH('Programação Receita 2023'!I10,'Base de Dados Input'!$2:$2,0)),"0") -> 489663.9719 | M10: =IFERROR(INDEX('Base de Dados Input'!$A:$BF,MATCH('Programação Receita 2023'!M$2,'Base de Dados Input'!$A:$A,0),MATCH('Programação Receita 2023'!I10,'Base de Dados Input'!$2:$2,0)),"0") -> 322475.4824 | N10: =IFERROR(INDEX('Base de Dados Input'!$A:$BF,MATCH('Programação Receita 2023'!N$2,'Base de Dados Input'!$A:$A,0),MATCH('Programação Receita 2023'!I10,'Base de Dados Input'!$2:$2,0)),"0") -> 335651.087 | O10: =IFERROR(INDEX('Base de Dados Input'!$A:$BF,MATCH('Programação Receita 2023'!O$2,'Base de Dados Input'!$A:$A,0),MATCH('Programação Receita 2023'!I10,'Base de Dados Input'!$2:$2,0)),"0") -> 357875.0111 | P10: =IFERROR(INDEX('Base de Dados Input'!$A:$BF,MATCH('Programação Receita 2023'!P$2,'Base de Dados Input'!$A:$A,0),MATCH('Programação Receita 2023'!I10,'Base de Dados Input'!$2:$2,0)),"0") -> 353280.8718 | Q10: =IFERROR(INDEX('Base de Dados Input'!$A:$BF,MATCH('Programação Receita 2023'!Q$2,'Base de Dados Input'!$A:$A,0),MATCH('Programação Receita 2023'!I10,'Base de Dados Input'!$2:$2,0)),"0") -> 374516.5567 | R10: =IFERROR(INDEX('Base de Dados Input'!$A:$BF,MATCH('Programação Receita 2023'!R$2,'Base de Dados Input'!$A:$A,0),MATCH('Programação Receita 2023'!I10,'Base de Dados Input'!$2:$2,0)),"0") -> 323753.5558 | S10: =IFERROR(INDEX('Base de Dados Input'!$A:$BF,MATCH('Programação Receita 2023'!S$2,'Base de Dados Input'!$A:$A,0),MATCH('Programação Receita 2023'!I10,'Base de Dados Input'!$2:$2,0)),"0") -> 298897.5382 | T10: =IFERROR(INDEX('Base de Dados Input'!$A:$BF,MATCH('Programação Receita 2023'!T$2,'Base de Dados Input'!$A:$A,0),MATCH('Programação Receita 2023'!I10,'Base de Dados Input'!$2:$2,0)),"0") -> 288850.0753 | U10: =IFERROR(INDEX('Base de Dados Input'!$A:$BF,MATCH('Programação Receita 2023'!U$2,'Base de Dados Input'!$A:$A,0),MATCH('Programação Receita 2023'!I10,'Base de Dados Input'!$2:$2,0)),"0") -> 309869.8843 | V10: 4488928.33 | W10: 0
B11: 1.1.1.2 Pessoa Jurídica | D11: =SUM(D12:D13) -> 2253254.92 | E11: =SUM(E12:E13) -> 1921746.68 | F11: -331508.2403 | G11: -14.71241613 | H11: 2.300203634 | J11: =SUM(J12:J13) -> 233816.1607 | K11: 247244.9448 | L11: 153389.6757 | M11: 85010.00789 | N11: 72595.65732 | O11: 96797.30844 | P11: 109139.5931 | Q11: 309212.0517 | R11: 159896.4706 | S11: 127934.3372 | T11: 134507.251 | U11: 192203.2217 | V11: 1921746.68 | W11: 0
A12: ='BASE DE DADOS-SISCONT'!B28 -> 25 | B12: 1.1.1.2.1 Anuidade do Exercício 2021 | D12: 1832188.708 | E12: =RESUMO!K54 -> 1386723.45 | F12: -445465.258 | G12: -24.31328476 | H12: 1.659816224 | I12: 54 | J12: =IFERROR(INDEX('Base de Dados Input'!$A:$BF,MATCH('Programação Receita 2023'!J$2,'Base de Dados Input'!$A:$A,0),MATCH('Programação Receita 2023'!I12,'Base de Dados Input'!$2:$2,0)),"0") -> 185492.283 | K12: =IFERROR(INDEX('Base de Dados Input'!$A:$BF,MATCH('Programação Receita 2023'!K$2,'Base de Dados Input'!$A:$A,0),MATCH('Programação Receita 2023'!I12,'Base de Dados Input'!$2:$2,0)),"0") -> 205497.0021 | L12: =IFERROR(INDEX('Base de Dados Input'!$A:$BF,MATCH('Programação Receita 2023'!L$2,'Base de Dados Input'!$A:$A,0),MATCH('Programação Receita 2023'!I12,'Base de Dados Input'!$2:$2,0)),"0") -> 106850.1461 | M12: =IFERROR(INDEX('Base de Dados Input'!$A:$BF,MATCH('Programação Receita 2023'!M$2,'Base de Dados Input'!$A:$A,0),MATCH('Programação Receita 2023'!I12,'Base de Dados Input'!$2:$2,0)),"0") -> 54528.19625 | N12: =IFERROR(INDEX('Base de Dados Input'!$A:$BF,MATCH('Programação Receita 2023'!N$2,'Base de Dados Input'!$A:$A,0),MATCH('Programação Receita 2023'!I12,'Base de Dados Input'!$2:$2,0)),"0") -> 42645.00619 | O12: =IFERROR(INDEX('Base de Dados Input'!$A:$BF,MATCH('Programação Receita 2023'!O$2,'Base de Dados Input'!$A:$A,0),MATCH('Programação Receita 2023'!I12,'Base de Dados Input'!$2:$2,0)),"0") -> 58126.50998 | P12: =IFERROR(INDEX('Base de Dados Input'!$A:$BF,MATCH('Programação Receita 2023'!P$2,'Base de Dados Input'!$A:$A,0),MATCH('Programação Receita 2023'!I12,'Base de Dados Input'!$2:$2,0)),"0") -> 66387.33181 | Q12: =IFERROR(INDEX('Base de Dados Input'!$A:$BF,MATCH('Programação Receita 2023'!Q$2,'Base de Dados Input'!$A:$A,0),MATCH('Programação Receita 2023'!I12,'Base de Dados Input'!$2:$2,0)),"0") -> 239454.6849 | R12: =IFERROR(INDEX('Base de Dados Input'!$A:$BF,MATCH('Programação Receita 2023'!R$2,'Base de Dados Input'!$A:$A,0),MATCH('Programação Receita 2023'!I12,'Base de Dados Input'!$2:$2,0)),"0") -> 104130.5888 | S12: =IFERROR(INDEX('Base de Dados Input'!$A:$BF,MATCH('Programação Receita 2023'!S$2,'Base de Dados Input'!$A:$A,0),MATCH('Programação Receita 2023'!I12,'Base de Dados Input'!$2:$2,0)),"0") -> 84731.62702 | T12: =IFERROR(INDEX('Base de Dados Input'!$A:$BF,MATCH('Programação Receita 2023'!T$2,'Base de Dados Input'!$A:$A,0),MATCH('Programação Receita 2023'!I12,'Base de Dados Input'!$2:$2,0)),"0") -> 93053.47853 | U12: =IFERROR(INDEX('Base de Dados Input'!$A:$BF,MATCH('Programação Receita 2023'!U$2,'Base de Dados Input'!$A:$A,0),MATCH('Programação Receita 2023'!I12,'Base de Dados Input'!$2:$2,0)),"0") -> 145826.5953 | V12: 1386723.45 | W12: 0
A13: ='BASE DE DADOS-SISCONT'!B24 -> 21 | B13: 1.1.1.2.2 Anuidade Exercícios anteriores | D13: 421066.2123 | E13: =RESUMO!N54 -> 535023.23 | F13: 113957.0177 | G13: 27.06391878 | H13: 0.6403874093 | I13: 57 | J13: =IFERROR(INDEX('Base de Dados Input'!$A:$BF,MATCH('Programação Receita 2023'!J$2,'Base de Dados Input'!$A:$A,0),MATCH('Programação Receita 2023'!I13,'Base de Dados Input'!$2:$2,0)),"0") -> 48323.87765 | K13: =IFERROR(INDEX('Base de Dados Input'!$A:$BF,MATCH('Programação Receita 2023'!K$2,'Base de Dados Input'!$A:$A,0),MATCH('Programação Receita 2023'!I13,'Base de Dados Input'!$2:$2,0)),"0") -> 41747.94268 | L13: =IFERROR(INDEX('Base de Dados Input'!$A:$BF,MATCH('Programação Receita 2023'!L$2,'Base de Dados Input'!$A:$A,0),MATCH('Programação Receita 2023'!I13,'Base de Dados Input'!$2:$2,0)),"0") -> 46539.52952 | M13: =IFERROR(INDEX('Base de Dados Input'!$A:$BF,MATCH('Programação Receita 2023'!M$2,'Base de Dados Input'!$A:$A,0),MATCH('Programação Receita 2023'!I13,'Base de Dados Input'!$2:$2,0)),"0") -> 30481.81164 | N13: =IFERROR(INDEX('Base de Dados Input'!$A:$BF,MATCH('Programação Receita 2023'!N$2,'Base de Dados Input'!$A:$A,0),MATCH('Programação Receita 2023'!I13,'Base de Dados Input'!$2:$2,0)),"0") -> 29950.65113 | O13: =IFERROR(INDEX('Base de Dados Input'!$A:$BF,MATCH('Programação Receita 2023'!O$2,'Base de Dados Input'!$A:$A,0),MATCH('Programação Receita 2023'!I13,'Base de Dados Input'!$2:$2,0)),"0") -> 38670.79846 | P13: =IFERROR(INDEX('Base de Dados Input'!$A:$BF,MATCH('Programação Receita 2023'!P$2,'Base de Dados Input'!$A:$A,0),MATCH('Programação Receita 2023'!I13,'Base de Dados Input'!$2:$2,0)),"0") -> 42752.26124 | Q13: =IFERROR(INDEX('Base de Dados Input'!$A:$BF,MATCH('Programação Receita 2023'!Q$2,'Base de Dados Input'!$A:$A,0),MATCH('Programação Receita 2023'!I13,'Base de Dados Input'!$2:$2,0)),"0") -> 69757.36683 | R13: =IFERROR(INDEX('Base de Dados Input'!$A:$BF,MATCH('Programação Receita 2023'!R$2,'Base de Dados Input'!$A:$A,0),MATCH('Programação Receita 2023'!I13,'Base de Dados Input'!$2:$2,0)),"0") -> 55765.88179 | S13: =IFERROR(INDEX('Base de Dados Input'!$A:$BF,MATCH('Programação Receita 2023'!S$2,'Base de Dados Input'!$A:$A,0),MATCH('Programação Receita 2023'!I13,'Base de Dados Input'!$2:$2,0)),"0") -> 43202.71017 | T13: =IFERROR(INDEX('Base de Dados Input'!$A:$BF,MATCH('Programação Receita 2023'!T$2,'Base de Dados Input'!$A:$A,0),MATCH('Programação Receita 2023'!I13,'Base de Dados Input'!$2:$2,0)),"0") -> 41453.77248 | U13: =IFERROR(INDEX('Base de Dados Input'!$A:$BF,MATCH('Programação Receita 2023'!U$2,'Base de Dados Input'!$A:$A,0),MATCH('Programação Receita 2023'!I13,'Base de Dados Input'!$2:$2,0)),"0") -> 46376.62641 | V13: 535023.23 | W13: 0
A14: ='BASE DE DADOS-SISCONT'!B20 -> 17 | B14: 1.1.3 RRT | D14: 18080943.12 | E14: =RESUMO!H54 -> 34227213.02 | F14: 16146269.9 | G14: 89.29993194 | H14: 40.96770952 | I14: 51 | J14: =IFERROR(INDEX('Base de Dados Input'!$A:$BF,MATCH('Programação Receita 2023'!J$2,'Base de Dados Input'!$A:$A,0),MATCH('Programação Receita 2023'!I14,'Base de Dados Input'!$2:$2,0)),"0") -> 2312675.25 | K14: =IFERROR(INDEX('Base de Dados Input'!$A:$BF,MATCH('Programação Receita 2023'!K$2,'Base de Dados Input'!$A:$A,0),MATCH('Programação Receita 2023'!I14,'Base de Dados Input'!$2:$2,0)),"0") -> 2689048.226 | L14: =IFERROR(INDEX('Base de Dados Input'!$A:$BF,MATCH('Programação Receita 2023'!L$2,'Base de Dados Input'!$A:$A,0),MATCH('Programação Receita 2023'!I14,'Base de Dados Input'!$2:$2,0)),"0") -> 3018769.796 | M14: =IFERROR(INDEX('Base de Dados Input'!$A:$BF,MATCH('Programação Receita 2023'!M$2,'Base de Dados Input'!$A:$A,0),MATCH('Programação Receita 2023'!I14,'Base de Dados Input'!$2:$2,0)),"0") -> 2279174.061 | N14: =IFERROR(INDEX('Base de Dados Input'!$A:$BF,MATCH('Programação Receita 2023'!N$2,'Base de Dados Input'!$A:$A,0),MATCH('Programação Receita 2023'!I14,'Base de Dados Input'!$2:$2,0)),"0") -> 2648883.533 | O14: =IFERROR(INDEX('Base de Dados Input'!$A:$BF,MATCH('Programação Receita 2023'!O$2,'Base de Dados Input'!$A:$A,0),MATCH('Programação Receita 2023'!I14,'Base de Dados Input'!$2:$2,0)),"0") -> 2876442.97 | P14: =IFERROR(INDEX('Base de Dados Input'!$A:$BF,MATCH('Programação Receita 2023'!P$2,'Base de Dados Input'!$A:$A,0),MATCH('Programação Receita 2023'!I14,'Base de Dados Input'!$2:$2,0)),"0") -> 3094414.078 | Q14: =IFERROR(INDEX('Base de Dados Input'!$A:$BF,MATCH('Programação Receita 2023'!Q$2,'Base de Dados Input'!$A:$A,0),MATCH('Programação Receita 2023'!I14,'Base de Dados Input'!$2:$2,0)),"0") -> 3338278.389 | R14: =IFERROR(INDEX('Base de Dados Input'!$A:$BF,MATCH('Programação Receita 2023'!R$2,'Base de Dados Input'!$A:$A,0),MATCH('Programação Receita 2023'!I14,'Base de Dados Input'!$2:$2,0)),"0") -> 3195607.95 | S14: =IFERROR(INDEX('Base de Dados Input'!$A:$BF,MATCH('Programação Receita 2023'!S$2,'Base de Dados Input'!$A:$A,0),MATCH('Programação Receita 2023'!I14,'Base de Dados Input'!$2:$2,0)),"0") -> 3147594.364 | T14: =IFERROR(INDEX('Base de Dados Input'!$A:$BF,MATCH('Programação Receita 2023'!T$2,'Base de Dados Input'!$A:$A,0),MATCH('Programação Receita 2023'!I14,'Base de Dados Input'!$2:$2,0)),"0") -> 2914304.265 | U14: =IFERROR(INDEX('Base de Dados Input'!$A:$BF,MATCH('Programação Receita 2023'!U$2,'Base de Dados Input'!$A:$A,0),MATCH('Programação Receita 2023'!I14,'Base de Dados Input'!$2:$2,0)),"0") -> 2712020.138 | V14: 34227213.02 | W14: 0
A15: ='BASE DE DADOS-SISCONT'!B23 -> 20 | B15: 1.1.4 Taxas e Multas | D15: 1422974.246 | E15: =RESUMO!M54 -> 2575530.97 | F15: 1152556.725 | G15: 80.99631656 | H15: 3.082740174 | I15: 56 | J15: =IFERROR(INDEX('Base de Dados Input'!$A:$BF,MATCH('Programação Receita 2023'!J$2,'Base de Dados Input'!$A:$A,0),MATCH('Programação Receita 2023'!I15,'Base de Dados Input'!$2:$2,0)),"0") -> 188312.0476 | K15: =IFERROR(INDEX('Base de Dados Input'!$A:$BF,MATCH('Programação Receita 2023'!K$2,'Base de Dados Input'!$A:$A,0),MATCH('Programação Receita 2023'!I15,'Base de Dados Input'!$2:$2,0)),"0") -> 191822.2092 | L15: =IFERROR(INDEX('Base de Dados Input'!$A:$BF,MATCH('Programação Receita 2023'!L$2,'Base de Dados Input'!$A:$A,0),MATCH('Programação Receita 2023'!I15,'Base de Dados Input'!$2:$2,0)),"0") -> 192948.5006 | M15: =IFERROR(INDEX('Base de Dados Input'!$A:$BF,MATCH('Programação Receita 2023'!M$2,'Base de Dados Input'!$A:$A,0),MATCH('Programação Receita 2023'!I15,'Base de Dados Input'!$2:$2,0)),"0") -> 145029.2135 | N15: =IFERROR(INDEX('Base de Dados Input'!$A:$BF,MATCH('Programação Receita 2023'!N$2,'Base de Dados Input'!$A:$A,0),MATCH('Programação Receita 2023'!I15,'Base de Dados Input'!$2:$2,0)),"0") -> 166773.359 | O15: =IFERROR(INDEX('Base de Dados Input'!$A:$BF,MATCH('Programação Receita 2023'!O$2,'Base de Dados Input'!$A:$A,0),MATCH('Programação Receita 2023'!I15,'Base de Dados Input'!$2:$2,0)),"0") -> 195990.602 | P15: =IFERROR(INDEX('Base de Dados Input'!$A:$BF,MATCH('Programação Receita 2023'!P$2,'Base de Dados Input'!$A:$A,0),MATCH('Programação Receita 2023'!I15,'Base de Dados Input'!$2:$2,0)),"0") -> 232890.397 | Q15: =IFERROR(INDEX('Base de Dados Input'!$A:$BF,MATCH('Programação Receita 2023'!Q$2,'Base de Dados Input'!$A:$A,0),MATCH('Programação Receita 2023'!I15,'Base de Dados Input'!$2:$2,0)),"0") -> 287586.5649 | R15: =IFERROR(INDEX('Base de Dados Input'!$A:$BF,MATCH('Programação Receita 2023'!R$2,'Base de Dados Input'!$A:$A,0),MATCH('Programação Receita 2023'!I15,'Base de Dados Input'!$2:$2,0)),"0") -> 254702.0338 | S15: =IFERROR(INDEX('Base de Dados Input'!$A:$BF,MATCH('Programação Receita 2023'!S$2,'Base de Dados Input'!$A:$A,0),MATCH('Programação Receita 2023'!I15,'Base de Dados Input'!$2:$2,0)),"0") -> 240358.9608 | T15: =IFERROR(INDEX('Base de Dados Input'!$A:$BF,MATCH('Programação Receita 2023'!T$2,'Base de Dados Input'!$A:$A,0),MATCH('Programação Receita 2023'!I15,'Base de Dados Input'!$2:$2,0)),"0") -> 233950.387 | U15: =IFERROR(INDEX('Base de Dados Input'!$A:$BF,MATCH('Programação Receita 2023'!U$2,'Base de Dados Input'!$A:$A,0),MATCH('Programação Receita 2023'!I15,'Base de Dados Input'!$2:$2,0)),"0") -> 245166.6945 | V15: 2575530.97 | W15: 0
A16: ='BASE DE DADOS-SISCONT'!B5 -> 2 | B16: 1.2 Aplicações Financeiras | D16: 985316.4166 | E16: =RESUMO!J54 -> 2894727.15 | F16: 1909410.733 | G16: 193.7865544 | H16: 3.464796884 | I16: 53 | J16: =IFERROR(INDEX('Base de Dados Input'!$A:$BF,MATCH('Programação Receita 2023'!J$2,'Base de Dados Input'!$A:$A,0),MATCH('Programação Receita 2023'!I16,'Base de Dados Input'!$2:$2,0)),"0") -> 200432.1152 | K16: =IFERROR(INDEX('Base de Dados Input'!$A:$BF,MATCH('Programação Receita 2023'!K$2,'Base de Dados Input'!$A:$A,0),MATCH('Programação Receita 2023'!I16,'Base de Dados Input'!$2:$2,0)),"0") -> 183067.8027 | L16: =IFERROR(INDEX('Base de Dados Input'!$A:$BF,MATCH('Programação Receita 2023'!L$2,'Base de Dados Input'!$A:$A,0),MATCH('Programação Receita 2023'!I16,'Base de Dados Input'!$2:$2,0)),"0") -> 219246.6701 | M16: =IFERROR(INDEX('Base de Dados Input'!$A:$BF,MATCH('Programação Receita 2023'!M$2,'Base de Dados Input'!$A:$A,0),MATCH('Programação Receita 2023'!I16,'Base de Dados Input'!$2:$2,0)),"0") -> 218146.7736 | N16: =IFERROR(INDEX('Base de Dados Input'!$A:$BF,MATCH('Programação Receita 2023'!N$2,'Base de Dados Input'!$A:$A,0),MATCH('Programação Receita 2023'!I16,'Base de Dados Input'!$2:$2,0)),"0") -> 223922.6716 | O16: =IFERROR(INDEX('Base de Dados Input'!$A:$BF,MATCH('Programação Receita 2023'!O$2,'Base de Dados Input'!$A:$A,0),MATCH('Programação Receita 2023'!I16,'Base de Dados Input'!$2:$2,0)),"0") -> 220742.4632 | P16: =IFERROR(INDEX('Base de Dados Input'!$A:$BF,MATCH('Programação Receita 2023'!P$2,'Base de Dados Input'!$A:$A,0),MATCH('Programação Receita 2023'!I16,'Base de Dados Input'!$2:$2,0)),"0") -> 225182.4273 | Q16: =IFERROR(INDEX('Base de Dados Input'!$A:$BF,MATCH('Programação Receita 2023'!Q$2,'Base de Dados Input'!$A:$A,0),MATCH('Programação Receita 2023'!I16,'Base de Dados Input'!$2:$2,0)),"0") -> 249347.9004 | R16: =IFERROR(INDEX('Base de Dados Input'!$A:$BF,MATCH('Programação Receita 2023'!R$2,'Base de Dados Input'!$A:$A,0),MATCH('Programação Receita 2023'!I16,'Base de Dados Input'!$2:$2,0)),"0") -> 245362.855 | S16: =IFERROR(INDEX('Base de Dados Input'!$A:$BF,MATCH('Programação Receita 2023'!S$2,'Base de Dados Input'!$A:$A,0),MATCH('Programação Receita 2023'!I16,'Base de Dados Input'!$2:$2,0)),"0") -> 262260.2152 | T16: =IFERROR(INDEX('Base de Dados Input'!$A:$BF,MATCH('Programação Receita 2023'!T$2,'Base de Dados Input'!$A:$A,0),MATCH('Programação Receita 2023'!I16,'Base de Dados Input'!$2:$2,0)),"0") -> 289638.814 | U16: =IFERROR(INDEX('Base de Dados Input'!$A:$BF,MATCH('Programação Receita 2023'!U$2,'Base de Dados Input'!$A:$A,0),MATCH('Programação Receita 2023'!I16,'Base de Dados Input'!$2:$2,0)),"0") -> 357376.4417 | V16: 2894727.15 | W16: 0
A17: ='BASE DE DADOS-SISCONT'!B17 -> 14 | B17: 1.3 Outras Receitas Correntes | D17: 445281.049 | E17: =RESUMO!O54 -> 665165.65 | F17: 219884.601 | G17: 49.38108224 | H17: 0.7961592758 | I17: 58 | J17: =IFERROR(INDEX('Base de Dados Input'!$A:$BF,MATCH('Programação Receita 2023'!J$2,'Base de Dados Input'!$A:$A,0),MATCH('Programação Receita 2023'!I17,'Base de Dados Input'!$2:$2,0)),"0") -> 118050.0049 | K17: =IFERROR(INDEX('Base de Dados Input'!$A:$BF,MATCH('Programação Receita 2023'!K$2,'Base de Dados Input'!$A:$A,0),MATCH('Programação Receita 2023'!I17,'Base de Dados Input'!$2:$2,0)),"0") -> 37588.81469 | L17: =IFERROR(INDEX('Base de Dados Input'!$A:$BF,MATCH('Programação Receita 2023'!L$2,'Base de Dados Input'!$A:$A,0),MATCH('Programação Receita 2023'!I17,'Base de Dados Input'!$2:$2,0)),"0") -> 61593.65525 | M17: =IFERROR(INDEX('Base de Dados Input'!$A:$BF,MATCH('Programação Receita 2023'!M$2,'Base de Dados Input'!$A:$A,0),MATCH('Programação Receita 2023'!I17,'Base de Dados Input'!$2:$2,0)),"0") -> 20061.42753 | N17: =IFERROR(INDEX('Base de Dados Input'!$A:$BF,MATCH('Programação Receita 2023'!N$2,'Base de Dados Input'!$A:$A,0),MATCH('Programação Receita 2023'!I17,'Base de Dados Input'!$2:$2,0)),"0") -> 40028.782 | O17: =IFERROR(INDEX('Base de Dados Input'!$A:$BF,MATCH('Programação Receita 2023'!O$2,'Base de Dados Input'!$A:$A,0),MATCH('Programação Receita 2023'!I17,'Base de Dados Input'!$2:$2,0)),"0") -> 21624.57013 | P17: =IFERROR(INDEX('Base de Dados Input'!$A:$BF,MATCH('Programação Receita 2023'!P$2,'Base de Dados Input'!$A:$A,0),MATCH('Programação Receita 2023'!I17,'Base de Dados Input'!$2:$2,0)),"0") -> 86601.52743 | Q17: =IFERROR(INDEX('Base de Dados Input'!$A:$BF,MATCH('Programação Receita 2023'!Q$2,'Base de Dados Input'!$A:$A,0),MATCH('Programação Receita 2023'!I17,'Base de Dados Input'!$2:$2,0)),"0") -> 25506.4103 | R17: =IFERROR(INDEX('Base de Dados Input'!$A:$BF,MATCH('Programação Receita 2023'!R$2,'Base de Dados Input'!$A:$A,0),MATCH('Programação Receita 2023'!I17,'Base de Dados Input'!$2:$2,0)),"0") -> 51793.09966 | S17: =IFERROR(INDEX('Base de Dados Input'!$A:$BF,MATCH('Programação Receita 2023'!S$2,'Base de Dados Input'!$A:$A,0),MATCH('Programação Receita 2023'!I17,'Base de Dados Input'!$2:$2,0)),"0") -> 33540.29833 | T17: =IFERROR(INDEX('Base de Dados Input'!$A:$BF,MATCH('Programação Receita 2023'!T$2,'Base de Dados Input'!$A:$A,0),MATCH('Programação Receita 2023'!I17,'Base de Dados Input'!$2:$2,0)),"0") -> 113253.6731 | U17: =IFERROR(INDEX('Base de Dados Input'!$A:$BF,MATCH('Programação Receita 2023'!U$2,'Base de Dados Input'!$A:$A,0),MATCH('Programação Receita 2023'!I17,'Base de Dados Input'!$2:$2,0)),"0") -> 55523.38667 | V17: =SUM(J17:U17) -> 665165.65 | W17: 0
B18: 1.4 Fundo de Apoio | F18: 0 | G18: 0 | H18: 0 | J18: =IFERROR(INDEX('Base de Dados Input'!$A:$BF,MATCH('Programação Receita 2023'!J$2,'Base de Dados Input'!$A:$A,0),MATCH('Programação Receita 2023'!I18,'Base de Dados Input'!$2:$2,0)),"0") -> 0 | K18: =IFERROR(INDEX('Base de Dados Input'!$A:$BF,MATCH('Programação Receita 2023'!K$2,'Base de Dados Input'!$A:$A,0),MATCH('Programação Receita 2023'!I18,'Base de Dados Input'!$2:$2,0)),"0") -> 0 | L18: =IFERROR(INDEX('Base de Dados Input'!$A:$BF,MATCH('Programação Receita 2023'!L$2,'Base de Dados Input'!$A:$A,0),MATCH('Programação Receita 2023'!I18,'Base de Dados Input'!$2:$2,0)),"0") -> 0 | M18: =IFERROR(INDEX('Base de Dados Input'!$A:$BF,MATCH('Programação Receita 2023'!M$2,'Base de Dados Input'!$A:$A,0),MATCH('Programação Receita 2023'!I18,'Base de Dados Input'!$2:$2,0)),"0") -> 0 | N18: =IFERROR(INDEX('Base de Dados Input'!$A:$BF,MATCH('Programação Receita 2023'!N$2,'Base de Dados Input'!$A:$A,0),MATCH('Programação Receita 2023'!I18,'Base de Dados Input'!$2:$2,0)),"0") -> 0 | O18: =IFERROR(INDEX('Base de Dados Input'!$A:$BF,MATCH('Programação Receita 2023'!O$2,'Base de Dados Input'!$A:$A,0),MATCH('Programação Receita 2023'!I18,'Base de Dados Input'!$2:$2,0)),"0") -> 0 | P18: =IFERROR(INDEX('Base de Dados Input'!$A:$BF,MATCH('Programação Receita 2023'!P$2,'Base de Dados Input'!$A:$A,0),MATCH('Programação Receita 2023'!I18,'Base de Dados Input'!$2:$2,0)),"0") -> 0 | Q18: =IFERROR(INDEX('Base de Dados Input'!$A:$BF,MATCH('Programação Receita 2023'!Q$2,'Base de Dados Input'!$A:$A,0),MATCH('Programação Receita 2023'!I18,'Base de Dados Input'!$2:$2,0)),"0") -> 0 | R18: =IFERROR(INDEX('Base de Dados Input'!$A:$BF,MATCH('Programação Receita 2023'!R$2,'Base de Dados Input'!$A:$A,0),MATCH('Programação Receita 2023'!I18,'Base de Dados Input'!$2:$2,0)),"0") -> 0 | S18: =IFERROR(INDEX('Base de Dados Input'!$A:$BF,MATCH('Programação Receita 2023'!S$2,'Base de Dados Input'!$A:$A,0),MATCH('Programação Receita 2023'!I18,'Base de Dados Input'!$2:$2,0)),"0") -> 0 | T18: =IFERROR(INDEX('Base de Dados Input'!$A:$BF,MATCH('Programação Receita 2023'!T$2,'Base de Dados Input'!$A:$A,0),MATCH('Programação Receita 2023'!I18,'Base de Dados Input'!$2:$2,0)),"0") -> 0 | U18: =IFERROR(INDEX('Base de Dados Input'!$A:$BF,MATCH('Programação Receita 2023'!U$2,'Base de Dados Input'!$A:$A,0),MATCH('Programação Receita 2023'!I18,'Base de Dados Input'!$2:$2,0)),"0") -> 0
B19: 2 Receitas de Capital | D19: =SUM(D20:D21) -> 14599575 | E19: =SUM(E20:E21) -> 17588900 | F19: 2989325 | G19: 20.4754248 | H19: 21.05274962
B20: 2.1 Saldos de Exercícios Anteriores (Superávit Financeiro) | D20: 14599575 | E20: 17588900 | F20: 2989325 | G20: 20.4754248 | H20: 21.05274962
B21: 2.2 Outras Receitas de Capital | F21: 0 | G21: 0 | H21: 0
B22: I – TOTAL | D22: =SUM(D5,D19) -> 54671794.9 | E22: =SUM(E5,E19) -> 83546806.55 | F22: 28875011.65 | G22: 52.81518872 | H22: 100
B23: II. APLICAÇÕES | F23: 0
B24: II.1 Programação Operacional | D24: =SUM(D25:D27) -> 52138568.31 | E24: =SUM(E25:E27) -> 59578774.12 | F24: 7440205.816 | G24: =IFERROR(F24/D24*100,) -> 14.2700616 | H24: 71.3118509
B25: Projetos | D25: 8367698.152 | E25: 18813922.19 | F25: 10446224.04 | G25: 124.8398765 | H25: 22.51902014
B26: Projetos Específicos | D26: 6000090 | E26: 0 | F26: -6000090 | G26: -100 | H26: 0
B27: Atividades | D27: 37770780.16 | E27: 40764851.93 | F27: 2994071.776 | G27: 7.926952433 | H27: 48.79283077
B28: II.2 Aportes ao Fundo de Apoio | D28: 857105.78 | E28: 1221566.27 | F28: 364460.49 | G28: 42.52222987 | H28: 1.462134007
B29: II.3 Aporte ao CSC | D29: 1281679.927 | E29: 4360971.78 | F29: 3079291.853 | G29: 240.254356 | H29: 5.2197947
B30: II.4 Reserva de Contingência | D30: 394440.88 | E30: 124264.77 | F30: -270176.11 | G30: -68.4959708 | H30: 0.1487367084
B31: II – TOTAL | D31: =SUM(D24,D28:D30) -> 54671794.89 | E31: =SUM(E24,E28:E30) -> 65285576.94 | F31: 10613782.05 | G31: 19.41363379 | H31: 78.14251632
B32: VARIAÇÃO (I-II) | D32: 0.003058999777 | E32: -0.004127629101 | F32: -0.007186628878
B33: OBS: No item da categoria dos "Usos Correntes", deverão ser considerados os valores dos Aportes ao Fundo de Apoio, ao CSC , e à Reserva de Contingência.
V35: (Receita Corrente)

Sheet Evolução de Todos
BA1: Reprogramação | BB1: Programação Inicial
AL2: Arrecadação Mês a Mês (Gráfico 1) | AV2: Evolução de Todos | AZ2: =IF($AV$2=RESUMO!$D5,RESUMO!A5,IF('Evolução de Todos'!$AV$2=RESUMO!$D6,RESUMO!A6,IF($AV$2=RESUMO!$D7,RESUMO!A7,IF('Evolução de Todos'!$AV$2=RESUMO!$D8,RESUMO!A8,IF('Evolução de Todos'!$AV$2=RESUMO!$D9,RESUMO!A9,IF('Evolução de Todos'!$AV$2=RESUMO!$D10,RESUMO!A10,IF('Evolução de Todos'!$AV$2=RESUMO!$D11,RESUMO!A11,IF('Evolução de Todos'!$AV$2=RESUMO!$D12,RESUMO!A12,IF('Evolução de Todos'!$AV$2=RESUMO!$D13,RESUMO!A13,IF('Evolução de Todos'!$AV$2=RESUMO!$D14,RESUMO!A14,0)))))))))) -> 5 | BA2: =IF($AV$2=RESUMO!$D5,RESUMO!B5,IF('Evolução de Todos'!$AV$2=RESUMO!$D6,RESUMO!B6,IF($AV$2=RESUMO!$D7,RESUMO!B7,IF('Evolução de Todos'!$AV$2=RESUMO!$D8,RESUMO!B8,IF('Evolução de Todos'!$AV$2=RESUMO!$D9,RESUMO!B9,IF('Evolução de Todos'!$AV$2=RESUMO!$D10,RESUMO!B10,IF('Evolução de Todos'!$AV$2=RESUMO!$D11,RESUMO!B11,IF('Evolução de Todos'!$AV$2=RESUMO!$D12,RESUMO!B12,IF('Evolução de Todos'!$AV$2=RESUMO!$D13,RESUMO!B13,IF('Evolução de Todos'!$AV$2=RESUMO!$D14,RESUMO!B14,0)))))))))) -> 16 | BB2: =IF($AV$2=RESUMO!$D5,RESUMO!C5,IF('Evolução de Todos'!$AV$2=RESUMO!$D6,RESUMO!C6,IF($AV$2=RESUMO!$D7,RESUMO!C7,IF('Evolução de Todos'!$AV$2=RESUMO!$D8,RESUMO!C8,IF('Evolução de Todos'!$AV$2=RESUMO!$D9,RESUMO!C9,IF('Evolução de Todos'!$AV$2=RESUMO!$D10,RESUMO!C10,IF('Evolução de Todos'!$AV$2=RESUMO!$D11,RESUMO!C11,IF('Evolução de Todos'!$AV$2=RESUMO!$D12,RESUMO!C12,IF('Evolução de Todos'!$AV$2=RESUMO!$D13,RESUMO!C13,IF('Evolução de Todos'!$AV$2=RESUMO!$D14,RESUMO!C14,0)))))))))) -> 49
AL3: 2015 | AM3: 2016 | AN3: 2017 | AO3: 2018 | AP3: 2019 | AQ3: 2020 | AR3: 2021 | AS3: 2022 | AT3: 2023 | AV3: 2012 | AW3: 2013 | AX3: 2014 | AY3: 2015 | AZ3: 2016 | BA3: 2017 | BB3: 2018 | BC3: 2019 | BD3: 2020 | BE3: 2021 | BF3: 2022 | BG3: 2023
AL4: 4Q JAN 2015 | AM4: 4Q JAN 2016 | AN4: 4Q JAN 2017 | AO4: 4Q JAN 2018 | AP4: 4Q JAN 2019 | AQ4: 4Q JAN 2020 | AR4: 4Q JAN 2021 | AS4: 4Q JAN 2022 | AT4: 4Q JAN 2023 | AU4: JAN | AY4: =IFERROR(INDEX('Base de Dados Input'!$A:$Y,MATCH($AL4,'Base de Dados Input'!$A:$A,0),MATCH($AZ$2,'Base de Dados Input'!$2:$2,0)),"") -> 4237090.06 | AZ4: =IFERROR(INDEX('Base de Dados Input'!$A:$Y,MATCH($AM4,'Base de Dados Input'!$A:$A,0),MATCH($AZ$2,'Base de Dados Input'!$2:$2,0)),"") -> 4035249.9 | BA4: =IFERROR(INDEX('Base de Dados Input'!$A:$Y,MATCH($AN4,'Base de Dados Input'!$A:$A,0),MATCH($AZ$2,'Base de Dados Input'!$2:$2,0)),"") -> 9098241.68 | BB4: =IFERROR(INDEX('Base de Dados Input'!$A:$Y,MATCH($AO4,'Base de Dados Input'!$A:$A,0),MATCH($AZ$2,'Base de Dados Input'!$2:$2,0)),"") -> 7424773.72 | BC4: =IFERROR(INDEX('Base de Dados Input'!$A:$Y,MATCH($AP4,'Base de Dados Input'!$A:$A,0),MATCH($AZ$2,'Base de Dados Input'!$2:$2,0)),"") -> 5823394.23 | BD4: =IFERROR(INDEX('Base de Dados Input'!$A:$Y,MATCH($AQ4,'Base de Dados Input'!$A:$A,0),MATCH($AZ$2,'Base de Dados Input'!$2:$2,0)),"") -> 6650003.62 | BE4: =IFERROR(INDEX('Base de Dados Input'!$A:$Y,MATCH($AR4,'Base de Dados Input'!$A:$A,0),MATCH($AZ$2,'Base de Dados Input'!$2:$2,0)),"") -> 5605495.67 | BF4: =IFERROR(INDEX('Base de Dados Input'!$A:$Y,MATCH($AS4,'Base de Dados Input'!$A:$A,0),MATCH($AZ$2,'Base de Dados Input'!$2:$2,0)),"") -> 6144167.83 | BG4: =IFERROR(INDEX('Base de Dados Input'!$A:$Y,MATCH($AT4,'Base de Dados Input'!$A:$A,0),MATCH($AZ$2,'Base de Dados Input'!$2:$2,0)),"") -> 8067605.13
AL5: 4Q FEV 2015 | AM5: 4Q FEV 2016 | AN5: 4Q FEV 2017 | AO5: 4Q FEV 2018 | AP5: 4Q FEV 2019 | AQ5: 4Q FEV 2020 | AR5: 4Q FEV 2021 | AS5: 4Q FEV 2022 | AT5: 4Q FEV 2023 | AU5: FEV | AY5: =IFERROR(INDEX('Base de Dados Input'!$A:$Y,MATCH($AL5,'Base de Dados Input'!$A:$A,0),MATCH($AZ$2,'Base de Dados Input'!$2:$2,0)),"") -> 5241042.33 | AZ5: =IFERROR(INDEX('Base de Dados Input'!$A:$Y,MATCH($AM5,'Base de Dados Input'!$A:$A,0),MATCH($AZ$2,'Base de Dados Input'!$2:$2,0)),"") -> 5685509.41 | BA5: =IFERROR(INDEX('Base de Dados Input'!$A:$Y,MATCH($AN5,'Base de Dados Input'!$A:$A,0),MATCH($AZ$2,'Base de Dados Input'!$2:$2,0)),"") -> 2694646.65 | BB5: =IFERROR(INDEX('Base de Dados Input'!$A:$Y,MATCH($AO5,'Base de Dados Input'!$A:$A,0),MATCH($AZ$2,'Base de Dados Input'!$2:$2,0)),"") -> 5254424.96 | BC5: =IFERROR(INDEX('Base de Dados Input'!$A:$Y,MATCH($AP5,'Base de Dados Input'!$A:$A,0),MATCH($AZ$2,'Base de Dados Input'!$2:$2,0)),"") -> 6149866.66 | BD5: =IFERROR(INDEX('Base de Dados Input'!$A:$Y,MATCH($AQ5,'Base de Dados Input'!$A:$A,0),MATCH($AZ$2,'Base de Dados Input'!$2:$2,0)),"") -> 6116133.36 | BE5: =IFERROR(INDEX('Base de Dados Input'!$A:$Y,MATCH($AR5,'Base de Dados Input'!$A:$A,0),MATCH($AZ$2,'Base de Dados Input'!$2:$2,0)),"") -> 6245400.72 | BF5: =IFERROR(INDEX('Base de Dados Input'!$A:$Y,MATCH($AS5,'Base de Dados Input'!$A:$A,0),MATCH($AZ$2,'Base de Dados Input'!$2:$2,0)),"") -> 6960936.52 | BG5: =IFERROR(INDEX('Base de Dados Input'!$A:$Y,MATCH($AT5,'Base de Dados Input'!$A:$A,0),MATCH($AZ$2,'Base de Dados Input'!$2:$2,0)),"") -> 6945769.78
AL6: 4Q MAR 2015 | AM6: 4Q MAR 2016 | AN6: 4Q MAR 2017 | AO6: 4Q MAR 2018 | AP6: 4Q MAR 2019 | AQ6: 4Q MAR 2020 | AR6: 4Q MAR 2021 | AS6: 4Q MAR 2022 | AT6: 4Q MAR 2023 | AU6: MAR | AY6: =IFERROR(INDEX('Base de Dados Input'!$A:$Y,MATCH($AL6,'Base de Dados Input'!$A:$A,0),MATCH($AZ$2,'Base de Dados Input'!$2:$2,0)),"") -> 3422729.22 | AZ6: =IFERROR(INDEX('Base de Dados Input'!$A:$Y,MATCH($AM6,'Base de Dados Input'!$A:$A,0),MATCH($AZ$2,'Base de Dados Input'!$2:$2,0)),"") -> 3700350.08 | BA6: =IFERROR(INDEX('Base de Dados Input'!$A:$Y,MATCH($AN6,'Base de Dados Input'!$A:$A,0),MATCH($AZ$2,'Base de Dados Input'!$2:$2,0)),"") -> 4765619.03 | BB6: =IFERROR(INDEX('Base de Dados Input'!$A:$Y,MATCH($AO6,'Base de Dados Input'!$A:$A,0),MATCH($AZ$2,'Base de Dados Input'!$2:$2,0)),"") -> 3242177.24 | BC6: =IFERROR(INDEX('Base de Dados Input'!$A:$Y,MATCH($AP6,'Base de Dados Input'!$A:$A,0),MATCH($AZ$2,'Base de Dados Input'!$2:$2,0)),"") -> 3922917.42 | BD6: =IFERROR(INDEX('Base de Dados Input'!$A:$Y,MATCH($AQ6,'Base de Dados Input'!$A:$A,0),MATCH($AZ$2,'Base de Dados Input'!$2:$2,0)),"") -> 4510040.39 | BE6: =IFERROR(INDEX('Base de Dados Input'!$A:$Y,MATCH($AR6,'Base de Dados Input'!$A:$A,0),MATCH($AZ$2,'Base de Dados Input'!$2:$2,0)),"") -> 5539697.67 | BF6: =IFERROR(INDEX('Base de Dados Input'!$A:$Y,MATCH($AS6,'Base de Dados Input'!$A:$A,0),MATCH($AZ$2,'Base de Dados Input'!$2:$2,0)),"") -> 7131590.5 | BG6: =IFERROR(INDEX('Base de Dados Input'!$A:$Y,MATCH($AT6,'Base de Dados Input'!$A:$A,0),MATCH($AZ$2,'Base de Dados Input'!$2:$2,0)),"") -> 7654616.5
AL7: 4Q ABR 2015 | AM7: 4Q ABR 2016 | AN7: 4Q ABR 2017 | AO7: 4Q ABR 2018 | AP7: 4Q ABR 2019 | AQ7: 4Q ABR 2020 | AR7: 4Q ABR 2021 | AS7: 4Q ABR 2022 | AT7: 4Q ABR 2023 | AU7: ABR | AY7: =IFERROR(INDEX('Base de Dados Input'!$A:$Y,MATCH($AL7,'Base de Dados Input'!$A:$A,0),MATCH($AZ$2,'Base de Dados Input'!$2:$2,0)),"") -> 2839858.96 | AZ7: =IFERROR(INDEX('Base de Dados Input'!$A:$Y,MATCH($AM7,'Base de Dados Input'!$A:$A,0),MATCH($AZ$2,'Base de Dados Input'!$2:$2,0)),"") -> 3133136.36 | BA7: =IFERROR(INDEX('Base de Dados Input'!$A:$Y,MATCH($AN7,'Base de Dados Input'!$A:$A,0),MATCH($AZ$2,'Base de Dados Input'!$2:$2,0)),"") -> 2596336.9 | BB7: =IFERROR(INDEX('Base de Dados Input'!$A:$Y,MATCH($AO7,'Base de Dados Input'!$A:$A,0),MATCH($AZ$2,'Base de Dados Input'!$2:$2,0)),"") -> 4701540.21 | BC7: =IFERROR(INDEX('Base de Dados Input'!$A:$Y,MATCH($AP7,'Base de Dados Input'!$A:$A,0),MATCH($AZ$2,'Base de Dados Input'!$2:$2,0)),"") -> 4462681.64 | BD7: =IFERROR(INDEX('Base de Dados Input'!$A:$Y,MATCH($AQ7,'Base de Dados Input'!$A:$A,0),MATCH($AZ$2,'Base de Dados Input'!$2:$2,0)),"") -> 2284063.44 | BE7: =IFERROR(INDEX('Base de Dados Input'!$A:$Y,MATCH($AR7,'Base de Dados Input'!$A:$A,0),MATCH($AZ$2,'Base de Dados Input'!$2:$2,0)),"") -> 4258703.52 | BF7: =IFERROR(INDEX('Base de Dados Input'!$A:$Y,MATCH($AS7,'Base de Dados Input'!$A:$A,0),MATCH($AZ$2,'Base de Dados Input'!$2:$2,0)),"") -> 4832957.61
AL8: 4Q MAI 2015 | AM8: 4Q MAI 2016 | AN8: 4Q MAI 2017 | AO8: 4Q MAI 2018 | AP8: 4Q MAI 2019 | AQ8: 4Q MAI 2020 | AR8: 4Q MAI 2021 | AS8: 4Q MAI 2022 | AT8: 4Q MAI 2023 | AU8: MAI | AY8: =IFERROR(INDEX('Base de Dados Input'!$A:$Y,MATCH($AL8,'Base de Dados Input'!$A:$A,0),MATCH($AZ$2,'Base de Dados Input'!$2:$2,0)),"") -> 2888131.35 | AZ8: =IFERROR(INDEX('Base de Dados Input'!$A:$Y,MATCH($AM8,'Base de Dados Input'!$A:$A,0),MATCH($AZ$2,'Base de Dados Input'!$2:$2,0)),"") -> 3550757.77 | BA8: =IFERROR(INDEX('Base de Dados Input'!$A:$Y,MATCH($AN8,'Base de Dados Input'!$A:$A,0),MATCH($AZ$2,'Base de Dados Input'!$2:$2,0)),"") -> 5181648.87 | BB8: =IFERROR(INDEX('Base de Dados Input'!$A:$Y,MATCH($AO8,'Base de Dados Input'!$A:$A,0),MATCH($AZ$2,'Base de Dados Input'!$2:$2,0)),"") -> 4041994.36 | BC8: =IFERROR(INDEX('Base de Dados Input'!$A:$Y,MATCH($AP8,'Base de Dados Input'!$A:$A,0),MATCH($AZ$2,'Base de Dados Input'!$2:$2,0)),"") -> 5138747.78 | BD8: =IFERROR(INDEX('Base de Dados Input'!$A:$Y,MATCH($AQ8,'Base de Dados Input'!$A:$A,0),MATCH($AZ$2,'Base de Dados Input'!$2:$2,0)),"") -> 2272922 | BE8: =IFERROR(INDEX('Base de Dados Input'!$A:$Y,MATCH($AR8,'Base de Dados Input'!$A:$A,0),MATCH($AZ$2,'Base de Dados Input'!$2:$2,0)),"") -> 4334666.11 | BF8: =IFERROR(INDEX('Base de Dados Input'!$A:$Y,MATCH($AS8,'Base de Dados Input'!$A:$A,0),MATCH($AZ$2,'Base de Dados Input'!$2:$2,0)),"") -> 5848937.02
AL9: 4Q JUN 2015 | AM9: 4Q JUN 2016 | AN9: 4Q JUN 2017 | AO9: 4Q JUN 2018 | AP9: 4Q JUN 2019 | AQ9: 4Q JUN 2020 | AR9: 4Q JUN 2021 | AS9: 4Q JUN 2022 | AT9: 4Q JUN 2023 | AU9: JUN | AY9: =IFERROR(INDEX('Base de Dados Input'!$A:$Y,MATCH($AL9,'Base de Dados Input'!$A:$A,0),MATCH($AZ$2,'Base de Dados Input'!$2:$2,0)),"") -> 3047960.96 | AZ9: =IFERROR(INDEX('Base de Dados Input'!$A:$Y,MATCH($AM9,'Base de Dados Input'!$A:$A,0),MATCH($AZ$2,'Base de Dados Input'!$2:$2,0)),"") -> 3596358.1 | BA9: =IFERROR(INDEX('Base de Dados Input'!$A:$Y,MATCH($AN9,'Base de Dados Input'!$A:$A,0),MATCH($AZ$2,'Base de Dados Input'!$2:$2,0)),"") -> 2987701.42 | BB9: =IFERROR(INDEX('Base de Dados Input'!$A:$Y,MATCH($AO9,'Base de Dados Input'!$A:$A,0),MATCH($AZ$2,'Base de Dados Input'!$2:$2,0)),"") -> 3483362.29 | BC9: =IFERROR(INDEX('Base de Dados Input'!$A:$Y,MATCH($AP9,'Base de Dados Input'!$A:$A,0),MATCH($AZ$2,'Base de Dados Input'!$2:$2,0)),"") -> 4090535.13 | BD9: =IFERROR(INDEX('Base de Dados Input'!$A:$Y,MATCH($AQ9,'Base de Dados Input'!$A:$A,0),MATCH($AZ$2,'Base de Dados Input'!$2:$2,0)),"") -> 3219877.62 | BE9: =IFERROR(INDEX('Base de Dados Input'!$A:$Y,MATCH($AR9,'Base de Dados Input'!$A:$A,0),MATCH($AZ$2,'Base de Dados Input'!$2:$2,0)),"") -> 4690127.73 | BF9: =IFERROR(INDEX('Base de Dados Input'!$A:$Y,MATCH($AS9,'Base de Dados Input'!$A:$A,0),MATCH($AZ$2,'Base de Dados Input'!$2:$2,0)),"") -> 5588081.3
AL10: 4Q JUL 2015 | AM10: 4Q JUL 2016 | AN10: 4Q JUL 2017 | AO10: 4Q JUL 2018 | AP10: 4Q JUL 2019 | AQ10: 4Q JUL 2020 | AR10: 4Q JUL 2021 | AS10: 4Q JUL 2022 | AT10: 4Q JUL 2023 | AU10: JUL | AY10: =IFERROR(INDEX('Base de Dados Input'!$A:$Y,MATCH($AL10,'Base de Dados Input'!$A:$A,0),MATCH($AZ$2,'Base de Dados Input'!$2:$2,0)),"") -> 2641053.05 | AZ10: =IFERROR(INDEX('Base de Dados Input'!$A:$Y,MATCH($AM10,'Base de Dados Input'!$A:$A,0),MATCH($AZ$2,'Base de Dados Input'!$2:$2,0)),"") -> 2829022.56 | BA10: =IFERROR(INDEX('Base de Dados Input'!$A:$Y,MATCH($AN10,'Base de Dados Input'!$A:$A,0),MATCH($AZ$2,'Base de Dados Input'!$2:$2,0)),"") -> 2959838.42 | BB10: =IFERROR(INDEX('Base de Dados Input'!$A:$Y,MATCH($AO10,'Base de Dados Input'!$A:$A,0),MATCH($AZ$2,'Base de Dados Input'!$2:$2,0)),"") -> 3047522.5 | BC10: =IFERROR(INDEX('Base de Dados Input'!$A:$Y,MATCH($AP10,'Base de Dados Input'!$A:$A,0),MATCH($AZ$2,'Base de Dados Input'!$2:$2,0)),"") -> 4363852.63 | BD10: =IFERROR(INDEX('Base de Dados Input'!$A:$Y,MATCH($AQ10,'Base de Dados Input'!$A:$A,0),MATCH($AZ$2,'Base de Dados Input'!$2:$2,0)),"") -> 4158533.71 | BE10: =IFERROR(INDEX('Base de Dados Input'!$A:$Y,MATCH($AR10,'Base de Dados Input'!$A:$A,0),MATCH($AZ$2,'Base de Dados Input'!$2:$2,0)),"") -> 4464893.89 | BF10: =IFERROR(INDEX('Base de Dados Input'!$A:$Y,MATCH($AS10,'Base de Dados Input'!$A:$A,0),MATCH($AZ$2,'Base de Dados Input'!$2:$2,0)),"") -> 5169790.69
AL11: 4Q AGO 2015 | AM11: 4Q AGO 2016 | AN11: 4Q AGO 2017 | AO11: 4Q AGO 2018 | AP11: 4Q AGO 2019 | AQ11: 4Q AGO 2020 | AR11: 4Q AGO 2021 | AS11: 4Q AGO 2022 | AT11: 4Q AGO 2023 | AU11: AGO | AY11: =IFERROR(INDEX('Base de Dados Input'!$A:$Y,MATCH($AL11,'Base de Dados Input'!$A:$A,0),MATCH($AZ$2,'Base de Dados Input'!$2:$2,0)),"") -> 2441990.71 | AZ11: =IFERROR(INDEX('Base de Dados Input'!$A:$Y,MATCH($AM11,'Base de Dados Input'!$A:$A,0),MATCH($AZ$2,'Base de Dados Input'!$2:$2,0)),"") -> 2951532.21 | BA11: =IFERROR(INDEX('Base de Dados Input'!$A:$Y,MATCH($AN11,'Base de Dados Input'!$A:$A,0),MATCH($AZ$2,'Base de Dados Input'!$2:$2,0)),"") -> 3342585.966 | BB11: =IFERROR(INDEX('Base de Dados Input'!$A:$Y,MATCH($AO11,'Base de Dados Input'!$A:$A,0),MATCH($AZ$2,'Base de Dados Input'!$2:$2,0)),"") -> 3286115.99 | BC11: =IFERROR(INDEX('Base de Dados Input'!$A:$Y,MATCH($AP11,'Base de Dados Input'!$A:$A,0),MATCH($AZ$2,'Base de Dados Input'!$2:$2,0)),"") -> 4262150.42 | BD11: =IFERROR(INDEX('Base de Dados Input'!$A:$Y,MATCH($AQ11,'Base de Dados Input'!$A:$A,0),MATCH($AZ$2,'Base de Dados Input'!$2:$2,0)),"") -> 4242514.46 | BE11: =IFERROR(INDEX('Base de Dados Input'!$A:$Y,MATCH($AR11,'Base de Dados Input'!$A:$A,0),MATCH($AZ$2,'Base de Dados Input'!$2:$2,0)),"") -> 4767956.77 | BF11: =IFERROR(INDEX('Base de Dados Input'!$A:$Y,MATCH($AS11,'Base de Dados Input'!$A:$A,0),MATCH($AZ$2,'Base de Dados Input'!$2:$2,0)),"") -> 5367735.76
AL12: 4Q SET 2015 | AM12: 4Q SET 2016 | AN12: 4Q SET 2017 | AO12: 4Q SET 2018 | AP12: 4Q SET 2019 | AQ12: 4Q SET 2020 | AR12: 4Q SET 2021 | AS12: 4Q SET 2022 | AT12: 4Q SET 2023 | AU12: SET | AY12: =IFERROR(INDEX('Base de Dados Input'!$A:$Y,MATCH($AL12,'Base de Dados Input'!$A:$A,0),MATCH($AZ$2,'Base de Dados Input'!$2:$2,0)),"") -> 2417999.47 | AZ12: =IFERROR(INDEX('Base de Dados Input'!$A:$Y,MATCH($AM12,'Base de Dados Input'!$A:$A,0),MATCH($AZ$2,'Base de Dados Input'!$2:$2,0)),"") -> 2813864.5 | BA12: =IFERROR(INDEX('Base de Dados Input'!$A:$Y,MATCH($AN12,'Base de Dados Input'!$A:$A,0),MATCH($AZ$2,'Base de Dados Input'!$2:$2,0)),"") -> 2570818.604 | BB12: =IFERROR(INDEX('Base de Dados Input'!$A:$Y,MATCH($AO12,'Base de Dados Input'!$A:$A,0),MATCH($AZ$2,'Base de Dados Input'!$2:$2,0)),"") -> 2713650.86 | BC12: =IFERROR(INDEX('Base de Dados Input'!$A:$Y,MATCH($AP12,'Base de Dados Input'!$A:$A,0),MATCH($AZ$2,'Base de Dados Input'!$2:$2,0)),"") -> 4058855.25 | BD12: =IFERROR(INDEX('Base de Dados Input'!$A:$Y,MATCH($AQ12,'Base de Dados Input'!$A:$A,0),MATCH($AZ$2,'Base de Dados Input'!$2:$2,0)),"") -> 3462122.89 | BE12: =IFERROR(INDEX('Base de Dados Input'!$A:$Y,MATCH($AR12,'Base de Dados Input'!$A:$A,0),MATCH($AZ$2,'Base de Dados Input'!$2:$2,0)),"") -> 4015962.15 | BF12: =IFERROR(INDEX('Base de Dados Input'!$A:$Y,MATCH($AS12,'Base de Dados Input'!$A:$A,0),MATCH($AZ$2,'Base de Dados Input'!$2:$2,0)),"") -> 4700996.41
AL13: 4Q OUT 2015 | AM13: 4Q OUT 2016 | AN13: 4Q OUT 2017 | AO13: 4Q OUT 2018 | AP13: 4Q OUT 2019 | AQ13: 4Q OUT 2020 | AR13: 4Q OUT 2021 | AS13: 4Q OUT 2022 | AT13: 4Q OUT 2023 | AU13: OUT | AY13: =IFERROR(INDEX('Base de Dados Input'!$A:$Y,MATCH($AL13,'Base de Dados Input'!$A:$A,0),MATCH($AZ$2,'Base de Dados Input'!$2:$2,0)),"") -> 2265418.51 | AZ13: =IFERROR(INDEX('Base de Dados Input'!$A:$Y,MATCH($AM13,'Base de Dados Input'!$A:$A,0),MATCH($AZ$2,'Base de Dados Input'!$2:$2,0)),"") -> 2495441.79 | BA13: =IFERROR(INDEX('Base de Dados Input'!$A:$Y,MATCH($AN13,'Base de Dados Input'!$A:$A,0),MATCH($AZ$2,'Base de Dados Input'!$2:$2,0)),"") -> 3336294.66 | BB13: =IFERROR(INDEX('Base de Dados Input'!$A:$Y,MATCH($AO13,'Base de Dados Input'!$A:$A,0),MATCH($AZ$2,'Base de Dados Input'!$2:$2,0)),"") -> 3066488.89 | BC13: =IFERROR(INDEX('Base de Dados Input'!$A:$Y,MATCH($AP13,'Base de Dados Input'!$A:$A,0),MATCH($AZ$2,'Base de Dados Input'!$2:$2,0)),"") -> 3975421.68 | BD13: =IFERROR(INDEX('Base de Dados Input'!$A:$Y,MATCH($AQ13,'Base de Dados Input'!$A:$A,0),MATCH($AZ$2,'Base de Dados Input'!$2:$2,0)),"") -> 3680278.13 | BE13: =IFERROR(INDEX('Base de Dados Input'!$A:$Y,MATCH($AR13,'Base de Dados Input'!$A:$A,0),MATCH($AZ$2,'Base de Dados Input'!$2:$2,0)),"") -> 3723406.37 | BF13: =IFERROR(INDEX('Base de Dados Input'!$A:$Y,MATCH($AS13,'Base de Dados Input'!$A:$A,0),MATCH($AZ$2,'Base de Dados Input'!$2:$2,0)),"") -> 4098990.76
AL14: 4Q NOV 2015 | AM14: 4Q NOV 2016 | AN14: 4Q NOV 2017 | AO14: 4Q NOV 2018 | AP14: 4Q NOV 2019 | AQ14: 4Q NOV 2020 | AR14: 4Q NOV 2021 | AS14: 4Q NOV 2022 | AT14: 4Q NOV 2023 | AU14: NOV | AY14: =IFERROR(INDEX('Base de Dados Input'!$A:$Y,MATCH($AL14,'Base de Dados Input'!$A:$A,0),MATCH($AZ$2,'Base de Dados Input'!$2:$2,0)),"") -> 2067441.21 | AZ14: =IFERROR(INDEX('Base de Dados Input'!$A:$Y,MATCH($AM14,'Base de Dados Input'!$A:$A,0),MATCH($AZ$2,'Base de Dados Input'!$2:$2,0)),"") -> 2480136.34 | BA14: =IFERROR(INDEX('Base de Dados Input'!$A:$Y,MATCH($AN14,'Base de Dados Input'!$A:$A,0),MATCH($AZ$2,'Base de Dados Input'!$2:$2,0)),"") -> 2756693.046 | BB14: =IFERROR(INDEX('Base de Dados Input'!$A:$Y,MATCH($AO14,'Base de Dados Input'!$A:$A,0),MATCH($AZ$2,'Base de Dados Input'!$2:$2,0)),"") -> 2543719.25 | BC14: =IFERROR(INDEX('Base de Dados Input'!$A:$Y,MATCH($AP14,'Base de Dados Input'!$A:$A,0),MATCH($AZ$2,'Base de Dados Input'!$2:$2,0)),"") -> 3325947.76 | BD14: =IFERROR(INDEX('Base de Dados Input'!$A:$Y,MATCH($AQ14,'Base de Dados Input'!$A:$A,0),MATCH($AZ$2,'Base de Dados Input'!$2:$2,0)),"") -> 3291862.9 | BE14: =IFERROR(INDEX('Base de Dados Input'!$A:$Y,MATCH($AR14,'Base de Dados Input'!$A:$A,0),MATCH($AZ$2,'Base de Dados Input'!$2:$2,0)),"") -> 3704014.05 | BF14: =IFERROR(INDEX('Base de Dados Input'!$A:$Y,MATCH($AS14,'Base de Dados Input'!$A:$A,0),MATCH($AZ$2,'Base de Dados Input'!$2:$2,0)),"") -> 4110626.28
AL15: 4Q DEZ 2015 | AM15: 4Q DEZ 2016 | AN15: 4Q DEZ 2017 | AO15: 4Q DEZ 2018 | AP15: 4Q DEZ 2019 | AQ15: 4Q DEZ 2020 | AR15: 4Q DEZ 2021 | AS15: 4Q DEZ 2022 | AT15: 4Q DEZ 2023 | AU15: DEZ | AY15: =IFERROR(INDEX('Base de Dados Input'!$A:$Y,MATCH($AL15,'Base de Dados Input'!$A:$A,0),MATCH($AZ$2,'Base de Dados Input'!$2:$2,0)),"") -> 2149032.71 | AZ15: =IFERROR(INDEX('Base de Dados Input'!$A:$Y,MATCH($AM15,'Base de Dados Input'!$A:$A,0),MATCH($AZ$2,'Base de Dados Input'!$2:$2,0)),"") -> 2731496.3 | BA15: =IFERROR(INDEX('Base de Dados Input'!$A:$Y,MATCH($AN15,'Base de Dados Input'!$A:$A,0),MATCH($AZ$2,'Base de Dados Input'!$2:$2,0)),"") -> 2300298.06 | BB15: =IFERROR(INDEX('Base de Dados Input'!$A:$Y,MATCH($AO15,'Base de Dados Input'!$A:$A,0),MATCH($AZ$2,'Base de Dados Input'!$2:$2,0)),"") -> 2607795.8 | BC15: =IFERROR(INDEX('Base de Dados Input'!$A:$Y,MATCH($AP15,'Base de Dados Input'!$A:$A,0),MATCH($AZ$2,'Base de Dados Input'!$2:$2,0)),"") -> 3468935.67 | BD15: =IFERROR(INDEX('Base de Dados Input'!$A:$Y,MATCH($AQ15,'Base de Dados Input'!$A:$A,0),MATCH($AZ$2,'Base de Dados Input'!$2:$2,0)),"") -> 3159126.71 | BE15: =IFERROR(INDEX('Base de Dados Input'!$A:$Y,MATCH($AR15,'Base de Dados Input'!$A:$A,0),MATCH($AZ$2,'Base de Dados Input'!$2:$2,0)),"") -> 3903532.61 | BF15: =IFERROR(INDEX('Base de Dados Input'!$A:$Y,MATCH($AS15,'Base de Dados Input'!$A:$A,0),MATCH($AZ$2,'Base de Dados Input'!$2:$2,0)),"") -> 3974900.32
AU16: TOTAL | AV16: =SUBTOTAL(109,AV4:AV15) -> 0 | AW16: =SUBTOTAL(109,AW4:AW15) -> 0 | AX16: 0 | AY16: 35659748.54 | AZ16: 40002855.32 | BA16: 44590723.31 | BB16: 45413566.07 | BC16: 53043306.27 | BD16: 47047479.23 | BE16: 55253857.26 | BF16: 63929711
AZ17: =(AZ16-AY16)/AY16 -> 0.1217929727 | BA17: 0.1146885128 | BB17: 0.01845322755 | BC17: 0.1680057494 | BD17: -0.1130364501 | BE17: 0.1744275818 | BF17: 0.1570180648
AZ19: Arrecadação Mês a Mês(Gráfico 4) | BE19: Evolução de Todos
AA20: =IF(Painel!T2=Painel!AM4,Painel!AN4,IF(Painel!T2=Painel!AM5,Painel!AN5,IF(Painel!T2=Painel!AM6,Painel!AN6,IF(Painel!T2=Painel!AM7,Painel!AN7,IF(Painel!T2=Painel!AM8,Painel!AN8,IF(Painel!T2=Painel!AM9,Painel!AN9,IF(Painel!T2=Painel!AM10,Painel!AN10,IF(Painel!T2=Painel!AM11,Painel!AN11,IF(Painel!T2=Painel!AM12,Painel!AN12,IF(Painel!T2=Painel!AM13,Painel!AN13,IF(Painel!T2=Painel!AM14,Painel!AN14,IF(Painel!T2=Painel!AM15,Painel!AN15,"")))))))))))) -> JAN - MAR | AV20: Arrecadação Acum. | AW20: Programação Acum. | AX20: Reprogramação Acum.2 | AZ20: Arrecadação Mensal | BA20: Programação Mensal | BB20: Reprogramação Mensal | BE20: Programação na Pandemia | BF20: Programação na Pandemia
AL21: Arrecadação Acumulada (Gráfico 2) | AW21: =IFERROR(INDEX('Base de Dados Input'!$A:$BF,MATCH($AT21,'Base de Dados Input'!$A:$A,0),MATCH($BB$2,'Base de Dados Input'!$2:$2,0)),"") ->  | AX21: =IFERROR(INDEX('Base de Dados Input'!$A:$BF,MATCH($AT21,'Base de Dados Input'!$A:$A,0),MATCH($BA$2,'Base de Dados Input'!$2:$2,0)),"") -> 
AP22: 4Q JAN 2019 | AQ22: 4Q JAN 2020 | AR22: 4Q JAN 2021 | AS22: 4Q JAN 2022 | AT22: 4Q JAN 2023 | AU22: JAN | AV22: =IFERROR(INDEX('Base de Dados Input'!$A:$Y,MATCH($AT22,'Base de Dados Input'!$A:$A,0),MATCH($AZ$2,'Base de Dados Input'!$2:$2,0)),"") -> 8067605.13 | AW22: =IFERROR(INDEX('Base de Dados Input'!$A:$BF,MATCH($AT22,'Base de Dados Input'!$A:$A,0),MATCH($BB$2,'Base de Dados Input'!$2:$2,0)),"") -> 7449202.877 | AX22: =IFERROR(INDEX('Base de Dados Input'!$A:$BF,MATCH($AT22,'Base de Dados Input'!$A:$A,0),MATCH($BA$2,'Base de Dados Input'!$2:$2,0)),"") -> 0 | AZ22: =IFERROR(INDEX('Base de Dados Input'!$A:$Y,MATCH($AT4,'Base de Dados Input'!$A:$A,0),MATCH($AZ$2,'Base de Dados Input'!$2:$2,0)),"") -> 8067605.13 | BA22: =IFERROR(INDEX('Base de Dados Input'!$A:$BF,MATCH($AT4,'Base de Dados Input'!$A:$A,0),MATCH($BB$2,'Base de Dados Input'!$2:$2,0)),"") -> 7449202.877 | BB22: =IFERROR(INDEX('Base de Dados Input'!$A:$BF,MATCH($AT4,'Base de Dados Input'!$A:$A,0),MATCH($BA$2,'Base de Dados Input'!$2:$2,0)),"") -> 0 | BD22: 4 | BF22: =(AZ22-BB22)/BB22 -> 
AP23: JAN-FEV ACUM 2019 | AQ23: JAN-FEV ACUM 2020 | AR23: JAN-FEV ACUM 2021 | AS23: JAN-FEV ACUM 2022 | AT23: JAN-FEV ACUM 2023 | AU23: FEV | AV23: =IFERROR(INDEX('Base de Dados Input'!$A:$Y,MATCH($AT23,'Base de Dados Input'!$A:$A,0),MATCH($AZ$2,'Base de Dados Input'!$2:$2,0)),"") -> 15013374.91 | AW23: =IFERROR(INDEX('Base de Dados Input'!$A:$BF,MATCH($AT23,'Base de Dados Input'!$A:$A,0),MATCH($BB$2,'Base de Dados Input'!$2:$2,0)),"") -> 15190754.67 | AX23: =IFERROR(INDEX('Base de Dados Input'!$A:$BF,MATCH($AT23,'Base de Dados Input'!$A:$A,0),MATCH($BA$2,'Base de Dados Input'!$2:$2,0)),"") -> 0 | AZ23: =IFERROR(INDEX('Base de Dados Input'!$A:$Y,MATCH($AT5,'Base de Dados Input'!$A:$A,0),MATCH($AZ$2,'Base de Dados Input'!$2:$2,0)),"") -> 6945769.78 | BA23: =IFERROR(INDEX('Base de Dados Input'!$A:$BF,MATCH($AT5,'Base de Dados Input'!$A:$A,0),MATCH($BB$2,'Base de Dados Input'!$2:$2,0)),"") -> 7741551.788 | BB23: =IFERROR(INDEX('Base de Dados Input'!$A:$BF,MATCH($AT5,'Base de Dados Input'!$A:$A,0),MATCH($BA$2,'Base de Dados Input'!$2:$2,0)),"") -> 0 | BD23: =BD22+5 -> 9 | BF23: =(AZ23-BB23)/BB23 -> 
AP24: JAN-MAR ACUM 2019 | AQ24: JAN-MAR ACUM 2020 | AR24: JAN-MAR ACUM 2021 | AS24: JAN-MAR ACUM 2022 | AT24: JAN-MAR ACUM 2023 | AU24: MAR | AV24: =IFERROR(INDEX('Base de Dados Input'!$A:$Y,MATCH($AT24,'Base de Dados Input'!$A:$A,0),MATCH($AZ$2,'Base de Dados Input'!$2:$2,0)),"") -> 22667991.41 | AW24: =IFERROR(INDEX('Base de Dados Input'!$A:$BF,MATCH($AT24,'Base de Dados Input'!$A:$A,0),MATCH($BB$2,'Base de Dados Input'!$2:$2,0)),"") -> 22041505.39 | AX24: =IFERROR(INDEX('Base de Dados Input'!$A:$BF,MATCH($AT24,'Base de Dados Input'!$A:$A,0),MATCH($BA$2,'Base de Dados Input'!$2:$2,0)),"") -> 0 | AZ24: =IFERROR(INDEX('Base de Dados Input'!$A:$Y,MATCH($AT6,'Base de Dados Input'!$A:$A,0),MATCH($AZ$2,'Base de Dados Input'!$2:$2,0)),"") -> 7654616.5 | BA24: =IFERROR(INDEX('Base de Dados Input'!$A:$BF,MATCH($AT6,'Base de Dados Input'!$A:$A,0),MATCH($BB$2,'Base de Dados Input'!$2:$2,0)),"") -> 6850750.727 | BB24: =IFERROR(INDEX('Base de Dados Input'!$A:$BF,MATCH($AT6,'Base de Dados Input'!$A:$A,0),MATCH($BA$2,'Base de Dados Input'!$2:$2,0)),"") -> 0 | BD24: =BD23+5 -> 14 | BF24: =(AZ24-BB24)/BB24 -> 
AP25: JAN-ABR ACUM 2019 | AQ25: JAN-ABR ACUM 2020 | AR25: JAN-ABR ACUM 2021 | AS25: JAN-ABR ACUM 2022 | AT25: JAN-ABR ACUM 2023 | AU25: ABR | AW25: =IFERROR(INDEX('Base de Dados Input'!$A:$BF,MATCH($AT25,'Base de Dados Input'!$A:$A,0),MATCH($BB$2,'Base de Dados Input'!$2:$2,0)),"") -> 26536279.3 | AX25: =IFERROR(INDEX('Base de Dados Input'!$A:$BF,MATCH($AT25,'Base de Dados Input'!$A:$A,0),MATCH($BA$2,'Base de Dados Input'!$2:$2,0)),"") -> 0 | BA25: =IFERROR(INDEX('Base de Dados Input'!$A:$BF,MATCH($AT7,'Base de Dados Input'!$A:$A,0),MATCH($BB$2,'Base de Dados Input'!$2:$2,0)),"") -> 4494773.904 | BB25: =IFERROR(INDEX('Base de Dados Input'!$A:$BF,MATCH($AT7,'Base de Dados Input'!$A:$A,0),MATCH($BA$2,'Base de Dados Input'!$2:$2,0)),"") -> 0 | BD25: 19 | BF25: =(AZ25-BB25)/BB25 -> 
AP26: JAN-MAI ACUM 2019 | AQ26: JAN-MAI ACUM 2020 | AR26: JAN-MAI ACUM 2021 | AS26: JAN-MAI ACUM 2022 | AT26: JAN-MAI ACUM 2023 | AU26: MAI | AW26: =IFERROR(INDEX('Base de Dados Input'!$A:$BF,MATCH($AT26,'Base de Dados Input'!$A:$A,0),MATCH($BB$2,'Base de Dados Input'!$2:$2,0)),"") -> 31398223.87 | AX26: =IFERROR(INDEX('Base de Dados Input'!$A:$BF,MATCH($AT26,'Base de Dados Input'!$A:$A,0),MATCH($BA$2,'Base de Dados Input'!$2:$2,0)),"") -> 0 | BA26: =IFERROR(INDEX('Base de Dados Input'!$A:$BF,MATCH($AT8,'Base de Dados Input'!$A:$A,0),MATCH($BB$2,'Base de Dados Input'!$2:$2,0)),"") -> 4861944.576 | BB26: =IFERROR(INDEX('Base de Dados Input'!$A:$BF,MATCH($AT8,'Base de Dados Input'!$A:$A,0),MATCH($BA$2,'Base de Dados Input'!$2:$2,0)),"") -> 0 | BD26: 24
AP27: JAN-JUN ACUM 2019 | AQ27: JAN-JUN ACUM 2020 | AR27: JAN-JUN ACUM 2021 | AS27: JAN-JUN ACUM 2022 | AT27: JAN-JUN ACUM 2023 | AU27: JUN | AW27: =IFERROR(INDEX('Base de Dados Input'!$A:$BF,MATCH($AT27,'Base de Dados Input'!$A:$A,0),MATCH($BB$2,'Base de Dados Input'!$2:$2,0)),"") -> 36708552.18 | AX27: =IFERROR(INDEX('Base de Dados Input'!$A:$BF,MATCH($AT27,'Base de Dados Input'!$A:$A,0),MATCH($BA$2,'Base de Dados Input'!$2:$2,0)),"") -> 0 | BA27: =IFERROR(INDEX('Base de Dados Input'!$A:$BF,MATCH($AT9,'Base de Dados Input'!$A:$A,0),MATCH($BB$2,'Base de Dados Input'!$2:$2,0)),"") -> 5310328.308 | BB27: =IFERROR(INDEX('Base de Dados Input'!$A:$BF,MATCH($AT9,'Base de Dados Input'!$A:$A,0),MATCH($BA$2,'Base de Dados Input'!$2:$2,0)),"") -> 0 | BD27: 29
AP28: JAN-JUL ACUM 2019 | AQ28: JAN-JUL ACUM 2020 | AR28: JAN-JUL ACUM 2021 | AS28: JAN-JUL ACUM 2022 | AT28: JAN-JUL ACUM 2023 | AU28: JUL | AW28: =IFERROR(INDEX('Base de Dados Input'!$A:$BF,MATCH($AT28,'Base de Dados Input'!$A:$A,0),MATCH($BB$2,'Base de Dados Input'!$2:$2,0)),"") -> 42198391.13 | AX28: =IFERROR(INDEX('Base de Dados Input'!$A:$BF,MATCH($AT28,'Base de Dados Input'!$A:$A,0),MATCH($BA$2,'Base de Dados Input'!$2:$2,0)),"") -> 0 | BA28: =IFERROR(INDEX('Base de Dados Input'!$A:$BF,MATCH($AT10,'Base de Dados Input'!$A:$A,0),MATCH($BB$2,'Base de Dados Input'!$2:$2,0)),"") -> 5489838.948 | BB28: =IFERROR(INDEX('Base de Dados Input'!$A:$BF,MATCH($AT10,'Base de Dados Input'!$A:$A,0),MATCH($BA$2,'Base de Dados Input'!$2:$2,0)),"") -> 0 | BD28: 34
AP29: JAN-AGO ACUM 2019 | AQ29: JAN-AGO ACUM 2020 | AR29: JAN-AGO ACUM 2021 | AS29: JAN-AGO ACUM 2022 | AT29: JAN-AGO ACUM 2023 | AU29: AGO | AW29: =IFERROR(INDEX('Base de Dados Input'!$A:$BF,MATCH($AT29,'Base de Dados Input'!$A:$A,0),MATCH($BB$2,'Base de Dados Input'!$2:$2,0)),"") -> 47795222.52 | AX29: =IFERROR(INDEX('Base de Dados Input'!$A:$BF,MATCH($AT29,'Base de Dados Input'!$A:$A,0),MATCH($BA$2,'Base de Dados Input'!$2:$2,0)),"") -> 0 | BA29: =IFERROR(INDEX('Base de Dados Input'!$A:$BF,MATCH($AT11,'Base de Dados Input'!$A:$A,0),MATCH($BB$2,'Base de Dados Input'!$2:$2,0)),"") -> 5596831.39 | BB29: =IFERROR(INDEX('Base de Dados Input'!$A:$BF,MATCH($AT11,'Base de Dados Input'!$A:$A,0),MATCH($BA$2,'Base de Dados Input'!$2:$2,0)),"") -> 0 | BD29: 39
AP30: JAN-SET ACUM 2019 | AQ30: JAN-SET ACUM 2020 | AR30: JAN-SET ACUM 2021 | AS30: JAN-SET ACUM 2022 | AT30: JAN-SET ACUM 2023 | AU30: SET | AW30: =IFERROR(INDEX('Base de Dados Input'!$A:$BF,MATCH($AT30,'Base de Dados Input'!$A:$A,0),MATCH($BB$2,'Base de Dados Input'!$2:$2,0)),"") -> 52584359.99 | AX30: =IFERROR(INDEX('Base de Dados Input'!$A:$BF,MATCH($AT30,'Base de Dados Input'!$A:$A,0),MATCH($BA$2,'Base de Dados Input'!$2:$2,0)),"") -> 0 | BA30: =IFERROR(INDEX('Base de Dados Input'!$A:$BF,MATCH($AT12,'Base de Dados Input'!$A:$A,0),MATCH($BB$2,'Base de Dados Input'!$2:$2,0)),"") -> 4789137.478 | BB30: =IFERROR(INDEX('Base de Dados Input'!$A:$BF,MATCH($AT12,'Base de Dados Input'!$A:$A,0),MATCH($BA$2,'Base de Dados Input'!$2:$2,0)),"") -> 0 | BD30: 44
AP31: JAN-OUT ACUM 2019 | AQ31: JAN-OUT ACUM 2020 | AR31: JAN-OUT ACUM 2021 | AS31: JAN-OUT ACUM 2022 | AT31: JAN-OUT ACUM 2023 | AU31: OUT | AW31: =IFERROR(INDEX('Base de Dados Input'!$A:$BF,MATCH($AT31,'Base de Dados Input'!$A:$A,0),MATCH($BB$2,'Base de Dados Input'!$2:$2,0)),"") -> 57175274.26 | AX31: =IFERROR(INDEX('Base de Dados Input'!$A:$BF,MATCH($AT31,'Base de Dados Input'!$A:$A,0),MATCH($BA$2,'Base de Dados Input'!$2:$2,0)),"") -> 0 | BA31: =IFERROR(INDEX('Base de Dados Input'!$A:$BF,MATCH($AT13,'Base de Dados Input'!$A:$A,0),MATCH($BB$2,'Base de Dados Input'!$2:$2,0)),"") -> 4590914.266 | BB31: =IFERROR(INDEX('Base de Dados Input'!$A:$BF,MATCH($AT13,'Base de Dados Input'!$A:$A,0),MATCH($BA$2,'Base de Dados Input'!$2:$2,0)),"") -> 0 | BD31: 49
U32: =$BH$38 -> 0.07333932031 | Y32: =$BI$38 -> 0.1201429669 | AP32: JAN-NOV ACUM 2019 | AQ32: JAN-NOV ACUM 2020 | AR32: JAN-NOV ACUM 2021 | AS32: JAN-NOV ACUM 2022 | AT32: JAN-NOV ACUM 2023 | AU32: NOV | AW32: =IFERROR(INDEX('Base de Dados Input'!$A:$BF,MATCH($AT32,'Base de Dados Input'!$A:$A,0),MATCH($BB$2,'Base de Dados Input'!$2:$2,0)),"") -> 61606043.15 | AX32: =IFERROR(INDEX('Base de Dados Input'!$A:$BF,MATCH($AT32,'Base de Dados Input'!$A:$A,0),MATCH($BA$2,'Base de Dados Input'!$2:$2,0)),"") -> 0 | BA32: =IFERROR(INDEX('Base de Dados Input'!$A:$BF,MATCH($AT14,'Base de Dados Input'!$A:$A,0),MATCH($BB$2,'Base de Dados Input'!$2:$2,0)),"") -> 4430768.893 | BB32: =IFERROR(INDEX('Base de Dados Input'!$A:$BF,MATCH($AT14,'Base de Dados Input'!$A:$A,0),MATCH($BA$2,'Base de Dados Input'!$2:$2,0)),"") -> 0 | BD32: 54
AP33: JAN-DEZ ACUM 2019 | AQ33: JAN-DEZ ACUM 2020 | AR33: JAN-DEZ ACUM 2021 | AS33: JAN-DEZ ACUM 2022 | AT33: JAN-DEZ ACUM 2023 | AU33: DEZ | AW33: =IFERROR(INDEX('Base de Dados Input'!$A:$BF,MATCH($AT33,'Base de Dados Input'!$A:$A,0),MATCH($BB$2,'Base de Dados Input'!$2:$2,0)),"") -> 65957906.55 | AX33: =IFERROR(INDEX('Base de Dados Input'!$A:$BF,MATCH($AT33,'Base de Dados Input'!$A:$A,0),MATCH($BA$2,'Base de Dados Input'!$2:$2,0)),"") -> 0 | BA33: =IFERROR(INDEX('Base de Dados Input'!$A:$BF,MATCH($AT15,'Base de Dados Input'!$A:$A,0),MATCH($BB$2,'Base de Dados Input'!$2:$2,0)),"") -> 4351863.397 | BB33: =IFERROR(INDEX('Base de Dados Input'!$A:$BF,MATCH($AT15,'Base de Dados Input'!$A:$A,0),MATCH($BA$2,'Base de Dados Input'!$2:$2,0)),"") -> 0 | BD33: 59
AZ34: =SUM(AZ22:AZ33) -> 22667991.41 | BA34: =SUM(BA22:BA33) -> 65957906.55 | BB34: =SUM(BB22:BB33) -> 0 | BC34: =SUM(BE22:BE33) -> 0
AL36: Arrecadação Mês a Mês (Gráfico 3) - Atualizar a Aba Resumo | AZ36: 2023 | BD36: 2022
AV37: Arrecadação | AW37: Dif. Arrec. E Program. | AX37: Arrec./Program. | AY37: Participação | AZ37: Programação | BA37: Arrecadação Acumulada | BB37: Programação Acumulada | BC37: Arrec./Program. | BD37: Arrecadação | BE37: Programação | BF37: Arrecadação Acumulada | BG37: Programação Acumulada | BH37: Variação 2023 x 2022 | BI37: Variação Acumulada 2023 x 2022
AP38: Evolução de Todos | AV38: =VLOOKUP($AP38,RESUMO!$D$5:$H$14,2,0) -> 7654616.5 | AW38: =VLOOKUP($AP38,RESUMO!$D$5:$H$14,4,0) -> 803865.7734 | AX38: =VLOOKUP($AP38,RESUMO!$D$5:$H$14,5,0) -> 0.1173398078 | AY38: - | AZ38: =VLOOKUP($AP38,RESUMO!$D$5:$H$14,3,0) -> 6850750.727 | BA38: =VLOOKUP($AP38,RESUMO!$D$5:$L$14,6,0) -> 22667991.41 | BB38: =VLOOKUP($AP38,RESUMO!$D$5:$L$14,7,0) -> 22041505.39 | BC38: =VLOOKUP($AP38,RESUMO!$D$5:$L$14,9,0) -> 0.02842301408 | BD38: =VLOOKUP($AP38,RESUMO!$D$5:$R$14,10,0) -> 7131590.5 | BE38: =VLOOKUP($AP38,RESUMO!$D$5:$R$14,11,0) -> 5119148.119 | BF38: =VLOOKUP($AP38,RESUMO!$D$5:$U$14,14,0) -> 20236694.85 | BG38: =VLOOKUP($AP38,RESUMO!$D$5:$U$14,15,0) -> 18646085.07 | BH38: =VLOOKUP($AP38,RESUMO!$D$5:$U$14,17,0) -> 0.07333932031 | BI38: =VLOOKUP($AP38,RESUMO!$D$5:$U$14,18,0) -> 0.1201429669
AP39: Todos Sem Aplicação Financeira e Receitas Diversas | AV39: =VLOOKUP($AP39,RESUMO!$D$5:$H$14,2,0) -> 6666759.35 | AW39: =VLOOKUP($AP39,RESUMO!$D$5:$H$14,4,0) -> 96848.94881 | AX39: =VLOOKUP($AP39,RESUMO!$D$5:$H$14,5,0) -> 0.01474128913 | AY39: - | AZ39: =VLOOKUP($AP39,RESUMO!$D$5:$H$14,3,0) -> 6569910.401 | BA39: =VLOOKUP($AP39,RESUMO!$D$5:$L$14,6,0) -> 20160157.56 | BB39: =VLOOKUP($AP39,RESUMO!$D$5:$L$14,7,0) -> 21221526.33 | BC39: =VLOOKUP($AP39,RESUMO!$D$5:$L$14,9,0) -> -0.05001378094 | BD39: =VLOOKUP($AP39,RESUMO!$D$5:$R$14,10,0) -> 6521976.06 | BE39: =VLOOKUP($AP39,RESUMO!$D$5:$R$14,11,0) -> 5001412.642 | BF39: =VLOOKUP($AP39,RESUMO!$D$5:$U$14,14,0) -> 18736182.65 | BG39: =VLOOKUP($AP39,RESUMO!$D$5:$U$14,15,0) -> 18239281.63 | BH39: =VLOOKUP($AP39,RESUMO!$D$5:$U$14,17,0) -> 0.02219929798 | BI39: =VLOOKUP($AP39,RESUMO!$D$5:$U$14,18,0) -> 0.07600133584
AP40: RRT | AV40: =VLOOKUP($AP40,RESUMO!$D$5:$H$14,2,0) -> 2910921.1 | AW40: =VLOOKUP($AP40,RESUMO!$D$5:$H$14,4,0) -> -107848.6956 | AX40: =VLOOKUP($AP40,RESUMO!$D$5:$H$14,5,0) -> -0.0357260417 | AY40: =AV40/$AV$38 -> 0.3802830749 | AZ40: =VLOOKUP($AP40,RESUMO!$D$5:$H$14,3,0) -> 3018769.796 | BA40: =VLOOKUP($AP40,RESUMO!$D$5:$L$14,6,0) -> 7162311.28 | BB40: =VLOOKUP($AP40,RESUMO!$D$5:$L$14,7,0) -> 8020493.272 | BC40: =VLOOKUP($AP40,RESUMO!$D$5:$L$14,9,0) -> -0.1069986549 | BD40: =VLOOKUP($AP40,RESUMO!$D$5:$R$14,10,0) -> 2854112.45 | BE40: =VLOOKUP($AP40,RESUMO!$D$5:$R$14,11,0) -> 2453592.572 | BF40: =VLOOKUP($AP40,RESUMO!$D$5:$U$14,14,0) -> 7025143.72 | BG40: =VLOOKUP($AP40,RESUMO!$D$5:$U$14,15,0) -> 6817771.627 | BH40: =VLOOKUP($AP40,RESUMO!$D$5:$U$14,17,0) -> 0.01990413868 | BI40: =VLOOKUP($AP40,RESUMO!$D$5:$U$14,18,0) -> 0.01952523186
AP41: Anuidade Pessoa Fís. | AV41: =VLOOKUP($AP41,RESUMO!$D$5:$H$14,2,0) -> 2611423.56 | AW41: =VLOOKUP($AP41,RESUMO!$D$5:$H$14,4,0) -> -103714.8975 | AX41: =VLOOKUP($AP41,RESUMO!$D$5:$H$14,5,0) -> -0.03819875086 | AY41: 0.3411566811 | AZ41: =VLOOKUP($AP41,RESUMO!$D$5:$H$14,3,0) -> 2715138.457 | BA41: =VLOOKUP($AP41,RESUMO!$D$5:$L$14,6,0) -> 9822587.64 | BB41: =VLOOKUP($AP41,RESUMO!$D$5:$L$14,7,0) -> 10469741.25 | BC41: =VLOOKUP($AP41,RESUMO!$D$5:$L$14,9,0) -> -0.06181180558 | BD41: =VLOOKUP($AP41,RESUMO!$D$5:$R$14,10,0) -> 2762173.69 | BE41: =VLOOKUP($AP41,RESUMO!$D$5:$R$14,11,0) -> 1958014.976 | BF41: =VLOOKUP($AP41,RESUMO!$D$5:$U$14,14,0) -> 9154231.96 | BG41: =VLOOKUP($AP41,RESUMO!$D$5:$U$14,15,0) -> 9154568.08 | BH41: =VLOOKUP($AP41,RESUMO!$D$5:$U$14,17,0) -> -0.05457662947 | BI41: =VLOOKUP($AP41,RESUMO!$D$5:$U$14,18,0) -> 0.07301056855
AP42: Aplicação Financeira | AV42: =VLOOKUP($AP42,RESUMO!$D$5:$H$14,2,0) -> 870188.68 | AW42: =VLOOKUP($AP42,RESUMO!$D$5:$H$14,4,0) -> 650942.0099 | AX42: =VLOOKUP($AP42,RESUMO!$D$5:$H$14,5,0) -> 2.968993825 | AY42: 0.1136815515 | AZ42: =VLOOKUP($AP42,RESUMO!$D$5:$H$14,3,0) -> 219246.6701 | BA42: =VLOOKUP($AP42,RESUMO!$D$5:$L$14,6,0) -> 2322865.06 | BB42: =VLOOKUP($AP42,RESUMO!$D$5:$L$14,7,0) -> 602746.588 | BC42: =VLOOKUP($AP42,RESUMO!$D$5:$L$14,9,0) -> 2.85380043 | BD42: =VLOOKUP($AP42,RESUMO!$D$5:$R$14,10,0) -> 546667.25 | BE42: =VLOOKUP($AP42,RESUMO!$D$5:$R$14,11,0) -> 78018.23546 | BF42: =VLOOKUP($AP42,RESUMO!$D$5:$U$14,14,0) -> 1357662.63 | BG42: =VLOOKUP($AP42,RESUMO!$D$5:$U$14,15,0) -> 230259.8188 | BH42: =VLOOKUP($AP42,RESUMO!$D$5:$U$14,17,0) -> 0.5918068624 | BI42: =VLOOKUP($AP42,RESUMO!$D$5:$U$14,18,0) -> 0.7109295113
AP43: Anuidade Pessoa Jur. | AV43: =VLOOKUP($AP43,RESUMO!$D$5:$H$14,2,0) -> 80709.6 | AW43: =VLOOKUP($AP43,RESUMO!$D$5:$H$14,4,0) -> -26140.54614 | AX43: =VLOOKUP($AP43,RESUMO!$D$5:$H$14,5,0) -> -0.2446467982 | AY43: 0.01054391164 | AZ43: =VLOOKUP($AP43,RESUMO!$D$5:$H$14,3,0) -> 106850.1461 | BA43: =VLOOKUP($AP43,RESUMO!$D$5:$L$14,6,0) -> 312548.75 | BB43: =VLOOKUP($AP43,RESUMO!$D$5:$L$14,7,0) -> 497839.4313 | BC43: =VLOOKUP($AP43,RESUMO!$D$5:$L$14,9,0) -> -0.3721896452 | BD43: =VLOOKUP($AP43,RESUMO!$D$5:$R$14,10,0) -> 56169.77 | BE43: =VLOOKUP($AP43,RESUMO!$D$5:$R$14,11,0) -> 146268.332 | BF43: =VLOOKUP($AP43,RESUMO!$D$5:$U$14,14,0) -> 266450.27 | BG43: =VLOOKUP($AP43,RESUMO!$D$5:$U$14,15,0) -> 744071.1241 | BH43: =VLOOKUP($AP43,RESUMO!$D$5:$U$14,17,0) -> 0.4368867809 | BI43: =VLOOKUP($AP43,RESUMO!$D$5:$U$14,18,0) -> 0.1730096952
AP44: Anuidade Pessoa Fís. A.A. | AV44: =VLOOKUP($AP44,RESUMO!$D$5:$H$14,2,0) -> 677545.46 | AW44: =VLOOKUP($AP44,RESUMO!$D$5:$H$14,4,0) -> 187881.4881 | AX44: =VLOOKUP($AP44,RESUMO!$D$5:$H$14,5,0) -> 0.3836947353 | AY44: 0.0885146186 | AZ44: =VLOOKUP($AP44,RESUMO!$D$5:$H$14,3,0) -> 489663.9719 | BA44: =VLOOKUP($AP44,RESUMO!$D$5:$L$14,6,0) -> 1873581.89 | BB44: =VLOOKUP($AP44,RESUMO!$D$5:$L$14,7,0) -> 1523758.268 | BC44: =VLOOKUP($AP44,RESUMO!$D$5:$L$14,9,0) -> 0.2295794745 | BD44: =VLOOKUP($AP44,RESUMO!$D$5:$R$14,10,0) -> 520804.13 | BE44: =VLOOKUP($AP44,RESUMO!$D$5:$R$14,11,0) -> 299789.157 | BF44: =VLOOKUP($AP44,RESUMO!$D$5:$U$14,14,0) -> 1446008.83 | BG44: =VLOOKUP($AP44,RESUMO!$D$5:$U$14,15,0) -> 1036277.445 | BH44: =VLOOKUP($AP44,RESUMO!$D$5:$U$14,17,0) -> 0.3009602286 | BI44: =VLOOKUP($AP44,RESUMO!$D$5:$U$14,18,0) -> 0.2956918735
AP45: Multas e Juros | AV45: =VLOOKUP($AP45,RESUMO!$D$5:$H$14,2,0) -> 265556.24 | AW45: =VLOOKUP($AP45,RESUMO!$D$5:$H$14,4,0) -> 72607.73944 | AX45: =VLOOKUP($AP45,RESUMO!$D$5:$H$14,5,0) -> 0.3763063161 | AY45: 0.03469229843 | AZ45: =VLOOKUP($AP45,RESUMO!$D$5:$H$14,3,0) -> 192948.5006 | BA45: =VLOOKUP($AP45,RESUMO!$D$5:$L$14,6,0) -> 655582.36 | BB45: =VLOOKUP($AP45,RESUMO!$D$5:$L$14,7,0) -> 573082.7574 | BC45: =VLOOKUP($AP45,RESUMO!$D$5:$L$14,9,0) -> 0.1439575725 | BD45: =VLOOKUP($AP45,RESUMO!$D$5:$R$14,10,0) -> 235380.82 | BE45: =VLOOKUP($AP45,RESUMO!$D$5:$R$14,11,0) -> 108295.6689 | BF45: =VLOOKUP($AP45,RESUMO!$D$5:$U$14,14,0) -> 605699.98 | BG45: =VLOOKUP($AP45,RESUMO!$D$5:$U$14,15,0) -> 370422.973 | BH45: =VLOOKUP($AP45,RESUMO!$D$5:$U$14,17,0) -> 0.1281982959 | BI45: =VLOOKUP($AP45,RESUMO!$D$5:$U$14,18,0) -> 0.0823549309
AP46: Anuidade Pessoa Jur. A.A. | AV46: =VLOOKUP($AP46,RESUMO!$D$5:$H$14,2,0) -> 120603.39 | AW46: =VLOOKUP($AP46,RESUMO!$D$5:$H$14,4,0) -> 74063.86048 | AX46: =VLOOKUP($AP46,RESUMO!$D$5:$H$14,5,0) -> 1.591418333 | AY46: 0.01575564106 | AZ46: =VLOOKUP($AP46,RESUMO!$D$5:$H$14,3,0) -> 46539.52952 | BA46: =VLOOKUP($AP46,RESUMO!$D$5:$L$14,6,0) -> 333545.64 | BB46: =VLOOKUP($AP46,RESUMO!$D$5:$L$14,7,0) -> 136611.3499 | BC46: =VLOOKUP($AP46,RESUMO!$D$5:$L$14,9,0) -> 1.441566095 | BD46: =VLOOKUP($AP46,RESUMO!$D$5:$R$14,10,0) -> 93335.2 | BE46: =VLOOKUP($AP46,RESUMO!$D$5:$R$14,11,0) -> 35451.93642 | BF46: =VLOOKUP($AP46,RESUMO!$D$5:$U$14,14,0) -> 238647.89 | BG46: =VLOOKUP($AP46,RESUMO!$D$5:$U$14,15,0) -> 116170.3855 | BH46: =VLOOKUP($AP46,RESUMO!$D$5:$U$14,17,0) -> 0.2921533355 | BI46: =VLOOKUP($AP46,RESUMO!$D$5:$U$14,18,0) -> 0.3976475551
AP47: Diversas Receitas | AV47: =VLOOKUP($AP47,RESUMO!$D$5:$H$14,2,0) -> 117668.47 | AW47: =VLOOKUP($AP47,RESUMO!$D$5:$H$14,4,0) -> 56074.81475 | AX47: =VLOOKUP($AP47,RESUMO!$D$5:$H$14,5,0) -> 0.9103992045 | AY47: 0.01537222276 | AZ47: =VLOOKUP($AP47,RESUMO!$D$5:$H$14,3,0) -> 61593.65525 | BA47: =VLOOKUP($AP47,RESUMO!$D$5:$L$14,6,0) -> 184968.79 | BB47: =VLOOKUP($AP47,RESUMO!$D$5:$L$14,7,0) -> 217232.4748 | BC47: =VLOOKUP($AP47,RESUMO!$D$5:$L$14,9,0) -> -0.1485214623 | BD47: =VLOOKUP($AP47,RESUMO!$D$5:$R$14,10,0) -> 62947.19 | BE47: =VLOOKUP($AP47,RESUMO!$D$5:$R$14,11,0) -> 39717.2416 | BF47: =VLOOKUP($AP47,RESUMO!$D$5:$U$14,14,0) -> 142849.57 | BG47: =VLOOKUP($AP47,RESUMO!$D$5:$U$14,15,0) -> 176543.6185 | BH47: =VLOOKUP($AP47,RESUMO!$D$5:$U$14,17,0) -> 0.8693204574 | BI47: =VLOOKUP($AP47,RESUMO!$D$5:$U$14,18,0) -> 0.29485017
BB51: =BB38-BA38 -> -626486.0182
BB52: =BB39-BA39 -> 1061368.769
BB53: 858181.9921
BB54: 647153.6107
BB55: -1720118.472
BB56: 185290.6813
BB57: -349823.6224
BB58: -82499.60257
BB59: -196934.2901
BB60: 32263.68481

Sheet Todos Sem Aplica.Fin.e Rec.Div
AL2: Arrecadação Mês a Mês (Gráfico 1) | AU2: Todos Sem Aplicação Financeira e Receitas Diversas | AY2: =IF($AU$2=RESUMO!$D5,RESUMO!A5,IF('Todos Sem Aplica.Fin.e Rec.Div'!$AU$2=RESUMO!$D6,RESUMO!A6,IF($AU$2=RESUMO!$D7,RESUMO!A7,IF('Todos Sem Aplica.Fin.e Rec.Div'!$AU$2=RESUMO!$D8,RESUMO!A8,IF('Todos Sem Aplica.Fin.e Rec.Div'!$AU$2=RESUMO!$D9,RESUMO!A9,IF('Todos Sem Aplica.Fin.e Rec.Div'!$AU$2=RESUMO!$D10,RESUMO!A10,IF('Todos Sem Aplica.Fin.e Rec.Div'!$AU$2=RESUMO!$D11,RESUMO!A11,IF('Todos Sem Aplica.Fin.e Rec.Div'!$AU$2=RESUMO!$D12,RESUMO!A12,IF('Todos Sem Aplica.Fin.e Rec.Div'!$AU$2=RESUMO!$D13,RESUMO!A13,IF('Todos Sem Aplica.Fin.e Rec.Div'!$AU$2=RESUMO!$D14,RESUMO!A14,0)))))))))) -> 6 | AZ2: =IF($AU$2=RESUMO!$D5,RESUMO!B5,IF('Todos Sem Aplica.Fin.e Rec.Div'!$AU$2=RESUMO!$D6,RESUMO!B6,IF($AU$2=RESUMO!$D7,RESUMO!B7,IF('Todos Sem Aplica.Fin.e Rec.Div'!$AU$2=RESUMO!$D8,RESUMO!B8,IF('Todos Sem Aplica.Fin.e Rec.Div'!$AU$2=RESUMO!$D9,RESUMO!B9,IF('Todos Sem Aplica.Fin.e Rec.Div'!$AU$2=RESUMO!$D10,RESUMO!B10,IF('Todos Sem Aplica.Fin.e Rec.Div'!$AU$2=RESUMO!$D11,RESUMO!B11,IF('Todos Sem Aplica.Fin.e Rec.Div'!$AU$2=RESUMO!$D12,RESUMO!B12,IF('Todos Sem Aplica.Fin.e Rec.Div'!$AU$2=RESUMO!$D13,RESUMO!B13,IF('Todos Sem Aplica.Fin.e Rec.Div'!$AU$2=RESUMO!$D14,RESUMO!B14,0)))))))))) -> 17 | BA2: =IF($AU$2=RESUMO!$D5,RESUMO!C5,IF('Todos Sem Aplica.Fin.e Rec.Div'!$AU$2=RESUMO!$D6,RESUMO!C6,IF($AU$2=RESUMO!$D7,RESUMO!C7,IF('Todos Sem Aplica.Fin.e Rec.Div'!$AU$2=RESUMO!$D8,RESUMO!C8,IF('Todos Sem Aplica.Fin.e Rec.Div'!$AU$2=RESUMO!$D9,RESUMO!C9,IF('Todos Sem Aplica.Fin.e Rec.Div'!$AU$2=RESUMO!$D10,RESUMO!C10,IF('Todos Sem Aplica.Fin.e Rec.Div'!$AU$2=RESUMO!$D11,RESUMO!C11,IF('Todos Sem Aplica.Fin.e Rec.Div'!$AU$2=RESUMO!$D12,RESUMO!C12,IF('Todos Sem Aplica.Fin.e Rec.Div'!$AU$2=RESUMO!$D13,RESUMO!C13,IF('Todos Sem Aplica.Fin.e Rec.Div'!$AU$2=RESUMO!$D14,RESUMO!C14,0)))))))))) -> 50
AL3: 2015 | AM3: 2016 | AN3: 2017 | AO3: 2018 | AP3: 2019 | AQ3: 2020 | AR3: 2021 | AS3: 2022 | AT3: 2023 | AU3: 2012 | AV3: 2013 | AW3: 2014 | AX3: 2015 | AY3: 2016 | AZ3: 2017 | BA3: 2018 | BB3: 2019 | BC3: 2020 | BD3: 2021 | BE3: 2022 | BF3: 2023
AL4: 4Q JAN 2015 | AM4: 4Q JAN 2016 | AN4: 4Q JAN 2017 | AO4: 4Q JAN 2018 | AP4: 4Q JAN 2019 | AQ4: 4Q JAN 2020 | AR4: 4Q JAN 2021 | AS4: 4Q JAN 2022 | AT4: 4Q JAN 2023 | AU4: JAN | AX4: =IFERROR(INDEX('Base de Dados Input'!$A:$Y,MATCH($AL4,'Base de Dados Input'!$A:$A,0),MATCH($AY$2,'Base de Dados Input'!$2:$2,0)),"") -> 3972100.03 | AY4: =IFERROR(INDEX('Base de Dados Input'!$A:$Y,MATCH($AM4,'Base de Dados Input'!$A:$A,0),MATCH($AY$2,'Base de Dados Input'!$2:$2,0)),"") -> 3658389.16 | AZ4: =IFERROR(INDEX('Base de Dados Input'!$A:$Y,MATCH($AN4,'Base de Dados Input'!$A:$A,0),MATCH($AY$2,'Base de Dados Input'!$2:$2,0)),"") -> 8603457.74 | BA4: =IFERROR(INDEX('Base de Dados Input'!$A:$Y,MATCH($AO4,'Base de Dados Input'!$A:$A,0),MATCH($AY$2,'Base de Dados Input'!$2:$2,0)),"") -> 7045488.27 | BB4: =IFERROR(INDEX('Base de Dados Input'!$A:$Y,MATCH($AP4,'Base de Dados Input'!$A:$A,0),MATCH($AY$2,'Base de Dados Input'!$2:$2,0)),"") -> 5511190.8 | BC4: =IFERROR(INDEX('Base de Dados Input'!$A:$Y,MATCH($AQ4,'Base de Dados Input'!$A:$A,0),MATCH($AY$2,'Base de Dados Input'!$2:$2,0)),"") -> 6414078.55 | BD4: =IFERROR(INDEX('Base de Dados Input'!$A:$Y,MATCH($AR4,'Base de Dados Input'!$A:$A,0),MATCH($AY$2,'Base de Dados Input'!$2:$2,0)),"") -> 5518156.84 | BE4: =IFERROR(INDEX('Base de Dados Input'!$A:$Y,MATCH($AS4,'Base de Dados Input'!$A:$A,0),MATCH($AY$2,'Base de Dados Input'!$2:$2,0)),"") -> 5702548.44 | BF4: =IFERROR(INDEX('Base de Dados Input'!$A:$Y,MATCH($AT4,'Base de Dados Input'!$A:$A,0),MATCH($AY$2,'Base de Dados Input'!$2:$2,0)),"") -> 7230787.18
AL5: 4Q FEV 2015 | AM5: 4Q FEV 2016 | AN5: 4Q FEV 2017 | AO5: 4Q FEV 2018 | AP5: 4Q FEV 2019 | AQ5: 4Q FEV 2020 | AR5: 4Q FEV 2021 | AS5: 4Q FEV 2022 | AT5: 4Q FEV 2023 | AU5: FEV | AX5: =IFERROR(INDEX('Base de Dados Input'!$A:$Y,MATCH($AL5,'Base de Dados Input'!$A:$A,0),MATCH($AY$2,'Base de Dados Input'!$2:$2,0)),"") -> 4978949.38 | AY5: =IFERROR(INDEX('Base de Dados Input'!$A:$Y,MATCH($AM5,'Base de Dados Input'!$A:$A,0),MATCH($AY$2,'Base de Dados Input'!$2:$2,0)),"") -> 5278088.96 | AZ5: =IFERROR(INDEX('Base de Dados Input'!$A:$Y,MATCH($AN5,'Base de Dados Input'!$A:$A,0),MATCH($AY$2,'Base de Dados Input'!$2:$2,0)),"") -> 2259229.65 | BA5: =IFERROR(INDEX('Base de Dados Input'!$A:$Y,MATCH($AO5,'Base de Dados Input'!$A:$A,0),MATCH($AY$2,'Base de Dados Input'!$2:$2,0)),"") -> 5007275.14 | BB5: =IFERROR(INDEX('Base de Dados Input'!$A:$Y,MATCH($AP5,'Base de Dados Input'!$A:$A,0),MATCH($AY$2,'Base de Dados Input'!$2:$2,0)),"") -> 5833537.83 | BC5: =IFERROR(INDEX('Base de Dados Input'!$A:$Y,MATCH($AQ5,'Base de Dados Input'!$A:$A,0),MATCH($AY$2,'Base de Dados Input'!$2:$2,0)),"") -> 6003450.02 | BD5: =IFERROR(INDEX('Base de Dados Input'!$A:$Y,MATCH($AR5,'Base de Dados Input'!$A:$A,0),MATCH($AY$2,'Base de Dados Input'!$2:$2,0)),"") -> 6161527.85 | BE5: =IFERROR(INDEX('Base de Dados Input'!$A:$Y,MATCH($AS5,'Base de Dados Input'!$A:$A,0),MATCH($AY$2,'Base de Dados Input'!$2:$2,0)),"") -> 6511658.15 | BF5: =IFERROR(INDEX('Base de Dados Input'!$A:$Y,MATCH($AT5,'Base de Dados Input'!$A:$A,0),MATCH($AY$2,'Base de Dados Input'!$2:$2,0)),"") -> 6262611.03
AL6: 4Q MAR 2015 | AM6: 4Q MAR 2016 | AN6: 4Q MAR 2017 | AO6: 4Q MAR 2018 | AP6: 4Q MAR 2019 | AQ6: 4Q MAR 2020 | AR6: 4Q MAR 2021 | AS6: 4Q MAR 2022 | AT6: 4Q MAR 2023 | AU6: MAR | AX6: =IFERROR(INDEX('Base de Dados Input'!$A:$Y,MATCH($AL6,'Base de Dados Input'!$A:$A,0),MATCH($AY$2,'Base de Dados Input'!$2:$2,0)),"") -> 3074675.82 | AY6: =IFERROR(INDEX('Base de Dados Input'!$A:$Y,MATCH($AM6,'Base de Dados Input'!$A:$A,0),MATCH($AY$2,'Base de Dados Input'!$2:$2,0)),"") -> 3215533.18 | AZ6: =IFERROR(INDEX('Base de Dados Input'!$A:$Y,MATCH($AN6,'Base de Dados Input'!$A:$A,0),MATCH($AY$2,'Base de Dados Input'!$2:$2,0)),"") -> 4234572.07 | BA6: =IFERROR(INDEX('Base de Dados Input'!$A:$Y,MATCH($AO6,'Base de Dados Input'!$A:$A,0),MATCH($AY$2,'Base de Dados Input'!$2:$2,0)),"") -> 2958513.95 | BB6: =IFERROR(INDEX('Base de Dados Input'!$A:$Y,MATCH($AP6,'Base de Dados Input'!$A:$A,0),MATCH($AY$2,'Base de Dados Input'!$2:$2,0)),"") -> 3626501.22 | BC6: =IFERROR(INDEX('Base de Dados Input'!$A:$Y,MATCH($AQ6,'Base de Dados Input'!$A:$A,0),MATCH($AY$2,'Base de Dados Input'!$2:$2,0)),"") -> 4390394.96 | BD6: =IFERROR(INDEX('Base de Dados Input'!$A:$Y,MATCH($AR6,'Base de Dados Input'!$A:$A,0),MATCH($AY$2,'Base de Dados Input'!$2:$2,0)),"") -> 5420652.83 | BE6: =IFERROR(INDEX('Base de Dados Input'!$A:$Y,MATCH($AS6,'Base de Dados Input'!$A:$A,0),MATCH($AY$2,'Base de Dados Input'!$2:$2,0)),"") -> 6521976.06 | BF6: =IFERROR(INDEX('Base de Dados Input'!$A:$Y,MATCH($AT6,'Base de Dados Input'!$A:$A,0),MATCH($AY$2,'Base de Dados Input'!$2:$2,0)),"") -> 6666759.35
AL7: 4Q ABR 2015 | AM7: 4Q ABR 2016 | AN7: 4Q ABR 2017 | AO7: 4Q ABR 2018 | AP7: 4Q ABR 2019 | AQ7: 4Q ABR 2020 | AR7: 4Q ABR 2021 | AS7: 4Q ABR 2022 | AT7: 4Q ABR 2023 | AU7: ABR | AX7: =IFERROR(INDEX('Base de Dados Input'!$A:$Y,MATCH($AL7,'Base de Dados Input'!$A:$A,0),MATCH($AY$2,'Base de Dados Input'!$2:$2,0)),"") -> 2507518.29 | AY7: =IFERROR(INDEX('Base de Dados Input'!$A:$Y,MATCH($AM7,'Base de Dados Input'!$A:$A,0),MATCH($AY$2,'Base de Dados Input'!$2:$2,0)),"") -> 2630382.89 | AZ7: =IFERROR(INDEX('Base de Dados Input'!$A:$Y,MATCH($AN7,'Base de Dados Input'!$A:$A,0),MATCH($AY$2,'Base de Dados Input'!$2:$2,0)),"") -> 2185351.73 | BA7: =IFERROR(INDEX('Base de Dados Input'!$A:$Y,MATCH($AO7,'Base de Dados Input'!$A:$A,0),MATCH($AY$2,'Base de Dados Input'!$2:$2,0)),"") -> 4417604.14 | BB7: =IFERROR(INDEX('Base de Dados Input'!$A:$Y,MATCH($AP7,'Base de Dados Input'!$A:$A,0),MATCH($AY$2,'Base de Dados Input'!$2:$2,0)),"") -> 4129917.92 | BC7: =IFERROR(INDEX('Base de Dados Input'!$A:$Y,MATCH($AQ7,'Base de Dados Input'!$A:$A,0),MATCH($AY$2,'Base de Dados Input'!$2:$2,0)),"") -> 2171524.62 | BD7: =IFERROR(INDEX('Base de Dados Input'!$A:$Y,MATCH($AR7,'Base de Dados Input'!$A:$A,0),MATCH($AY$2,'Base de Dados Input'!$2:$2,0)),"") -> 4166432.31 | BE7: =IFERROR(INDEX('Base de Dados Input'!$A:$Y,MATCH($AS7,'Base de Dados Input'!$A:$A,0),MATCH($AY$2,'Base de Dados Input'!$2:$2,0)),"") -> 4326241.13
AL8: 4Q MAI 2015 | AM8: 4Q MAI 2016 | AN8: 4Q MAI 2017 | AO8: 4Q MAI 2018 | AP8: 4Q MAI 2019 | AQ8: 4Q MAI 2020 | AR8: 4Q MAI 2021 | AS8: 4Q MAI 2022 | AT8: 4Q MAI 2023 | AU8: MAI | AX8: =IFERROR(INDEX('Base de Dados Input'!$A:$Y,MATCH($AL8,'Base de Dados Input'!$A:$A,0),MATCH($AY$2,'Base de Dados Input'!$2:$2,0)),"") -> 2524224.22 | AY8: =IFERROR(INDEX('Base de Dados Input'!$A:$Y,MATCH($AM8,'Base de Dados Input'!$A:$A,0),MATCH($AY$2,'Base de Dados Input'!$2:$2,0)),"") -> 3069926.05 | AZ8: =IFERROR(INDEX('Base de Dados Input'!$A:$Y,MATCH($AN8,'Base de Dados Input'!$A:$A,0),MATCH($AY$2,'Base de Dados Input'!$2:$2,0)),"") -> 4699840.28 | BA8: =IFERROR(INDEX('Base de Dados Input'!$A:$Y,MATCH($AO8,'Base de Dados Input'!$A:$A,0),MATCH($AY$2,'Base de Dados Input'!$2:$2,0)),"") -> 3758781.7 | BB8: =IFERROR(INDEX('Base de Dados Input'!$A:$Y,MATCH($AP8,'Base de Dados Input'!$A:$A,0),MATCH($AY$2,'Base de Dados Input'!$2:$2,0)),"") -> 4711466.73 | BC8: =IFERROR(INDEX('Base de Dados Input'!$A:$Y,MATCH($AQ8,'Base de Dados Input'!$A:$A,0),MATCH($AY$2,'Base de Dados Input'!$2:$2,0)),"") -> 2188685.19 | BD8: =IFERROR(INDEX('Base de Dados Input'!$A:$Y,MATCH($AR8,'Base de Dados Input'!$A:$A,0),MATCH($AY$2,'Base de Dados Input'!$2:$2,0)),"") -> 4208053.34 | BE8: =IFERROR(INDEX('Base de Dados Input'!$A:$Y,MATCH($AS8,'Base de Dados Input'!$A:$A,0),MATCH($AY$2,'Base de Dados Input'!$2:$2,0)),"") -> 5135477.81
AL9: 4Q JUN 2015 | AM9: 4Q JUN 2016 | AN9: 4Q JUN 2017 | AO9: 4Q JUN 2018 | AP9: 4Q JUN 2019 | AQ9: 4Q JUN 2020 | AR9: 4Q JUN 2021 | AS9: 4Q JUN 2022 | AT9: 4Q JUN 2023 | AU9: JUN | AX9: =IFERROR(INDEX('Base de Dados Input'!$A:$Y,MATCH($AL9,'Base de Dados Input'!$A:$A,0),MATCH($AY$2,'Base de Dados Input'!$2:$2,0)),"") -> 2641147.22 | AY9: =IFERROR(INDEX('Base de Dados Input'!$A:$Y,MATCH($AM9,'Base de Dados Input'!$A:$A,0),MATCH($AY$2,'Base de Dados Input'!$2:$2,0)),"") -> 3067324.26 | AZ9: =IFERROR(INDEX('Base de Dados Input'!$A:$Y,MATCH($AN9,'Base de Dados Input'!$A:$A,0),MATCH($AY$2,'Base de Dados Input'!$2:$2,0)),"") -> 2554934.99 | BA9: =IFERROR(INDEX('Base de Dados Input'!$A:$Y,MATCH($AO9,'Base de Dados Input'!$A:$A,0),MATCH($AY$2,'Base de Dados Input'!$2:$2,0)),"") -> 3124689.42 | BB9: =IFERROR(INDEX('Base de Dados Input'!$A:$Y,MATCH($AP9,'Base de Dados Input'!$A:$A,0),MATCH($AY$2,'Base de Dados Input'!$2:$2,0)),"") -> 3766351.15 | BC9: =IFERROR(INDEX('Base de Dados Input'!$A:$Y,MATCH($AQ9,'Base de Dados Input'!$A:$A,0),MATCH($AY$2,'Base de Dados Input'!$2:$2,0)),"") -> 3147099.23 | BD9: =IFERROR(INDEX('Base de Dados Input'!$A:$Y,MATCH($AR9,'Base de Dados Input'!$A:$A,0),MATCH($AY$2,'Base de Dados Input'!$2:$2,0)),"") -> 4539358.77 | BE9: =IFERROR(INDEX('Base de Dados Input'!$A:$Y,MATCH($AS9,'Base de Dados Input'!$A:$A,0),MATCH($AY$2,'Base de Dados Input'!$2:$2,0)),"") -> 4914158.51
AL10: 4Q JUL 2015 | AM10: 4Q JUL 2016 | AN10: 4Q JUL 2017 | AO10: 4Q JUL 2018 | AP10: 4Q JUL 2019 | AQ10: 4Q JUL 2020 | AR10: 4Q JUL 2021 | AS10: 4Q JUL 2022 | AT10: 4Q JUL 2023 | AU10: JUL | AX10: =IFERROR(INDEX('Base de Dados Input'!$A:$Y,MATCH($AL10,'Base de Dados Input'!$A:$A,0),MATCH($AY$2,'Base de Dados Input'!$2:$2,0)),"") -> 2197951.12 | AY10: =IFERROR(INDEX('Base de Dados Input'!$A:$Y,MATCH($AM10,'Base de Dados Input'!$A:$A,0),MATCH($AY$2,'Base de Dados Input'!$2:$2,0)),"") -> 2327441.12 | AZ10: =IFERROR(INDEX('Base de Dados Input'!$A:$Y,MATCH($AN10,'Base de Dados Input'!$A:$A,0),MATCH($AY$2,'Base de Dados Input'!$2:$2,0)),"") -> 2542731.58 | BA10: =IFERROR(INDEX('Base de Dados Input'!$A:$Y,MATCH($AO10,'Base de Dados Input'!$A:$A,0),MATCH($AY$2,'Base de Dados Input'!$2:$2,0)),"") -> 2727729.49 | BB10: =IFERROR(INDEX('Base de Dados Input'!$A:$Y,MATCH($AP10,'Base de Dados Input'!$A:$A,0),MATCH($AY$2,'Base de Dados Input'!$2:$2,0)),"") -> 3913452.17 | BC10: =IFERROR(INDEX('Base de Dados Input'!$A:$Y,MATCH($AQ10,'Base de Dados Input'!$A:$A,0),MATCH($AY$2,'Base de Dados Input'!$2:$2,0)),"") -> 4093620.64 | BD10: =IFERROR(INDEX('Base de Dados Input'!$A:$Y,MATCH($AR10,'Base de Dados Input'!$A:$A,0),MATCH($AY$2,'Base de Dados Input'!$2:$2,0)),"") -> 4186457.71 | BE10: =IFERROR(INDEX('Base de Dados Input'!$A:$Y,MATCH($AS10,'Base de Dados Input'!$A:$A,0),MATCH($AY$2,'Base de Dados Input'!$2:$2,0)),"") -> 4433249.04
AL11: 4Q AGO 2015 | AM11: 4Q AGO 2016 | AN11: 4Q AGO 2017 | AO11: 4Q AGO 2018 | AP11: 4Q AGO 2019 | AQ11: 4Q AGO 2020 | AR11: 4Q AGO 2021 | AS11: 4Q AGO 2022 | AT11: 4Q AGO 2023 | AU11: AGO | AX11: =IFERROR(INDEX('Base de Dados Input'!$A:$Y,MATCH($AL11,'Base de Dados Input'!$A:$A,0),MATCH($AY$2,'Base de Dados Input'!$2:$2,0)),"") -> 2030689.99 | AY11: =IFERROR(INDEX('Base de Dados Input'!$A:$Y,MATCH($AM11,'Base de Dados Input'!$A:$A,0),MATCH($AY$2,'Base de Dados Input'!$2:$2,0)),"") -> 2399703.73 | AZ11: =IFERROR(INDEX('Base de Dados Input'!$A:$Y,MATCH($AN11,'Base de Dados Input'!$A:$A,0),MATCH($AY$2,'Base de Dados Input'!$2:$2,0)),"") -> 2916714.316 | BA11: =IFERROR(INDEX('Base de Dados Input'!$A:$Y,MATCH($AO11,'Base de Dados Input'!$A:$A,0),MATCH($AY$2,'Base de Dados Input'!$2:$2,0)),"") -> 2965773.1 | BB11: =IFERROR(INDEX('Base de Dados Input'!$A:$Y,MATCH($AP11,'Base de Dados Input'!$A:$A,0),MATCH($AY$2,'Base de Dados Input'!$2:$2,0)),"") -> 3883972.05 | BC11: =IFERROR(INDEX('Base de Dados Input'!$A:$Y,MATCH($AQ11,'Base de Dados Input'!$A:$A,0),MATCH($AY$2,'Base de Dados Input'!$2:$2,0)),"") -> 4184911.63 | BD11: =IFERROR(INDEX('Base de Dados Input'!$A:$Y,MATCH($AR11,'Base de Dados Input'!$A:$A,0),MATCH($AY$2,'Base de Dados Input'!$2:$2,0)),"") -> 4555793.6 | BE11: =IFERROR(INDEX('Base de Dados Input'!$A:$Y,MATCH($AS11,'Base de Dados Input'!$A:$A,0),MATCH($AY$2,'Base de Dados Input'!$2:$2,0)),"") -> 4558090.46
AL12: 4Q SET 2015 | AM12: 4Q SET 2016 | AN12: 4Q SET 2017 | AO12: 4Q SET 2018 | AP12: 4Q SET 2019 | AQ12: 4Q SET 2020 | AR12: 4Q SET 2021 | AS12: 4Q SET 2022 | AT12: 4Q SET 2023 | AU12: SET | AX12: =IFERROR(INDEX('Base de Dados Input'!$A:$Y,MATCH($AL12,'Base de Dados Input'!$A:$A,0),MATCH($AY$2,'Base de Dados Input'!$2:$2,0)),"") -> 2007166.42 | AY12: =IFERROR(INDEX('Base de Dados Input'!$A:$Y,MATCH($AM12,'Base de Dados Input'!$A:$A,0),MATCH($AY$2,'Base de Dados Input'!$2:$2,0)),"") -> 2298548.05 | AZ12: =IFERROR(INDEX('Base de Dados Input'!$A:$Y,MATCH($AN12,'Base de Dados Input'!$A:$A,0),MATCH($AY$2,'Base de Dados Input'!$2:$2,0)),"") -> 2233639.434 | BA12: =IFERROR(INDEX('Base de Dados Input'!$A:$Y,MATCH($AO12,'Base de Dados Input'!$A:$A,0),MATCH($AY$2,'Base de Dados Input'!$2:$2,0)),"") -> 2421487.21 | BB12: =IFERROR(INDEX('Base de Dados Input'!$A:$Y,MATCH($AP12,'Base de Dados Input'!$A:$A,0),MATCH($AY$2,'Base de Dados Input'!$2:$2,0)),"") -> 3479006.23 | BC12: =IFERROR(INDEX('Base de Dados Input'!$A:$Y,MATCH($AQ12,'Base de Dados Input'!$A:$A,0),MATCH($AY$2,'Base de Dados Input'!$2:$2,0)),"") -> 3411639.2 | BD12: =IFERROR(INDEX('Base de Dados Input'!$A:$Y,MATCH($AR12,'Base de Dados Input'!$A:$A,0),MATCH($AY$2,'Base de Dados Input'!$2:$2,0)),"") -> 3758105.68 | BE12: =IFERROR(INDEX('Base de Dados Input'!$A:$Y,MATCH($AS12,'Base de Dados Input'!$A:$A,0),MATCH($AY$2,'Base de Dados Input'!$2:$2,0)),"") -> 3908667.24
AL13: 4Q OUT 2015 | AM13: 4Q OUT 2016 | AN13: 4Q OUT 2017 | AO13: 4Q OUT 2018 | AP13: 4Q OUT 2019 | AQ13: 4Q OUT 2020 | AR13: 4Q OUT 2021 | AS13: 4Q OUT 2022 | AT13: 4Q OUT 2023 | AU13: OUT | AX13: =IFERROR(INDEX('Base de Dados Input'!$A:$Y,MATCH($AL13,'Base de Dados Input'!$A:$A,0),MATCH($AY$2,'Base de Dados Input'!$2:$2,0)),"") -> 1856675.46 | AY13: =IFERROR(INDEX('Base de Dados Input'!$A:$Y,MATCH($AM13,'Base de Dados Input'!$A:$A,0),MATCH($AY$2,'Base de Dados Input'!$2:$2,0)),"") -> 2014676.31 | AZ13: =IFERROR(INDEX('Base de Dados Input'!$A:$Y,MATCH($AN13,'Base de Dados Input'!$A:$A,0),MATCH($AY$2,'Base de Dados Input'!$2:$2,0)),"") -> 2994779.8 | BA13: =IFERROR(INDEX('Base de Dados Input'!$A:$Y,MATCH($AO13,'Base de Dados Input'!$A:$A,0),MATCH($AY$2,'Base de Dados Input'!$2:$2,0)),"") -> 2732062.85 | BB13: =IFERROR(INDEX('Base de Dados Input'!$A:$Y,MATCH($AP13,'Base de Dados Input'!$A:$A,0),MATCH($AY$2,'Base de Dados Input'!$2:$2,0)),"") -> 3595470.86 | BC13: =IFERROR(INDEX('Base de Dados Input'!$A:$Y,MATCH($AQ13,'Base de Dados Input'!$A:$A,0),MATCH($AY$2,'Base de Dados Input'!$2:$2,0)),"") -> 3623989.54 | BD13: =IFERROR(INDEX('Base de Dados Input'!$A:$Y,MATCH($AR13,'Base de Dados Input'!$A:$A,0),MATCH($AY$2,'Base de Dados Input'!$2:$2,0)),"") -> 3435217.09 | BE13: =IFERROR(INDEX('Base de Dados Input'!$A:$Y,MATCH($AS13,'Base de Dados Input'!$A:$A,0),MATCH($AY$2,'Base de Dados Input'!$2:$2,0)),"") -> 3373001.78
AL14: 4Q NOV 2015 | AM14: 4Q NOV 2016 | AN14: 4Q NOV 2017 | AO14: 4Q NOV 2018 | AP14: 4Q NOV 2019 | AQ14: 4Q NOV 2020 | AR14: 4Q NOV 2021 | AS14: 4Q NOV 2022 | AT14: 4Q NOV 2023 | AU14: NOV | AX14: =IFERROR(INDEX('Base de Dados Input'!$A:$Y,MATCH($AL14,'Base de Dados Input'!$A:$A,0),MATCH($AY$2,'Base de Dados Input'!$2:$2,0)),"") -> 1680773.86 | AY14: =IFERROR(INDEX('Base de Dados Input'!$A:$Y,MATCH($AM14,'Base de Dados Input'!$A:$A,0),MATCH($AY$2,'Base de Dados Input'!$2:$2,0)),"") -> 2010705.24 | AZ14: =IFERROR(INDEX('Base de Dados Input'!$A:$Y,MATCH($AN14,'Base de Dados Input'!$A:$A,0),MATCH($AY$2,'Base de Dados Input'!$2:$2,0)),"") -> 2465546.656 | BA14: =IFERROR(INDEX('Base de Dados Input'!$A:$Y,MATCH($AO14,'Base de Dados Input'!$A:$A,0),MATCH($AY$2,'Base de Dados Input'!$2:$2,0)),"") -> 2254413.19 | BB14: =IFERROR(INDEX('Base de Dados Input'!$A:$Y,MATCH($AP14,'Base de Dados Input'!$A:$A,0),MATCH($AY$2,'Base de Dados Input'!$2:$2,0)),"") -> 3053904.27 | BC14: =IFERROR(INDEX('Base de Dados Input'!$A:$Y,MATCH($AQ14,'Base de Dados Input'!$A:$A,0),MATCH($AY$2,'Base de Dados Input'!$2:$2,0)),"") -> 3107192.99 | BD14: =IFERROR(INDEX('Base de Dados Input'!$A:$Y,MATCH($AR14,'Base de Dados Input'!$A:$A,0),MATCH($AY$2,'Base de Dados Input'!$2:$2,0)),"") -> 3382636.47 | BE14: =IFERROR(INDEX('Base de Dados Input'!$A:$Y,MATCH($AS14,'Base de Dados Input'!$A:$A,0),MATCH($AY$2,'Base de Dados Input'!$2:$2,0)),"") -> 3363113.47
AL15: 4Q DEZ 2015 | AM15: 4Q DEZ 2016 | AN15: 4Q DEZ 2017 | AO15: 4Q DEZ 2018 | AP15: 4Q DEZ 2019 | AQ15: 4Q DEZ 2020 | AR15: 4Q DEZ 2021 | AS15: 4Q DEZ 2022 | AT15: 4Q DEZ 2023 | AU15: DEZ | AX15: =IFERROR(INDEX('Base de Dados Input'!$A:$Y,MATCH($AL15,'Base de Dados Input'!$A:$A,0),MATCH($AY$2,'Base de Dados Input'!$2:$2,0)),"") -> 1722430.8 | AY15: =IFERROR(INDEX('Base de Dados Input'!$A:$Y,MATCH($AM15,'Base de Dados Input'!$A:$A,0),MATCH($AY$2,'Base de Dados Input'!$2:$2,0)),"") -> 2221525.22 | AZ15: =IFERROR(INDEX('Base de Dados Input'!$A:$Y,MATCH($AN15,'Base de Dados Input'!$A:$A,0),MATCH($AY$2,'Base de Dados Input'!$2:$2,0)),"") -> 2027391.7 | BA15: =IFERROR(INDEX('Base de Dados Input'!$A:$Y,MATCH($AO15,'Base de Dados Input'!$A:$A,0),MATCH($AY$2,'Base de Dados Input'!$2:$2,0)),"") -> 2314294.42 | BB15: =IFERROR(INDEX('Base de Dados Input'!$A:$Y,MATCH($AP15,'Base de Dados Input'!$A:$A,0),MATCH($AY$2,'Base de Dados Input'!$2:$2,0)),"") -> 3190357.32 | BC15: =IFERROR(INDEX('Base de Dados Input'!$A:$Y,MATCH($AQ15,'Base de Dados Input'!$A:$A,0),MATCH($AY$2,'Base de Dados Input'!$2:$2,0)),"") -> 3078692.75 | BD15: =IFERROR(INDEX('Base de Dados Input'!$A:$Y,MATCH($AR15,'Base de Dados Input'!$A:$A,0),MATCH($AY$2,'Base de Dados Input'!$2:$2,0)),"") -> 3459183 | BE15: =IFERROR(INDEX('Base de Dados Input'!$A:$Y,MATCH($AS15,'Base de Dados Input'!$A:$A,0),MATCH($AY$2,'Base de Dados Input'!$2:$2,0)),"") -> 3158582.13
AT16: TOTAL | AU16: =SUBTOTAL(109,AU4:AU15) -> 0 | AV16: =SUBTOTAL(109,AV4:AV15) -> 0 | AW16: 0 | AX16: 31194302.61 | AY16: 34192244.17 | AZ16: 39718189.95 | BA16: 41728112.88 | BB16: 48695128.55 | BC16: 45815279.32
AZ19: Arrecadação Mês a Mês(Gráfico 4)
AU20: Coluna1 | AV20: Arrecadação Acum. | AW20: Programação Acum. | AX20: Reprogramação Acum. | AZ20: Arrecadação Mensal | BA20: Programação Mensal | BB20: Reprogramação Mensal
AL21: Arrecadação Acumulada (Gráfico 2) | AW21: =IFERROR(INDEX('Base de Dados Input'!$A:$BF,MATCH($AT21,'Base de Dados Input'!$A:$A,0),MATCH($BA$2,'Base de Dados Input'!$2:$2,0)),"") ->  | AX21: =IFERROR(INDEX('Base de Dados Input'!$A:$BF,MATCH($AR21,'Base de Dados Input'!$A:$A,0),MATCH($AZ$2,'Base de Dados Input'!$2:$2,0)),"") -> 
